Workbook

Sheet Un Año
D7: Proyección Plan Enganche de Vivienda
D9: Ingresar Enganche Objetivo: | G9: 0
D11: Tipo de Plan | G11: PFP ENGANCHE DE VIVIENDA
D13: Tasa de Interés Efectiva (afecta variable) | G13: =ROUND(EFFECT(G15,12),6) -> 0.035
D15: Tasa de Interés Nominal (afecta variable) | G15: 0.03445078463
D17: Aporte Inicial | G17: 500
D19: Aporte Mensual | G19: -33.28505741 | H19: =ROUNDUP(G19,2) -> -33.29
D21: Revalorización SI/NO | G21: NO APLICA
D23: Porcentaje de Revalorización Sugerido | G23: =IF(G21="si",10%,0) -> 0
D25: Año | E25: Aporte Neto Mensual | F25: Aportaciones Acumuladas | G25: Interés Neto | H25: Acumulado
D27: 1 | E27: =+'Calculo aporte dia 3_1'!B8-'Calculo aporte dia 3_1'!$B$4 -> -42.28505741 | F27: =+E27*12+G17 -> -7.420688908 | G27: =+'Calculo aporte dia 3_1'!AV44 -> 7.42 | H27: =+'Calculo aporte dia 3_1'!AU45 -> -0.0006889080496
D29: La presente proyección se realizó en base a los siguientes parámetros:
D30: La presente proyección se realizó en base a los siguientes parámetros:
D31: - Intereses calculados con base a la tasa de interés nominal afecta variable
D32: - Cálculo de interés diario con capitalización mensual
D33: - Base de cálculo 365 días
D34: - Descuento mensual de 10.00% de ISR de capital
D35: - Débito mensual de Q9.00 por cobertura y servicios (Aplican Restricciones)
D36: - Para efectos de cálculo se contempla el aporte inicial el primer día del mes 1 del año 1
D37: - Aporte pactado ininterrumpido con débito automático el día 3 de cada mes
D38: - Esta proyección puede variar dependiendo de los aportes extraordinarios y retiros que se realicen, así
D39: como las condiciones del mercado
H40: =TODAY() -> 2021-05-27

Sheet 18 Meses
D7: Proyección Plan Enganche de Vivienda
D9: Ingresar Enganche Objetivo: | G9: 0
D11: Tipo de Plan | G11: PFP ENGANCHE DE VIVIENDA
D13: Tasa de Interés Efectiva (afecta variable) | G13: =ROUND(EFFECT(G15,12),6) -> 0.0375
D15: Tasa de Interés Nominal (afecta variable) | G15: 0.03687050044
D17: Aporte Inicial | G17: 500
N18: SI
D19: Aporte Mensual | G19: -19.45885258 | H19: =ROUNDUP(G19,2) -> -19.46 | N19: NO
D21: Revalorización SI/NO | G21: NO | H21: Si modifica esta celda deberá volver a dar click para generar proyección
D23: Porcentaje de Revalorización Sugerido | G23: =IF(G21="si",10%,0) -> 0
D25: Meses | E25: Aporte Neto Mensual | F25: Aportaciones Acumuladas | G25: Interés Neto | H25: Acumulado
D27: 12 | E27: =+'Calculo aporte dia 3_18'!B8-'Calculo aporte dia 3_18'!$B$4 -> -28.45885258 | F27: =+E27*12+G17 -> 158.4937691 | G27: =+'Calculo aporte dia 3_18'!AV44 -> 10.95 | H27: =+'Calculo aporte dia 3_18'!AU45 -> 169.4437691
D28: 18 | E28: =+'Calculo aporte dia 3_18'!B50-'Calculo aporte dia 3_18'!$B$4 -> -28.45885258 | F28: =+F27+(E28*6) -> -12.2593464 | G28: =+'Calculo aporte dia 3_18'!X86 -> 1.31 | H28: =+'Calculo aporte dia 3_18'!W87 -> 0.0006536033012
D30: La presente proyección se realizó en base a los siguientes parámetros:
D31: - Intereses calculados con base a la tasa de interés nominal afecta variable
D32: - Cálculo de interés diario con capitalización mensual
D33: - Base de cálculo 365 días
D34: - Descuento mensual de 10.00% de ISR de capital
D35: - Débito mensual de Q9.00 por cobertura y servicios (Aplican Restricciones)
D36: - Para efectos de cálculo se contempla el aporte inicial el primer día del mes 1 del año 1
D37: - Aporte pactado ininterrumpido con débito automático el día 3 de cada mes
D38: - Esta proyección puede variar dependiendo de los aportes extraordinarios y retiros que se realicen, así
D39: como las condiciones del mercado
H40: =TODAY() -> 2021-05-27

Sheet Dos Años
D7: Proyección Plan Enganche de Vivienda
D9: Ingresar Enganche Objetivo: | G9: 0
D11: Tipo de Plan | G11: PFP ENGANCHE DE VIVIENDA
D13: Tasa de Interés Efectiva (afecta variable) | G13: =ROUND(EFFECT(G15,12),6) -> 0.04
D15: Tasa de Interés Nominal (afecta variable) | G15: 0.03928487739
D17: Aporte Inicial | G17: 500
N18: SI
D19: Aporte Mensual | G19: -12.57125 | H19: =ROUNDUP(G19,2) -> -12.58 | N19: NO
D21: Revalorización SI/NO | G21: NO | H21: Si modifica esta celda deberá volver a dar click para generar proyección
D23: Porcentaje de Revalorización Sugerido | G23: =IF(G21="si",10%,0) -> 0
D25: Año | E25: Aporte Neto Mensual | F25: Aportaciones Acumuladas | G25: Interés Neto | H25: Acumulado
D27: 1 | E27: =+'Calculo aporte dia 3_2'!B8-'Calculo aporte dia 3_2'!$B$4 -> -21.57125 | F27: =+E27*12+G17 -> 241.145 | G27: =+'Calculo aporte dia 3_2'!AV44 -> 13.26 | H27: =+'Calculo aporte dia 3_2'!AU45 -> 254.405
D28: =+D27+1 -> 2 | E28: =+'Calculo aporte dia 3_2'!B50-'Calculo aporte dia 3_2'!$B$4 -> -21.57125 | F28: =+F27+(E28*12) -> -17.71 | G28: =+'Calculo aporte dia 3_2'!AV86 -> 4.45 | H28: =+'Calculo aporte dia 3_2'!AU87 -> 5.577760476e-13
D30: La presente proyección se realizó en base a los siguientes parámetros:
D31: - Intereses calculados con base a la tasa de interés nominal afecta variable
D32: - Cálculo de interés diario con capitalización mensual
D33: - Base de cálculo 365 días
D34: - Descuento mensual de 10.00% de ISR de capital
D35: - Débito mensual de Q9.00 por cobertura y servicios (Aplican Restricciones)
D36: - Para efectos de cálculo se contempla el aporte inicial el primer día del mes 1 del año 1
D37: - Aporte pactado ininterrumpido con débito automático el día 3 de cada mes
D38: - Esta proyección puede variar dependiendo de los aportes extraordinarios y retiros que se realicen, así
D39: como las condiciones del mercado
H40: =TODAY() -> 2021-05-27

Sheet Tres Años
D7: Proyección Plan Enganche de Vivienda
D9: Ingresar Enganche Objetivo: | G9: 0
D11: Tipo de Plan | G11: PFP ENGANCHE DE VIVIENDA
D13: Tasa de Interés Efectiva (afecta variable) | G13: =ROUND(EFFECT(G15,12),6) -> 0.050011
D15: Tasa de Interés Nominal (afecta variable) | G15: 0.0489
D17: Aporte Inicial | G17: 500
D19: Aporte Mensual | G19: -5.826100141 | H19: =ROUNDUP(G19,2) -> -5.83
D21: Revalorización SI/NO | G21: NO | H21: Si modifica esta celda deberá volver a dar click para generar proyección | N21: SI
N22: NO
D23: Porcentaje de Revalorización Sugerido | G23: =IF(G21="si",10%,0) -> 0
D25: Año | E25: Aporte Neto Mensual | F25: Aportaciones Acumuladas | G25: Interés Neto | H25: Acumulado
D27: 1 | E27: =+'Calculo aporte dia 3_3'!B8-'Calculo aporte dia 3_3'!$B$4 -> -14.82610014 | F27: =+E27*12+G17 -> 322.0867983 | G27: =+'Calculo aporte dia 3_3'!AV44 -> 18.51 | H27: =+'Calculo aporte dia 3_3'!AU45 -> 340.5967983
D28: =+D27+1 -> 2 | E28: =+'Calculo aporte dia 3_3'!B50-'Calculo aporte dia 3_3'!$B$4 -> -14.82610014 | F28: =+F27+(E28*12) -> 144.1735966 | G28: =+'Calculo aporte dia 3_3'!AV86 -> 11.34 | H28: =+'Calculo aporte dia 3_3'!AU87 -> 174.0235966
D29: =+D28+1 -> 3 | E29: =+'Calculo aporte dia 3_3'!B92-'Calculo aporte dia 3_3'!$B$4 -> -14.82610014 | F29: =+F28+(E29*12) -> -33.73960507 | G29: =+'Calculo aporte dia 3_3'!AV128 -> 3.89 | H29: =+'Calculo aporte dia 3_3'!AU129 -> 0.0003949270358
D31: La presente proyección se realizó en base a los siguientes parámetros:
D32: - Intereses calculados con base a la tasa de interés nominal afecta variable
D33: - Cálculo de interés diario con capitalización mensual
D34: - Base de cálculo 365 días
D35: - Descuento mensual de 10.00% de ISR de capital
D36: - Débito mensual de Q9.00 por cobertura y servicios (Aplican Restricciones)
D37: - Para efectos de cálculo se contempla el aporte inicial el primer día del mes 1 del año 1
D38: - Aporte pactado ininterrumpido con débito automático el día 3 de cada mes
D39: - Esta proyección puede variar dependiendo de los aportes extraordinarios y retiros que se realicen, así
D40: como las condiciones del mercado
H41: =TODAY() -> 2021-05-27

Sheet Calculo aporte dia 3_1 (hidden)
A1: APORTE INICIAL | B1: =+'Un Año'!G17 -> 500
A2: APORTE PACTADO | B2: =+'Un Año'!G19 -> -33.28505741
A3: REVALORIZACIÓN | B3: =+'Un Año'!G23 -> 0
A4: SEGURO | B4: 9
A5: TASA NOMINAL | B5: =+'Un Año'!G15 -> 0.03445078463
A6: BASE DE CALCULO | B6: 365
A8: PRIMER AÑO | B8: =+B2 -> -33.28505741
A9: 1 | E9: =+A9+1 -> 2 | I9: =+E9+1 -> 3 | M9: =+I9+1 -> 4 | Q9: =+M9+1 -> 5 | U9: =+Q9+1 -> 6 | Y9: =+U9+1 -> 7 | AC9: =+Y9+1 -> 8 | AG9: =+AC9+1 -> 9 | AK9: =+AG9+1 -> 10 | AO9: =+AK9+1 -> 11 | AS9: =+AO9+1 -> 12
A10: NO. | B10: SALDO DIARIO | C10: INTERESES DIARIO | E10: NO. | F10: SALDO DIARIO | G10: INTERESES DIARIO | I10: NO. | J10: SALDO DIARIO | K10: INTERESES DIARIO | M10: NO. | N10: SALDO DIARIO | O10: INTERESES DIARIO | Q10: NO. | R10: SALDO DIARIO | S10: INTERESES DIARIO | U10: NO. | V10: SALDO DIARIO | W10: INTERESES DIARIO | Y10: NO. | Z10: SALDO DIARIO | AA10: INTERESES DIARIO | AC10: NO. | AD10: SALDO DIARIO | AE10: INTERESES DIARIO | AG10: NO. | AH10: SALDO DIARIO | AI10: INTERESES DIARIO | AK10: NO. | AL10: SALDO DIARIO | AM10: INTERESES DIARIO | AO10: NO. | AP10: SALDO DIARIO | AQ10: INTERESES DIARIO | AS10: NO. | AT10: SALDO DIARIO | AU10: INTERESES DIARIO
A11: 1 | B11: =+B1 -> 500 | C11: =ROUND(INT(ROUND(B11*$B$5/365,8)*10000)/10000,4) -> 0.0471 | E11: 1 | F11: =+B41+C44-$B$4 -> 458.9449426 | G11: =ROUND(INT(ROUND(F11*$B$5/365,8)*10000)/10000,4) -> 0.0433 | I11: 1 | J11: =+F38+G44-$B$4 -> 417.6798852 | K11: =ROUND(INT(ROUND(J11*$B$5/365,8)*10000)/10000,4) -> 0.0394 | M11: 1 | N11: =+J41+K44-$B$4 -> 376.4148278 | O11: =ROUND(INT(ROUND(N11*$B$5/365,8)*10000)/10000,4) -> 0.0355 | Q11: 1 | R11: =+N40+O44-$B$4 -> 334.9997704 | S11: =ROUND(INT(ROUND(R11*$B$5/365,8)*10000)/10000,4) -> 0.0316 | U11: 1 | V11: =+R41+S44-$B$4 -> 293.514713 | W11: =ROUND(INT(ROUND(V11*$B$5/365,8)*10000)/10000,4) -> 0.0277 | Y11: 1 | Z11: =+V40+W44-$B$4 -> 251.8996555 | AA11: =ROUND(INT(ROUND(Z11*$B$5/365,8)*10000)/10000,4) -> 0.0237 | AC11: 1 | AD11: =+Z41+AA44-$B$4 -> 210.1945981 | AE11: =ROUND(INT(ROUND(AD11*$B$5/365,8)*10000)/10000,4) -> 0.0198 | AG11: 1 | AH11: =+AD41+AE44-$B$4 -> 168.3795407 | AI11: =ROUND(INT(ROUND(AH11*$B$5/365,8)*10000)/10000,4) -> 0.0158 | AK11: 1 | AL11: =+AH40+AI44-$B$4 -> 126.4444833 | AM11: =ROUND(INT(ROUND(AL11*$B$5/365,8)*10000)/10000,4) -> 0.0119 | AO11: 1 | AP11: =+AL41+AM44-$B$4 -> 84.40942591 | AQ11: =ROUND(INT(ROUND(AP11*$B$5/365,8)*10000)/10000,4) -> 0.0079 | AS11: 1 | AT11: =+AP40+AQ44-$B$4 -> 42.2543685 | AU11: =ROUND(INT(ROUND(AT11*$B$5/365,8)*10000)/10000,4) -> 0.0039
A12: =+A11+1 -> 2 | B12: =+B11 -> 500 | C12: =ROUND(INT(ROUND(B12*$B$5/365,8)*10000)/10000,4) -> 0.0471 | E12: =+E11+1 -> 2 | F12: =+F11 -> 458.9449426 | G12: 0.0433 | I12: =+I11+1 -> 2 | J12: =+J11 -> 417.6798852 | K12: 0.0394 | M12: =+M11+1 -> 2 | N12: =+N11 -> 376.4148278 | O12: 0.0355 | Q12: =+Q11+1 -> 2 | R12: =+R11 -> 334.9997704 | S12: 0.0316 | U12: =+U11+1 -> 2 | V12: =+V11 -> 293.514713 | W12: 0.0277 | Y12: =+Y11+1 -> 2 | Z12: =+Z11 -> 251.8996555 | AA12: 0.0237 | AC12: =+AC11+1 -> 2 | AD12: =+AD11 -> 210.1945981 | AE12: 0.0198 | AG12: =+AG11+1 -> 2 | AH12: =+AH11 -> 168.3795407 | AI12: 0.0158 | AK12: =+AK11+1 -> 2 | AL12: =+AL11 -> 126.4444833 | AM12: 0.0119 | AO12: =+AO11+1 -> 2 | AP12: =+AP11 -> 84.40942591 | AQ12: 0.0079 | AS12: =+AS11+1 -> 2 | AT12: =+AT11 -> 42.2543685 | AU12: 0.0039
A13: =+A12+1 -> 3 | B13: =+B12+$B$8 -> 466.7149426 | C13: 0.044 | E13: =+E12+1 -> 3 | F13: =+F12+$B$8 -> 425.6598852 | G13: 0.0401 | I13: =+I12+1 -> 3 | J13: =+J12+$B$8 -> 384.3948278 | K13: 0.0362 | M13: =+M12+1 -> 3 | N13: =+N12+$B$8 -> 343.1297704 | O13: 0.0323 | Q13: =+Q12+1 -> 3 | R13: =+R12+$B$8 -> 301.714713 | S13: 0.0284 | U13: =+U12+1 -> 3 | V13: =+V12+$B$8 -> 260.2296555 | W13: 0.0245 | Y13: =+Y12+1 -> 3 | Z13: =+Z12+$B$8 -> 218.6145981 | AA13: 0.0206 | AC13: =+AC12+1 -> 3 | AD13: =+AD12+$B$8 -> 176.9095407 | AE13: 0.0166 | AG13: =+AG12+1 -> 3 | AH13: =+AH12+$B$8 -> 135.0944833 | AI13: 0.0127 | AK13: =+AK12+1 -> 3 | AL13: =+AL12+$B$8 -> 93.15942591 | AM13: 0.0087 | AO13: =+AO12+1 -> 3 | AP13: =+AP12+$B$8 -> 51.1243685 | AQ13: 0.0048 | AS13: =+AS12+1 -> 3 | AT13: =+AT12+$B$8 -> 8.969311092 | AU13: 0.0008
A14: 4 | B14: =+B13 -> 466.7149426 | C14: 0.044 | E14: 4 | F14: =+F13 -> 425.6598852 | G14: 0.0401 | I14: 4 | J14: =+J13 -> 384.3948278 | K14: 0.0362 | M14: 4 | N14: =+N13 -> 343.1297704 | O14: 0.0323 | Q14: 4 | R14: =+R13 -> 301.714713 | S14: 0.0284 | U14: 4 | V14: =+V13 -> 260.2296555 | W14: 0.0245 | Y14: 4 | Z14: =+Z13 -> 218.6145981 | AA14: 0.0206 | AC14: 4 | AD14: =+AD13 -> 176.9095407 | AE14: 0.0166 | AG14: 4 | AH14: =+AH13 -> 135.0944833 | AI14: 0.0127 | AK14: 4 | AL14: =+AL13 -> 93.15942591 | AM14: 0.0087 | AO14: 4 | AP14: =+AP13 -> 51.1243685 | AQ14: 0.0048 | AS14: 4 | AT14: =+AT13 -> 8.969311092 | AU14: 0.0008
A15: 5 | B15: =+B14 -> 466.7149426 | C15: 0.044 | E15: 5 | F15: =+F14 -> 425.6598852 | G15: 0.0401 | I15: 5 | J15: =+J14 -> 384.3948278 | K15: 0.0362 | M15: 5 | N15: =+N14 -> 343.1297704 | O15: 0.0323 | Q15: 5 | R15: =+R14 -> 301.714713 | S15: 0.0284 | U15: 5 | V15: =+V14 -> 260.2296555 | W15: 0.0245 | Y15: 5 | Z15: =+Z14 -> 218.6145981 | AA15: 0.0206 | AC15: 5 | AD15: =+AD14 -> 176.9095407 | AE15: 0.0166 | AG15: 5 | AH15: =+AH14 -> 135.0944833 | AI15: 0.0127 | AK15: 5 | AL15: =+AL14 -> 93.15942591 | AM15: 0.0087 | AO15: 5 | AP15: =+AP14 -> 51.1243685 | AQ15: 0.0048 | AS15: 5 | AT15: =+AT14 -> 8.969311092 | AU15: 0.0008
A16: 6 | B16: 466.7149426 | C16: 0.044 | E16: 6 | F16: 425.6598852 | G16: 0.0401 | I16: 6 | J16: 384.3948278 | K16: 0.0362 | M16: 6 | N16: 343.1297704 | O16: 0.0323 | Q16: 6 | R16: 301.714713 | S16: 0.0284 | U16: 6 | V16: 260.2296555 | W16: 0.0245 | Y16: 6 | Z16: 218.6145981 | AA16: 0.0206 | AC16: 6 | AD16: 176.9095407 | AE16: 0.0166 | AG16: 6 | AH16: 135.0944833 | AI16: 0.0127 | AK16: 6 | AL16: 93.15942591 | AM16: 0.0087 | AO16: 6 | AP16: 51.1243685 | AQ16: 0.0048 | AS16: 6 | AT16: 8.969311092 | AU16: 0.0008
A17: 7 | B17: 466.7149426 | C17: 0.044 | E17: 7 | F17: 425.6598852 | G17: 0.0401 | I17: 7 | J17: 384.3948278 | K17: 0.0362 | M17: 7 | N17: 343.1297704 | O17: 0.0323 | Q17: 7 | R17: 301.714713 | S17: 0.0284 | U17: 7 | V17: 260.2296555 | W17: 0.0245 | Y17: 7 | Z17: 218.6145981 | AA17: 0.0206 | AC17: 7 | AD17: 176.9095407 | AE17: 0.0166 | AG17: 7 | AH17: 135.0944833 | AI17: 0.0127 | AK17: 7 | AL17: 93.15942591 | AM17: 0.0087 | AO17: 7 | AP17: 51.1243685 | AQ17: 0.0048 | AS17: 7 | AT17: 8.969311092 | AU17: 0.0008
A18: 8 | B18: 466.7149426 | C18: 0.044 | E18: 8 | F18: 425.6598852 | G18: 0.0401 | I18: 8 | J18: 384.3948278 | K18: 0.0362 | M18: 8 | N18: 343.1297704 | O18: 0.0323 | Q18: 8 | R18: 301.714713 | S18: 0.0284 | U18: 8 | V18: 260.2296555 | W18: 0.0245 | Y18: 8 | Z18: 218.6145981 | AA18: 0.0206 | AC18: 8 | AD18: 176.9095407 | AE18: 0.0166 | AG18: 8 | AH18: 135.0944833 | AI18: 0.0127 | AK18: 8 | AL18: 93.15942591 | AM18: 0.0087 | AO18: 8 | AP18: 51.1243685 | AQ18: 0.0048 | AS18: 8 | AT18: 8.969311092 | AU18: 0.0008
A19: 9 | B19: 466.7149426 | C19: 0.044 | E19: 9 | F19: 425.6598852 | G19: 0.0401 | I19: 9 | J19: 384.3948278 | K19: 0.0362 | M19: 9 | N19: 343.1297704 | O19: 0.0323 | Q19: 9 | R19: 301.714713 | S19: 0.0284 | U19: 9 | V19: 260.2296555 | W19: 0.0245 | Y19: 9 | Z19: 218.6145981 | AA19: 0.0206 | AC19: 9 | AD19: 176.9095407 | AE19: 0.0166 | AG19: 9 | AH19: 135.0944833 | AI19: 0.0127 | AK19: 9 | AL19: 93.15942591 | AM19: 0.0087 | AO19: 9 | AP19: 51.1243685 | AQ19: 0.0048 | AS19: 9 | AT19: 8.969311092 | AU19: 0.0008
A20: 10 | B20: 466.7149426 | C20: 0.044 | E20: 10 | F20: 425.6598852 | G20: 0.0401 | I20: 10 | J20: 384.3948278 | K20: 0.0362 | M20: 10 | N20: 343.1297704 | O20: 0.0323 | Q20: 10 | R20: 301.714713 | S20: 0.0284 | U20: 10 | V20: 260.2296555 | W20: 0.0245 | Y20: 10 | Z20: 218.6145981 | AA20: 0.0206 | AC20: 10 | AD20: 176.9095407 | AE20: 0.0166 | AG20: 10 | AH20: 135.0944833 | AI20: 0.0127 | AK20: 10 | AL20: 93.15942591 | AM20: 0.0087 | AO20: 10 | AP20: 51.1243685 | AQ20: 0.0048 | AS20: 10 | AT20: 8.969311092 | AU20: 0.0008
A21: 11 | B21: 466.7149426 | C21: 0.044 | E21: 11 | F21: 425.6598852 | G21: 0.0401 | I21: 11 | J21: 384.3948278 | K21: 0.0362 | M21: 11 | N21: 343.1297704 | O21: 0.0323 | Q21: 11 | R21: 301.714713 | S21: 0.0284 | U21: 11 | V21: 260.2296555 | W21: 0.0245 | Y21: 11 | Z21: 218.6145981 | AA21: 0.0206 | AC21: 11 | AD21: 176.9095407 | AE21: 0.0166 | AG21: 11 | AH21: 135.0944833 | AI21: 0.0127 | AK21: 11 | AL21: 93.15942591 | AM21: 0.0087 | AO21: 11 | AP21: 51.1243685 | AQ21: 0.0048 | AS21: 11 | AT21: 8.969311092 | AU21: 0.0008
A22: 12 | B22: 466.7149426 | C22: 0.044 | E22: 12 | F22: 425.6598852 | G22: 0.0401 | I22: 12 | J22: 384.3948278 | K22: 0.0362 | M22: 12 | N22: 343.1297704 | O22: 0.0323 | Q22: 12 | R22: 301.714713 | S22: 0.0284 | U22: 12 | V22: 260.2296555 | W22: 0.0245 | Y22: 12 | Z22: 218.6145981 | AA22: 0.0206 | AC22: 12 | AD22: 176.9095407 | AE22: 0.0166 | AG22: 12 | AH22: 135.0944833 | AI22: 0.0127 | AK22: 12 | AL22: 93.15942591 | AM22: 0.0087 | AO22: 12 | AP22: 51.1243685 | AQ22: 0.0048 | AS22: 12 | AT22: 8.969311092 | AU22: 0.0008
A23: 13 | B23: 466.7149426 | C23: 0.044 | E23: 13 | F23: 425.6598852 | G23: 0.0401 | I23: 13 | J23: 384.3948278 | K23: 0.0362 | M23: 13 | N23: 343.1297704 | O23: 0.0323 | Q23: 13 | R23: 301.714713 | S23: 0.0284 | U23: 13 | V23: 260.2296555 | W23: 0.0245 | Y23: 13 | Z23: 218.6145981 | AA23: 0.0206 | AC23: 13 | AD23: 176.9095407 | AE23: 0.0166 | AG23: 13 | AH23: 135.0944833 | AI23: 0.0127 | AK23: 13 | AL23: 93.15942591 | AM23: 0.0087 | AO23: 13 | AP23: 51.1243685 | AQ23: 0.0048 | AS23: 13 | AT23: 8.969311092 | AU23: 0.0008
A24: 14 | B24: 466.7149426 | C24: 0.044 | E24: 14 | F24: 425.6598852 | G24: 0.0401 | I24: 14 | J24: 384.3948278 | K24: 0.0362 | M24: 14 | N24: 343.1297704 | O24: 0.0323 | Q24: 14 | R24: 301.714713 | S24: 0.0284 | U24: 14 | V24: 260.2296555 | W24: 0.0245 | Y24: 14 | Z24: 218.6145981 | AA24: 0.0206 | AC24: 14 | AD24: 176.9095407 | AE24: 0.0166 | AG24: 14 | AH24: 135.0944833 | AI24: 0.0127 | AK24: 14 | AL24: 93.15942591 | AM24: 0.0087 | AO24: 14 | AP24: 51.1243685 | AQ24: 0.0048 | AS24: 14 | AT24: 8.969311092 | AU24: 0.0008
A25: 15 | B25: 466.7149426 | C25: 0.044 | E25: 15 | F25: 425.6598852 | G25: 0.0401 | I25: 15 | J25: 384.3948278 | K25: 0.0362 | M25: 15 | N25: 343.1297704 | O25: 0.0323 | Q25: 15 | R25: 301.714713 | S25: 0.0284 | U25: 15 | V25: 260.2296555 | W25: 0.0245 | Y25: 15 | Z25: 218.6145981 | AA25: 0.0206 | AC25: 15 | AD25: 176.9095407 | AE25: 0.0166 | AG25: 15 | AH25: 135.0944833 | AI25: 0.0127 | AK25: 15 | AL25: 93.15942591 | AM25: 0.0087 | AO25: 15 | AP25: 51.1243685 | AQ25: 0.0048 | AS25: 15 | AT25: 8.969311092 | AU25: 0.0008
A26: 16 | B26: 466.7149426 | C26: 0.044 | E26: 16 | F26: 425.6598852 | G26: 0.0401 | I26: 16 | J26: 384.3948278 | K26: 0.0362 | M26: 16 | N26: 343.1297704 | O26: 0.0323 | Q26: 16 | R26: 301.714713 | S26: 0.0284 | U26: 16 | V26: 260.2296555 | W26: 0.0245 | Y26: 16 | Z26: 218.6145981 | AA26: 0.0206 | AC26: 16 | AD26: 176.9095407 | AE26: 0.0166 | AG26: 16 | AH26: 135.0944833 | AI26: 0.0127 | AK26: 16 | AL26: 93.15942591 | AM26: 0.0087 | AO26: 16 | AP26: 51.1243685 | AQ26: 0.0048 | AS26: 16 | AT26: 8.969311092 | AU26: 0.0008
A27: 17 | B27: 466.7149426 | C27: 0.044 | E27: 17 | F27: 425.6598852 | G27: 0.0401 | I27: 17 | J27: 384.3948278 | K27: 0.0362 | M27: 17 | N27: 343.1297704 | O27: 0.0323 | Q27: 17 | R27: 301.714713 | S27: 0.0284 | U27: 17 | V27: 260.2296555 | W27: 0.0245 | Y27: 17 | Z27: 218.6145981 | AA27: 0.0206 | AC27: 17 | AD27: 176.9095407 | AE27: 0.0166 | AG27: 17 | AH27: 135.0944833 | AI27: 0.0127 | AK27: 17 | AL27: 93.15942591 | AM27: 0.0087 | AO27: 17 | AP27: 51.1243685 | AQ27: 0.0048 | AS27: 17 | AT27: 8.969311092 | AU27: 0.0008
A28: 18 | B28: 466.7149426 | C28: 0.044 | E28: 18 | F28: 425.6598852 | G28: 0.0401 | I28: 18 | J28: 384.3948278 | K28: 0.0362 | M28: 18 | N28: 343.1297704 | O28: 0.0323 | Q28: 18 | R28: 301.714713 | S28: 0.0284 | U28: 18 | V28: 260.2296555 | W28: 0.0245 | Y28: 18 | Z28: 218.6145981 | AA28: 0.0206 | AC28: 18 | AD28: 176.9095407 | AE28: 0.0166 | AG28: 18 | AH28: 135.0944833 | AI28: 0.0127 | AK28: 18 | AL28: 93.15942591 | AM28: 0.0087 | AO28: 18 | AP28: 51.1243685 | AQ28: 0.0048 | AS28: 18 | AT28: 8.969311092 | AU28: 0.0008
A29: 19 | B29: 466.7149426 | C29: 0.044 | E29: 19 | F29: 425.6598852 | G29: 0.0401 | I29: 19 | J29: 384.3948278 | K29: 0.0362 | M29: 19 | N29: 343.1297704 | O29: 0.0323 | Q29: 19 | R29: 301.714713 | S29: 0.0284 | U29: 19 | V29: 260.2296555 | W29: 0.0245 | Y29: 19 | Z29: 218.6145981 | AA29: 0.0206 | AC29: 19 | AD29: 176.9095407 | AE29: 0.0166 | AG29: 19 | AH29: 135.0944833 | AI29: 0.0127 | AK29: 19 | AL29: 93.15942591 | AM29: 0.0087 | AO29: 19 | AP29: 51.1243685 | AQ29: 0.0048 | AS29: 19 | AT29: 8.969311092 | AU29: 0.0008
A30: 20 | B30: 466.7149426 | C30: 0.044 | E30: 20 | F30: 425.6598852 | G30: 0.0401 | I30: 20 | J30: 384.3948278 | K30: 0.0362 | M30: 20 | N30: 343.1297704 | O30: 0.0323 | Q30: 20 | R30: 301.714713 | S30: 0.0284 | U30: 20 | V30: 260.2296555 | W30: 0.0245 | Y30: 20 | Z30: 218.6145981 | AA30: 0.0206 | AC30: 20 | AD30: 176.9095407 | AE30: 0.0166 | AG30: 20 | AH30: 135.0944833 | AI30: 0.0127 | AK30: 20 | AL30: 93.15942591 | AM30: 0.0087 | AO30: 20 | AP30: 51.1243685 | AQ30: 0.0048 | AS30: 20 | AT30: 8.969311092 | AU30: 0.0008
A31: 21 | B31: 466.7149426 | C31: 0.044 | E31: 21 | F31: 425.6598852 | G31: 0.0401 | I31: 21 | J31: 384.3948278 | K31: 0.0362 | M31: 21 | N31: 343.1297704 | O31: 0.0323 | Q31: 21 | R31: 301.714713 | S31: 0.0284 | U31: 21 | V31: 260.2296555 | W31: 0.0245 | Y31: 21 | Z31: 218.6145981 | AA31: 0.0206 | AC31: 21 | AD31: 176.9095407 | AE31: 0.0166 | AG31: 21 | AH31: 135.0944833 | AI31: 0.0127 | AK31: 21 | AL31: 93.15942591 | AM31: 0.0087 | AO31: 21 | AP31: 51.1243685 | AQ31: 0.0048 | AS31: 21 | AT31: 8.969311092 | AU31: 0.0008
A32: 22 | B32: 466.7149426 | C32: 0.044 | E32: 22 | F32: 425.6598852 | G32: 0.0401 | I32: 22 | J32: 384.3948278 | K32: 0.0362 | M32: 22 | N32: 343.1297704 | O32: 0.0323 | Q32: 22 | R32: 301.714713 | S32: 0.0284 | U32: 22 | V32: 260.2296555 | W32: 0.0245 | Y32: 22 | Z32: 218.6145981 | AA32: 0.0206 | AC32: 22 | AD32: 176.9095407 | AE32: 0.0166 | AG32: 22 | AH32: 135.0944833 | AI32: 0.0127 | AK32: 22 | AL32: 93.15942591 | AM32: 0.0087 | AO32: 22 | AP32: 51.1243685 | AQ32: 0.0048 | AS32: 22 | AT32: 8.969311092 | AU32: 0.0008
A33: 23 | B33: 466.7149426 | C33: 0.044 | E33: 23 | F33: 425.6598852 | G33: 0.0401 | I33: 23 | J33: 384.3948278 | K33: 0.0362 | M33: 23 | N33: 343.1297704 | O33: 0.0323 | Q33: 23 | R33: 301.714713 | S33: 0.0284 | U33: 23 | V33: 260.2296555 | W33: 0.0245 | Y33: 23 | Z33: 218.6145981 | AA33: 0.0206 | AC33: 23 | AD33: 176.9095407 | AE33: 0.0166 | AG33: 23 | AH33: 135.0944833 | AI33: 0.0127 | AK33: 23 | AL33: 93.15942591 | AM33: 0.0087 | AO33: 23 | AP33: 51.1243685 | AQ33: 0.0048 | AS33: 23 | AT33: 8.969311092 | AU33: 0.0008
A34: 24 | B34: 466.7149426 | C34: 0.044 | E34: 24 | F34: 425.6598852 | G34: 0.0401 | I34: 24 | J34: 384.3948278 | K34: 0.0362 | M34: 24 | N34: 343.1297704 | O34: 0.0323 | Q34: 24 | R34: 301.714713 | S34: 0.0284 | U34: 24 | V34: 260.2296555 | W34: 0.0245 | Y34: 24 | Z34: 218.6145981 | AA34: 0.0206 | AC34: 24 | AD34: 176.9095407 | AE34: 0.0166 | AG34: 24 | AH34: 135.0944833 | AI34: 0.0127 | AK34: 24 | AL34: 93.15942591 | AM34: 0.0087 | AO34: 24 | AP34: 51.1243685 | AQ34: 0.0048 | AS34: 24 | AT34: 8.969311092 | AU34: 0.0008
A35: 25 | B35: 466.7149426 | C35: 0.044 | E35: 25 | F35: 425.6598852 | G35: 0.0401 | I35: 25 | J35: 384.3948278 | K35: 0.0362 | M35: 25 | N35: 343.1297704 | O35: 0.0323 | Q35: 25 | R35: 301.714713 | S35: 0.0284 | U35: 25 | V35: 260.2296555 | W35: 0.0245 | Y35: 25 | Z35: 218.6145981 | AA35: 0.0206 | AC35: 25 | AD35: 176.9095407 | AE35: 0.0166 | AG35: 25 | AH35: 135.0944833 | AI35: 0.0127 | AK35: 25 | AL35: 93.15942591 | AM35: 0.0087 | AO35: 25 | AP35: 51.1243685 | AQ35: 0.0048 | AS35: 25 | AT35: 8.969311092 | AU35: 0.0008
A36: 26 | B36: 466.7149426 | C36: 0.044 | E36: 26 | F36: 425.6598852 | G36: 0.0401 | I36: 26 | J36: 384.3948278 | K36: 0.0362 | M36: 26 | N36: 343.1297704 | O36: 0.0323 | Q36: 26 | R36: 301.714713 | S36: 0.0284 | U36: 26 | V36: 260.2296555 | W36: 0.0245 | Y36: 26 | Z36: 218.6145981 | AA36: 0.0206 | AC36: 26 | AD36: 176.9095407 | AE36: 0.0166 | AG36: 26 | AH36: 135.0944833 | AI36: 0.0127 | AK36: 26 | AL36: 93.15942591 | AM36: 0.0087 | AO36: 26 | AP36: 51.1243685 | AQ36: 0.0048 | AS36: 26 | AT36: 8.969311092 | AU36: 0.0008
A37: 27 | B37: 466.7149426 | C37: 0.044 | E37: 27 | F37: 425.6598852 | G37: 0.0401 | I37: 27 | J37: 384.3948278 | K37: 0.0362 | M37: 27 | N37: 343.1297704 | O37: 0.0323 | Q37: 27 | R37: 301.714713 | S37: 0.0284 | U37: 27 | V37: 260.2296555 | W37: 0.0245 | Y37: 27 | Z37: 218.6145981 | AA37: 0.0206 | AC37: 27 | AD37: 176.9095407 | AE37: 0.0166 | AG37: 27 | AH37: 135.0944833 | AI37: 0.0127 | AK37: 27 | AL37: 93.15942591 | AM37: 0.0087 | AO37: 27 | AP37: 51.1243685 | AQ37: 0.0048 | AS37: 27 | AT37: 8.969311092 | AU37: 0.0008
A38: 28 | B38: 466.7149426 | C38: 0.044 | E38: 28 | F38: 425.6598852 | G38: 0.0401 | I38: 28 | J38: 384.3948278 | K38: 0.0362 | M38: 28 | N38: 343.1297704 | O38: 0.0323 | Q38: 28 | R38: 301.714713 | S38: 0.0284 | U38: 28 | V38: 260.2296555 | W38: 0.0245 | Y38: 28 | Z38: 218.6145981 | AA38: 0.0206 | AC38: 28 | AD38: 176.9095407 | AE38: 0.0166 | AG38: 28 | AH38: 135.0944833 | AI38: 0.0127 | AK38: 28 | AL38: 93.15942591 | AM38: 0.0087 | AO38: 28 | AP38: 51.1243685 | AQ38: 0.0048 | AS38: 28 | AT38: 8.969311092 | AU38: 0.0008
A39: 29 | B39: 466.7149426 | C39: 0.044 | I39: 29 | J39: 384.3948278 | K39: 0.0362 | M39: 29 | N39: 343.1297704 | O39: 0.0323 | Q39: 29 | R39: 301.714713 | S39: 0.0284 | U39: 29 | V39: 260.2296555 | W39: 0.0245 | Y39: 29 | Z39: 218.6145981 | AA39: 0.0206 | AC39: 29 | AD39: 176.9095407 | AE39: 0.0166 | AG39: 29 | AH39: 135.0944833 | AI39: 0.0127 | AK39: 29 | AL39: 93.15942591 | AM39: 0.0087 | AO39: 29 | AP39: 51.1243685 | AQ39: 0.0048 | AS39: 29 | AT39: 8.969311092 | AU39: 0.0008
A40: 30 | B40: 466.7149426 | C40: 0.044 | I40: 30 | J40: 384.3948278 | K40: 0.0362 | M40: 30 | N40: 343.1297704 | O40: 0.0323 | Q40: 30 | R40: 301.714713 | S40: 0.0284 | U40: 30 | V40: 260.2296555 | W40: 0.0245 | Y40: 30 | Z40: 218.6145981 | AA40: 0.0206 | AC40: 30 | AD40: 176.9095407 | AE40: 0.0166 | AG40: 30 | AH40: 135.0944833 | AI40: 0.0127 | AK40: 30 | AL40: 93.15942591 | AM40: 0.0087 | AO40: 30 | AP40: 51.1243685 | AQ40: 0.0048 | AS40: 30 | AT40: 8.969311092 | AU40: 0.0008
A41: 31 | B41: =+B40 -> 466.7149426 | C41: 0.044 | I41: 31 | J41: 384.3948278 | K41: 0.0362 | Q41: 31 | R41: 301.714713 | S41: 0.0284 | Y41: 31 | Z41: 218.6145981 | AA41: 0.0206 | AC41: 31 | AD41: 176.9095407 | AE41: 0.0166 | AK41: 31 | AL41: 93.15942591 | AM41: 0.0087 | AS41: 31 | AT41: 8.969311092 | AU41: 0.0008
B42: TOTAL........ | C42: =IF((TRUNC((SUM(C11:C41)*1000))/10)-TRUNC(TRUNC((SUM(C11:C41)*1000))/10)>0.5,ROUND(SUM(C11:C41),2),TRUNC((TRUNC((SUM(C11:C41)*1000))/10))/100) -> 1.37 | F42: TOTAL........ | G42: =IF((TRUNC((SUM(G11:G41)*1000))/10)-TRUNC(TRUNC((SUM(G11:G41)*1000))/10)>0.5,ROUND(SUM(G11:G41),2),TRUNC((TRUNC((SUM(G11:G41)*1000))/10))/100) -> 1.13 | J42: TOTAL........ | K42: =IF((TRUNC((SUM(K11:K41)*1000))/10)-TRUNC(TRUNC((SUM(K11:K41)*1000))/10)>0.5,ROUND(SUM(K11:K41),2),TRUNC((TRUNC((SUM(K11:K41)*1000))/10))/100) -> 1.13 | N42: TOTAL........ | O42: =IF((TRUNC((SUM(O11:O41)*1000))/10)-TRUNC(TRUNC((SUM(O11:O41)*1000))/10)>0.5,ROUND(SUM(O11:O41),2),TRUNC((TRUNC((SUM(O11:O41)*1000))/10))/100) -> 0.97 | R42: TOTAL........ | S42: =IF((TRUNC((SUM(S11:S41)*1000))/10)-TRUNC(TRUNC((SUM(S11:S41)*1000))/10)>0.5,ROUND(SUM(S11:S41),2),TRUNC((TRUNC((SUM(S11:S41)*1000))/10))/100) -> 0.89 | V42: TOTAL........ | W42: =IF((TRUNC((SUM(W11:W41)*1000))/10)-TRUNC(TRUNC((SUM(W11:W41)*1000))/10)>0.5,ROUND(SUM(W11:W41),2),TRUNC((TRUNC((SUM(W11:W41)*1000))/10))/100) -> 0.74 | Z42: TOTAL........ | AA42: =IF((TRUNC((SUM(AA11:AA41)*1000))/10)-TRUNC(TRUNC((SUM(AA11:AA41)*1000))/10)>0.5,ROUND(SUM(AA11:AA41),2),TRUNC((TRUNC((SUM(AA11:AA41)*1000))/10))/100) -> 0.64 | AD42: TOTAL........ | AE42: =IF((TRUNC((SUM(AE11:AE41)*1000))/10)-TRUNC(TRUNC((SUM(AE11:AE41)*1000))/10)>0.5,ROUND(SUM(AE11:AE41),2),TRUNC((TRUNC((SUM(AE11:AE41)*1000))/10))/100) -> 0.52 | AH42: TOTAL........ | AI42: =IF((TRUNC((SUM(AI11:AI41)*1000))/10)-TRUNC(TRUNC((SUM(AI11:AI41)*1000))/10)>0.5,ROUND(SUM(AI11:AI41),2),TRUNC((TRUNC((SUM(AI11:AI41)*1000))/10))/100) -> 0.39 | AL42: TOTAL........ | AM42: =IF((TRUNC((SUM(AM11:AM41)*1000))/10)-TRUNC(TRUNC((SUM(AM11:AM41)*1000))/10)>0.5,ROUND(SUM(AM11:AM41),2),TRUNC((TRUNC((SUM(AM11:AM41)*1000))/10))/100) -> 0.28 | AP42: TOTAL........ | AQ42: =IF((TRUNC((SUM(AQ11:AQ41)*1000))/10)-TRUNC(TRUNC((SUM(AQ11:AQ41)*1000))/10)>0.5,ROUND(SUM(AQ11:AQ41),2),TRUNC((TRUNC((SUM(AQ11:AQ41)*1000))/10))/100) -> 0.15 | AT42: TOTAL........ | AU42: =IF((TRUNC((SUM(AU11:AU41)*1000))/10)-TRUNC(TRUNC((SUM(AU11:AU41)*1000))/10)>0.5,ROUND(SUM(AU11:AU41),2),TRUNC((TRUNC((SUM(AU11:AU41)*1000))/10))/100) -> 0.03 | AV42: =SUM(B42:AU42) -> 8.24
B43: I.P.F. | C43: =ROUND(C42*0.1,2) -> 0.14 | F43: I.P.F. | G43: =ROUND(G42*0.1,2) -> 0.11 | J43: I.P.F. | K43: =ROUND(K42*0.1,2) -> 0.11 | N43: I.P.F. | O43: =ROUND(O42*0.1,2) -> 0.1 | R43: I.P.F. | S43: =ROUND(S42*0.1,2) -> 0.09 | V43: I.P.F. | W43: =ROUND(W42*0.1,2) -> 0.07 | Z43: I.P.F. | AA43: =ROUND(AA42*0.1,2) -> 0.06 | AD43: I.P.F. | AE43: =ROUND(AE42*0.1,2) -> 0.05 | AH43: I.P.F. | AI43: =ROUND(AI42*0.1,2) -> 0.04 | AL43: I.P.F. | AM43: =ROUND(AM42*0.1,2) -> 0.03 | AP43: I.P.F. | AQ43: =ROUND(AQ42*0.1,2) -> 0.02 | AT43: I.P.F. | AU43: =ROUND(AU42*0.1,2) -> 0 | AV43: =SUM(B43:AU43) -> 0.82
B44: NETOS | C44: =+C42-C43 -> 1.23 | F44: NETOS | G44: =+G42-G43 -> 1.02 | J44: NETOS | K44: =+K42-K43 -> 1.02 | N44: NETOS | O44: =+O42-O43 -> 0.87 | R44: NETOS | S44: =+S42-S43 -> 0.8 | V44: NETOS | W44: =+W42-W43 -> 0.67 | Z44: NETOS | AA44: =+AA42-AA43 -> 0.58 | AD44: NETOS | AE44: =+AE42-AE43 -> 0.47 | AH44: NETOS | AI44: =+AI42-AI43 -> 0.35 | AL44: NETOS | AM44: =+AM42-AM43 -> 0.25 | AP44: NETOS | AQ44: =+AQ42-AQ43 -> 0.13 | AT44: NETOS | AU44: =+AU42-AU43 -> 0.03 | AV44: =SUM(B44:AU44) -> 7.42 | AW44: =+AV44 -> 7.42
AU45: =+AT41+AU44-$B$4 -> -0.0006889080496
A50: SEGUNDO AÑO | B50: =IF($B$3>0,(B8*$B$3)+B8,B8) -> -33.28505741
A51: 1 | E51: =+A51+1 -> 2 | I51: =+E51+1 -> 3 | M51: =+I51+1 -> 4 | Q51: =+M51+1 -> 5 | U51: =+Q51+1 -> 6 | Y51: =+U51+1 -> 7 | AC51: =+Y51+1 -> 8 | AG51: =+AC51+1 -> 9 | AK51: =+AG51+1 -> 10 | AO51: =+AK51+1 -> 11 | AS51: =+AO51+1 -> 12
A52: NO. | B52: SALDO DIARIO | C52: INTERESES DIARIO | E52: NO. | F52: SALDO DIARIO | G52: INTERESES DIARIO | I52: NO. | J52: SALDO DIARIO | K52: INTERESES DIARIO | M52: NO. | N52: SALDO DIARIO | O52: INTERESES DIARIO | Q52: NO. | R52: SALDO DIARIO | S52: INTERESES DIARIO | U52: NO. | V52: SALDO DIARIO | W52: INTERESES DIARIO | Y52: NO. | Z52: SALDO DIARIO | AA52: INTERESES DIARIO | AC52: NO. | AD52: SALDO DIARIO | AE52: INTERESES DIARIO | AG52: NO. | AH52: SALDO DIARIO | AI52: INTERESES DIARIO | AK52: NO. | AL52: SALDO DIARIO | AM52: INTERESES DIARIO | AO52: NO. | AP52: SALDO DIARIO | AQ52: INTERESES DIARIO | AS52: NO. | AT52: SALDO DIARIO | AU52: INTERESES DIARIO
A53: 1 | B53: =+AT41+AU44-$B$4 -> -0.0006889080496 | C53: =ROUND(INT(ROUND(B53*$B$5/365,8)*10000)/10000,4) -> -0.0001 | E53: 1 | F53: =+B83+C86-$B$4 -> -42.36574632 | G53: =ROUND(INT(ROUND(F53*$B$5/365,8)*10000)/10000,4) -> -0.004 | I53: 1 | J53: =+F80+G86-$B$4 -> -84.82080373 | K53: =ROUND(INT(ROUND(J53*$B$5/365,8)*10000)/10000,4) -> -0.0081 | M53: 1 | N53: =+J83+K86-$B$4 -> -127.4158611 | O53: =ROUND(INT(ROUND(N53*$B$5/365,8)*10000)/10000,4) -> -0.0121 | Q53: 1 | R53: =+N82+O86-$B$4 -> -170.1009185 | S53: =ROUND(INT(ROUND(R53*$B$5/365,8)*10000)/10000,4) -> -0.0161 | U53: 1 | V53: =+R83+S86-$B$4 -> -212.905976 | W53: =ROUND(INT(ROUND(V53*$B$5/365,8)*10000)/10000,4) -> -0.0201 | Y53: 1 | Z53: =+V82+W86-$B$4 -> -255.8110334 | AA53: =ROUND(INT(ROUND(Z53*$B$5/365,8)*10000)/10000,4) -> -0.0242 | AC53: 1 | AD53: =+Z83+AA86-$B$4 -> -298.8560908 | AE53: =ROUND(INT(ROUND(AD53*$B$5/365,8)*10000)/10000,4) -> -0.0283 | AG53: 1 | AH53: =+AD83+AE86-$B$4 -> -342.0011482 | AI53: =ROUND(INT(ROUND(AH53*$B$5/365,8)*10000)/10000,4) -> -0.0323 | AK53: 1 | AL53: =+AH82+AI86-$B$4 -> -385.2262056 | AM53: =ROUND(INT(ROUND(AL53*$B$5/365,8)*10000)/10000,4) -> -0.0364 | AO53: 1 | AP53: =+AL83+AM86-$B$4 -> -428.611263 | AQ53: =ROUND(INT(ROUND(AP53*$B$5/365,8)*10000)/10000,4) -> -0.0405 | AS53: 1 | AT53: =+AP82+AQ86-$B$4 -> -472.0663204 | AU53: =ROUND(INT(ROUND(AT53*$B$5/365,8)*10000)/10000,4) -> -0.0446
A54: =+A53+1 -> 2 | B54: =+B53 -> -0.0006889080496 | C54: -0.0001 | E54: =+E53+1 -> 2 | F54: =+F53 -> -42.36574632 | G54: -0.004 | I54: =+I53+1 -> 2 | J54: =+J53 -> -84.82080373 | K54: -0.0081 | M54: =+M53+1 -> 2 | N54: =+N53 -> -127.4158611 | O54: -0.0121 | Q54: =+Q53+1 -> 2 | R54: =+R53 -> -170.1009185 | S54: -0.0161 | U54: =+U53+1 -> 2 | V54: =+V53 -> -212.905976 | W54: -0.0201 | Y54: =+Y53+1 -> 2 | Z54: =+Z53 -> -255.8110334 | AA54: -0.0242 | AC54: =+AC53+1 -> 2 | AD54: =+AD53 -> -298.8560908 | AE54: -0.0283 | AG54: =+AG53+1 -> 2 | AH54: =+AH53 -> -342.0011482 | AI54: -0.0323 | AK54: =+AK53+1 -> 2 | AL54: =+AL53 -> -385.2262056 | AM54: -0.0364 | AO54: =+AO53+1 -> 2 | AP54: =+AP53 -> -428.611263 | AQ54: -0.0405 | AS54: =+AS53+1 -> 2 | AT54: =+AT53 -> -472.0663204 | AU54: -0.0446
A55: =+A54+1 -> 3 | B55: =+B54+$B$50 -> -33.28574632 | C55: -0.0032 | E55: =+E54+1 -> 3 | F55: =+F54+$B$50 -> -75.65080373 | G55: -0.0072 | I55: =+I54+1 -> 3 | J55: =+J54+$B$50 -> -118.1058611 | K55: -0.0112 | M55: =+M54+1 -> 3 | N55: =+N54+$B$50 -> -160.7009185 | O55: -0.0152 | Q55: =+Q54+1 -> 3 | R55: =+R54+$B$50 -> -203.385976 | S55: -0.0192 | U55: =+U54+1 -> 3 | V55: =+V54+$B$50 -> -246.1910334 | W55: -0.0233 | Y55: =+Y54+1 -> 3 | Z55: =+Z54+$B$50 -> -289.0960908 | AA55: -0.0273 | AC55: =+AC54+1 -> 3 | AD55: =+AD54+$B$50 -> -332.1411482 | AE55: -0.0314 | AG55: =+AG54+1 -> 3 | AH55: =+AH54+$B$50 -> -375.2862056 | AI55: -0.0355 | AK55: =+AK54+1 -> 3 | AL55: =+AL54+$B$50 -> -418.511263 | AM55: -0.0396 | AO55: =+AO54+1 -> 3 | AP55: =+AP54+$B$50 -> -461.8963204 | AQ55: -0.0436 | AS55: =+AS54+1 -> 3 | AT55: =+AT54+$B$50 -> -505.3513778 | AU55: -0.0477
A56: 4 | B56: =+B55 -> -33.28574632 | C56: -0.0032 | E56: 4 | F56: =+F55 -> -75.65080373 | G56: -0.0072 | I56: 4 | J56: =+J55 -> -118.1058611 | K56: -0.0112 | M56: 4 | N56: =+N55 -> -160.7009185 | O56: -0.0152 | Q56: 4 | R56: =+R55 -> -203.385976 | S56: -0.0192 | U56: 4 | V56: =+V55 -> -246.1910334 | W56: -0.0233 | Y56: 4 | Z56: =+Z55 -> -289.0960908 | AA56: -0.0273 | AC56: 4 | AD56: =+AD55 -> -332.1411482 | AE56: -0.0314 | AG56: 4 | AH56: =+AH55 -> -375.2862056 | AI56: -0.0355 | AK56: 4 | AL56: =+AL55 -> -418.511263 | AM56: -0.0396 | AO56: 4 | AP56: =+AP55 -> -461.8963204 | AQ56: -0.0436 | AS56: 4 | AT56: =+AT55 -> -505.3513778 | AU56: -0.0477
A57: 5 | B57: =+B56 -> -33.28574632 | C57: -0.0032 | E57: 5 | F57: =+F56 -> -75.65080373 | G57: -0.0072 | I57: 5 | J57: =+J56 -> -118.1058611 | K57: -0.0112 | M57: 5 | N57: =+N56 -> -160.7009185 | O57: -0.0152 | Q57: 5 | R57: =+R56 -> -203.385976 | S57: -0.0192 | U57: 5 | V57: =+V56 -> -246.1910334 | W57: -0.0233 | Y57: 5 | Z57: =+Z56 -> -289.0960908 | AA57: -0.0273 | AC57: 5 | AD57: =+AD56 -> -332.1411482 | AE57: -0.0314 | AG57: 5 | AH57: =+AH56 -> -375.2862056 | AI57: -0.0355 | AK57: 5 | AL57: =+AL56 -> -418.511263 | AM57: -0.0396 | AO57: 5 | AP57: =+AP56 -> -461.8963204 | AQ57: -0.0436 | AS57: 5 | AT57: =+AT56 -> -505.3513778 | AU57: -0.0477
A58: 6 | B58: -33.28574632 | C58: -0.0032 | E58: 6 | F58: -75.65080373 | G58: -0.0072 | I58: 6 | J58: -118.1058611 | K58: -0.0112 | M58: 6 | N58: -160.7009185 | O58: -0.0152 | Q58: 6 | R58: -203.385976 | S58: -0.0192 | U58: 6 | V58: -246.1910334 | W58: -0.0233 | Y58: 6 | Z58: -289.0960908 | AA58: -0.0273 | AC58: 6 | AD58: -332.1411482 | AE58: -0.0314 | AG58: 6 | AH58: -375.2862056 | AI58: -0.0355 | AK58: 6 | AL58: -418.511263 | AM58: -0.0396 | AO58: 6 | AP58: -461.8963204 | AQ58: -0.0436 | AS58: 6 | AT58: -505.3513778 | AU58: -0.0477
A59: 7 | B59: -33.28574632 | C59: -0.0032 | E59: 7 | F59: -75.65080373 | G59: -0.0072 | I59: 7 | J59: -118.1058611 | K59: -0.0112 | M59: 7 | N59: -160.7009185 | O59: -0.0152 | Q59: 7 | R59: -203.385976 | S59: -0.0192 | U59: 7 | V59: -246.1910334 | W59: -0.0233 | Y59: 7 | Z59: -289.0960908 | AA59: -0.0273 | AC59: 7 | AD59: -332.1411482 | AE59: -0.0314 | AG59: 7 | AH59: -375.2862056 | AI59: -0.0355 | AK59: 7 | AL59: -418.511263 | AM59: -0.0396 | AO59: 7 | AP59: -461.8963204 | AQ59: -0.0436 | AS59: 7 | AT59: -505.3513778 | AU59: -0.0477
A60: 8 | B60: -33.28574632 | C60: -0.0032 | E60: 8 | F60: -75.65080373 | G60: -0.0072 | I60: 8 | J60: -118.1058611 | K60: -0.0112 | M60: 8 | N60: -160.7009185 | O60: -0.0152 | Q60: 8 | R60: -203.385976 | S60: -0.0192 | U60: 8 | V60: -246.1910334 | W60: -0.0233 | Y60: 8 | Z60: -289.0960908 | AA60: -0.0273 | AC60: 8 | AD60: -332.1411482 | AE60: -0.0314 | AG60: 8 | AH60: -375.2862056 | AI60: -0.0355 | AK60: 8 | AL60: -418.511263 | AM60: -0.0396 | AO60: 8 | AP60: -461.8963204 | AQ60: -0.0436 | AS60: 8 | AT60: -505.3513778 | AU60: -0.0477
A61: 9 | B61: -33.28574632 | C61: -0.0032 | E61: 9 | F61: -75.65080373 | G61: -0.0072 | I61: 9 | J61: -118.1058611 | K61: -0.0112 | M61: 9 | N61: -160.7009185 | O61: -0.0152 | Q61: 9 | R61: -203.385976 | S61: -0.0192 | U61: 9 | V61: -246.1910334 | W61: -0.0233 | Y61: 9 | Z61: -289.0960908 | AA61: -0.0273 | AC61: 9 | AD61: -332.1411482 | AE61: -0.0314 | AG61: 9 | AH61: -375.2862056 | AI61: -0.0355 | AK61: 9 | AL61: -418.511263 | AM61: -0.0396 | AO61: 9 | AP61: -461.8963204 | AQ61: -0.0436 | AS61: 9 | AT61: -505.3513778 | AU61: -0.0477
A62: 10 | B62: -33.28574632 | C62: -0.0032 | E62: 10 | F62: -75.65080373 | G62: -0.0072 | I62: 10 | J62: -118.1058611 | K62: -0.0112 | M62: 10 | N62: -160.7009185 | O62: -0.0152 | Q62: 10 | R62: -203.385976 | S62: -0.0192 | U62: 10 | V62: -246.1910334 | W62: -0.0233 | Y62: 10 | Z62: -289.0960908 | AA62: -0.0273 | AC62: 10 | AD62: -332.1411482 | AE62: -0.0314 | AG62: 10 | AH62: -375.2862056 | AI62: -0.0355 | AK62: 10 | AL62: -418.511263 | AM62: -0.0396 | AO62: 10 | AP62: -461.8963204 | AQ62: -0.0436 | AS62: 10 | AT62: -505.3513778 | AU62: -0.0477
A63: 11 | B63: -33.28574632 | C63: -0.0032 | E63: 11 | F63: -75.65080373 | G63: -0.0072 | I63: 11 | J63: -118.1058611 | K63: -0.0112 | M63: 11 | N63: -160.7009185 | O63: -0.0152 | Q63: 11 | R63: -203.385976 | S63: -0.0192 | U63: 11 | V63: -246.1910334 | W63: -0.0233 | Y63: 11 | Z63: -289.0960908 | AA63: -0.0273 | AC63: 11 | AD63: -332.1411482 | AE63: -0.0314 | AG63: 11 | AH63: -375.2862056 | AI63: -0.0355 | AK63: 11 | AL63: -418.511263 | AM63: -0.0396 | AO63: 11 | AP63: -461.8963204 | AQ63: -0.0436 | AS63: 11 | AT63: -505.3513778 | AU63: -0.0477
A64: 12 | B64: -33.28574632 | C64: -0.0032 | E64: 12 | F64: -75.65080373 | G64: -0.0072 | I64: 12 | J64: -118.1058611 | K64: -0.0112 | M64: 12 | N64: -160.7009185 | O64: -0.0152 | Q64: 12 | R64: -203.385976 | S64: -0.0192 | U64: 12 | V64: -246.1910334 | W64: -0.0233 | Y64: 12 | Z64: -289.0960908 | AA64: -0.0273 | AC64: 12 | AD64: -332.1411482 | AE64: -0.0314 | AG64: 12 | AH64: -375.2862056 | AI64: -0.0355 | AK64: 12 | AL64: -418.511263 | AM64: -0.0396 | AO64: 12 | AP64: -461.8963204 | AQ64: -0.0436 | AS64: 12 | AT64: -505.3513778 | AU64: -0.0477
A65: 13 | B65: -33.28574632 | C65: -0.0032 | E65: 13 | F65: -75.65080373 | G65: -0.0072 | I65: 13 | J65: -118.1058611 | K65: -0.0112 | M65: 13 | N65: -160.7009185 | O65: -0.0152 | Q65: 13 | R65: -203.385976 | S65: -0.0192 | U65: 13 | V65: -246.1910334 | W65: -0.0233 | Y65: 13 | Z65: -289.0960908 | AA65: -0.0273 | AC65: 13 | AD65: -332.1411482 | AE65: -0.0314 | AG65: 13 | AH65: -375.2862056 | AI65: -0.0355 | AK65: 13 | AL65: -418.511263 | AM65: -0.0396 | AO65: 13 | AP65: -461.8963204 | AQ65: -0.0436 | AS65: 13 | AT65: -505.3513778 | AU65: -0.0477
A66: 14 | B66: -33.28574632 | C66: -0.0032 | E66: 14 | F66: -75.65080373 | G66: -0.0072 | I66: 14 | J66: -118.1058611 | K66: -0.0112 | M66: 14 | N66: -160.7009185 | O66: -0.0152 | Q66: 14 | R66: -203.385976 | S66: -0.0192 | U66: 14 | V66: -246.1910334 | W66: -0.0233 | Y66: 14 | Z66: -289.0960908 | AA66: -0.0273 | AC66: 14 | AD66: -332.1411482 | AE66: -0.0314 | AG66: 14 | AH66: -375.2862056 | AI66: -0.0355 | AK66: 14 | AL66: -418.511263 | AM66: -0.0396 | AO66: 14 | AP66: -461.8963204 | AQ66: -0.0436 | AS66: 14 | AT66: -505.3513778 | AU66: -0.0477
A67: 15 | B67: -33.28574632 | C67: -0.0032 | E67: 15 | F67: -75.65080373 | G67: -0.0072 | I67: 15 | J67: -118.1058611 | K67: -0.0112 | M67: 15 | N67: -160.7009185 | O67: -0.0152 | Q67: 15 | R67: -203.385976 | S67: -0.0192 | U67: 15 | V67: -246.1910334 | W67: -0.0233 | Y67: 15 | Z67: -289.0960908 | AA67: -0.0273 | AC67: 15 | AD67: -332.1411482 | AE67: -0.0314 | AG67: 15 | AH67: -375.2862056 | AI67: -0.0355 | AK67: 15 | AL67: -418.511263 | AM67: -0.0396 | AO67: 15 | AP67: -461.8963204 | AQ67: -0.0436 | AS67: 15 | AT67: -505.3513778 | AU67: -0.0477
A68: 16 | B68: -33.28574632 | C68: -0.0032 | E68: 16 | F68: -75.65080373 | G68: -0.0072 | I68: 16 | J68: -118.1058611 | K68: -0.0112 | M68: 16 | N68: -160.7009185 | O68: -0.0152 | Q68: 16 | R68: -203.385976 | S68: -0.0192 | U68: 16 | V68: -246.1910334 | W68: -0.0233 | Y68: 16 | Z68: -289.0960908 | AA68: -0.0273 | AC68: 16 | AD68: -332.1411482 | AE68: -0.0314 | AG68: 16 | AH68: -375.2862056 | AI68: -0.0355 | AK68: 16 | AL68: -418.511263 | AM68: -0.0396 | AO68: 16 | AP68: -461.8963204 | AQ68: -0.0436 | AS68: 16 | AT68: -505.3513778 | AU68: -0.0477
A69: 17 | B69: -33.28574632 | C69: -0.0032 | E69: 17 | F69: -75.65080373 | G69: -0.0072 | I69: 17 | J69: -118.1058611 | K69: -0.0112 | M69: 17 | N69: -160.7009185 | O69: -0.0152 | Q69: 17 | R69: -203.385976 | S69: -0.0192 | U69: 17 | V69: -246.1910334 | W69: -0.0233 | Y69: 17 | Z69: -289.0960908 | AA69: -0.0273 | AC69: 17 | AD69: -332.1411482 | AE69: -0.0314 | AG69: 17 | AH69: -375.2862056 | AI69: -0.0355 | AK69: 17 | AL69: -418.511263 | AM69: -0.0396 | AO69: 17 | AP69: -461.8963204 | AQ69: -0.0436 | AS69: 17 | AT69: -505.3513778 | AU69: -0.0477
A70: 18 | B70: -33.28574632 | C70: -0.0032 | E70: 18 | F70: -75.65080373 | G70: -0.0072 | I70: 18 | J70: -118.1058611 | K70: -0.0112 | M70: 18 | N70: -160.7009185 | O70: -0.0152 | Q70: 18 | R70: -203.385976 | S70: -0.0192 | U70: 18 | V70: -246.1910334 | W70: -0.0233 | Y70: 18 | Z70: -289.0960908 | AA70: -0.0273 | AC70: 18 | AD70: -332.1411482 | AE70: -0.0314 | AG70: 18 | AH70: -375.2862056 | AI70: -0.0355 | AK70: 18 | AL70: -418.511263 | AM70: -0.0396 | AO70: 18 | AP70: -461.8963204 | AQ70: -0.0436 | AS70: 18 | AT70: -505.3513778 | AU70: -0.0477
A71: 19 | B71: -33.28574632 | C71: -0.0032 | E71: 19 | F71: -75.65080373 | G71: -0.0072 | I71: 19 | J71: -118.1058611 | K71: -0.0112 | M71: 19 | N71: -160.7009185 | O71: -0.0152 | Q71: 19 | R71: -203.385976 | S71: -0.0192 | U71: 19 | V71: -246.1910334 | W71: -0.0233 | Y71: 19 | Z71: -289.0960908 | AA71: -0.0273 | AC71: 19 | AD71: -332.1411482 | AE71: -0.0314 | AG71: 19 | AH71: -375.2862056 | AI71: -0.0355 | AK71: 19 | AL71: -418.511263 | AM71: -0.0396 | AO71: 19 | AP71: -461.8963204 | AQ71: -0.0436 | AS71: 19 | AT71: -505.3513778 | AU71: -0.0477
A72: 20 | B72: -33.28574632 | C72: -0.0032 | E72: 20 | F72: -75.65080373 | G72: -0.0072 | I72: 20 | J72: -118.1058611 | K72: -0.0112 | M72: 20 | N72: -160.7009185 | O72: -0.0152 | Q72: 20 | R72: -203.385976 | S72: -0.0192 | U72: 20 | V72: -246.1910334 | W72: -0.0233 | Y72: 20 | Z72: -289.0960908 | AA72: -0.0273 | AC72: 20 | AD72: -332.1411482 | AE72: -0.0314 | AG72: 20 | AH72: -375.2862056 | AI72: -0.0355 | AK72: 20 | AL72: -418.511263 | AM72: -0.0396 | AO72: 20 | AP72: -461.8963204 | AQ72: -0.0436 | AS72: 20 | AT72: -505.3513778 | AU72: -0.0477
A73: 21 | B73: -33.28574632 | C73: -0.0032 | E73: 21 | F73: -75.65080373 | G73: -0.0072 | I73: 21 | J73: -118.1058611 | K73: -0.0112 | M73: 21 | N73: -160.7009185 | O73: -0.0152 | Q73: 21 | R73: -203.385976 | S73: -0.0192 | U73: 21 | V73: -246.1910334 | W73: -0.0233 | Y73: 21 | Z73: -289.0960908 | AA73: -0.0273 | AC73: 21 | AD73: -332.1411482 | AE73: -0.0314 | AG73: 21 | AH73: -375.2862056 | AI73: -0.0355 | AK73: 21 | AL73: -418.511263 | AM73: -0.0396 | AO73: 21 | AP73: -461.8963204 | AQ73: -0.0436 | AS73: 21 | AT73: -505.3513778 | AU73: -0.0477
A74: 22 | B74: -33.28574632 | C74: -0.0032 | E74: 22 | F74: -75.65080373 | G74: -0.0072 | I74: 22 | J74: -118.1058611 | K74: -0.0112 | M74: 22 | N74: -160.7009185 | O74: -0.0152 | Q74: 22 | R74: -203.385976 | S74: -0.0192 | U74: 22 | V74: -246.1910334 | W74: -0.0233 | Y74: 22 | Z74: -289.0960908 | AA74: -0.0273 | AC74: 22 | AD74: -332.1411482 | AE74: -0.0314 | AG74: 22 | AH74: -375.2862056 | AI74: -0.0355 | AK74: 22 | AL74: -418.511263 | AM74: -0.0396 | AO74: 22 | AP74: -461.8963204 | AQ74: -0.0436 | AS74: 22 | AT74: -505.3513778 | AU74: -0.0477
A75: 23 | B75: -33.28574632 | C75: -0.0032 | E75: 23 | F75: -75.65080373 | G75: -0.0072 | I75: 23 | J75: -118.1058611 | K75: -0.0112 | M75: 23 | N75: -160.7009185 | O75: -0.0152 | Q75: 23 | R75: -203.385976 | S75: -0.0192 | U75: 23 | V75: -246.1910334 | W75: -0.0233 | Y75: 23 | Z75: -289.0960908 | AA75: -0.0273 | AC75: 23 | AD75: -332.1411482 | AE75: -0.0314 | AG75: 23 | AH75: -375.2862056 | AI75: -0.0355 | AK75: 23 | AL75: -418.511263 | AM75: -0.0396 | AO75: 23 | AP75: -461.8963204 | AQ75: -0.0436 | AS75: 23 | AT75: -505.3513778 | AU75: -0.0477
A76: 24 | B76: -33.28574632 | C76: -0.0032 | E76: 24 | F76: -75.65080373 | G76: -0.0072 | I76: 24 | J76: -118.1058611 | K76: -0.0112 | M76: 24 | N76: -160.7009185 | O76: -0.0152 | Q76: 24 | R76: -203.385976 | S76: -0.0192 | U76: 24 | V76: -246.1910334 | W76: -0.0233 | Y76: 24 | Z76: -289.0960908 | AA76: -0.0273 | AC76: 24 | AD76: -332.1411482 | AE76: -0.0314 | AG76: 24 | AH76: -375.2862056 | AI76: -0.0355 | AK76: 24 | AL76: -418.511263 | AM76: -0.0396 | AO76: 24 | AP76: -461.8963204 | AQ76: -0.0436 | AS76: 24 | AT76: -505.3513778 | AU76: -0.0477
A77: 25 | B77: -33.28574632 | C77: -0.0032 | E77: 25 | F77: -75.65080373 | G77: -0.0072 | I77: 25 | J77: -118.1058611 | K77: -0.0112 | M77: 25 | N77: -160.7009185 | O77: -0.0152 | Q77: 25 | R77: -203.385976 | S77: -0.0192 | U77: 25 | V77: -246.1910334 | W77: -0.0233 | Y77: 25 | Z77: -289.0960908 | AA77: -0.0273 | AC77: 25 | AD77: -332.1411482 | AE77: -0.0314 | AG77: 25 | AH77: -375.2862056 | AI77: -0.0355 | AK77: 25 | AL77: -418.511263 | AM77: -0.0396 | AO77: 25 | AP77: -461.8963204 | AQ77: -0.0436 | AS77: 25 | AT77: -505.3513778 | AU77: -0.0477
A78: 26 | B78: -33.28574632 | C78: -0.0032 | E78: 26 | F78: -75.65080373 | G78: -0.0072 | I78: 26 | J78: -118.1058611 | K78: -0.0112 | M78: 26 | N78: -160.7009185 | O78: -0.0152 | Q78: 26 | R78: -203.385976 | S78: -0.0192 | U78: 26 | V78: -246.1910334 | W78: -0.0233 | Y78: 26 | Z78: -289.0960908 | AA78: -0.0273 | AC78: 26 | AD78: -332.1411482 | AE78: -0.0314 | AG78: 26 | AH78: -375.2862056 | AI78: -0.0355 | AK78: 26 | AL78: -418.511263 | AM78: -0.0396 | AO78: 26 | AP78: -461.8963204 | AQ78: -0.0436 | AS78: 26 | AT78: -505.3513778 | AU78: -0.0477
A79: 27 | B79: -33.28574632 | C79: -0.0032 | E79: 27 | F79: -75.65080373 | G79: -0.0072 | I79: 27 | J79: -118.1058611 | K79: -0.0112 | M79: 27 | N79: -160.7009185 | O79: -0.0152 | Q79: 27 | R79: -203.385976 | S79: -0.0192 | U79: 27 | V79: -246.1910334 | W79: -0.0233 | Y79: 27 | Z79: -289.0960908 | AA79: -0.0273 | AC79: 27 | AD79: -332.1411482 | AE79: -0.0314 | AG79: 27 | AH79: -375.2862056 | AI79: -0.0355 | AK79: 27 | AL79: -418.511263 | AM79: -0.0396 | AO79: 27 | AP79: -461.8963204 | AQ79: -0.0436 | AS79: 27 | AT79: -505.3513778 | AU79: -0.0477
A80: 28 | B80: -33.28574632 | C80: -0.0032 | E80: 28 | F80: -75.65080373 | G80: -0.0072 | I80: 28 | J80: -118.1058611 | K80: -0.0112 | M80: 28 | N80: -160.7009185 | O80: -0.0152 | Q80: 28 | R80: -203.385976 | S80: -0.0192 | U80: 28 | V80: -246.1910334 | W80: -0.0233 | Y80: 28 | Z80: -289.0960908 | AA80: -0.0273 | AC80: 28 | AD80: -332.1411482 | AE80: -0.0314 | AG80: 28 | AH80: -375.2862056 | AI80: -0.0355 | AK80: 28 | AL80: -418.511263 | AM80: -0.0396 | AO80: 28 | AP80: -461.8963204 | AQ80: -0.0436 | AS80: 28 | AT80: -505.3513778 | AU80: -0.0477
A81: 29 | B81: -33.28574632 | C81: -0.0032 | I81: 29 | J81: -118.1058611 | K81: -0.0112 | M81: 29 | N81: -160.7009185 | O81: -0.0152 | Q81: 29 | R81: -203.385976 | S81: -0.0192 | U81: 29 | V81: -246.1910334 | W81: -0.0233 | Y81: 29 | Z81: -289.0960908 | AA81: -0.0273 | AC81: 29 | AD81: -332.1411482 | AE81: -0.0314 | AG81: 29 | AH81: -375.2862056 | AI81: -0.0355 | AK81: 29 | AL81: -418.511263 | AM81: -0.0396 | AO81: 29 | AP81: -461.8963204 | AQ81: -0.0436 | AS81: 29 | AT81: -505.3513778 | AU81: -0.0477
A82: 30 | B82: -33.28574632 | C82: -0.0032 | I82: 30 | J82: -118.1058611 | K82: -0.0112 | M82: 30 | N82: -160.7009185 | O82: -0.0152 | Q82: 30 | R82: -203.385976 | S82: -0.0192 | U82: 30 | V82: -246.1910334 | W82: -0.0233 | Y82: 30 | Z82: -289.0960908 | AA82: -0.0273 | AC82: 30 | AD82: -332.1411482 | AE82: -0.0314 | AG82: 30 | AH82: -375.2862056 | AI82: -0.0355 | AK82: 30 | AL82: -418.511263 | AM82: -0.0396 | AO82: 30 | AP82: -461.8963204 | AQ82: -0.0436 | AS82: 30 | AT82: -505.3513778 | AU82: -0.0477
A83: 31 | B83: -33.28574632 | C83: -0.0032 | I83: 31 | J83: -118.1058611 | K83: -0.0112 | Q83: 31 | R83: -203.385976 | S83: -0.0192 | Y83: 31 | Z83: -289.0960908 | AA83: -0.0273 | AC83: 31 | AD83: -332.1411482 | AE83: -0.0314 | AK83: 31 | AL83: -418.511263 | AM83: -0.0396 | AS83: 31 | AT83: -505.3513778 | AU83: -0.0477
B84: TOTAL........ | C84: =IF((TRUNC((SUM(C53:C83)*1000))/10)-TRUNC(TRUNC((SUM(C53:C83)*1000))/10)>0.5,ROUND(SUM(C53:C83),2),TRUNC((TRUNC((SUM(C53:C83)*1000))/10))/100) -> -0.09 | F84: TOTAL........ | G84: =IF((TRUNC((SUM(G53:G83)*1000))/10)-TRUNC(TRUNC((SUM(G53:G83)*1000))/10)>0.5,ROUND(SUM(G53:G83),2),TRUNC((TRUNC((SUM(G53:G83)*1000))/10))/100) -> -0.19 | J84: TOTAL........ | K84: =IF((TRUNC((SUM(K53:K83)*1000))/10)-TRUNC(TRUNC((SUM(K53:K83)*1000))/10)>0.5,ROUND(SUM(K53:K83),2),TRUNC((TRUNC((SUM(K53:K83)*1000))/10))/100) -> -0.34 | N84: TOTAL........ | O84: =IF((TRUNC((SUM(O53:O83)*1000))/10)-TRUNC(TRUNC((SUM(O53:O83)*1000))/10)>0.5,ROUND(SUM(O53:O83),2),TRUNC((TRUNC((SUM(O53:O83)*1000))/10))/100) -> -0.44 | R84: TOTAL........ | S84: =IF((TRUNC((SUM(S53:S83)*1000))/10)-TRUNC(TRUNC((SUM(S53:S83)*1000))/10)>0.5,ROUND(SUM(S53:S83),2),TRUNC((TRUNC((SUM(S53:S83)*1000))/10))/100) -> -0.58 | V84: TOTAL........ | W84: =IF((TRUNC((SUM(W53:W83)*1000))/10)-TRUNC(TRUNC((SUM(W53:W83)*1000))/10)>0.5,ROUND(SUM(W53:W83),2),TRUNC((TRUNC((SUM(W53:W83)*1000))/10))/100) -> -0.69 | Z84: TOTAL........ | AA84: =IF((TRUNC((SUM(AA53:AA83)*1000))/10)-TRUNC(TRUNC((SUM(AA53:AA83)*1000))/10)>0.5,ROUND(SUM(AA53:AA83),2),TRUNC((TRUNC((SUM(AA53:AA83)*1000))/10))/100) -> -0.84 | AD84: TOTAL........ | AE84: =IF((TRUNC((SUM(AE53:AE83)*1000))/10)-TRUNC(TRUNC((SUM(AE53:AE83)*1000))/10)>0.5,ROUND(SUM(AE53:AE83),2),TRUNC((TRUNC((SUM(AE53:AE83)*1000))/10))/100) -> -0.96 | AH84: TOTAL........ | AI84: =IF((TRUNC((SUM(AI53:AI83)*1000))/10)-TRUNC(TRUNC((SUM(AI53:AI83)*1000))/10)>0.5,ROUND(SUM(AI53:AI83),2),TRUNC((TRUNC((SUM(AI53:AI83)*1000))/10))/100) -> -1.05 | AL84: TOTAL........ | AM84: =IF((TRUNC((SUM(AM53:AM83)*1000))/10)-TRUNC(TRUNC((SUM(AM53:AM83)*1000))/10)>0.5,ROUND(SUM(AM53:AM83),2),TRUNC((TRUNC((SUM(AM53:AM83)*1000))/10))/100) -> -1.22 | AP84: TOTAL........ | AQ84: =IF((TRUNC((SUM(AQ53:AQ83)*1000))/10)-TRUNC(TRUNC((SUM(AQ53:AQ83)*1000))/10)>0.5,ROUND(SUM(AQ53:AQ83),2),TRUNC((TRUNC((SUM(AQ53:AQ83)*1000))/10))/100) -> -1.3 | AT84: TOTAL........ | AU84: =IF((TRUNC((SUM(AU53:AU83)*1000))/10)-TRUNC(TRUNC((SUM(AU53:AU83)*1000))/10)>0.5,ROUND(SUM(AU53:AU83),2),TRUNC((TRUNC((SUM(AU53:AU83)*1000))/10))/100) -> -1.47 | AV84: =SUM(B84:AU84) -> -9.17
B85: I.P.F. | C85: =ROUND(C84*0.1,2) -> -0.01 | F85: I.P.F. | G85: =ROUND(G84*0.1,2) -> -0.02 | J85: I.P.F. | K85: =ROUND(K84*0.1,2) -> -0.03 | N85: I.P.F. | O85: =ROUND(O84*0.1,2) -> -0.04 | R85: I.P.F. | S85: =ROUND(S84*0.1,2) -> -0.06 | V85: I.P.F. | W85: =ROUND(W84*0.1,2) -> -0.07 | Z85: I.P.F. | AA85: =ROUND(AA84*0.1,2) -> -0.08 | AD85: I.P.F. | AE85: =ROUND(AE84*0.1,2) -> -0.1 | AH85: I.P.F. | AI85: =ROUND(AI84*0.1,2) -> -0.11 | AL85: I.P.F. | AM85: =ROUND(AM84*0.1,2) -> -0.12 | AP85: I.P.F. | AQ85: =ROUND(AQ84*0.1,2) -> -0.13 | AT85: I.P.F. | AU85: =ROUND(AU84*0.1,2) -> -0.15 | AV85: =SUM(B85:AU85) -> -0.92
B86: NETOS | C86: =+C84-C85 -> -0.08 | F86: NETOS | G86: =+G84-G85 -> -0.17 | J86: NETOS | K86: =+K84-K85 -> -0.31 | N86: NETOS | O86: =+O84-O85 -> -0.4 | R86: NETOS | S86: =+S84-S85 -> -0.52 | V86: NETOS | W86: =+W84-W85 -> -0.62 | Z86: NETOS | AA86: =+AA84-AA85 -> -0.76 | AD86: NETOS | AE86: =+AE84-AE85 -> -0.86 | AH86: NETOS | AI86: =+AI84-AI85 -> -0.94 | AL86: NETOS | AM86: =+AM84-AM85 -> -1.1 | AP86: NETOS | AQ86: =+AQ84-AQ85 -> -1.17 | AT86: NETOS | AU86: =+AU84-AU85 -> -1.32 | AV86: =SUM(B86:AU86) -> -8.25 | AW86: =+AV86 -> -8.25
AU87: =+AT83+AU86-$B$4 -> -515.6713778
A92: TERCER AÑO | B92: =IF($B$3>0,ROUND((B50*$B$3)+B50,2),B50) -> -33.28505741
A93: 1 | E93: =+A93+1 -> 2 | I93: =+E93+1 -> 3 | M93: =+I93+1 -> 4 | Q93: =+M93+1 -> 5 | U93: =+Q93+1 -> 6 | Y93: =+U93+1 -> 7 | AC93: =+Y93+1 -> 8 | AG93: =+AC93+1 -> 9 | AK93: =+AG93+1 -> 10 | AO93: =+AK93+1 -> 11 | AS93: =+AO93+1 -> 12
A94: NO. | B94: SALDO DIARIO | C94: INTERESES DIARIO | E94: NO. | F94: SALDO DIARIO | G94: INTERESES DIARIO | I94: NO. | J94: SALDO DIARIO | K94: INTERESES DIARIO | M94: NO. | N94: SALDO DIARIO | O94: INTERESES DIARIO | Q94: NO. | R94: SALDO DIARIO | S94: INTERESES DIARIO | U94: NO. | V94: SALDO DIARIO | W94: INTERESES DIARIO | Y94: NO. | Z94: SALDO DIARIO | AA94: INTERESES DIARIO | AC94: NO. | AD94: SALDO DIARIO | AE94: INTERESES DIARIO | AG94: NO. | AH94: SALDO DIARIO | AI94: INTERESES DIARIO | AK94: NO. | AL94: SALDO DIARIO | AM94: INTERESES DIARIO | AO94: NO. | AP94: SALDO DIARIO | AQ94: INTERESES DIARIO | AS94: NO. | AT94: SALDO DIARIO | AU94: INTERESES DIARIO
A95: 1 | B95: =+AT83+AU86-$B$4 -> -515.6713778 | C95: =ROUND(INT(ROUND(B95*$B$5/365,8)*10000)/10000,4) -> -0.0487 | E95: 1 | F95: =+B125+C128-$B$4 -> -559.3964352 | G95: =ROUND(INT(ROUND(F95*$B$5/365,8)*10000)/10000,4) -> -0.0528 | I95: 1 | J95: =+F122+G128-$B$4 -> -603.0814926 | K95: =ROUND(INT(ROUND(J95*$B$5/365,8)*10000)/10000,4) -> -0.057 | M95: 1 | N95: =+J125+K128-$B$4 -> -647.02655 | O95: =ROUND(INT(ROUND(N95*$B$5/365,8)*10000)/10000,4) -> -0.0611 | Q95: 1 | R95: =+N124+O128-$B$4 -> -691.0416075 | S95: =ROUND(INT(ROUND(R95*$B$5/365,8)*10000)/10000,4) -> -0.0653 | U95: 1 | V95: =+R125+S128-$B$4 -> -735.2266649 | W95: =ROUND(INT(ROUND(V95*$B$5/365,8)*10000)/10000,4) -> -0.0694 | Y95: 1 | Z95: =+V124+W128-$B$4 -> -779.4617223 | AA95: =ROUND(INT(ROUND(Z95*$B$5/365,8)*10000)/10000,4) -> -0.0736 | AC95: 1 | AD95: =+Z125+AA128-$B$4 -> -823.8767797 | AE95: =ROUND(INT(ROUND(AD95*$B$5/365,8)*10000)/10000,4) -> -0.0778 | AG95: 1 | AH95: =+AD125+AE128-$B$4 -> -868.4118371 | AI95: =ROUND(INT(ROUND(AH95*$B$5/365,8)*10000)/10000,4) -> -0.082 | AK95: 1 | AL95: =+AH124+AI128-$B$4 -> -912.9868945 | AM95: =ROUND(INT(ROUND(AL95*$B$5/365,8)*10000)/10000,4) -> -0.0862 | AO95: 1 | AP95: =+AL125+AM128-$B$4 -> -957.7519519 | AQ95: =ROUND(INT(ROUND(AP95*$B$5/365,8)*10000)/10000,4) -> -0.0904 | AS95: 1 | AT95: =+AP124+AQ128-$B$4 -> -1002.557009 | AU95: =ROUND(INT(ROUND(AT95*$B$5/365,8)*10000)/10000,4) -> -0.0947
A96: =+A95+1 -> 2 | B96: =+B95 -> -515.6713778 | C96: -0.0487 | E96: =+E95+1 -> 2 | F96: =+F95 -> -559.3964352 | G96: -0.0528 | I96: =+I95+1 -> 2 | J96: =+J95 -> -603.0814926 | K96: -0.057 | M96: =+M95+1 -> 2 | N96: =+N95 -> -647.02655 | O96: -0.0611 | Q96: =+Q95+1 -> 2 | R96: =+R95 -> -691.0416075 | S96: -0.0653 | U96: =+U95+1 -> 2 | V96: =+V95 -> -735.2266649 | W96: -0.0694 | Y96: =+Y95+1 -> 2 | Z96: =+Z95 -> -779.4617223 | AA96: -0.0736 | AC96: =+AC95+1 -> 2 | AD96: =+AD95 -> -823.8767797 | AE96: -0.0778 | AG96: =+AG95+1 -> 2 | AH96: =+AH95 -> -868.4118371 | AI96: -0.082 | AK96: =+AK95+1 -> 2 | AL96: =+AL95 -> -912.9868945 | AM96: -0.0862 | AO96: =+AO95+1 -> 2 | AP96: =+AP95 -> -957.7519519 | AQ96: -0.0904 | AS96: =+AS95+1 -> 2 | AT96: =+AT95 -> -1002.557009 | AU96: -0.0947
A97: =+A96+1 -> 3 | B97: =+B96+$B$92 -> -548.9564352 | C97: -0.0519 | E97: =+E96+1 -> 3 | F97: =+F96+$B$92 -> -592.6814926 | G97: -0.056 | I97: =+I96+1 -> 3 | J97: =+J96+$B$92 -> -636.36655 | K97: -0.0601 | M97: =+M96+1 -> 3 | N97: =+N96+$B$92 -> -680.3116075 | O97: -0.0643 | Q97: =+Q96+1 -> 3 | R97: =+R96+$B$92 -> -724.3266649 | S97: -0.0684 | U97: =+U96+1 -> 3 | V97: =+V96+$B$92 -> -768.5117223 | W97: -0.0726 | Y97: =+Y96+1 -> 3 | Z97: =+Z96+$B$92 -> -812.7467797 | AA97: -0.0768 | AC97: =+AC96+1 -> 3 | AD97: =+AD96+$B$92 -> -857.1618371 | AE97: -0.081 | AG97: =+AG96+1 -> 3 | AH97: =+AH96+$B$92 -> -901.6968945 | AI97: -0.0852 | AK97: =+AK96+1 -> 3 | AL97: =+AL96+$B$92 -> -946.2719519 | AM97: -0.0894 | AO97: =+AO96+1 -> 3 | AP97: =+AP96+$B$92 -> -991.0370093 | AQ97: -0.0936 | AS97: =+AS96+1 -> 3 | AT97: =+AT96+$B$92 -> -1035.842067 | AU97: -0.0978
A98: 4 | B98: =+B97 -> -548.9564352 | C98: -0.0519 | E98: 4 | F98: =+F97 -> -592.6814926 | G98: -0.056 | I98: 4 | J98: =+J97 -> -636.36655 | K98: -0.0601 | M98: 4 | N98: =+N97 -> -680.3116075 | O98: -0.0643 | Q98: 4 | R98: =+R97 -> -724.3266649 | S98: -0.0684 | U98: 4 | V98: =+V97 -> -768.5117223 | W98: -0.0726 | Y98: 4 | Z98: =+Z97 -> -812.7467797 | AA98: -0.0768 | AC98: 4 | AD98: =+AD97 -> -857.1618371 | AE98: -0.081 | AG98: 4 | AH98: =+AH97 -> -901.6968945 | AI98: -0.0852 | AK98: 4 | AL98: =+AL97 -> -946.2719519 | AM98: -0.0894 | AO98: 4 | AP98: =+AP97 -> -991.0370093 | AQ98: -0.0936 | AS98: 4 | AT98: =+AT97 -> -1035.842067 | AU98: -0.0978
A99: 5 | B99: =+B98 -> -548.9564352 | C99: -0.0519 | E99: 5 | F99: =+F98 -> -592.6814926 | G99: -0.056 | I99: 5 | J99: =+J98 -> -636.36655 | K99: -0.0601 | M99: 5 | N99: =+N98 -> -680.3116075 | O99: -0.0643 | Q99: 5 | R99: =+R98 -> -724.3266649 | S99: -0.0684 | U99: 5 | V99: =+V98 -> -768.5117223 | W99: -0.0726 | Y99: 5 | Z99: =+Z98 -> -812.7467797 | AA99: -0.0768 | AC99: 5 | AD99: =+AD98 -> -857.1618371 | AE99: -0.081 | AG99: 5 | AH99: =+AH98 -> -901.6968945 | AI99: -0.0852 | AK99: 5 | AL99: =+AL98 -> -946.2719519 | AM99: -0.0894 | AO99: 5 | AP99: =+AP98 -> -991.0370093 | AQ99: -0.0936 | AS99: 5 | AT99: =+AT98 -> -1035.842067 | AU99: -0.0978
A100: 6 | B100: -548.9564352 | C100: -0.0519 | E100: 6 | F100: -592.6814926 | G100: -0.056 | I100: 6 | J100: -636.36655 | K100: -0.0601 | M100: 6 | N100: -680.3116075 | O100: -0.0643 | Q100: 6 | R100: -724.3266649 | S100: -0.0684 | U100: 6 | V100: -768.5117223 | W100: -0.0726 | Y100: 6 | Z100: -812.7467797 | AA100: -0.0768 | AC100: 6 | AD100: -857.1618371 | AE100: -0.081 | AG100: 6 | AH100: -901.6968945 | AI100: -0.0852 | AK100: 6 | AL100: -946.2719519 | AM100: -0.0894 | AO100: 6 | AP100: -991.0370093 | AQ100: -0.0936 | AS100: 6 | AT100: -1035.842067 | AU100: -0.0978
A101: 7 | B101: -548.9564352 | C101: -0.0519 | E101: 7 | F101: -592.6814926 | G101: -0.056 | I101: 7 | J101: -636.36655 | K101: -0.0601 | M101: 7 | N101: -680.3116075 | O101: -0.0643 | Q101: 7 | R101: -724.3266649 | S101: -0.0684 | U101: 7 | V101: -768.5117223 | W101: -0.0726 | Y101: 7 | Z101: -812.7467797 | AA101: -0.0768 | AC101: 7 | AD101: -857.1618371 | AE101: -0.081 | AG101: 7 | AH101: -901.6968945 | AI101: -0.0852 | AK101: 7 | AL101: -946.2719519 | AM101: -0.0894 | AO101: 7 | AP101: -991.0370093 | AQ101: -0.0936 | AS101: 7 | AT101: -1035.842067 | AU101: -0.0978
A102: 8 | B102: -548.9564352 | C102: -0.0519 | E102: 8 | F102: -592.6814926 | G102: -0.056 | I102: 8 | J102: -636.36655 | K102: -0.0601 | M102: 8 | N102: -680.3116075 | O102: -0.0643 | Q102: 8 | R102: -724.3266649 | S102: -0.0684 | U102: 8 | V102: -768.5117223 | W102: -0.0726 | Y102: 8 | Z102: -812.7467797 | AA102: -0.0768 | AC102: 8 | AD102: -857.1618371 | AE102: -0.081 | AG102: 8 | AH102: -901.6968945 | AI102: -0.0852 | AK102: 8 | AL102: -946.2719519 | AM102: -0.0894 | AO102: 8 | AP102: -991.0370093 | AQ102: -0.0936 | AS102: 8 | AT102: -1035.842067 | AU102: -0.0978
A103: 9 | B103: -548.9564352 | C103: -0.0519 | E103: 9 | F103: -592.6814926 | G103: -0.056 | I103: 9 | J103: -636.36655 | K103: -0.0601 | M103: 9 | N103: -680.3116075 | O103: -0.0643 | Q103: 9 | R103: -724.3266649 | S103: -0.0684 | U103: 9 | V103: -768.5117223 | W103: -0.0726 | Y103: 9 | Z103: -812.7467797 | AA103: -0.0768 | AC103: 9 | AD103: -857.1618371 | AE103: -0.081 | AG103: 9 | AH103: -901.6968945 | AI103: -0.0852 | AK103: 9 | AL103: -946.2719519 | AM103: -0.0894 | AO103: 9 | AP103: -991.0370093 | AQ103: -0.0936 | AS103: 9 | AT103: -1035.842067 | AU103: -0.0978
A104: 10 | B104: -548.9564352 | C104: -0.0519 | E104: 10 | F104: -592.6814926 | G104: -0.056 | I104: 10 | J104: -636.36655 | K104: -0.0601 | M104: 10 | N104: -680.3116075 | O104: -0.0643 | Q104: 10 | R104: -724.3266649 | S104: -0.0684 | U104: 10 | V104: -768.5117223 | W104: -0.0726 | Y104: 10 | Z104: -812.7467797 | AA104: -0.0768 | AC104: 10 | AD104: -857.1618371 | AE104: -0.081 | AG104: 10 | AH104: -901.6968945 | AI104: -0.0852 | AK104: 10 | AL104: -946.2719519 | AM104: -0.0894 | AO104: 10 | AP104: -991.0370093 | AQ104: -0.0936 | AS104: 10 | AT104: -1035.842067 | AU104: -0.0978
A105: 11 | B105: -548.9564352 | C105: -0.0519 | E105: 11 | F105: -592.6814926 | G105: -0.056 | I105: 11 | J105: -636.36655 | K105: -0.0601 | M105: 11 | N105: -680.3116075 | O105: -0.0643 | Q105: 11 | R105: -724.3266649 | S105: -0.0684 | U105: 11 | V105: -768.5117223 | W105: -0.0726 | Y105: 11 | Z105: -812.7467797 | AA105: -0.0768 | AC105: 11 | AD105: -857.1618371 | AE105: -0.081 | AG105: 11 | AH105: -901.6968945 | AI105: -0.0852 | AK105: 11 | AL105: -946.2719519 | AM105: -0.0894 | AO105: 11 | AP105: -991.0370093 | AQ105: -0.0936 | AS105: 11 | AT105: -1035.842067 | AU105: -0.0978
A106: 12 | B106: -548.9564352 | C106: -0.0519 | E106: 12 | F106: -592.6814926 | G106: -0.056 | I106: 12 | J106: -636.36655 | K106: -0.0601 | M106: 12 | N106: -680.3116075 | O106: -0.0643 | Q106: 12 | R106: -724.3266649 | S106: -0.0684 | U106: 12 | V106: -768.5117223 | W106: -0.0726 | Y106: 12 | Z106: -812.7467797 | AA106: -0.0768 | AC106: 12 | AD106: -857.1618371 | AE106: -0.081 | AG106: 12 | AH106: -901.6968945 | AI106: -0.0852 | AK106: 12 | AL106: -946.2719519 | AM106: -0.0894 | AO106: 12 | AP106: -991.0370093 | AQ106: -0.0936 | AS106: 12 | AT106: -1035.842067 | AU106: -0.0978
A107: 13 | B107: -548.9564352 | C107: -0.0519 | E107: 13 | F107: -592.6814926 | G107: -0.056 | I107: 13 | J107: -636.36655 | K107: -0.0601 | M107: 13 | N107: -680.3116075 | O107: -0.0643 | Q107: 13 | R107: -724.3266649 | S107: -0.0684 | U107: 13 | V107: -768.5117223 | W107: -0.0726 | Y107: 13 | Z107: -812.7467797 | AA107: -0.0768 | AC107: 13 | AD107: -857.1618371 | AE107: -0.081 | AG107: 13 | AH107: -901.6968945 | AI107: -0.0852 | AK107: 13 | AL107: -946.2719519 | AM107: -0.0894 | AO107: 13 | AP107: -991.0370093 | AQ107: -0.0936 | AS107: 13 | AT107: -1035.842067 | AU107: -0.0978
A108: 14 | B108: -548.9564352 | C108: -0.0519 | E108: 14 | F108: -592.6814926 | G108: -0.056 | I108: 14 | J108: -636.36655 | K108: -0.0601 | M108: 14 | N108: -680.3116075 | O108: -0.0643 | Q108: 14 | R108: -724.3266649 | S108: -0.0684 | U108: 14 | V108: -768.5117223 | W108: -0.0726 | Y108: 14 | Z108: -812.7467797 | AA108: -0.0768 | AC108: 14 | AD108: -857.1618371 | AE108: -0.081 | AG108: 14 | AH108: -901.6968945 | AI108: -0.0852 | AK108: 14 | AL108: -946.2719519 | AM108: -0.0894 | AO108: 14 | AP108: -991.0370093 | AQ108: -0.0936 | AS108: 14 | AT108: -1035.842067 | AU108: -0.0978
A109: 15 | B109: -548.9564352 | C109: -0.0519 | E109: 15 | F109: -592.6814926 | G109: -0.056 | I109: 15 | J109: -636.36655 | K109: -0.0601 | M109: 15 | N109: -680.3116075 | O109: -0.0643 | Q109: 15 | R109: -724.3266649 | S109: -0.0684 | U109: 15 | V109: -768.5117223 | W109: -0.0726 | Y109: 15 | Z109: -812.7467797 | AA109: -0.0768 | AC109: 15 | AD109: -857.1618371 | AE109: -0.081 | AG109: 15 | AH109: -901.6968945 | AI109: -0.0852 | AK109: 15 | AL109: -946.2719519 | AM109: -0.0894 | AO109: 15 | AP109: -991.0370093 | AQ109: -0.0936 | AS109: 15 | AT109: -1035.842067 | AU109: -0.0978
A110: 16 | B110: -548.9564352 | C110: -0.0519 | E110: 16 | F110: -592.6814926 | G110: -0.056 | I110: 16 | J110: -636.36655 | K110: -0.0601 | M110: 16 | N110: -680.3116075 | O110: -0.0643 | Q110: 16 | R110: -724.3266649 | S110: -0.0684 | U110: 16 | V110: -768.5117223 | W110: -0.0726 | Y110: 16 | Z110: -812.7467797 | AA110: -0.0768 | AC110: 16 | AD110: -857.1618371 | AE110: -0.081 | AG110: 16 | AH110: -901.6968945 | AI110: -0.0852 | AK110: 16 | AL110: -946.2719519 | AM110: -0.0894 | AO110: 16 | AP110: -991.0370093 | AQ110: -0.0936 | AS110: 16 | AT110: -1035.842067 | AU110: -0.0978
A111: 17 | B111: -548.9564352 | C111: -0.0519 | E111: 17 | F111: -592.6814926 | G111: -0.056 | I111: 17 | J111: -636.36655 | K111: -0.0601 | M111: 17 | N111: -680.3116075 | O111: -0.0643 | Q111: 17 | R111: -724.3266649 | S111: -0.0684 | U111: 17 | V111: -768.5117223 | W111: -0.0726 | Y111: 17 | Z111: -812.7467797 | AA111: -0.0768 | AC111: 17 | AD111: -857.1618371 | AE111: -0.081 | AG111: 17 | AH111: -901.6968945 | AI111: -0.0852 | AK111: 17 | AL111: -946.2719519 | AM111: -0.0894 | AO111: 17 | AP111: -991.0370093 | AQ111: -0.0936 | AS111: 17 | AT111: -1035.842067 | AU111: -0.0978
A112: 18 | B112: -548.9564352 | C112: -0.0519 | E112: 18 | F112: -592.6814926 | G112: -0.056 | I112: 18 | J112: -636.36655 | K112: -0.0601 | M112: 18 | N112: -680.3116075 | O112: -0.0643 | Q112: 18 | R112: -724.3266649 | S112: -0.0684 | U112: 18 | V112: -768.5117223 | W112: -0.0726 | Y112: 18 | Z112: -812.7467797 | AA112: -0.0768 | AC112: 18 | AD112: -857.1618371 | AE112: -0.081 | AG112: 18 | AH112: -901.6968945 | AI112: -0.0852 | AK112: 18 | AL112: -946.2719519 | AM112: -0.0894 | AO112: 18 | AP112: -991.0370093 | AQ112: -0.0936 | AS112: 18 | AT112: -1035.842067 | AU112: -0.0978
A113: 19 | B113: -548.9564352 | C113: -0.0519 | E113: 19 | F113: -592.6814926 | G113: -0.056 | I113: 19 | J113: -636.36655 | K113: -0.0601 | M113: 19 | N113: -680.3116075 | O113: -0.0643 | Q113: 19 | R113: -724.3266649 | S113: -0.0684 | U113: 19 | V113: -768.5117223 | W113: -0.0726 | Y113: 19 | Z113: -812.7467797 | AA113: -0.0768 | AC113: 19 | AD113: -857.1618371 | AE113: -0.081 | AG113: 19 | AH113: -901.6968945 | AI113: -0.0852 | AK113: 19 | AL113: -946.2719519 | AM113: -0.0894 | AO113: 19 | AP113: -991.0370093 | AQ113: -0.0936 | AS113: 19 | AT113: -1035.842067 | AU113: -0.0978
A114: 20 | B114: -548.9564352 | C114: -0.0519 | E114: 20 | F114: -592.6814926 | G114: -0.056 | I114: 20 | J114: -636.36655 | K114: -0.0601 | M114: 20 | N114: -680.3116075 | O114: -0.0643 | Q114: 20 | R114: -724.3266649 | S114: -0.0684 | U114: 20 | V114: -768.5117223 | W114: -0.0726 | Y114: 20 | Z114: -812.7467797 | AA114: -0.0768 | AC114: 20 | AD114: -857.1618371 | AE114: -0.081 | AG114: 20 | AH114: -901.6968945 | AI114: -0.0852 | AK114: 20 | AL114: -946.2719519 | AM114: -0.0894 | AO114: 20 | AP114: -991.0370093 | AQ114: -0.0936 | AS114: 20 | AT114: -1035.842067 | AU114: -0.0978
A115: 21 | B115: -548.9564352 | C115: -0.0519 | E115: 21 | F115: -592.6814926 | G115: -0.056 | I115: 21 | J115: -636.36655 | K115: -0.0601 | M115: 21 | N115: -680.3116075 | O115: -0.0643 | Q115: 21 | R115: -724.3266649 | S115: -0.0684 | U115: 21 | V115: -768.5117223 | W115: -0.0726 | Y115: 21 | Z115: -812.7467797 | AA115: -0.0768 | AC115: 21 | AD115: -857.1618371 | AE115: -0.081 | AG115: 21 | AH115: -901.6968945 | AI115: -0.0852 | AK115: 21 | AL115: -946.2719519 | AM115: -0.0894 | AO115: 21 | AP115: -991.0370093 | AQ115: -0.0936 | AS115: 21 | AT115: -1035.842067 | AU115: -0.0978
A116: 22 | B116: -548.9564352 | C116: -0.0519 | E116: 22 | F116: -592.6814926 | G116: -0.056 | I116: 22 | J116: -636.36655 | K116: -0.0601 | M116: 22 | N116: -680.3116075 | O116: -0.0643 | Q116: 22 | R116: -724.3266649 | S116: -0.0684 | U116: 22 | V116: -768.5117223 | W116: -0.0726 | Y116: 22 | Z116: -812.7467797 | AA116: -0.0768 | AC116: 22 | AD116: -857.1618371 | AE116: -0.081 | AG116: 22 | AH116: -901.6968945 | AI116: -0.0852 | AK116: 22 | AL116: -946.2719519 | AM116: -0.0894 | AO116: 22 | AP116: -991.0370093 | AQ116: -0.0936 | AS116: 22 | AT116: -1035.842067 | AU116: -0.0978
A117: 23 | B117: -548.9564352 | C117: -0.0519 | E117: 23 | F117: -592.6814926 | G117: -0.056 | I117: 23 | J117: -636.36655 | K117: -0.0601 | M117: 23 | N117: -680.3116075 | O117: -0.0643 | Q117: 23 | R117: -724.3266649 | S117: -0.0684 | U117: 23 | V117: -768.5117223 | W117: -0.0726 | Y117: 23 | Z117: -812.7467797 | AA117: -0.0768 | AC117: 23 | AD117: -857.1618371 | AE117: -0.081 | AG117: 23 | AH117: -901.6968945 | AI117: -0.0852 | AK117: 23 | AL117: -946.2719519 | AM117: -0.0894 | AO117: 23 | AP117: -991.0370093 | AQ117: -0.0936 | AS117: 23 | AT117: -1035.842067 | AU117: -0.0978
A118: 24 | B118: -548.9564352 | C118: -0.0519 | E118: 24 | F118: -592.6814926 | G118: -0.056 | I118: 24 | J118: -636.36655 | K118: -0.0601 | M118: 24 | N118: -680.3116075 | O118: -0.0643 | Q118: 24 | R118: -724.3266649 | S118: -0.0684 | U118: 24 | V118: -768.5117223 | W118: -0.0726 | Y118: 24 | Z118: -812.7467797 | AA118: -0.0768 | AC118: 24 | AD118: -857.1618371 | AE118: -0.081 | AG118: 24 | AH118: -901.6968945 | AI118: -0.0852 | AK118: 24 | AL118: -946.2719519 | AM118: -0.0894 | AO118: 24 | AP118: -991.0370093 | AQ118: -0.0936 | AS118: 24 | AT118: -1035.842067 | AU118: -0.0978
A119: 25 | B119: -548.9564352 | C119: -0.0519 | E119: 25 | F119: -592.6814926 | G119: -0.056 | I119: 25 | J119: -636.36655 | K119: -0.0601 | M119: 25 | N119: -680.3116075 | O119: -0.0643 | Q119: 25 | R119: -724.3266649 | S119: -0.0684 | U119: 25 | V119: -768.5117223 | W119: -0.0726 | Y119: 25 | Z119: -812.7467797 | AA119: -0.0768 | AC119: 25 | AD119: -857.1618371 | AE119: -0.081 | AG119: 25 | AH119: -901.6968945 | AI119: -0.0852 | AK119: 25 | AL119: -946.2719519 | AM119: -0.0894 | AO119: 25 | AP119: -991.0370093 | AQ119: -0.0936 | AS119: 25 | AT119: -1035.842067 | AU119: -0.0978
A120: 26 | B120: -548.9564352 | C120: -0.0519 | E120: 26 | F120: -592.6814926 | G120: -0.056 | I120: 26 | J120: -636.36655 | K120: -0.0601 | M120: 26 | N120: -680.3116075 | O120: -0.0643 | Q120: 26 | R120: -724.3266649 | S120: -0.0684 | U120: 26 | V120: -768.5117223 | W120: -0.0726 | Y120: 26 | Z120: -812.7467797 | AA120: -0.0768 | AC120: 26 | AD120: -857.1618371 | AE120: -0.081 | AG120: 26 | AH120: -901.6968945 | AI120: -0.0852 | AK120: 26 | AL120: -946.2719519 | AM120: -0.0894 | AO120: 26 | AP120: -991.0370093 | AQ120: -0.0936 | AS120: 26 | AT120: -1035.842067 | AU120: -0.0978
A121: 27 | B121: -548.9564352 | C121: -0.0519 | E121: 27 | F121: -592.6814926 | G121: -0.056 | I121: 27 | J121: -636.36655 | K121: -0.0601 | M121: 27 | N121: -680.3116075 | O121: -0.0643 | Q121: 27 | R121: -724.3266649 | S121: -0.0684 | U121: 27 | V121: -768.5117223 | W121: -0.0726 | Y121: 27 | Z121: -812.7467797 | AA121: -0.0768 | AC121: 27 | AD121: -857.1618371 | AE121: -0.081 | AG121: 27 | AH121: -901.6968945 | AI121: -0.0852 | AK121: 27 | AL121: -946.2719519 | AM121: -0.0894 | AO121: 27 | AP121: -991.0370093 | AQ121: -0.0936 | AS121: 27 | AT121: -1035.842067 | AU121: -0.0978
A122: 28 | B122: -548.9564352 | C122: -0.0519 | E122: 28 | F122: -592.6814926 | G122: -0.056 | I122: 28 | J122: -636.36655 | K122: -0.0601 | M122: 28 | N122: -680.3116075 | O122: -0.0643 | Q122: 28 | R122: -724.3266649 | S122: -0.0684 | U122: 28 | V122: -768.5117223 | W122: -0.0726 | Y122: 28 | Z122: -812.7467797 | AA122: -0.0768 | AC122: 28 | AD122: -857.1618371 | AE122: -0.081 | AG122: 28 | AH122: -901.6968945 | AI122: -0.0852 | AK122: 28 | AL122: -946.2719519 | AM122: -0.0894 | AO122: 28 | AP122: -991.0370093 | AQ122: -0.0936 | AS122: 28 | AT122: -1035.842067 | AU122: -0.0978
A123: 29 | B123: -548.9564352 | C123: -0.0519 | I123: 29 | J123: -636.36655 | K123: -0.0601 | M123: 29 | N123: -680.3116075 | O123: -0.0643 | Q123: 29 | R123: -724.3266649 | S123: -0.0684 | U123: 29 | V123: -768.5117223 | W123: -0.0726 | Y123: 29 | Z123: -812.7467797 | AA123: -0.0768 | AC123: 29 | AD123: -857.1618371 | AE123: -0.081 | AG123: 29 | AH123: -901.6968945 | AI123: -0.0852 | AK123: 29 | AL123: -946.2719519 | AM123: -0.0894 | AO123: 29 | AP123: -991.0370093 | AQ123: -0.0936 | AS123: 29 | AT123: -1035.842067 | AU123: -0.0978
A124: 30 | B124: -548.9564352 | C124: -0.0519 | I124: 30 | J124: -636.36655 | K124: -0.0601 | M124: 30 | N124: -680.3116075 | O124: -0.0643 | Q124: 30 | R124: -724.3266649 | S124: -0.0684 | U124: 30 | V124: -768.5117223 | W124: -0.0726 | Y124: 30 | Z124: -812.7467797 | AA124: -0.0768 | AC124: 30 | AD124: -857.1618371 | AE124: -0.081 | AG124: 30 | AH124: -901.6968945 | AI124: -0.0852 | AK124: 30 | AL124: -946.2719519 | AM124: -0.0894 | AO124: 30 | AP124: -991.0370093 | AQ124: -0.0936 | AS124: 30 | AT124: -1035.842067 | AU124: -0.0978
A125: 31 | B125: -548.9564352 | C125: -0.0519 | I125: 31 | J125: -636.36655 | K125: -0.0601 | Q125: 31 | R125: -724.3266649 | S125: -0.0684 | Y125: 31 | Z125: -812.7467797 | AA125: -0.0768 | AC125: 31 | AD125: -857.1618371 | AE125: -0.081 | AK125: 31 | AL125: -946.2719519 | AM125: -0.0894 | AS125: 31 | AT125: -1035.842067 | AU125: -0.0978
B126: TOTAL........ | C126: =IF((TRUNC((SUM(C95:C125)*1000))/10)-TRUNC(TRUNC((SUM(C95:C125)*1000))/10)>0.5,ROUND(SUM(C95:C125),2),TRUNC((TRUNC((SUM(C95:C125)*1000))/10))/100) -> -1.6 | F126: TOTAL........ | G126: =IF((TRUNC((SUM(G95:G125)*1000))/10)-TRUNC(TRUNC((SUM(G95:G125)*1000))/10)>0.5,ROUND(SUM(G95:G125),2),TRUNC((TRUNC((SUM(G95:G125)*1000))/10))/100) -> -1.56 | J126: TOTAL........ | K126: =IF((TRUNC((SUM(K95:K125)*1000))/10)-TRUNC(TRUNC((SUM(K95:K125)*1000))/10)>0.5,ROUND(SUM(K95:K125),2),TRUNC((TRUNC((SUM(K95:K125)*1000))/10))/100) -> -1.85 | N126: TOTAL........ | O126: =IF((TRUNC((SUM(O95:O125)*1000))/10)-TRUNC(TRUNC((SUM(O95:O125)*1000))/10)>0.5,ROUND(SUM(O95:O125),2),TRUNC((TRUNC((SUM(O95:O125)*1000))/10))/100) -> -1.92 | R126: TOTAL........ | S126: =IF((TRUNC((SUM(S95:S125)*1000))/10)-TRUNC(TRUNC((SUM(S95:S125)*1000))/10)>0.5,ROUND(SUM(S95:S125),2),TRUNC((TRUNC((SUM(S95:S125)*1000))/10))/100) -> -2.11 | V126: TOTAL........ | W126: =IF((TRUNC((SUM(W95:W125)*1000))/10)-TRUNC(TRUNC((SUM(W95:W125)*1000))/10)>0.5,ROUND(SUM(W95:W125),2),TRUNC((TRUNC((SUM(W95:W125)*1000))/10))/100) -> -2.17 | Z126: TOTAL........ | AA126: =IF((TRUNC((SUM(AA95:AA125)*1000))/10)-TRUNC(TRUNC((SUM(AA95:AA125)*1000))/10)>0.5,ROUND(SUM(AA95:AA125),2),TRUNC((TRUNC((SUM(AA95:AA125)*1000))/10))/100) -> -2.37 | AD126: TOTAL........ | AE126: =IF((TRUNC((SUM(AE95:AE125)*1000))/10)-TRUNC(TRUNC((SUM(AE95:AE125)*1000))/10)>0.5,ROUND(SUM(AE95:AE125),2),TRUNC((TRUNC((SUM(AE95:AE125)*1000))/10))/100) -> -2.5 | AH126: TOTAL........ | AI126: =IF((TRUNC((SUM(AI95:AI125)*1000))/10)-TRUNC(TRUNC((SUM(AI95:AI125)*1000))/10)>0.5,ROUND(SUM(AI95:AI125),2),TRUNC((TRUNC((SUM(AI95:AI125)*1000))/10))/100) -> -2.54 | AL126: TOTAL........ | AM126: =IF((TRUNC((SUM(AM95:AM125)*1000))/10)-TRUNC(TRUNC((SUM(AM95:AM125)*1000))/10)>0.5,ROUND(SUM(AM95:AM125),2),TRUNC((TRUNC((SUM(AM95:AM125)*1000))/10))/100) -> -2.76 | AP126: TOTAL........ | AQ126: =IF((TRUNC((SUM(AQ95:AQ125)*1000))/10)-TRUNC(TRUNC((SUM(AQ95:AQ125)*1000))/10)>0.5,ROUND(SUM(AQ95:AQ125),2),TRUNC((TRUNC((SUM(AQ95:AQ125)*1000))/10))/100) -> -2.8 | AT126: TOTAL........ | AU126: =IF((TRUNC((SUM(AU95:AU125)*1000))/10)-TRUNC(TRUNC((SUM(AU95:AU125)*1000))/10)>0.5,ROUND(SUM(AU95:AU125),2),TRUNC((TRUNC((SUM(AU95:AU125)*1000))/10))/100) -> -3.02 | AV126: =SUM(B126:AU126) -> -27.2
B127: I.P.F. | C127: =ROUND(C126*0.1,2) -> -0.16 | F127: I.P.F. | G127: =ROUND(G126*0.1,2) -> -0.16 | J127: I.P.F. | K127: =ROUND(K126*0.1,2) -> -0.19 | N127: I.P.F. | O127: =ROUND(O126*0.1,2) -> -0.19 | R127: I.P.F. | S127: =ROUND(S126*0.1,2) -> -0.21 | V127: I.P.F. | W127: =ROUND(W126*0.1,2) -> -0.22 | Z127: I.P.F. | AA127: =ROUND(AA126*0.1,2) -> -0.24 | AD127: I.P.F. | AE127: =ROUND(AE126*0.1,2) -> -0.25 | AH127: I.P.F. | AI127: =ROUND(AI126*0.1,2) -> -0.25 | AL127: I.P.F. | AM127: =ROUND(AM126*0.1,2) -> -0.28 | AP127: I.P.F. | AQ127: =ROUND(AQ126*0.1,2) -> -0.28 | AT127: I.P.F. | AU127: =ROUND(AU126*0.1,2) -> -0.3 | AV127: =SUM(B127:AU127) -> -2.73
B128: NETOS | C128: =+C126-C127 -> -1.44 | F128: NETOS | G128: =+G126-G127 -> -1.4 | J128: NETOS | K128: =+K126-K127 -> -1.66 | N128: NETOS | O128: =+O126-O127 -> -1.73 | R128: NETOS | S128: =+S126-S127 -> -1.9 | V128: NETOS | W128: =+W126-W127 -> -1.95 | Z128: NETOS | AA128: =+AA126-AA127 -> -2.13 | AD128: NETOS | AE128: =+AE126-AE127 -> -2.25 | AH128: NETOS | AI128: =+AI126-AI127 -> -2.29 | AL128: NETOS | AM128: =+AM126-AM127 -> -2.48 | AP128: NETOS | AQ128: =+AQ126-AQ127 -> -2.52 | AT128: NETOS | AU128: =+AU126-AU127 -> -2.72 | AV128: =SUM(B128:AU128) -> -24.47 | AW128: =+AV128 -> -24.47
AU129: =+AT125+AU128-$B$4 -> -1047.562067

Sheet Calculo aporte dia 3_2 (hidden)
A1: APORTE INICIAL | B1: =+'Dos Años'!G17 -> 500
A2: APORTE PACTADO | B2: =+'Dos Años'!G19 -> -12.57125
A3: REVALORIZACIÓN | B3: =+'Dos Años'!G23 -> 0
A4: SEGURO | B4: 9
A5: TASA NOMINAL | B5: =+'Dos Años'!G15 -> 0.03928487739
A6: BASE DE CALCULO | B6: 365
A8: PRIMER AÑO | B8: =+B2 -> -12.57125
A9: 1 | E9: =+A9+1 -> 2 | I9: =+E9+1 -> 3 | M9: =+I9+1 -> 4 | Q9: =+M9+1 -> 5 | U9: =+Q9+1 -> 6 | Y9: =+U9+1 -> 7 | AC9: =+Y9+1 -> 8 | AG9: =+AC9+1 -> 9 | AK9: =+AG9+1 -> 10 | AO9: =+AK9+1 -> 11 | AS9: =+AO9+1 -> 12
A10: NO. | B10: SALDO DIARIO | C10: INTERESES DIARIO | E10: NO. | F10: SALDO DIARIO | G10: INTERESES DIARIO | I10: NO. | J10: SALDO DIARIO | K10: INTERESES DIARIO | M10: NO. | N10: SALDO DIARIO | O10: INTERESES DIARIO | Q10: NO. | R10: SALDO DIARIO | S10: INTERESES DIARIO | U10: NO. | V10: SALDO DIARIO | W10: INTERESES DIARIO | Y10: NO. | Z10: SALDO DIARIO | AA10: INTERESES DIARIO | AC10: NO. | AD10: SALDO DIARIO | AE10: INTERESES DIARIO | AG10: NO. | AH10: SALDO DIARIO | AI10: INTERESES DIARIO | AK10: NO. | AL10: SALDO DIARIO | AM10: INTERESES DIARIO | AO10: NO. | AP10: SALDO DIARIO | AQ10: INTERESES DIARIO | AS10: NO. | AT10: SALDO DIARIO | AU10: INTERESES DIARIO
A11: 1 | B11: =+B1 -> 500 | C11: =ROUND(INT(ROUND(B11*$B$5/365,8)*10000)/10000,4) -> 0.0538 | E11: 1 | F11: =+B41+C44-$B$4 -> 479.89875 | G11: =ROUND(INT(ROUND(F11*$B$5/365,8)*10000)/10000,4) -> 0.0516 | I11: 1 | J11: =+F38+G44-$B$4 -> 459.5975 | K11: =ROUND(INT(ROUND(J11*$B$5/365,8)*10000)/10000,4) -> 0.0494 | M11: 1 | N11: =+J41+K44-$B$4 -> 439.36625 | O11: =ROUND(INT(ROUND(N11*$B$5/365,8)*10000)/10000,4) -> 0.0472 | Q11: 1 | R11: =+N40+O44-$B$4 -> 419.035 | S11: =ROUND(INT(ROUND(R11*$B$5/365,8)*10000)/10000,4) -> 0.0451 | U11: 1 | V11: =+R41+S44-$B$4 -> 398.68375 | W11: =ROUND(INT(ROUND(V11*$B$5/365,8)*10000)/10000,4) -> 0.0429 | Y11: 1 | Z11: =+V40+W44-$B$4 -> 378.2325 | AA11: =ROUND(INT(ROUND(Z11*$B$5/365,8)*10000)/10000,4) -> 0.0407 | AC11: 1 | AD11: =+Z41+AA44-$B$4 -> 357.76125 | AE11: =ROUND(INT(ROUND(AD11*$B$5/365,8)*10000)/10000,4) -> 0.0385 | AG11: 1 | AH11: =+AD41+AE44-$B$4 -> 337.22 | AI11: =ROUND(INT(ROUND(AH11*$B$5/365,8)*10000)/10000,4) -> 0.0362 | AK11: 1 | AL11: =+AH40+AI44-$B$4 -> 316.58875 | AM11: =ROUND(INT(ROUND(AL11*$B$5/365,8)*10000)/10000,4) -> 0.034 | AO11: 1 | AP11: =+AL41+AM44-$B$4 -> 295.9375 | AQ11: =ROUND(INT(ROUND(AP11*$B$5/365,8)*10000)/10000,4) -> 0.0318 | AS11: 1 | AT11: =+AP40+AQ44-$B$4 -> 275.18625 | AU11: =ROUND(INT(ROUND(AT11*$B$5/365,8)*10000)/10000,4) -> 0.0296
A12: =+A11+1 -> 2 | B12: =+B11 -> 500 | C12: =ROUND(INT(ROUND(B12*$B$5/365,8)*10000)/10000,4) -> 0.0538 | E12: =+E11+1 -> 2 | F12: =+F11 -> 479.89875 | G12: 0.0516 | I12: =+I11+1 -> 2 | J12: =+J11 -> 459.5975 | K12: 0.0494 | M12: =+M11+1 -> 2 | N12: =+N11 -> 439.36625 | O12: 0.0472 | Q12: =+Q11+1 -> 2 | R12: =+R11 -> 419.035 | S12: 0.0451 | U12: =+U11+1 -> 2 | V12: =+V11 -> 398.68375 | W12: 0.0429 | Y12: =+Y11+1 -> 2 | Z12: =+Z11 -> 378.2325 | AA12: 0.0407 | AC12: =+AC11+1 -> 2 | AD12: =+AD11 -> 357.76125 | AE12: 0.0385 | AG12: =+AG11+1 -> 2 | AH12: =+AH11 -> 337.22 | AI12: 0.0362 | AK12: =+AK11+1 -> 2 | AL12: =+AL11 -> 316.58875 | AM12: 0.034 | AO12: =+AO11+1 -> 2 | AP12: =+AP11 -> 295.9375 | AQ12: 0.0318 | AS12: =+AS11+1 -> 2 | AT12: =+AT11 -> 275.18625 | AU12: 0.0296
A13: =+A12+1 -> 3 | B13: =+B12+$B$8 -> 487.42875 | C13: 0.0524 | E13: =+E12+1 -> 3 | F13: =+F12+$B$8 -> 467.3275 | G13: 0.0502 | I13: =+I12+1 -> 3 | J13: =+J12+$B$8 -> 447.02625 | K13: 0.0481 | M13: =+M12+1 -> 3 | N13: =+N12+$B$8 -> 426.795 | O13: 0.0459 | Q13: =+Q12+1 -> 3 | R13: =+R12+$B$8 -> 406.46375 | S13: 0.0437 | U13: =+U12+1 -> 3 | V13: =+V12+$B$8 -> 386.1125 | W13: 0.0415 | Y13: =+Y12+1 -> 3 | Z13: =+Z12+$B$8 -> 365.66125 | AA13: 0.0393 | AC13: =+AC12+1 -> 3 | AD13: =+AD12+$B$8 -> 345.19 | AE13: 0.0371 | AG13: =+AG12+1 -> 3 | AH13: =+AH12+$B$8 -> 324.64875 | AI13: 0.0349 | AK13: =+AK12+1 -> 3 | AL13: =+AL12+$B$8 -> 304.0175 | AM13: 0.0327 | AO13: =+AO12+1 -> 3 | AP13: =+AP12+$B$8 -> 283.36625 | AQ13: 0.0304 | AS13: =+AS12+1 -> 3 | AT13: =+AT12+$B$8 -> 262.615 | AU13: 0.0282
A14: 4 | B14: =+B13 -> 487.42875 | C14: 0.0524 | E14: 4 | F14: =+F13 -> 467.3275 | G14: 0.0502 | I14: 4 | J14: =+J13 -> 447.02625 | K14: 0.0481 | M14: 4 | N14: =+N13 -> 426.795 | O14: 0.0459 | Q14: 4 | R14: =+R13 -> 406.46375 | S14: 0.0437 | U14: 4 | V14: =+V13 -> 386.1125 | W14: 0.0415 | Y14: 4 | Z14: =+Z13 -> 365.66125 | AA14: 0.0393 | AC14: 4 | AD14: =+AD13 -> 345.19 | AE14: 0.0371 | AG14: 4 | AH14: =+AH13 -> 324.64875 | AI14: 0.0349 | AK14: 4 | AL14: =+AL13 -> 304.0175 | AM14: 0.0327 | AO14: 4 | AP14: =+AP13 -> 283.36625 | AQ14: 0.0304 | AS14: 4 | AT14: =+AT13 -> 262.615 | AU14: 0.0282
A15: 5 | B15: =+B14 -> 487.42875 | C15: 0.0524 | E15: 5 | F15: =+F14 -> 467.3275 | G15: 0.0502 | I15: 5 | J15: =+J14 -> 447.02625 | K15: 0.0481 | M15: 5 | N15: =+N14 -> 426.795 | O15: 0.0459 | Q15: 5 | R15: =+R14 -> 406.46375 | S15: 0.0437 | U15: 5 | V15: =+V14 -> 386.1125 | W15: 0.0415 | Y15: 5 | Z15: =+Z14 -> 365.66125 | AA15: 0.0393 | AC15: 5 | AD15: =+AD14 -> 345.19 | AE15: 0.0371 | AG15: 5 | AH15: =+AH14 -> 324.64875 | AI15: 0.0349 | AK15: 5 | AL15: =+AL14 -> 304.0175 | AM15: 0.0327 | AO15: 5 | AP15: =+AP14 -> 283.36625 | AQ15: 0.0304 | AS15: 5 | AT15: =+AT14 -> 262.615 | AU15: 0.0282
A16: 6 | B16: 487.42875 | C16: 0.0524 | E16: 6 | F16: 467.3275 | G16: 0.0502 | I16: 6 | J16: 447.02625 | K16: 0.0481 | M16: 6 | N16: 426.795 | O16: 0.0459 | Q16: 6 | R16: 406.46375 | S16: 0.0437 | U16: 6 | V16: 386.1125 | W16: 0.0415 | Y16: 6 | Z16: 365.66125 | AA16: 0.0393 | AC16: 6 | AD16: 345.19 | AE16: 0.0371 | AG16: 6 | AH16: 324.64875 | AI16: 0.0349 | AK16: 6 | AL16: 304.0175 | AM16: 0.0327 | AO16: 6 | AP16: 283.36625 | AQ16: 0.0304 | AS16: 6 | AT16: 262.615 | AU16: 0.0282
A17: 7 | B17: 487.42875 | C17: 0.0524 | E17: 7 | F17: 467.3275 | G17: 0.0502 | I17: 7 | J17: 447.02625 | K17: 0.0481 | M17: 7 | N17: 426.795 | O17: 0.0459 | Q17: 7 | R17: 406.46375 | S17: 0.0437 | U17: 7 | V17: 386.1125 | W17: 0.0415 | Y17: 7 | Z17: 365.66125 | AA17: 0.0393 | AC17: 7 | AD17: 345.19 | AE17: 0.0371 | AG17: 7 | AH17: 324.64875 | AI17: 0.0349 | AK17: 7 | AL17: 304.0175 | AM17: 0.0327 | AO17: 7 | AP17: 283.36625 | AQ17: 0.0304 | AS17: 7 | AT17: 262.615 | AU17: 0.0282
A18: 8 | B18: 487.42875 | C18: 0.0524 | E18: 8 | F18: 467.3275 | G18: 0.0502 | I18: 8 | J18: 447.02625 | K18: 0.0481 | M18: 8 | N18: 426.795 | O18: 0.0459 | Q18: 8 | R18: 406.46375 | S18: 0.0437 | U18: 8 | V18: 386.1125 | W18: 0.0415 | Y18: 8 | Z18: 365.66125 | AA18: 0.0393 | AC18: 8 | AD18: 345.19 | AE18: 0.0371 | AG18: 8 | AH18: 324.64875 | AI18: 0.0349 | AK18: 8 | AL18: 304.0175 | AM18: 0.0327 | AO18: 8 | AP18: 283.36625 | AQ18: 0.0304 | AS18: 8 | AT18: 262.615 | AU18: 0.0282
A19: 9 | B19: 487.42875 | C19: 0.0524 | E19: 9 | F19: 467.3275 | G19: 0.0502 | I19: 9 | J19: 447.02625 | K19: 0.0481 | M19: 9 | N19: 426.795 | O19: 0.0459 | Q19: 9 | R19: 406.46375 | S19: 0.0437 | U19: 9 | V19: 386.1125 | W19: 0.0415 | Y19: 9 | Z19: 365.66125 | AA19: 0.0393 | AC19: 9 | AD19: 345.19 | AE19: 0.0371 | AG19: 9 | AH19: 324.64875 | AI19: 0.0349 | AK19: 9 | AL19: 304.0175 | AM19: 0.0327 | AO19: 9 | AP19: 283.36625 | AQ19: 0.0304 | AS19: 9 | AT19: 262.615 | AU19: 0.0282
A20: 10 | B20: 487.42875 | C20: 0.0524 | E20: 10 | F20: 467.3275 | G20: 0.0502 | I20: 10 | J20: 447.02625 | K20: 0.0481 | M20: 10 | N20: 426.795 | O20: 0.0459 | Q20: 10 | R20: 406.46375 | S20: 0.0437 | U20: 10 | V20: 386.1125 | W20: 0.0415 | Y20: 10 | Z20: 365.66125 | AA20: 0.0393 | AC20: 10 | AD20: 345.19 | AE20: 0.0371 | AG20: 10 | AH20: 324.64875 | AI20: 0.0349 | AK20: 10 | AL20: 304.0175 | AM20: 0.0327 | AO20: 10 | AP20: 283.36625 | AQ20: 0.0304 | AS20: 10 | AT20: 262.615 | AU20: 0.0282
A21: 11 | B21: 487.42875 | C21: 0.0524 | E21: 11 | F21: 467.3275 | G21: 0.0502 | I21: 11 | J21: 447.02625 | K21: 0.0481 | M21: 11 | N21: 426.795 | O21: 0.0459 | Q21: 11 | R21: 406.46375 | S21: 0.0437 | U21: 11 | V21: 386.1125 | W21: 0.0415 | Y21: 11 | Z21: 365.66125 | AA21: 0.0393 | AC21: 11 | AD21: 345.19 | AE21: 0.0371 | AG21: 11 | AH21: 324.64875 | AI21: 0.0349 | AK21: 11 | AL21: 304.0175 | AM21: 0.0327 | AO21: 11 | AP21: 283.36625 | AQ21: 0.0304 | AS21: 11 | AT21: 262.615 | AU21: 0.0282
A22: 12 | B22: 487.42875 | C22: 0.0524 | E22: 12 | F22: 467.3275 | G22: 0.0502 | I22: 12 | J22: 447.02625 | K22: 0.0481 | M22: 12 | N22: 426.795 | O22: 0.0459 | Q22: 12 | R22: 406.46375 | S22: 0.0437 | U22: 12 | V22: 386.1125 | W22: 0.0415 | Y22: 12 | Z22: 365.66125 | AA22: 0.0393 | AC22: 12 | AD22: 345.19 | AE22: 0.0371 | AG22: 12 | AH22: 324.64875 | AI22: 0.0349 | AK22: 12 | AL22: 304.0175 | AM22: 0.0327 | AO22: 12 | AP22: 283.36625 | AQ22: 0.0304 | AS22: 12 | AT22: 262.615 | AU22: 0.0282
A23: 13 | B23: 487.42875 | C23: 0.0524 | E23: 13 | F23: 467.3275 | G23: 0.0502 | I23: 13 | J23: 447.02625 | K23: 0.0481 | M23: 13 | N23: 426.795 | O23: 0.0459 | Q23: 13 | R23: 406.46375 | S23: 0.0437 | U23: 13 | V23: 386.1125 | W23: 0.0415 | Y23: 13 | Z23: 365.66125 | AA23: 0.0393 | AC23: 13 | AD23: 345.19 | AE23: 0.0371 | AG23: 13 | AH23: 324.64875 | AI23: 0.0349 | AK23: 13 | AL23: 304.0175 | AM23: 0.0327 | AO23: 13 | AP23: 283.36625 | AQ23: 0.0304 | AS23: 13 | AT23: 262.615 | AU23: 0.0282
A24: 14 | B24: 487.42875 | C24: 0.0524 | E24: 14 | F24: 467.3275 | G24: 0.0502 | I24: 14 | J24: 447.02625 | K24: 0.0481 | M24: 14 | N24: 426.795 | O24: 0.0459 | Q24: 14 | R24: 406.46375 | S24: 0.0437 | U24: 14 | V24: 386.1125 | W24: 0.0415 | Y24: 14 | Z24: 365.66125 | AA24: 0.0393 | AC24: 14 | AD24: 345.19 | AE24: 0.0371 | AG24: 14 | AH24: 324.64875 | AI24: 0.0349 | AK24: 14 | AL24: 304.0175 | AM24: 0.0327 | AO24: 14 | AP24: 283.36625 | AQ24: 0.0304 | AS24: 14 | AT24: 262.615 | AU24: 0.0282
A25: 15 | B25: 487.42875 | C25: 0.0524 | E25: 15 | F25: 467.3275 | G25: 0.0502 | I25: 15 | J25: 447.02625 | K25: 0.0481 | M25: 15 | N25: 426.795 | O25: 0.0459 | Q25: 15 | R25: 406.46375 | S25: 0.0437 | U25: 15 | V25: 386.1125 | W25: 0.0415 | Y25: 15 | Z25: 365.66125 | AA25: 0.0393 | AC25: 15 | AD25: 345.19 | AE25: 0.0371 | AG25: 15 | AH25: 324.64875 | AI25: 0.0349 | AK25: 15 | AL25: 304.0175 | AM25: 0.0327 | AO25: 15 | AP25: 283.36625 | AQ25: 0.0304 | AS25: 15 | AT25: 262.615 | AU25: 0.0282
A26: 16 | B26: 487.42875 | C26: 0.0524 | E26: 16 | F26: 467.3275 | G26: 0.0502 | I26: 16 | J26: 447.02625 | K26: 0.0481 | M26: 16 | N26: 426.795 | O26: 0.0459 | Q26: 16 | R26: 406.46375 | S26: 0.0437 | U26: 16 | V26: 386.1125 | W26: 0.0415 | Y26: 16 | Z26: 365.66125 | AA26: 0.0393 | AC26: 16 | AD26: 345.19 | AE26: 0.0371 | AG26: 16 | AH26: 324.64875 | AI26: 0.0349 | AK26: 16 | AL26: 304.0175 | AM26: 0.0327 | AO26: 16 | AP26: 283.36625 | AQ26: 0.0304 | AS26: 16 | AT26: 262.615 | AU26: 0.0282
A27: 17 | B27: 487.42875 | C27: 0.0524 | E27: 17 | F27: 467.3275 | G27: 0.0502 | I27: 17 | J27: 447.02625 | K27: 0.0481 | M27: 17 | N27: 426.795 | O27: 0.0459 | Q27: 17 | R27: 406.46375 | S27: 0.0437 | U27: 17 | V27: 386.1125 | W27: 0.0415 | Y27: 17 | Z27: 365.66125 | AA27: 0.0393 | AC27: 17 | AD27: 345.19 | AE27: 0.0371 | AG27: 17 | AH27: 324.64875 | AI27: 0.0349 | AK27: 17 | AL27: 304.0175 | AM27: 0.0327 | AO27: 17 | AP27: 283.36625 | AQ27: 0.0304 | AS27: 17 | AT27: 262.615 | AU27: 0.0282
A28: 18 | B28: 487.42875 | C28: 0.0524 | E28: 18 | F28: 467.3275 | G28: 0.0502 | I28: 18 | J28: 447.02625 | K28: 0.0481 | M28: 18 | N28: 426.795 | O28: 0.0459 | Q28: 18 | R28: 406.46375 | S28: 0.0437 | U28: 18 | V28: 386.1125 | W28: 0.0415 | Y28: 18 | Z28: 365.66125 | AA28: 0.0393 | AC28: 18 | AD28: 345.19 | AE28: 0.0371 | AG28: 18 | AH28: 324.64875 | AI28: 0.0349 | AK28: 18 | AL28: 304.0175 | AM28: 0.0327 | AO28: 18 | AP28: 283.36625 | AQ28: 0.0304 | AS28: 18 | AT28: 262.615 | AU28: 0.0282
A29: 19 | B29: 487.42875 | C29: 0.0524 | E29: 19 | F29: 467.3275 | G29: 0.0502 | I29: 19 | J29: 447.02625 | K29: 0.0481 | M29: 19 | N29: 426.795 | O29: 0.0459 | Q29: 19 | R29: 406.46375 | S29: 0.0437 | U29: 19 | V29: 386.1125 | W29: 0.0415 | Y29: 19 | Z29: 365.66125 | AA29: 0.0393 | AC29: 19 | AD29: 345.19 | AE29: 0.0371 | AG29: 19 | AH29: 324.64875 | AI29: 0.0349 | AK29: 19 | AL29: 304.0175 | AM29: 0.0327 | AO29: 19 | AP29: 283.36625 | AQ29: 0.0304 | AS29: 19 | AT29: 262.615 | AU29: 0.0282
A30: 20 | B30: 487.42875 | C30: 0.0524 | E30: 20 | F30: 467.3275 | G30: 0.0502 | I30: 20 | J30: 447.02625 | K30: 0.0481 | M30: 20 | N30: 426.795 | O30: 0.0459 | Q30: 20 | R30: 406.46375 | S30: 0.0437 | U30: 20 | V30: 386.1125 | W30: 0.0415 | Y30: 20 | Z30: 365.66125 | AA30: 0.0393 | AC30: 20 | AD30: 345.19 | AE30: 0.0371 | AG30: 20 | AH30: 324.64875 | AI30: 0.0349 | AK30: 20 | AL30: 304.0175 | AM30: 0.0327 | AO30: 20 | AP30: 283.36625 | AQ30: 0.0304 | AS30: 20 | AT30: 262.615 | AU30: 0.0282
A31: 21 | B31: 487.42875 | C31: 0.0524 | E31: 21 | F31: 467.3275 | G31: 0.0502 | I31: 21 | J31: 447.02625 | K31: 0.0481 | M31: 21 | N31: 426.795 | O31: 0.0459 | Q31: 21 | R31: 406.46375 | S31: 0.0437 | U31: 21 | V31: 386.1125 | W31: 0.0415 | Y31: 21 | Z31: 365.66125 | AA31: 0.0393 | AC31: 21 | AD31: 345.19 | AE31: 0.0371 | AG31: 21 | AH31: 324.64875 | AI31: 0.0349 | AK31: 21 | AL31: 304.0175 | AM31: 0.0327 | AO31: 21 | AP31: 283.36625 | AQ31: 0.0304 | AS31: 21 | AT31: 262.615 | AU31: 0.0282
A32: 22 | B32: 487.42875 | C32: 0.0524 | E32: 22 | F32: 467.3275 | G32: 0.0502 | I32: 22 | J32: 447.02625 | K32: 0.0481 | M32: 22 | N32: 426.795 | O32: 0.0459 | Q32: 22 | R32: 406.46375 | S32: 0.0437 | U32: 22 | V32: 386.1125 | W32: 0.0415 | Y32: 22 | Z32: 365.66125 | AA32: 0.0393 | AC32: 22 | AD32: 345.19 | AE32: 0.0371 | AG32: 22 | AH32: 324.64875 | AI32: 0.0349 | AK32: 22 | AL32: 304.0175 | AM32: 0.0327 | AO32: 22 | AP32: 283.36625 | AQ32: 0.0304 | AS32: 22 | AT32: 262.615 | AU32: 0.0282
A33: 23 | B33: 487.42875 | C33: 0.0524 | E33: 23 | F33: 467.3275 | G33: 0.0502 | I33: 23 | J33: 447.02625 | K33: 0.0481 | M33: 23 | N33: 426.795 | O33: 0.0459 | Q33: 23 | R33: 406.46375 | S33: 0.0437 | U33: 23 | V33: 386.1125 | W33: 0.0415 | Y33: 23 | Z33: 365.66125 | AA33: 0.0393 | AC33: 23 | AD33: 345.19 | AE33: 0.0371 | AG33: 23 | AH33: 324.64875 | AI33: 0.0349 | AK33: 23 | AL33: 304.0175 | AM33: 0.0327 | AO33: 23 | AP33: 283.36625 | AQ33: 0.0304 | AS33: 23 | AT33: 262.615 | AU33: 0.0282
A34: 24 | B34: 487.42875 | C34: 0.0524 | E34: 24 | F34: 467.3275 | G34: 0.0502 | I34: 24 | J34: 447.02625 | K34: 0.0481 | M34: 24 | N34: 426.795 | O34: 0.0459 | Q34: 24 | R34: 406.46375 | S34: 0.0437 | U34: 24 | V34: 386.1125 | W34: 0.0415 | Y34: 24 | Z34: 365.66125 | AA34: 0.0393 | AC34: 24 | AD34: 345.19 | AE34: 0.0371 | AG34: 24 | AH34: 324.64875 | AI34: 0.0349 | AK34: 24 | AL34: 304.0175 | AM34: 0.0327 | AO34: 24 | AP34: 283.36625 | AQ34: 0.0304 | AS34: 24 | AT34: 262.615 | AU34: 0.0282
A35: 25 | B35: 487.42875 | C35: 0.0524 | E35: 25 | F35: 467.3275 | G35: 0.0502 | I35: 25 | J35: 447.02625 | K35: 0.0481 | M35: 25 | N35: 426.795 | O35: 0.0459 | Q35: 25 | R35: 406.46375 | S35: 0.0437 | U35: 25 | V35: 386.1125 | W35: 0.0415 | Y35: 25 | Z35: 365.66125 | AA35: 0.0393 | AC35: 25 | AD35: 345.19 | AE35: 0.0371 | AG35: 25 | AH35: 324.64875 | AI35: 0.0349 | AK35: 25 | AL35: 304.0175 | AM35: 0.0327 | AO35: 25 | AP35: 283.36625 | AQ35: 0.0304 | AS35: 25 | AT35: 262.615 | AU35: 0.0282
A36: 26 | B36: 487.42875 | C36: 0.0524 | E36: 26 | F36: 467.3275 | G36: 0.0502 | I36: 26 | J36: 447.02625 | K36: 0.0481 | M36: 26 | N36: 426.795 | O36: 0.0459 | Q36: 26 | R36: 406.46375 | S36: 0.0437 | U36: 26 | V36: 386.1125 | W36: 0.0415 | Y36: 26 | Z36: 365.66125 | AA36: 0.0393 | AC36: 26 | AD36: 345.19 | AE36: 0.0371 | AG36: 26 | AH36: 324.64875 | AI36: 0.0349 | AK36: 26 | AL36: 304.0175 | AM36: 0.0327 | AO36: 26 | AP36: 283.36625 | AQ36: 0.0304 | AS36: 26 | AT36: 262.615 | AU36: 0.0282
A37: 27 | B37: 487.42875 | C37: 0.0524 | E37: 27 | F37: 467.3275 | G37: 0.0502 | I37: 27 | J37: 447.02625 | K37: 0.0481 | M37: 27 | N37: 426.795 | O37: 0.0459 | Q37: 27 | R37: 406.46375 | S37: 0.0437 | U37: 27 | V37: 386.1125 | W37: 0.0415 | Y37: 27 | Z37: 365.66125 | AA37: 0.0393 | AC37: 27 | AD37: 345.19 | AE37: 0.0371 | AG37: 27 | AH37: 324.64875 | AI37: 0.0349 | AK37: 27 | AL37: 304.0175 | AM37: 0.0327 | AO37: 27 | AP37: 283.36625 | AQ37: 0.0304 | AS37: 27 | AT37: 262.615 | AU37: 0.0282
A38: 28 | B38: 487.42875 | C38: 0.0524 | E38: 28 | F38: 467.3275 | G38: 0.0502 | I38: 28 | J38: 447.02625 | K38: 0.0481 | M38: 28 | N38: 426.795 | O38: 0.0459 | Q38: 28 | R38: 406.46375 | S38: 0.0437 | U38: 28 | V38: 386.1125 | W38: 0.0415 | Y38: 28 | Z38: 365.66125 | AA38: 0.0393 | AC38: 28 | AD38: 345.19 | AE38: 0.0371 | AG38: 28 | AH38: 324.64875 | AI38: 0.0349 | AK38: 28 | AL38: 304.0175 | AM38: 0.0327 | AO38: 28 | AP38: 283.36625 | AQ38: 0.0304 | AS38: 28 | AT38: 262.615 | AU38: 0.0282
A39: 29 | B39: 487.42875 | C39: 0.0524 | I39: 29 | J39: 447.02625 | K39: 0.0481 | M39: 29 | N39: 426.795 | O39: 0.0459 | Q39: 29 | R39: 406.46375 | S39: 0.0437 | U39: 29 | V39: 386.1125 | W39: 0.0415 | Y39: 29 | Z39: 365.66125 | AA39: 0.0393 | AC39: 29 | AD39: 345.19 | AE39: 0.0371 | AG39: 29 | AH39: 324.64875 | AI39: 0.0349 | AK39: 29 | AL39: 304.0175 | AM39: 0.0327 | AO39: 29 | AP39: 283.36625 | AQ39: 0.0304 | AS39: 29 | AT39: 262.615 | AU39: 0.0282
A40: 30 | B40: 487.42875 | C40: 0.0524 | I40: 30 | J40: 447.02625 | K40: 0.0481 | M40: 30 | N40: 426.795 | O40: 0.0459 | Q40: 30 | R40: 406.46375 | S40: 0.0437 | U40: 30 | V40: 386.1125 | W40: 0.0415 | Y40: 30 | Z40: 365.66125 | AA40: 0.0393 | AC40: 30 | AD40: 345.19 | AE40: 0.0371 | AG40: 30 | AH40: 324.64875 | AI40: 0.0349 | AK40: 30 | AL40: 304.0175 | AM40: 0.0327 | AO40: 30 | AP40: 283.36625 | AQ40: 0.0304 | AS40: 30 | AT40: 262.615 | AU40: 0.0282
A41: 31 | B41: =+B40 -> 487.42875 | C41: 0.0524 | I41: 31 | J41: 447.02625 | K41: 0.0481 | Q41: 31 | R41: 406.46375 | S41: 0.0437 | Y41: 31 | Z41: 365.66125 | AA41: 0.0393 | AC41: 31 | AD41: 345.19 | AE41: 0.0371 | AK41: 31 | AL41: 304.0175 | AM41: 0.0327 | AS41: 31 | AT41: 262.615 | AU41: 0.0282
B42: TOTAL........ | C42: =IF((TRUNC((SUM(C11:C41)*1000))/10)-TRUNC(TRUNC((SUM(C11:C41)*1000))/10)>0.5,ROUND(SUM(C11:C41),2),TRUNC((TRUNC((SUM(C11:C41)*1000))/10))/100) -> 1.63 | F42: TOTAL........ | G42: =IF((TRUNC((SUM(G11:G41)*1000))/10)-TRUNC(TRUNC((SUM(G11:G41)*1000))/10)>0.5,ROUND(SUM(G11:G41),2),TRUNC((TRUNC((SUM(G11:G41)*1000))/10))/100) -> 1.41 | J42: TOTAL........ | K42: =IF((TRUNC((SUM(K11:K41)*1000))/10)-TRUNC(TRUNC((SUM(K11:K41)*1000))/10)>0.5,ROUND(SUM(K11:K41),2),TRUNC((TRUNC((SUM(K11:K41)*1000))/10))/100) -> 1.49 | N42: TOTAL........ | O42: =IF((TRUNC((SUM(O11:O41)*1000))/10)-TRUNC(TRUNC((SUM(O11:O41)*1000))/10)>0.5,ROUND(SUM(O11:O41),2),TRUNC((TRUNC((SUM(O11:O41)*1000))/10))/100) -> 1.38 | R42: TOTAL........ | S42: =IF((TRUNC((SUM(S11:S41)*1000))/10)-TRUNC(TRUNC((SUM(S11:S41)*1000))/10)>0.5,ROUND(SUM(S11:S41),2),TRUNC((TRUNC((SUM(S11:S41)*1000))/10))/100) -> 1.36 | V42: TOTAL........ | W42: =IF((TRUNC((SUM(W11:W41)*1000))/10)-TRUNC(TRUNC((SUM(W11:W41)*1000))/10)>0.5,ROUND(SUM(W11:W41),2),TRUNC((TRUNC((SUM(W11:W41)*1000))/10))/100) -> 1.25 | Z42: TOTAL........ | AA42: =IF((TRUNC((SUM(AA11:AA41)*1000))/10)-TRUNC(TRUNC((SUM(AA11:AA41)*1000))/10)>0.5,ROUND(SUM(AA11:AA41),2),TRUNC((TRUNC((SUM(AA11:AA41)*1000))/10))/100) -> 1.22 | AD42: TOTAL........ | AE42: =IF((TRUNC((SUM(AE11:AE41)*1000))/10)-TRUNC(TRUNC((SUM(AE11:AE41)*1000))/10)>0.5,ROUND(SUM(AE11:AE41),2),TRUNC((TRUNC((SUM(AE11:AE41)*1000))/10))/100) -> 1.15 | AH42: TOTAL........ | AI42: =IF((TRUNC((SUM(AI11:AI41)*1000))/10)-TRUNC(TRUNC((SUM(AI11:AI41)*1000))/10)>0.5,ROUND(SUM(AI11:AI41),2),TRUNC((TRUNC((SUM(AI11:AI41)*1000))/10))/100) -> 1.05 | AL42: TOTAL........ | AM42: =IF((TRUNC((SUM(AM11:AM41)*1000))/10)-TRUNC(TRUNC((SUM(AM11:AM41)*1000))/10)>0.5,ROUND(SUM(AM11:AM41),2),TRUNC((TRUNC((SUM(AM11:AM41)*1000))/10))/100) -> 1.02 | AP42: TOTAL........ | AQ42: =IF((TRUNC((SUM(AQ11:AQ41)*1000))/10)-TRUNC(TRUNC((SUM(AQ11:AQ41)*1000))/10)>0.5,ROUND(SUM(AQ11:AQ41),2),TRUNC((TRUNC((SUM(AQ11:AQ41)*1000))/10))/100) -> 0.91 | AT42: TOTAL........ | AU42: =IF((TRUNC((SUM(AU11:AU41)*1000))/10)-TRUNC(TRUNC((SUM(AU11:AU41)*1000))/10)>0.5,ROUND(SUM(AU11:AU41),2),TRUNC((TRUNC((SUM(AU11:AU41)*1000))/10))/100) -> 0.88 | AV42: =SUM(B42:AU42) -> 14.75
B43: I.P.F. | C43: =ROUND(C42*0.1,2) -> 0.16 | F43: I.P.F. | G43: =ROUND(G42*0.1,2) -> 0.14 | J43: I.P.F. | K43: =ROUND(K42*0.1,2) -> 0.15 | N43: I.P.F. | O43: =ROUND(O42*0.1,2) -> 0.14 | R43: I.P.F. | S43: =ROUND(S42*0.1,2) -> 0.14 | V43: I.P.F. | W43: =ROUND(W42*0.1,2) -> 0.13 | Z43: I.P.F. | AA43: =ROUND(AA42*0.1,2) -> 0.12 | AD43: I.P.F. | AE43: =ROUND(AE42*0.1,2) -> 0.12 | AH43: I.P.F. | AI43: =ROUND(AI42*0.1,2) -> 0.11 | AL43: I.P.F. | AM43: =ROUND(AM42*0.1,2) -> 0.1 | AP43: I.P.F. | AQ43: =ROUND(AQ42*0.1,2) -> 0.09 | AT43: I.P.F. | AU43: =ROUND(AU42*0.1,2) -> 0.09 | AV43: =SUM(B43:AU43) -> 1.49
B44: NETOS | C44: =+C42-C43 -> 1.47 | F44: NETOS | G44: =+G42-G43 -> 1.27 | J44: NETOS | K44: =+K42-K43 -> 1.34 | N44: NETOS | O44: =+O42-O43 -> 1.24 | R44: NETOS | S44: =+S42-S43 -> 1.22 | V44: NETOS | W44: =+W42-W43 -> 1.12 | Z44: NETOS | AA44: =+AA42-AA43 -> 1.1 | AD44: NETOS | AE44: =+AE42-AE43 -> 1.03 | AH44: NETOS | AI44: =+AI42-AI43 -> 0.94 | AL44: NETOS | AM44: =+AM42-AM43 -> 0.92 | AP44: NETOS | AQ44: =+AQ42-AQ43 -> 0.82 | AT44: NETOS | AU44: =+AU42-AU43 -> 0.79 | AV44: =SUM(B44:AU44) -> 13.26 | AW44: =+AV44 -> 13.26
AU45: =+AT41+AU44-$B$4 -> 254.405
A50: SEGUNDO AÑO | B50: =IF($B$3>0,(B8*$B$3)+B8,B8) -> -12.57125
A51: 1 | E51: =+A51+1 -> 2 | I51: =+E51+1 -> 3 | M51: =+I51+1 -> 4 | Q51: =+M51+1 -> 5 | U51: =+Q51+1 -> 6 | Y51: =+U51+1 -> 7 | AC51: =+Y51+1 -> 8 | AG51: =+AC51+1 -> 9 | AK51: =+AG51+1 -> 10 | AO51: =+AK51+1 -> 11 | AS51: =+AO51+1 -> 12
A52: NO. | B52: SALDO DIARIO | C52: INTERESES DIARIO | E52: NO. | F52: SALDO DIARIO | G52: INTERESES DIARIO | I52: NO. | J52: SALDO DIARIO | K52: INTERESES DIARIO | M52: NO. | N52: SALDO DIARIO | O52: INTERESES DIARIO | Q52: NO. | R52: SALDO DIARIO | S52: INTERESES DIARIO | U52: NO. | V52: SALDO DIARIO | W52: INTERESES DIARIO | Y52: NO. | Z52: SALDO DIARIO | AA52: INTERESES DIARIO | AC52: NO. | AD52: SALDO DIARIO | AE52: INTERESES DIARIO | AG52: NO. | AH52: SALDO DIARIO | AI52: INTERESES DIARIO | AK52: NO. | AL52: SALDO DIARIO | AM52: INTERESES DIARIO | AO52: NO. | AP52: SALDO DIARIO | AQ52: INTERESES DIARIO | AS52: NO. | AT52: SALDO DIARIO | AU52: INTERESES DIARIO
A53: 1 | B53: =+AT41+AU44-$B$4 -> 254.405 | C53: =ROUND(INT(ROUND(B53*$B$5/365,8)*10000)/10000,4) -> 0.0273 | E53: 1 | F53: =+B83+C86-$B$4 -> 233.56375 | G53: =ROUND(INT(ROUND(F53*$B$5/365,8)*10000)/10000,4) -> 0.0251 | I53: 1 | J53: =+F80+G86-$B$4 -> 212.5925 | K53: =ROUND(INT(ROUND(J53*$B$5/365,8)*10000)/10000,4) -> 0.0228 | M53: 1 | N53: =+J83+K86-$B$4 -> 191.62125 | O53: =ROUND(INT(ROUND(N53*$B$5/365,8)*10000)/10000,4) -> 0.0206 | Q53: 1 | R53: =+N82+O86-$B$4 -> 170.57 | S53: =ROUND(INT(ROUND(R53*$B$5/365,8)*10000)/10000,4) -> 0.0183 | U53: 1 | V53: =+R83+S86-$B$4 -> 149.47875 | W53: =ROUND(INT(ROUND(V53*$B$5/365,8)*10000)/10000,4) -> 0.016 | Y53: 1 | Z53: =+V82+W86-$B$4 -> 128.3075 | AA53: =ROUND(INT(ROUND(Z53*$B$5/365,8)*10000)/10000,4) -> 0.0138 | AC53: 1 | AD53: =+Z83+AA86-$B$4 -> 107.08625 | AE53: =ROUND(INT(ROUND(AD53*$B$5/365,8)*10000)/10000,4) -> 0.0115 | AG53: 1 | AH53: =+AD83+AE86-$B$4 -> 85.795 | AI53: =ROUND(INT(ROUND(AH53*$B$5/365,8)*10000)/10000,4) -> 0.0092 | AK53: 1 | AL53: =+AH82+AI86-$B$4 -> 64.44375 | AM53: =ROUND(INT(ROUND(AL53*$B$5/365,8)*10000)/10000,4) -> 0.0069 | AO53: 1 | AP53: =+AL83+AM86-$B$4 -> 43.0225 | AQ53: =ROUND(INT(ROUND(AP53*$B$5/365,8)*10000)/10000,4) -> 0.0046 | AS53: 1 | AT53: =+AP82+AQ86-$B$4 -> 21.54125 | AU53: =ROUND(INT(ROUND(AT53*$B$5/365,8)*10000)/10000,4) -> 0.0023
A54: =+A53+1 -> 2 | B54: =+B53 -> 254.405 | C54: 0.0273 | E54: =+E53+1 -> 2 | F54: =+F53 -> 233.56375 | G54: 0.0251 | I54: =+I53+1 -> 2 | J54: =+J53 -> 212.5925 | K54: 0.0228 | M54: =+M53+1 -> 2 | N54: =+N53 -> 191.62125 | O54: 0.0206 | Q54: =+Q53+1 -> 2 | R54: =+R53 -> 170.57 | S54: 0.0183 | U54: =+U53+1 -> 2 | V54: =+V53 -> 149.47875 | W54: 0.016 | Y54: =+Y53+1 -> 2 | Z54: =+Z53 -> 128.3075 | AA54: 0.0138 | AC54: =+AC53+1 -> 2 | AD54: =+AD53 -> 107.08625 | AE54: 0.0115 | AG54: =+AG53+1 -> 2 | AH54: =+AH53 -> 85.795 | AI54: 0.0092 | AK54: =+AK53+1 -> 2 | AL54: =+AL53 -> 64.44375 | AM54: 0.0069 | AO54: =+AO53+1 -> 2 | AP54: =+AP53 -> 43.0225 | AQ54: 0.0046 | AS54: =+AS53+1 -> 2 | AT54: =+AT53 -> 21.54125 | AU54: 0.0023
A55: =+A54+1 -> 3 | B55: =+B54+$B$50 -> 241.83375 | C55: 0.026 | E55: =+E54+1 -> 3 | F55: =+F54+$B$50 -> 220.9925 | G55: 0.0237 | I55: =+I54+1 -> 3 | J55: =+J54+$B$50 -> 200.02125 | K55: 0.0215 | M55: =+M54+1 -> 3 | N55: =+N54+$B$50 -> 179.05 | O55: 0.0192 | Q55: =+Q54+1 -> 3 | R55: =+R54+$B$50 -> 157.99875 | S55: 0.017 | U55: =+U54+1 -> 3 | V55: =+V54+$B$50 -> 136.9075 | W55: 0.0147 | Y55: =+Y54+1 -> 3 | Z55: =+Z54+$B$50 -> 115.73625 | AA55: 0.0124 | AC55: =+AC54+1 -> 3 | AD55: =+AD54+$B$50 -> 94.515 | AE55: 0.0101 | AG55: =+AG54+1 -> 3 | AH55: =+AH54+$B$50 -> 73.22375 | AI55: 0.0078 | AK55: =+AK54+1 -> 3 | AL55: =+AL54+$B$50 -> 51.8725 | AM55: 0.0055 | AO55: =+AO54+1 -> 3 | AP55: =+AP54+$B$50 -> 30.45125 | AQ55: 0.0032 | AS55: =+AS54+1 -> 3 | AT55: =+AT54+$B$50 -> 8.97 | AU55: 0.0009
A56: 4 | B56: =+B55 -> 241.83375 | C56: 0.026 | E56: 4 | F56: =+F55 -> 220.9925 | G56: 0.0237 | I56: 4 | J56: =+J55 -> 200.02125 | K56: 0.0215 | M56: 4 | N56: =+N55 -> 179.05 | O56: 0.0192 | Q56: 4 | R56: =+R55 -> 157.99875 | S56: 0.017 | U56: 4 | V56: =+V55 -> 136.9075 | W56: 0.0147 | Y56: 4 | Z56: =+Z55 -> 115.73625 | AA56: 0.0124 | AC56: 4 | AD56: =+AD55 -> 94.515 | AE56: 0.0101 | AG56: 4 | AH56: =+AH55 -> 73.22375 | AI56: 0.0078 | AK56: 4 | AL56: =+AL55 -> 51.8725 | AM56: 0.0055 | AO56: 4 | AP56: =+AP55 -> 30.45125 | AQ56: 0.0032 | AS56: 4 | AT56: =+AT55 -> 8.97 | AU56: 0.0009
A57: 5 | B57: =+B56 -> 241.83375 | C57: 0.026 | E57: 5 | F57: =+F56 -> 220.9925 | G57: 0.0237 | I57: 5 | J57: =+J56 -> 200.02125 | K57: 0.0215 | M57: 5 | N57: =+N56 -> 179.05 | O57: 0.0192 | Q57: 5 | R57: =+R56 -> 157.99875 | S57: 0.017 | U57: 5 | V57: =+V56 -> 136.9075 | W57: 0.0147 | Y57: 5 | Z57: =+Z56 -> 115.73625 | AA57: 0.0124 | AC57: 5 | AD57: =+AD56 -> 94.515 | AE57: 0.0101 | AG57: 5 | AH57: =+AH56 -> 73.22375 | AI57: 0.0078 | AK57: 5 | AL57: =+AL56 -> 51.8725 | AM57: 0.0055 | AO57: 5 | AP57: =+AP56 -> 30.45125 | AQ57: 0.0032 | AS57: 5 | AT57: =+AT56 -> 8.97 | AU57: 0.0009
A58: 6 | B58: 241.83375 | C58: 0.026 | E58: 6 | F58: 220.9925 | G58: 0.0237 | I58: 6 | J58: 200.02125 | K58: 0.0215 | M58: 6 | N58: 179.05 | O58: 0.0192 | Q58: 6 | R58: 157.99875 | S58: 0.017 | U58: 6 | V58: 136.9075 | W58: 0.0147 | Y58: 6 | Z58: 115.73625 | AA58: 0.0124 | AC58: 6 | AD58: 94.515 | AE58: 0.0101 | AG58: 6 | AH58: 73.22375 | AI58: 0.0078 | AK58: 6 | AL58: 51.8725 | AM58: 0.0055 | AO58: 6 | AP58: 30.45125 | AQ58: 0.0032 | AS58: 6 | AT58: 8.97 | AU58: 0.0009
A59: 7 | B59: 241.83375 | C59: 0.026 | E59: 7 | F59: 220.9925 | G59: 0.0237 | I59: 7 | J59: 200.02125 | K59: 0.0215 | M59: 7 | N59: 179.05 | O59: 0.0192 | Q59: 7 | R59: 157.99875 | S59: 0.017 | U59: 7 | V59: 136.9075 | W59: 0.0147 | Y59: 7 | Z59: 115.73625 | AA59: 0.0124 | AC59: 7 | AD59: 94.515 | AE59: 0.0101 | AG59: 7 | AH59: 73.22375 | AI59: 0.0078 | AK59: 7 | AL59: 51.8725 | AM59: 0.0055 | AO59: 7 | AP59: 30.45125 | AQ59: 0.0032 | AS59: 7 | AT59: 8.97 | AU59: 0.0009
A60: 8 | B60: 241.83375 | C60: 0.026 | E60: 8 | F60: 220.9925 | G60: 0.0237 | I60: 8 | J60: 200.02125 | K60: 0.0215 | M60: 8 | N60: 179.05 | O60: 0.0192 | Q60: 8 | R60: 157.99875 | S60: 0.017 | U60: 8 | V60: 136.9075 | W60: 0.0147 | Y60: 8 | Z60: 115.73625 | AA60: 0.0124 | AC60: 8 | AD60: 94.515 | AE60: 0.0101 | AG60: 8 | AH60: 73.22375 | AI60: 0.0078 | AK60: 8 | AL60: 51.8725 | AM60: 0.0055 | AO60: 8 | AP60: 30.45125 | AQ60: 0.0032 | AS60: 8 | AT60: 8.97 | AU60: 0.0009
A61: 9 | B61: 241.83375 | C61: 0.026 | E61: 9 | F61: 220.9925 | G61: 0.0237 | I61: 9 | J61: 200.02125 | K61: 0.0215 | M61: 9 | N61: 179.05 | O61: 0.0192 | Q61: 9 | R61: 157.99875 | S61: 0.017 | U61: 9 | V61: 136.9075 | W61: 0.0147 | Y61: 9 | Z61: 115.73625 | AA61: 0.0124 | AC61: 9 | AD61: 94.515 | AE61: 0.0101 | AG61: 9 | AH61: 73.22375 | AI61: 0.0078 | AK61: 9 | AL61: 51.8725 | AM61: 0.0055 | AO61: 9 | AP61: 30.45125 | AQ61: 0.0032 | AS61: 9 | AT61: 8.97 | AU61: 0.0009
A62: 10 | B62: 241.83375 | C62: 0.026 | E62: 10 | F62: 220.9925 | G62: 0.0237 | I62: 10 | J62: 200.02125 | K62: 0.0215 | M62: 10 | N62: 179.05 | O62: 0.0192 | Q62: 10 | R62: 157.99875 | S62: 0.017 | U62: 10 | V62: 136.9075 | W62: 0.0147 | Y62: 10 | Z62: 115.73625 | AA62: 0.0124 | AC62: 10 | AD62: 94.515 | AE62: 0.0101 | AG62: 10 | AH62: 73.22375 | AI62: 0.0078 | AK62: 10 | AL62: 51.8725 | AM62: 0.0055 | AO62: 10 | AP62: 30.45125 | AQ62: 0.0032 | AS62: 10 | AT62: 8.97 | AU62: 0.0009
A63: 11 | B63: 241.83375 | C63: 0.026 | E63: 11 | F63: 220.9925 | G63: 0.0237 | I63: 11 | J63: 200.02125 | K63: 0.0215 | M63: 11 | N63: 179.05 | O63: 0.0192 | Q63: 11 | R63: 157.99875 | S63: 0.017 | U63: 11 | V63: 136.9075 | W63: 0.0147 | Y63: 11 | Z63: 115.73625 | AA63: 0.0124 | AC63: 11 | AD63: 94.515 | AE63: 0.0101 | AG63: 11 | AH63: 73.22375 | AI63: 0.0078 | AK63: 11 | AL63: 51.8725 | AM63: 0.0055 | AO63: 11 | AP63: 30.45125 | AQ63: 0.0032 | AS63: 11 | AT63: 8.97 | AU63: 0.0009
A64: 12 | B64: 241.83375 | C64: 0.026 | E64: 12 | F64: 220.9925 | G64: 0.0237 | I64: 12 | J64: 200.02125 | K64: 0.0215 | M64: 12 | N64: 179.05 | O64: 0.0192 | Q64: 12 | R64: 157.99875 | S64: 0.017 | U64: 12 | V64: 136.9075 | W64: 0.0147 | Y64: 12 | Z64: 115.73625 | AA64: 0.0124 | AC64: 12 | AD64: 94.515 | AE64: 0.0101 | AG64: 12 | AH64: 73.22375 | AI64: 0.0078 | AK64: 12 | AL64: 51.8725 | AM64: 0.0055 | AO64: 12 | AP64: 30.45125 | AQ64: 0.0032 | AS64: 12 | AT64: 8.97 | AU64: 0.0009
A65: 13 | B65: 241.83375 | C65: 0.026 | E65: 13 | F65: 220.9925 | G65: 0.0237 | I65: 13 | J65: 200.02125 | K65: 0.0215 | M65: 13 | N65: 179.05 | O65: 0.0192 | Q65: 13 | R65: 157.99875 | S65: 0.017 | U65: 13 | V65: 136.9075 | W65: 0.0147 | Y65: 13 | Z65: 115.73625 | AA65: 0.0124 | AC65: 13 | AD65: 94.515 | AE65: 0.0101 | AG65: 13 | AH65: 73.22375 | AI65: 0.0078 | AK65: 13 | AL65: 51.8725 | AM65: 0.0055 | AO65: 13 | AP65: 30.45125 | AQ65: 0.0032 | AS65: 13 | AT65: 8.97 | AU65: 0.0009
A66: 14 | B66: 241.83375 | C66: 0.026 | E66: 14 | F66: 220.9925 | G66: 0.0237 | I66: 14 | J66: 200.02125 | K66: 0.0215 | M66: 14 | N66: 179.05 | O66: 0.0192 | Q66: 14 | R66: 157.99875 | S66: 0.017 | U66: 14 | V66: 136.9075 | W66: 0.0147 | Y66: 14 | Z66: 115.73625 | AA66: 0.0124 | AC66: 14 | AD66: 94.515 | AE66: 0.0101 | AG66: 14 | AH66: 73.22375 | AI66: 0.0078 | AK66: 14 | AL66: 51.8725 | AM66: 0.0055 | AO66: 14 | AP66: 30.45125 | AQ66: 0.0032 | AS66: 14 | AT66: 8.97 | AU66: 0.0009
A67: 15 | B67: 241.83375 | C67: 0.026 | E67: 15 | F67: 220.9925 | G67: 0.0237 | I67: 15 | J67: 200.02125 | K67: 0.0215 | M67: 15 | N67: 179.05 | O67: 0.0192 | Q67: 15 | R67: 157.99875 | S67: 0.017 | U67: 15 | V67: 136.9075 | W67: 0.0147 | Y67: 15 | Z67: 115.73625 | AA67: 0.0124 | AC67: 15 | AD67: 94.515 | AE67: 0.0101 | AG67: 15 | AH67: 73.22375 | AI67: 0.0078 | AK67: 15 | AL67: 51.8725 | AM67: 0.0055 | AO67: 15 | AP67: 30.45125 | AQ67: 0.0032 | AS67: 15 | AT67: 8.97 | AU67: 0.0009
A68: 16 | B68: 241.83375 | C68: 0.026 | E68: 16 | F68: 220.9925 | G68: 0.0237 | I68: 16 | J68: 200.02125 | K68: 0.0215 | M68: 16 | N68: 179.05 | O68: 0.0192 | Q68: 16 | R68: 157.99875 | S68: 0.017 | U68: 16 | V68: 136.9075 | W68: 0.0147 | Y68: 16 | Z68: 115.73625 | AA68: 0.0124 | AC68: 16 | AD68: 94.515 | AE68: 0.0101 | AG68: 16 | AH68: 73.22375 | AI68: 0.0078 | AK68: 16 | AL68: 51.8725 | AM68: 0.0055 | AO68: 16 | AP68: 30.45125 | AQ68: 0.0032 | AS68: 16 | AT68: 8.97 | AU68: 0.0009
A69: 17 | B69: 241.83375 | C69: 0.026 | E69: 17 | F69: 220.9925 | G69: 0.0237 | I69: 17 | J69: 200.02125 | K69: 0.0215 | M69: 17 | N69: 179.05 | O69: 0.0192 | Q69: 17 | R69: 157.99875 | S69: 0.017 | U69: 17 | V69: 136.9075 | W69: 0.0147 | Y69: 17 | Z69: 115.73625 | AA69: 0.0124 | AC69: 17 | AD69: 94.515 | AE69: 0.0101 | AG69: 17 | AH69: 73.22375 | AI69: 0.0078 | AK69: 17 | AL69: 51.8725 | AM69: 0.0055 | AO69: 17 | AP69: 30.45125 | AQ69: 0.0032 | AS69: 17 | AT69: 8.97 | AU69: 0.0009
A70: 18 | B70: 241.83375 | C70: 0.026 | E70: 18 | F70: 220.9925 | G70: 0.0237 | I70: 18 | J70: 200.02125 | K70: 0.0215 | M70: 18 | N70: 179.05 | O70: 0.0192 | Q70: 18 | R70: 157.99875 | S70: 0.017 | U70: 18 | V70: 136.9075 | W70: 0.0147 | Y70: 18 | Z70: 115.73625 | AA70: 0.0124 | AC70: 18 | AD70: 94.515 | AE70: 0.0101 | AG70: 18 | AH70: 73.22375 | AI70: 0.0078 | AK70: 18 | AL70: 51.8725 | AM70: 0.0055 | AO70: 18 | AP70: 30.45125 | AQ70: 0.0032 | AS70: 18 | AT70: 8.97 | AU70: 0.0009
A71: 19 | B71: 241.83375 | C71: 0.026 | E71: 19 | F71: 220.9925 | G71: 0.0237 | I71: 19 | J71: 200.02125 | K71: 0.0215 | M71: 19 | N71: 179.05 | O71: 0.0192 | Q71: 19 | R71: 157.99875 | S71: 0.017 | U71: 19 | V71: 136.9075 | W71: 0.0147 | Y71: 19 | Z71: 115.73625 | AA71: 0.0124 | AC71: 19 | AD71: 94.515 | AE71: 0.0101 | AG71: 19 | AH71: 73.22375 | AI71: 0.0078 | AK71: 19 | AL71: 51.8725 | AM71: 0.0055 | AO71: 19 | AP71: 30.45125 | AQ71: 0.0032 | AS71: 19 | AT71: 8.97 | AU71: 0.0009
A72: 20 | B72: 241.83375 | C72: 0.026 | E72: 20 | F72: 220.9925 | G72: 0.0237 | I72: 20 | J72: 200.02125 | K72: 0.0215 | M72: 20 | N72: 179.05 | O72: 0.0192 | Q72: 20 | R72: 157.99875 | S72: 0.017 | U72: 20 | V72: 136.9075 | W72: 0.0147 | Y72: 20 | Z72: 115.73625 | AA72: 0.0124 | AC72: 20 | AD72: 94.515 | AE72: 0.0101 | AG72: 20 | AH72: 73.22375 | AI72: 0.0078 | AK72: 20 | AL72: 51.8725 | AM72: 0.0055 | AO72: 20 | AP72: 30.45125 | AQ72: 0.0032 | AS72: 20 | AT72: 8.97 | AU72: 0.0009
A73: 21 | B73: 241.83375 | C73: 0.026 | E73: 21 | F73: 220.9925 | G73: 0.0237 | I73: 21 | J73: 200.02125 | K73: 0.0215 | M73: 21 | N73: 179.05 | O73: 0.0192 | Q73: 21 | R73: 157.99875 | S73: 0.017 | U73: 21 | V73: 136.9075 | W73: 0.0147 | Y73: 21 | Z73: 115.73625 | AA73: 0.0124 | AC73: 21 | AD73: 94.515 | AE73: 0.0101 | AG73: 21 | AH73: 73.22375 | AI73: 0.0078 | AK73: 21 | AL73: 51.8725 | AM73: 0.0055 | AO73: 21 | AP73: 30.45125 | AQ73: 0.0032 | AS73: 21 | AT73: 8.97 | AU73: 0.0009
A74: 22 | B74: 241.83375 | C74: 0.026 | E74: 22 | F74: 220.9925 | G74: 0.0237 | I74: 22 | J74: 200.02125 | K74: 0.0215 | M74: 22 | N74: 179.05 | O74: 0.0192 | Q74: 22 | R74: 157.99875 | S74: 0.017 | U74: 22 | V74: 136.9075 | W74: 0.0147 | Y74: 22 | Z74: 115.73625 | AA74: 0.0124 | AC74: 22 | AD74: 94.515 | AE74: 0.0101 | AG74: 22 | AH74: 73.22375 | AI74: 0.0078 | AK74: 22 | AL74: 51.8725 | AM74: 0.0055 | AO74: 22 | AP74: 30.45125 | AQ74: 0.0032 | AS74: 22 | AT74: 8.97 | AU74: 0.0009
A75: 23 | B75: 241.83375 | C75: 0.026 | E75: 23 | F75: 220.9925 | G75: 0.0237 | I75: 23 | J75: 200.02125 | K75: 0.0215 | M75: 23 | N75: 179.05 | O75: 0.0192 | Q75: 23 | R75: 157.99875 | S75: 0.017 | U75: 23 | V75: 136.9075 | W75: 0.0147 | Y75: 23 | Z75: 115.73625 | AA75: 0.0124 | AC75: 23 | AD75: 94.515 | AE75: 0.0101 | AG75: 23 | AH75: 73.22375 | AI75: 0.0078 | AK75: 23 | AL75: 51.8725 | AM75: 0.0055 | AO75: 23 | AP75: 30.45125 | AQ75: 0.0032 | AS75: 23 | AT75: 8.97 | AU75: 0.0009
A76: 24 | B76: 241.83375 | C76: 0.026 | E76: 24 | F76: 220.9925 | G76: 0.0237 | I76: 24 | J76: 200.02125 | K76: 0.0215 | M76: 24 | N76: 179.05 | O76: 0.0192 | Q76: 24 | R76: 157.99875 | S76: 0.017 | U76: 24 | V76: 136.9075 | W76: 0.0147 | Y76: 24 | Z76: 115.73625 | AA76: 0.0124 | AC76: 24 | AD76: 94.515 | AE76: 0.0101 | AG76: 24 | AH76: 73.22375 | AI76: 0.0078 | AK76: 24 | AL76: 51.8725 | AM76: 0.0055 | AO76: 24 | AP76: 30.45125 | AQ76: 0.0032 | AS76: 24 | AT76: 8.97 | AU76: 0.0009
A77: 25 | B77: 241.83375 | C77: 0.026 | E77: 25 | F77: 220.9925 | G77: 0.0237 | I77: 25 | J77: 200.02125 | K77: 0.0215 | M77: 25 | N77: 179.05 | O77: 0.0192 | Q77: 25 | R77: 157.99875 | S77: 0.017 | U77: 25 | V77: 136.9075 | W77: 0.0147 | Y77: 25 | Z77: 115.73625 | AA77: 0.0124 | AC77: 25 | AD77: 94.515 | AE77: 0.0101 | AG77: 25 | AH77: 73.22375 | AI77: 0.0078 | AK77: 25 | AL77: 51.8725 | AM77: 0.0055 | AO77: 25 | AP77: 30.45125 | AQ77: 0.0032 | AS77: 25 | AT77: 8.97 | AU77: 0.0009
A78: 26 | B78: 241.83375 | C78: 0.026 | E78: 26 | F78: 220.9925 | G78: 0.0237 | I78: 26 | J78: 200.02125 | K78: 0.0215 | M78: 26 | N78: 179.05 | O78: 0.0192 | Q78: 26 | R78: 157.99875 | S78: 0.017 | U78: 26 | V78: 136.9075 | W78: 0.0147 | Y78: 26 | Z78: 115.73625 | AA78: 0.0124 | AC78: 26 | AD78: 94.515 | AE78: 0.0101 | AG78: 26 | AH78: 73.22375 | AI78: 0.0078 | AK78: 26 | AL78: 51.8725 | AM78: 0.0055 | AO78: 26 | AP78: 30.45125 | AQ78: 0.0032 | AS78: 26 | AT78: 8.97 | AU78: 0.0009
A79: 27 | B79: 241.83375 | C79: 0.026 | E79: 27 | F79: 220.9925 | G79: 0.0237 | I79: 27 | J79: 200.02125 | K79: 0.0215 | M79: 27 | N79: 179.05 | O79: 0.0192 | Q79: 27 | R79: 157.99875 | S79: 0.017 | U79: 27 | V79: 136.9075 | W79: 0.0147 | Y79: 27 | Z79: 115.73625 | AA79: 0.0124 | AC79: 27 | AD79: 94.515 | AE79: 0.0101 | AG79: 27 | AH79: 73.22375 | AI79: 0.0078 | AK79: 27 | AL79: 51.8725 | AM79: 0.0055 | AO79: 27 | AP79: 30.45125 | AQ79: 0.0032 | AS79: 27 | AT79: 8.97 | AU79: 0.0009
A80: 28 | B80: 241.83375 | C80: 0.026 | E80: 28 | F80: 220.9925 | G80: 0.0237 | I80: 28 | J80: 200.02125 | K80: 0.0215 | M80: 28 | N80: 179.05 | O80: 0.0192 | Q80: 28 | R80: 157.99875 | S80: 0.017 | U80: 28 | V80: 136.9075 | W80: 0.0147 | Y80: 28 | Z80: 115.73625 | AA80: 0.0124 | AC80: 28 | AD80: 94.515 | AE80: 0.0101 | AG80: 28 | AH80: 73.22375 | AI80: 0.0078 | AK80: 28 | AL80: 51.8725 | AM80: 0.0055 | AO80: 28 | AP80: 30.45125 | AQ80: 0.0032 | AS80: 28 | AT80: 8.97 | AU80: 0.0009
A81: 29 | B81: 241.83375 | C81: 0.026 | I81: 29 | J81: 200.02125 | K81: 0.0215 | M81: 29 | N81: 179.05 | O81: 0.0192 | Q81: 29 | R81: 157.99875 | S81: 0.017 | U81: 29 | V81: 136.9075 | W81: 0.0147 | Y81: 29 | Z81: 115.73625 | AA81: 0.0124 | AC81: 29 | AD81: 94.515 | AE81: 0.0101 | AG81: 29 | AH81: 73.22375 | AI81: 0.0078 | AK81: 29 | AL81: 51.8725 | AM81: 0.0055 | AO81: 29 | AP81: 30.45125 | AQ81: 0.0032 | AS81: 29 | AT81: 8.97 | AU81: 0.0009
A82: 30 | B82: 241.83375 | C82: 0.026 | I82: 30 | J82: 200.02125 | K82: 0.0215 | M82: 30 | N82: 179.05 | O82: 0.0192 | Q82: 30 | R82: 157.99875 | S82: 0.017 | U82: 30 | V82: 136.9075 | W82: 0.0147 | Y82: 30 | Z82: 115.73625 | AA82: 0.0124 | AC82: 30 | AD82: 94.515 | AE82: 0.0101 | AG82: 30 | AH82: 73.22375 | AI82: 0.0078 | AK82: 30 | AL82: 51.8725 | AM82: 0.0055 | AO82: 30 | AP82: 30.45125 | AQ82: 0.0032 | AS82: 30 | AT82: 8.97 | AU82: 0.0009
A83: 31 | B83: 241.83375 | C83: 0.026 | I83: 31 | J83: 200.02125 | K83: 0.0215 | Q83: 31 | R83: 157.99875 | S83: 0.017 | Y83: 31 | Z83: 115.73625 | AA83: 0.0124 | AC83: 31 | AD83: 94.515 | AE83: 0.0101 | AK83: 31 | AL83: 51.8725 | AM83: 0.0055 | AS83: 31 | AT83: 8.97 | AU83: 0.0009
B84: TOTAL........ | C84: =IF((TRUNC((SUM(C53:C83)*1000))/10)-TRUNC(TRUNC((SUM(C53:C83)*1000))/10)>0.5,ROUND(SUM(C53:C83),2),TRUNC((TRUNC((SUM(C53:C83)*1000))/10))/100) -> 0.81 | F84: TOTAL........ | G84: =IF((TRUNC((SUM(G53:G83)*1000))/10)-TRUNC(TRUNC((SUM(G53:G83)*1000))/10)>0.5,ROUND(SUM(G53:G83),2),TRUNC((TRUNC((SUM(G53:G83)*1000))/10))/100) -> 0.67 | J84: TOTAL........ | K84: =IF((TRUNC((SUM(K53:K83)*1000))/10)-TRUNC(TRUNC((SUM(K53:K83)*1000))/10)>0.5,ROUND(SUM(K53:K83),2),TRUNC((TRUNC((SUM(K53:K83)*1000))/10))/100) -> 0.67 | N84: TOTAL........ | O84: =IF((TRUNC((SUM(O53:O83)*1000))/10)-TRUNC(TRUNC((SUM(O53:O83)*1000))/10)>0.5,ROUND(SUM(O53:O83),2),TRUNC((TRUNC((SUM(O53:O83)*1000))/10))/100) -> 0.58 | R84: TOTAL........ | S84: =IF((TRUNC((SUM(S53:S83)*1000))/10)-TRUNC(TRUNC((SUM(S53:S83)*1000))/10)>0.5,ROUND(SUM(S53:S83),2),TRUNC((TRUNC((SUM(S53:S83)*1000))/10))/100) -> 0.53 | V84: TOTAL........ | W84: =IF((TRUNC((SUM(W53:W83)*1000))/10)-TRUNC(TRUNC((SUM(W53:W83)*1000))/10)>0.5,ROUND(SUM(W53:W83),2),TRUNC((TRUNC((SUM(W53:W83)*1000))/10))/100) -> 0.44 | Z84: TOTAL........ | AA84: =IF((TRUNC((SUM(AA53:AA83)*1000))/10)-TRUNC(TRUNC((SUM(AA53:AA83)*1000))/10)>0.5,ROUND(SUM(AA53:AA83),2),TRUNC((TRUNC((SUM(AA53:AA83)*1000))/10))/100) -> 0.39 | AD84: TOTAL........ | AE84: =IF((TRUNC((SUM(AE53:AE83)*1000))/10)-TRUNC(TRUNC((SUM(AE53:AE83)*1000))/10)>0.5,ROUND(SUM(AE53:AE83),2),TRUNC((TRUNC((SUM(AE53:AE83)*1000))/10))/100) -> 0.31 | AH84: TOTAL........ | AI84: =IF((TRUNC((SUM(AI53:AI83)*1000))/10)-TRUNC(TRUNC((SUM(AI53:AI83)*1000))/10)>0.5,ROUND(SUM(AI53:AI83),2),TRUNC((TRUNC((SUM(AI53:AI83)*1000))/10))/100) -> 0.24 | AL84: TOTAL........ | AM84: =IF((TRUNC((SUM(AM53:AM83)*1000))/10)-TRUNC(TRUNC((SUM(AM53:AM83)*1000))/10)>0.5,ROUND(SUM(AM53:AM83),2),TRUNC((TRUNC((SUM(AM53:AM83)*1000))/10))/100) -> 0.17 | AP84: TOTAL........ | AQ84: =IF((TRUNC((SUM(AQ53:AQ83)*1000))/10)-TRUNC(TRUNC((SUM(AQ53:AQ83)*1000))/10)>0.5,ROUND(SUM(AQ53:AQ83),2),TRUNC((TRUNC((SUM(AQ53:AQ83)*1000))/10))/100) -> 0.1 | AT84: TOTAL........ | AU84: =IF((TRUNC((SUM(AU53:AU83)*1000))/10)-TRUNC(TRUNC((SUM(AU53:AU83)*1000))/10)>0.5,ROUND(SUM(AU53:AU83),2),TRUNC((TRUNC((SUM(AU53:AU83)*1000))/10))/100) -> 0.03 | AV84: =SUM(B84:AU84) -> 4.94
B85: I.P.F. | C85: =ROUND(C84*0.1,2) -> 0.08 | F85: I.P.F. | G85: =ROUND(G84*0.1,2) -> 0.07 | J85: I.P.F. | K85: =ROUND(K84*0.1,2) -> 0.07 | N85: I.P.F. | O85: =ROUND(O84*0.1,2) -> 0.06 | R85: I.P.F. | S85: =ROUND(S84*0.1,2) -> 0.05 | V85: I.P.F. | W85: =ROUND(W84*0.1,2) -> 0.04 | Z85: I.P.F. | AA85: =ROUND(AA84*0.1,2) -> 0.04 | AD85: I.P.F. | AE85: =ROUND(AE84*0.1,2) -> 0.03 | AH85: I.P.F. | AI85: =ROUND(AI84*0.1,2) -> 0.02 | AL85: I.P.F. | AM85: =ROUND(AM84*0.1,2) -> 0.02 | AP85: I.P.F. | AQ85: =ROUND(AQ84*0.1,2) -> 0.01 | AT85: I.P.F. | AU85: =ROUND(AU84*0.1,2) -> 0 | AV85: =SUM(B85:AU85) -> 0.49
B86: NETOS | C86: =+C84-C85 -> 0.73 | F86: NETOS | G86: =+G84-G85 -> 0.6 | J86: NETOS | K86: =+K84-K85 -> 0.6 | N86: NETOS | O86: =+O84-O85 -> 0.52 | R86: NETOS | S86: =+S84-S85 -> 0.48 | V86: NETOS | W86: =+W84-W85 -> 0.4 | Z86: NETOS | AA86: =+AA84-AA85 -> 0.35 | AD86: NETOS | AE86: =+AE84-AE85 -> 0.28 | AH86: NETOS | AI86: =+AI84-AI85 -> 0.22 | AL86: NETOS | AM86: =+AM84-AM85 -> 0.15 | AP86: NETOS | AQ86: =+AQ84-AQ85 -> 0.09 | AT86: NETOS | AU86: =+AU84-AU85 -> 0.03 | AV86: =SUM(B86:AU86) -> 4.45 | AW86: =+AV86 -> 4.45
AU87: =+AT83+AU86-$B$4 -> 5.577760476e-13
A92: TERCER AÑO | B92: =IF($B$3>0,ROUND((B50*$B$3)+B50,2),B50) -> -12.57125
A93: 1 | E93: =+A93+1 -> 2 | I93: =+E93+1 -> 3 | M93: =+I93+1 -> 4 | Q93: =+M93+1 -> 5 | U93: =+Q93+1 -> 6 | Y93: =+U93+1 -> 7 | AC93: =+Y93+1 -> 8 | AG93: =+AC93+1 -> 9 | AK93: =+AG93+1 -> 10 | AO93: =+AK93+1 -> 11 | AS93: =+AO93+1 -> 12
A94: NO. | B94: SALDO DIARIO | C94: INTERESES DIARIO | E94: NO. | F94: SALDO DIARIO | G94: INTERESES DIARIO | I94: NO. | J94: SALDO DIARIO | K94: INTERESES DIARIO | M94: NO. | N94: SALDO DIARIO | O94: INTERESES DIARIO | Q94: NO. | R94: SALDO DIARIO | S94: INTERESES DIARIO | U94: NO. | V94: SALDO DIARIO | W94: INTERESES DIARIO | Y94: NO. | Z94: SALDO DIARIO | AA94: INTERESES DIARIO | AC94: NO. | AD94: SALDO DIARIO | AE94: INTERESES DIARIO | AG94: NO. | AH94: SALDO DIARIO | AI94: INTERESES DIARIO | AK94: NO. | AL94: SALDO DIARIO | AM94: INTERESES DIARIO | AO94: NO. | AP94: SALDO DIARIO | AQ94: INTERESES DIARIO | AS94: NO. | AT94: SALDO DIARIO | AU94: INTERESES DIARIO
A95: 1 | B95: =+AT83+AU86-$B$4 -> 5.577760476e-13 | C95: =ROUND(INT(ROUND(B95*$B$5/365,8)*10000)/10000,4) -> 0 | E95: 1 | F95: =+B125+C128-$B$4 -> -21.61125 | G95: =ROUND(INT(ROUND(F95*$B$5/365,8)*10000)/10000,4) -> -0.0024 | I95: 1 | J95: =+F122+G128-$B$4 -> -43.2725 | K95: =ROUND(INT(ROUND(J95*$B$5/365,8)*10000)/10000,4) -> -0.0047 | M95: 1 | N95: =+J125+K128-$B$4 -> -65.00375 | O95: =ROUND(INT(ROUND(N95*$B$5/365,8)*10000)/10000,4) -> -0.007 | Q95: 1 | R95: =+N124+O128-$B$4 -> -86.795 | S95: =ROUND(INT(ROUND(R95*$B$5/365,8)*10000)/10000,4) -> -0.0094 | U95: 1 | V95: =+R125+S128-$B$4 -> -108.65625 | W95: =ROUND(INT(ROUND(V95*$B$5/365,8)*10000)/10000,4) -> -0.0117 | Y95: 1 | Z95: =+V124+W128-$B$4 -> -130.5775 | AA95: =ROUND(INT(ROUND(Z95*$B$5/365,8)*10000)/10000,4) -> -0.0141 | AC95: 1 | AD95: =+Z125+AA128-$B$4 -> -152.56875 | AE95: =ROUND(INT(ROUND(AD95*$B$5/365,8)*10000)/10000,4) -> -0.0165 | AG95: 1 | AH95: =+AD125+AE128-$B$4 -> -174.63 | AI95: =ROUND(INT(ROUND(AH95*$B$5/365,8)*10000)/10000,4) -> -0.0188 | AK95: 1 | AL95: =+AH124+AI128-$B$4 -> -196.74125 | AM95: =ROUND(INT(ROUND(AL95*$B$5/365,8)*10000)/10000,4) -> -0.0212 | AO95: 1 | AP95: =+AL125+AM128-$B$4 -> -218.9325 | AQ95: =ROUND(INT(ROUND(AP95*$B$5/365,8)*10000)/10000,4) -> -0.0236 | AS95: 1 | AT95: =+AP124+AQ128-$B$4 -> -241.17375 | AU95: =ROUND(INT(ROUND(AT95*$B$5/365,8)*10000)/10000,4) -> -0.026
A96: =+A95+1 -> 2 | B96: =+B95 -> 5.577760476e-13 | C96: 0 | E96: =+E95+1 -> 2 | F96: =+F95 -> -21.61125 | G96: -0.0024 | I96: =+I95+1 -> 2 | J96: =+J95 -> -43.2725 | K96: -0.0047 | M96: =+M95+1 -> 2 | N96: =+N95 -> -65.00375 | O96: -0.007 | Q96: =+Q95+1 -> 2 | R96: =+R95 -> -86.795 | S96: -0.0094 | U96: =+U95+1 -> 2 | V96: =+V95 -> -108.65625 | W96: -0.0117 | Y96: =+Y95+1 -> 2 | Z96: =+Z95 -> -130.5775 | AA96: -0.0141 | AC96: =+AC95+1 -> 2 | AD96: =+AD95 -> -152.56875 | AE96: -0.0165 | AG96: =+AG95+1 -> 2 | AH96: =+AH95 -> -174.63 | AI96: -0.0188 | AK96: =+AK95+1 -> 2 | AL96: =+AL95 -> -196.74125 | AM96: -0.0212 | AO96: =+AO95+1 -> 2 | AP96: =+AP95 -> -218.9325 | AQ96: -0.0236 | AS96: =+AS95+1 -> 2 | AT96: =+AT95 -> -241.17375 | AU96: -0.026
A97: =+A96+1 -> 3 | B97: =+B96+$B$92 -> -12.57125 | C97: -0.0014 | E97: =+E96+1 -> 3 | F97: =+F96+$B$92 -> -34.1825 | G97: -0.0037 | I97: =+I96+1 -> 3 | J97: =+J96+$B$92 -> -55.84375 | K97: -0.0061 | M97: =+M96+1 -> 3 | N97: =+N96+$B$92 -> -77.575 | O97: -0.0084 | Q97: =+Q96+1 -> 3 | R97: =+R96+$B$92 -> -99.36625 | S97: -0.0107 | U97: =+U96+1 -> 3 | V97: =+V96+$B$92 -> -121.2275 | W97: -0.0131 | Y97: =+Y96+1 -> 3 | Z97: =+Z96+$B$92 -> -143.14875 | AA97: -0.0155 | AC97: =+AC96+1 -> 3 | AD97: =+AD96+$B$92 -> -165.14 | AE97: -0.0178 | AG97: =+AG96+1 -> 3 | AH97: =+AH96+$B$92 -> -187.20125 | AI97: -0.0202 | AK97: =+AK96+1 -> 3 | AL97: =+AL96+$B$92 -> -209.3125 | AM97: -0.0226 | AO97: =+AO96+1 -> 3 | AP97: =+AP96+$B$92 -> -231.50375 | AQ97: -0.025 | AS97: =+AS96+1 -> 3 | AT97: =+AT96+$B$92 -> -253.745 | AU97: -0.0274
A98: 4 | B98: =+B97 -> -12.57125 | C98: -0.0014 | E98: 4 | F98: =+F97 -> -34.1825 | G98: -0.0037 | I98: 4 | J98: =+J97 -> -55.84375 | K98: -0.0061 | M98: 4 | N98: =+N97 -> -77.575 | O98: -0.0084 | Q98: 4 | R98: =+R97 -> -99.36625 | S98: -0.0107 | U98: 4 | V98: =+V97 -> -121.2275 | W98: -0.0131 | Y98: 4 | Z98: =+Z97 -> -143.14875 | AA98: -0.0155 | AC98: 4 | AD98: =+AD97 -> -165.14 | AE98: -0.0178 | AG98: 4 | AH98: =+AH97 -> -187.20125 | AI98: -0.0202 | AK98: 4 | AL98: =+AL97 -> -209.3125 | AM98: -0.0226 | AO98: 4 | AP98: =+AP97 -> -231.50375 | AQ98: -0.025 | AS98: 4 | AT98: =+AT97 -> -253.745 | AU98: -0.0274
A99: 5 | B99: =+B98 -> -12.57125 | C99: -0.0014 | E99: 5 | F99: =+F98 -> -34.1825 | G99: -0.0037 | I99: 5 | J99: =+J98 -> -55.84375 | K99: -0.0061 | M99: 5 | N99: =+N98 -> -77.575 | O99: -0.0084 | Q99: 5 | R99: =+R98 -> -99.36625 | S99: -0.0107 | U99: 5 | V99: =+V98 -> -121.2275 | W99: -0.0131 | Y99: 5 | Z99: =+Z98 -> -143.14875 | AA99: -0.0155 | AC99: 5 | AD99: =+AD98 -> -165.14 | AE99: -0.0178 | AG99: 5 | AH99: =+AH98 -> -187.20125 | AI99: -0.0202 | AK99: 5 | AL99: =+AL98 -> -209.3125 | AM99: -0.0226 | AO99: 5 | AP99: =+AP98 -> -231.50375 | AQ99: -0.025 | AS99: 5 | AT99: =+AT98 -> -253.745 | AU99: -0.0274
A100: 6 | B100: -12.57125 | C100: -0.0014 | E100: 6 | F100: -34.1825 | G100: -0.0037 | I100: 6 | J100: -55.84375 | K100: -0.0061 | M100: 6 | N100: -77.575 | O100: -0.0084 | Q100: 6 | R100: -99.36625 | S100: -0.0107 | U100: 6 | V100: -121.2275 | W100: -0.0131 | Y100: 6 | Z100: -143.14875 | AA100: -0.0155 | AC100: 6 | AD100: -165.14 | AE100: -0.0178 | AG100: 6 | AH100: -187.20125 | AI100: -0.0202 | AK100: 6 | AL100: -209.3125 | AM100: -0.0226 | AO100: 6 | AP100: -231.50375 | AQ100: -0.025 | AS100: 6 | AT100: -253.745 | AU100: -0.0274
A101: 7 | B101: -12.57125 | C101: -0.0014 | E101: 7 | F101: -34.1825 | G101: -0.0037 | I101: 7 | J101: -55.84375 | K101: -0.0061 | M101: 7 | N101: -77.575 | O101: -0.0084 | Q101: 7 | R101: -99.36625 | S101: -0.0107 | U101: 7 | V101: -121.2275 | W101: -0.0131 | Y101: 7 | Z101: -143.14875 | AA101: -0.0155 | AC101: 7 | AD101: -165.14 | AE101: -0.0178 | AG101: 7 | AH101: -187.20125 | AI101: -0.0202 | AK101: 7 | AL101: -209.3125 | AM101: -0.0226 | AO101: 7 | AP101: -231.50375 | AQ101: -0.025 | AS101: 7 | AT101: -253.745 | AU101: -0.0274
A102: 8 | B102: -12.57125 | C102: -0.0014 | E102: 8 | F102: -34.1825 | G102: -0.0037 | I102: 8 | J102: -55.84375 | K102: -0.0061 | M102: 8 | N102: -77.575 | O102: -0.0084 | Q102: 8 | R102: -99.36625 | S102: -0.0107 | U102: 8 | V102: -121.2275 | W102: -0.0131 | Y102: 8 | Z102: -143.14875 | AA102: -0.0155 | AC102: 8 | AD102: -165.14 | AE102: -0.0178 | AG102: 8 | AH102: -187.20125 | AI102: -0.0202 | AK102: 8 | AL102: -209.3125 | AM102: -0.0226 | AO102: 8 | AP102: -231.50375 | AQ102: -0.025 | AS102: 8 | AT102: -253.745 | AU102: -0.0274
A103: 9 | B103: -12.57125 | C103: -0.0014 | E103: 9 | F103: -34.1825 | G103: -0.0037 | I103: 9 | J103: -55.84375 | K103: -0.0061 | M103: 9 | N103: -77.575 | O103: -0.0084 | Q103: 9 | R103: -99.36625 | S103: -0.0107 | U103: 9 | V103: -121.2275 | W103: -0.0131 | Y103: 9 | Z103: -143.14875 | AA103: -0.0155 | AC103: 9 | AD103: -165.14 | AE103: -0.0178 | AG103: 9 | AH103: -187.20125 | AI103: -0.0202 | AK103: 9 | AL103: -209.3125 | AM103: -0.0226 | AO103: 9 | AP103: -231.50375 | AQ103: -0.025 | AS103: 9 | AT103: -253.745 | AU103: -0.0274
A104: 10 | B104: -12.57125 | C104: -0.0014 | E104: 10 | F104: -34.1825 | G104: -0.0037 | I104: 10 | J104: -55.84375 | K104: -0.0061 | M104: 10 | N104: -77.575 | O104: -0.0084 | Q104: 10 | R104: -99.36625 | S104: -0.0107 | U104: 10 | V104: -121.2275 | W104: -0.0131 | Y104: 10 | Z104: -143.14875 | AA104: -0.0155 | AC104: 10 | AD104: -165.14 | AE104: -0.0178 | AG104: 10 | AH104: -187.20125 | AI104: -0.0202 | AK104: 10 | AL104: -209.3125 | AM104: -0.0226 | AO104: 10 | AP104: -231.50375 | AQ104: -0.025 | AS104: 10 | AT104: -253.745 | AU104: -0.0274
A105: 11 | B105: -12.57125 | C105: -0.0014 | E105: 11 | F105: -34.1825 | G105: -0.0037 | I105: 11 | J105: -55.84375 | K105: -0.0061 | M105: 11 | N105: -77.575 | O105: -0.0084 | Q105: 11 | R105: -99.36625 | S105: -0.0107 | U105: 11 | V105: -121.2275 | W105: -0.0131 | Y105: 11 | Z105: -143.14875 | AA105: -0.0155 | AC105: 11 | AD105: -165.14 | AE105: -0.0178 | AG105: 11 | AH105: -187.20125 | AI105: -0.0202 | AK105: 11 | AL105: -209.3125 | AM105: -0.0226 | AO105: 11 | AP105: -231.50375 | AQ105: -0.025 | AS105: 11 | AT105: -253.745 | AU105: -0.0274
A106: 12 | B106: -12.57125 | C106: -0.0014 | E106: 12 | F106: -34.1825 | G106: -0.0037 | I106: 12 | J106: -55.84375 | K106: -0.0061 | M106: 12 | N106: -77.575 | O106: -0.0084 | Q106: 12 | R106: -99.36625 | S106: -0.0107 | U106: 12 | V106: -121.2275 | W106: -0.0131 | Y106: 12 | Z106: -143.14875 | AA106: -0.0155 | AC106: 12 | AD106: -165.14 | AE106: -0.0178 | AG106: 12 | AH106: -187.20125 | AI106: -0.0202 | AK106: 12 | AL106: -209.3125 | AM106: -0.0226 | AO106: 12 | AP106: -231.50375 | AQ106: -0.025 | AS106: 12 | AT106: -253.745 | AU106: -0.0274
A107: 13 | B107: -12.57125 | C107: -0.0014 | E107: 13 | F107: -34.1825 | G107: -0.0037 | I107: 13 | J107: -55.84375 | K107: -0.0061 | M107: 13 | N107: -77.575 | O107: -0.0084 | Q107: 13 | R107: -99.36625 | S107: -0.0107 | U107: 13 | V107: -121.2275 | W107: -0.0131 | Y107: 13 | Z107: -143.14875 | AA107: -0.0155 | AC107: 13 | AD107: -165.14 | AE107: -0.0178 | AG107: 13 | AH107: -187.20125 | AI107: -0.0202 | AK107: 13 | AL107: -209.3125 | AM107: -0.0226 | AO107: 13 | AP107: -231.50375 | AQ107: -0.025 | AS107: 13 | AT107: -253.745 | AU107: -0.0274
A108: 14 | B108: -12.57125 | C108: -0.0014 | E108: 14 | F108: -34.1825 | G108: -0.0037 | I108: 14 | J108: -55.84375 | K108: -0.0061 | M108: 14 | N108: -77.575 | O108: -0.0084 | Q108: 14 | R108: -99.36625 | S108: -0.0107 | U108: 14 | V108: -121.2275 | W108: -0.0131 | Y108: 14 | Z108: -143.14875 | AA108: -0.0155 | AC108: 14 | AD108: -165.14 | AE108: -0.0178 | AG108: 14 | AH108: -187.20125 | AI108: -0.0202 | AK108: 14 | AL108: -209.3125 | AM108: -0.0226 | AO108: 14 | AP108: -231.50375 | AQ108: -0.025 | AS108: 14 | AT108: -253.745 | AU108: -0.0274
A109: 15 | B109: -12.57125 | C109: -0.0014 | E109: 15 | F109: -34.1825 | G109: -0.0037 | I109: 15 | J109: -55.84375 | K109: -0.0061 | M109: 15 | N109: -77.575 | O109: -0.0084 | Q109: 15 | R109: -99.36625 | S109: -0.0107 | U109: 15 | V109: -121.2275 | W109: -0.0131 | Y109: 15 | Z109: -143.14875 | AA109: -0.0155 | AC109: 15 | AD109: -165.14 | AE109: -0.0178 | AG109: 15 | AH109: -187.20125 | AI109: -0.0202 | AK109: 15 | AL109: -209.3125 | AM109: -0.0226 | AO109: 15 | AP109: -231.50375 | AQ109: -0.025 | AS109: 15 | AT109: -253.745 | AU109: -0.0274
A110: 16 | B110: -12.57125 | C110: -0.0014 | E110: 16 | F110: -34.1825 | G110: -0.0037 | I110: 16 | J110: -55.84375 | K110: -0.0061 | M110: 16 | N110: -77.575 | O110: -0.0084 | Q110: 16 | R110: -99.36625 | S110: -0.0107 | U110: 16 | V110: -121.2275 | W110: -0.0131 | Y110: 16 | Z110: -143.14875 | AA110: -0.0155 | AC110: 16 | AD110: -165.14 | AE110: -0.0178 | AG110: 16 | AH110: -187.20125 | AI110: -0.0202 | AK110: 16 | AL110: -209.3125 | AM110: -0.0226 | AO110: 16 | AP110: -231.50375 | AQ110: -0.025 | AS110: 16 | AT110: -253.745 | AU110: -0.0274
A111: 17 | B111: -12.57125 | C111: -0.0014 | E111: 17 | F111: -34.1825 | G111: -0.0037 | I111: 17 | J111: -55.84375 | K111: -0.0061 | M111: 17 | N111: -77.575 | O111: -0.0084 | Q111: 17 | R111: -99.36625 | S111: -0.0107 | U111: 17 | V111: -121.2275 | W111: -0.0131 | Y111: 17 | Z111: -143.14875 | AA111: -0.0155 | AC111: 17 | AD111: -165.14 | AE111: -0.0178 | AG111: 17 | AH111: -187.20125 | AI111: -0.0202 | AK111: 17 | AL111: -209.3125 | AM111: -0.0226 | AO111: 17 | AP111: -231.50375 | AQ111: -0.025 | AS111: 17 | AT111: -253.745 | AU111: -0.0274
A112: 18 | B112: -12.57125 | C112: -0.0014 | E112: 18 | F112: -34.1825 | G112: -0.0037 | I112: 18 | J112: -55.84375 | K112: -0.0061 | M112: 18 | N112: -77.575 | O112: -0.0084 | Q112: 18 | R112: -99.36625 | S112: -0.0107 | U112: 18 | V112: -121.2275 | W112: -0.0131 | Y112: 18 | Z112: -143.14875 | AA112: -0.0155 | AC112: 18 | AD112: -165.14 | AE112: -0.0178 | AG112: 18 | AH112: -187.20125 | AI112: -0.0202 | AK112: 18 | AL112: -209.3125 | AM112: -0.0226 | AO112: 18 | AP112: -231.50375 | AQ112: -0.025 | AS112: 18 | AT112: -253.745 | AU112: -0.0274
A113: 19 | B113: -12.57125 | C113: -0.0014 | E113: 19 | F113: -34.1825 | G113: -0.0037 | I113: 19 | J113: -55.84375 | K113: -0.0061 | M113: 19 | N113: -77.575 | O113: -0.0084 | Q113: 19 | R113: -99.36625 | S113: -0.0107 | U113: 19 | V113: -121.2275 | W113: -0.0131 | Y113: 19 | Z113: -143.14875 | AA113: -0.0155 | AC113: 19 | AD113: -165.14 | AE113: -0.0178 | AG113: 19 | AH113: -187.20125 | AI113: -0.0202 | AK113: 19 | AL113: -209.3125 | AM113: -0.0226 | AO113: 19 | AP113: -231.50375 | AQ113: -0.025 | AS113: 19 | AT113: -253.745 | AU113: -0.0274
A114: 20 | B114: -12.57125 | C114: -0.0014 | E114: 20 | F114: -34.1825 | G114: -0.0037 | I114: 20 | J114: -55.84375 | K114: -0.0061 | M114: 20 | N114: -77.575 | O114: -0.0084 | Q114: 20 | R114: -99.36625 | S114: -0.0107 | U114: 20 | V114: -121.2275 | W114: -0.0131 | Y114: 20 | Z114: -143.14875 | AA114: -0.0155 | AC114: 20 | AD114: -165.14 | AE114: -0.0178 | AG114: 20 | AH114: -187.20125 | AI114: -0.0202 | AK114: 20 | AL114: -209.3125 | AM114: -0.0226 | AO114: 20 | AP114: -231.50375 | AQ114: -0.025 | AS114: 20 | AT114: -253.745 | AU114: -0.0274
A115: 21 | B115: -12.57125 | C115: -0.0014 | E115: 21 | F115: -34.1825 | G115: -0.0037 | I115: 21 | J115: -55.84375 | K115: -0.0061 | M115: 21 | N115: -77.575 | O115: -0.0084 | Q115: 21 | R115: -99.36625 | S115: -0.0107 | U115: 21 | V115: -121.2275 | W115: -0.0131 | Y115: 21 | Z115: -143.14875 | AA115: -0.0155 | AC115: 21 | AD115: -165.14 | AE115: -0.0178 | AG115: 21 | AH115: -187.20125 | AI115: -0.0202 | AK115: 21 | AL115: -209.3125 | AM115: -0.0226 | AO115: 21 | AP115: -231.50375 | AQ115: -0.025 | AS115: 21 | AT115: -253.745 | AU115: -0.0274
A116: 22 | B116: -12.57125 | C116: -0.0014 | E116: 22 | F116: -34.1825 | G116: -0.0037 | I116: 22 | J116: -55.84375 | K116: -0.0061 | M116: 22 | N116: -77.575 | O116: -0.0084 | Q116: 22 | R116: -99.36625 | S116: -0.0107 | U116: 22 | V116: -121.2275 | W116: -0.0131 | Y116: 22 | Z116: -143.14875 | AA116: -0.0155 | AC116: 22 | AD116: -165.14 | AE116: -0.0178 | AG116: 22 | AH116: -187.20125 | AI116: -0.0202 | AK116: 22 | AL116: -209.3125 | AM116: -0.0226 | AO116: 22 | AP116: -231.50375 | AQ116: -0.025 | AS116: 22 | AT116: -253.745 | AU116: -0.0274
A117: 23 | B117: -12.57125 | C117: -0.0014 | E117: 23 | F117: -34.1825 | G117: -0.0037 | I117: 23 | J117: -55.84375 | K117: -0.0061 | M117: 23 | N117: -77.575 | O117: -0.0084 | Q117: 23 | R117: -99.36625 | S117: -0.0107 | U117: 23 | V117: -121.2275 | W117: -0.0131 | Y117: 23 | Z117: -143.14875 | AA117: -0.0155 | AC117: 23 | AD117: -165.14 | AE117: -0.0178 | AG117: 23 | AH117: -187.20125 | AI117: -0.0202 | AK117: 23 | AL117: -209.3125 | AM117: -0.0226 | AO117: 23 | AP117: -231.50375 | AQ117: -0.025 | AS117: 23 | AT117: -253.745 | AU117: -0.0274
A118: 24 | B118: -12.57125 | C118: -0.0014 | E118: 24 | F118: -34.1825 | G118: -0.0037 | I118: 24 | J118: -55.84375 | K118: -0.0061 | M118: 24 | N118: -77.575 | O118: -0.0084 | Q118: 24 | R118: -99.36625 | S118: -0.0107 | U118: 24 | V118: -121.2275 | W118: -0.0131 | Y118: 24 | Z118: -143.14875 | AA118: -0.0155 | AC118: 24 | AD118: -165.14 | AE118: -0.0178 | AG118: 24 | AH118: -187.20125 | AI118: -0.0202 | AK118: 24 | AL118: -209.3125 | AM118: -0.0226 | AO118: 24 | AP118: -231.50375 | AQ118: -0.025 | AS118: 24 | AT118: -253.745 | AU118: -0.0274
A119: 25 | B119: -12.57125 | C119: -0.0014 | E119: 25 | F119: -34.1825 | G119: -0.0037 | I119: 25 | J119: -55.84375 | K119: -0.0061 | M119: 25 | N119: -77.575 | O119: -0.0084 | Q119: 25 | R119: -99.36625 | S119: -0.0107 | U119: 25 | V119: -121.2275 | W119: -0.0131 | Y119: 25 | Z119: -143.14875 | AA119: -0.0155 | AC119: 25 | AD119: -165.14 | AE119: -0.0178 | AG119: 25 | AH119: -187.20125 | AI119: -0.0202 | AK119: 25 | AL119: -209.3125 | AM119: -0.0226 | AO119: 25 | AP119: -231.50375 | AQ119: -0.025 | AS119: 25 | AT119: -253.745 | AU119: -0.0274
A120: 26 | B120: -12.57125 | C120: -0.0014 | E120: 26 | F120: -34.1825 | G120: -0.0037 | I120: 26 | J120: -55.84375 | K120: -0.0061 | M120: 26 | N120: -77.575 | O120: -0.0084 | Q120: 26 | R120: -99.36625 | S120: -0.0107 | U120: 26 | V120: -121.2275 | W120: -0.0131 | Y120: 26 | Z120: -143.14875 | AA120: -0.0155 | AC120: 26 | AD120: -165.14 | AE120: -0.0178 | AG120: 26 | AH120: -187.20125 | AI120: -0.0202 | AK120: 26 | AL120: -209.3125 | AM120: -0.0226 | AO120: 26 | AP120: -231.50375 | AQ120: -0.025 | AS120: 26 | AT120: -253.745 | AU120: -0.0274
A121: 27 | B121: -12.57125 | C121: -0.0014 | E121: 27 | F121: -34.1825 | G121: -0.0037 | I121: 27 | J121: -55.84375 | K121: -0.0061 | M121: 27 | N121: -77.575 | O121: -0.0084 | Q121: 27 | R121: -99.36625 | S121: -0.0107 | U121: 27 | V121: -121.2275 | W121: -0.0131 | Y121: 27 | Z121: -143.14875 | AA121: -0.0155 | AC121: 27 | AD121: -165.14 | AE121: -0.0178 | AG121: 27 | AH121: -187.20125 | AI121: -0.0202 | AK121: 27 | AL121: -209.3125 | AM121: -0.0226 | AO121: 27 | AP121: -231.50375 | AQ121: -0.025 | AS121: 27 | AT121: -253.745 | AU121: -0.0274
A122: 28 | B122: -12.57125 | C122: -0.0014 | E122: 28 | F122: -34.1825 | G122: -0.0037 | I122: 28 | J122: -55.84375 | K122: -0.0061 | M122: 28 | N122: -77.575 | O122: -0.0084 | Q122: 28 | R122: -99.36625 | S122: -0.0107 | U122: 28 | V122: -121.2275 | W122: -0.0131 | Y122: 28 | Z122: -143.14875 | AA122: -0.0155 | AC122: 28 | AD122: -165.14 | AE122: -0.0178 | AG122: 28 | AH122: -187.20125 | AI122: -0.0202 | AK122: 28 | AL122: -209.3125 | AM122: -0.0226 | AO122: 28 | AP122: -231.50375 | AQ122: -0.025 | AS122: 28 | AT122: -253.745 | AU122: -0.0274
A123: 29 | B123: -12.57125 | C123: -0.0014 | I123: 29 | J123: -55.84375 | K123: -0.0061 | M123: 29 | N123: -77.575 | O123: -0.0084 | Q123: 29 | R123: -99.36625 | S123: -0.0107 | U123: 29 | V123: -121.2275 | W123: -0.0131 | Y123: 29 | Z123: -143.14875 | AA123: -0.0155 | AC123: 29 | AD123: -165.14 | AE123: -0.0178 | AG123: 29 | AH123: -187.20125 | AI123: -0.0202 | AK123: 29 | AL123: -209.3125 | AM123: -0.0226 | AO123: 29 | AP123: -231.50375 | AQ123: -0.025 | AS123: 29 | AT123: -253.745 | AU123: -0.0274
A124: 30 | B124: -12.57125 | C124: -0.0014 | I124: 30 | J124: -55.84375 | K124: -0.0061 | M124: 30 | N124: -77.575 | O124: -0.0084 | Q124: 30 | R124: -99.36625 | S124: -0.0107 | U124: 30 | V124: -121.2275 | W124: -0.0131 | Y124: 30 | Z124: -143.14875 | AA124: -0.0155 | AC124: 30 | AD124: -165.14 | AE124: -0.0178 | AG124: 30 | AH124: -187.20125 | AI124: -0.0202 | AK124: 30 | AL124: -209.3125 | AM124: -0.0226 | AO124: 30 | AP124: -231.50375 | AQ124: -0.025 | AS124: 30 | AT124: -253.745 | AU124: -0.0274
A125: 31 | B125: -12.57125 | C125: -0.0014 | I125: 31 | J125: -55.84375 | K125: -0.0061 | Q125: 31 | R125: -99.36625 | S125: -0.0107 | Y125: 31 | Z125: -143.14875 | AA125: -0.0155 | AC125: 31 | AD125: -165.14 | AE125: -0.0178 | AK125: 31 | AL125: -209.3125 | AM125: -0.0226 | AS125: 31 | AT125: -253.745 | AU125: -0.0274
B126: TOTAL........ | C126: =IF((TRUNC((SUM(C95:C125)*1000))/10)-TRUNC(TRUNC((SUM(C95:C125)*1000))/10)>0.5,ROUND(SUM(C95:C125),2),TRUNC((TRUNC((SUM(C95:C125)*1000))/10))/100) -> -0.04 | F126: TOTAL........ | G126: =IF((TRUNC((SUM(G95:G125)*1000))/10)-TRUNC(TRUNC((SUM(G95:G125)*1000))/10)>0.5,ROUND(SUM(G95:G125),2),TRUNC((TRUNC((SUM(G95:G125)*1000))/10))/100) -> -0.1 | J126: TOTAL........ | K126: =IF((TRUNC((SUM(K95:K125)*1000))/10)-TRUNC(TRUNC((SUM(K95:K125)*1000))/10)>0.5,ROUND(SUM(K95:K125),2),TRUNC((TRUNC((SUM(K95:K125)*1000))/10))/100) -> -0.18 | N126: TOTAL........ | O126: =IF((TRUNC((SUM(O95:O125)*1000))/10)-TRUNC(TRUNC((SUM(O95:O125)*1000))/10)>0.5,ROUND(SUM(O95:O125),2),TRUNC((TRUNC((SUM(O95:O125)*1000))/10))/100) -> -0.24 | R126: TOTAL........ | S126: =IF((TRUNC((SUM(S95:S125)*1000))/10)-TRUNC(TRUNC((SUM(S95:S125)*1000))/10)>0.5,ROUND(SUM(S95:S125),2),TRUNC((TRUNC((SUM(S95:S125)*1000))/10))/100) -> -0.32 | V126: TOTAL........ | W126: =IF((TRUNC((SUM(W95:W125)*1000))/10)-TRUNC(TRUNC((SUM(W95:W125)*1000))/10)>0.5,ROUND(SUM(W95:W125),2),TRUNC((TRUNC((SUM(W95:W125)*1000))/10))/100) -> -0.39 | Z126: TOTAL........ | AA126: =IF((TRUNC((SUM(AA95:AA125)*1000))/10)-TRUNC(TRUNC((SUM(AA95:AA125)*1000))/10)>0.5,ROUND(SUM(AA95:AA125),2),TRUNC((TRUNC((SUM(AA95:AA125)*1000))/10))/100) -> -0.47 | AD126: TOTAL........ | AE126: =IF((TRUNC((SUM(AE95:AE125)*1000))/10)-TRUNC(TRUNC((SUM(AE95:AE125)*1000))/10)>0.5,ROUND(SUM(AE95:AE125),2),TRUNC((TRUNC((SUM(AE95:AE125)*1000))/10))/100) -> -0.54 | AH126: TOTAL........ | AI126: =IF((TRUNC((SUM(AI95:AI125)*1000))/10)-TRUNC(TRUNC((SUM(AI95:AI125)*1000))/10)>0.5,ROUND(SUM(AI95:AI125),2),TRUNC((TRUNC((SUM(AI95:AI125)*1000))/10))/100) -> -0.6 | AL126: TOTAL........ | AM126: =IF((TRUNC((SUM(AM95:AM125)*1000))/10)-TRUNC(TRUNC((SUM(AM95:AM125)*1000))/10)>0.5,ROUND(SUM(AM95:AM125),2),TRUNC((TRUNC((SUM(AM95:AM125)*1000))/10))/100) -> -0.69 | AP126: TOTAL........ | AQ126: =IF((TRUNC((SUM(AQ95:AQ125)*1000))/10)-TRUNC(TRUNC((SUM(AQ95:AQ125)*1000))/10)>0.5,ROUND(SUM(AQ95:AQ125),2),TRUNC((TRUNC((SUM(AQ95:AQ125)*1000))/10))/100) -> -0.74 | AT126: TOTAL........ | AU126: =IF((TRUNC((SUM(AU95:AU125)*1000))/10)-TRUNC(TRUNC((SUM(AU95:AU125)*1000))/10)>0.5,ROUND(SUM(AU95:AU125),2),TRUNC((TRUNC((SUM(AU95:AU125)*1000))/10))/100) -> -0.84 | AV126: =SUM(B126:AU126) -> -5.15
B127: I.P.F. | C127: =ROUND(C126*0.1,2) -> 0 | F127: I.P.F. | G127: =ROUND(G126*0.1,2) -> -0.01 | J127: I.P.F. | K127: =ROUND(K126*0.1,2) -> -0.02 | N127: I.P.F. | O127: =ROUND(O126*0.1,2) -> -0.02 | R127: I.P.F. | S127: =ROUND(S126*0.1,2) -> -0.03 | V127: I.P.F. | W127: =ROUND(W126*0.1,2) -> -0.04 | Z127: I.P.F. | AA127: =ROUND(AA126*0.1,2) -> -0.05 | AD127: I.P.F. | AE127: =ROUND(AE126*0.1,2) -> -0.05 | AH127: I.P.F. | AI127: =ROUND(AI126*0.1,2) -> -0.06 | AL127: I.P.F. | AM127: =ROUND(AM126*0.1,2) -> -0.07 | AP127: I.P.F. | AQ127: =ROUND(AQ126*0.1,2) -> -0.07 | AT127: I.P.F. | AU127: =ROUND(AU126*0.1,2) -> -0.08 | AV127: =SUM(B127:AU127) -> -0.5
B128: NETOS | C128: =+C126-C127 -> -0.04 | F128: NETOS | G128: =+G126-G127 -> -0.09 | J128: NETOS | K128: =+K126-K127 -> -0.16 | N128: NETOS | O128: =+O126-O127 -> -0.22 | R128: NETOS | S128: =+S126-S127 -> -0.29 | V128: NETOS | W128: =+W126-W127 -> -0.35 | Z128: NETOS | AA128: =+AA126-AA127 -> -0.42 | AD128: NETOS | AE128: =+AE126-AE127 -> -0.49 | AH128: NETOS | AI128: =+AI126-AI127 -> -0.54 | AL128: NETOS | AM128: =+AM126-AM127 -> -0.62 | AP128: NETOS | AQ128: =+AQ126-AQ127 -> -0.67 | AT128: NETOS | AU128: =+AU126-AU127 -> -0.76 | AV128: =SUM(B128:AU128) -> -4.65 | AW128: =+AV128 -> -4.65
AU129: =+AT125+AU128-$B$4 -> -263.505

Sheet Calculo aporte dia 3_18 (hidden)
A1: APORTE INICIAL | B1: =+'18 Meses'!G17 -> 500
A2: APORTE PACTADO | B2: =+'18 Meses'!G19 -> -19.45885258
A3: REVALORIZACIÓN | B3: =+'18 Meses'!G23 -> 0
A4: SEGURO | B4: 9
A5: TASA NOMINAL | B5: =+'18 Meses'!G15 -> 0.03687050044
A6: BASE DE CALCULO | B6: 365
A8: PRIMER AÑO | B8: =+B2 -> -19.45885258
A9: 1 | E9: =+A9+1 -> 2 | I9: =+E9+1 -> 3 | M9: =+I9+1 -> 4 | Q9: =+M9+1 -> 5 | U9: =+Q9+1 -> 6 | Y9: =+U9+1 -> 7 | AC9: =+Y9+1 -> 8 | AG9: =+AC9+1 -> 9 | AK9: =+AG9+1 -> 10 | AO9: =+AK9+1 -> 11 | AS9: =+AO9+1 -> 12
A10: NO. | B10: SALDO DIARIO | C10: INTERESES DIARIO | E10: NO. | F10: SALDO DIARIO | G10: INTERESES DIARIO | I10: NO. | J10: SALDO DIARIO | K10: INTERESES DIARIO | M10: NO. | N10: SALDO DIARIO | O10: INTERESES DIARIO | Q10: NO. | R10: SALDO DIARIO | S10: INTERESES DIARIO | U10: NO. | V10: SALDO DIARIO | W10: INTERESES DIARIO | Y10: NO. | Z10: SALDO DIARIO | AA10: INTERESES DIARIO | AC10: NO. | AD10: SALDO DIARIO | AE10: INTERESES DIARIO | AG10: NO. | AH10: SALDO DIARIO | AI10: INTERESES DIARIO | AK10: NO. | AL10: SALDO DIARIO | AM10: INTERESES DIARIO | AO10: NO. | AP10: SALDO DIARIO | AQ10: INTERESES DIARIO | AS10: NO. | AT10: SALDO DIARIO | AU10: INTERESES DIARIO
A11: 1 | B11: =+B1 -> 500 | C11: =ROUND(INT(ROUND(B11*$B$5/365,8)*10000)/10000,4) -> 0.0505 | E11: 1 | F11: =+B41+C44-$B$4 -> 472.9011474 | G11: =ROUND(INT(ROUND(F11*$B$5/365,8)*10000)/10000,4) -> 0.0477 | I11: 1 | J11: =+F38+G44-$B$4 -> 445.6022948 | K11: =ROUND(INT(ROUND(J11*$B$5/365,8)*10000)/10000,4) -> 0.045 | M11: 1 | N11: =+J41+K44-$B$4 -> 418.3534423 | O11: =ROUND(INT(ROUND(N11*$B$5/365,8)*10000)/10000,4) -> 0.0422 | Q11: 1 | R11: =+N40+O44-$B$4 -> 390.9845897 | S11: =ROUND(INT(ROUND(R11*$B$5/365,8)*10000)/10000,4) -> 0.0394 | U11: 1 | V11: =+R41+S44-$B$4 -> 363.5757371 | W11: =ROUND(INT(ROUND(V11*$B$5/365,8)*10000)/10000,4) -> 0.0367 | Y11: 1 | Z11: =+V40+W44-$B$4 -> 336.0568845 | AA11: =ROUND(INT(ROUND(Z11*$B$5/365,8)*10000)/10000,4) -> 0.0339 | AC11: 1 | AD11: =+Z41+AA44-$B$4 -> 308.488032 | AE11: =ROUND(INT(ROUND(AD11*$B$5/365,8)*10000)/10000,4) -> 0.0311 | AG11: 1 | AH11: =+AD41+AE44-$B$4 -> 280.8491794 | AI11: =ROUND(INT(ROUND(AH11*$B$5/365,8)*10000)/10000,4) -> 0.0283 | AK11: 1 | AL11: =+AH40+AI44-$B$4 -> 253.1003268 | AM11: =ROUND(INT(ROUND(AL11*$B$5/365,8)*10000)/10000,4) -> 0.0255 | AO11: 1 | AP11: =+AL41+AM44-$B$4 -> 225.3014742 | AQ11: =ROUND(INT(ROUND(AP11*$B$5/365,8)*10000)/10000,4) -> 0.0227 | AS11: 1 | AT11: =+AP40+AQ44-$B$4 -> 197.4026216 | AU11: =ROUND(INT(ROUND(AT11*$B$5/365,8)*10000)/10000,4) -> 0.0199
A12: =+A11+1 -> 2 | B12: =+B11 -> 500 | C12: =ROUND(INT(ROUND(B12*$B$5/365,8)*10000)/10000,4) -> 0.0505 | E12: =+E11+1 -> 2 | F12: =+F11 -> 472.9011474 | G12: 0.0477 | I12: =+I11+1 -> 2 | J12: =+J11 -> 445.6022948 | K12: 0.045 | M12: =+M11+1 -> 2 | N12: =+N11 -> 418.3534423 | O12: 0.0422 | Q12: =+Q11+1 -> 2 | R12: =+R11 -> 390.9845897 | S12: 0.0394 | U12: =+U11+1 -> 2 | V12: =+V11 -> 363.5757371 | W12: 0.0367 | Y12: =+Y11+1 -> 2 | Z12: =+Z11 -> 336.0568845 | AA12: 0.0339 | AC12: =+AC11+1 -> 2 | AD12: =+AD11 -> 308.488032 | AE12: 0.0311 | AG12: =+AG11+1 -> 2 | AH12: =+AH11 -> 280.8491794 | AI12: 0.0283 | AK12: =+AK11+1 -> 2 | AL12: =+AL11 -> 253.1003268 | AM12: 0.0255 | AO12: =+AO11+1 -> 2 | AP12: =+AP11 -> 225.3014742 | AQ12: 0.0227 | AS12: =+AS11+1 -> 2 | AT12: =+AT11 -> 197.4026216 | AU12: 0.0199
A13: =+A12+1 -> 3 | B13: =+B12+$B$8 -> 480.5411474 | C13: 0.0485 | E13: =+E12+1 -> 3 | F13: =+F12+$B$8 -> 453.4422948 | G13: 0.0458 | I13: =+I12+1 -> 3 | J13: =+J12+$B$8 -> 426.1434423 | K13: 0.043 | M13: =+M12+1 -> 3 | N13: =+N12+$B$8 -> 398.8945897 | O13: 0.0402 | Q13: =+Q12+1 -> 3 | R13: =+R12+$B$8 -> 371.5257371 | S13: 0.0375 | U13: =+U12+1 -> 3 | V13: =+V12+$B$8 -> 344.1168845 | W13: 0.0347 | Y13: =+Y12+1 -> 3 | Z13: =+Z12+$B$8 -> 316.598032 | AA13: 0.0319 | AC13: =+AC12+1 -> 3 | AD13: =+AD12+$B$8 -> 289.0291794 | AE13: 0.0291 | AG13: =+AG12+1 -> 3 | AH13: =+AH12+$B$8 -> 261.3903268 | AI13: 0.0264 | AK13: =+AK12+1 -> 3 | AL13: =+AL12+$B$8 -> 233.6414742 | AM13: 0.0236 | AO13: =+AO12+1 -> 3 | AP13: =+AP12+$B$8 -> 205.8426216 | AQ13: 0.0207 | AS13: =+AS12+1 -> 3 | AT13: =+AT12+$B$8 -> 177.9437691 | AU13: 0.0179
A14: 4 | B14: =+B13 -> 480.5411474 | C14: 0.0485 | E14: 4 | F14: =+F13 -> 453.4422948 | G14: 0.0458 | I14: 4 | J14: =+J13 -> 426.1434423 | K14: 0.043 | M14: 4 | N14: =+N13 -> 398.8945897 | O14: 0.0402 | Q14: 4 | R14: =+R13 -> 371.5257371 | S14: 0.0375 | U14: 4 | V14: =+V13 -> 344.1168845 | W14: 0.0347 | Y14: 4 | Z14: =+Z13 -> 316.598032 | AA14: 0.0319 | AC14: 4 | AD14: =+AD13 -> 289.0291794 | AE14: 0.0291 | AG14: 4 | AH14: =+AH13 -> 261.3903268 | AI14: 0.0264 | AK14: 4 | AL14: =+AL13 -> 233.6414742 | AM14: 0.0236 | AO14: 4 | AP14: =+AP13 -> 205.8426216 | AQ14: 0.0207 | AS14: 4 | AT14: =+AT13 -> 177.9437691 | AU14: 0.0179
A15: 5 | B15: =+B14 -> 480.5411474 | C15: 0.0485 | E15: 5 | F15: =+F14 -> 453.4422948 | G15: 0.0458 | I15: 5 | J15: =+J14 -> 426.1434423 | K15: 0.043 | M15: 5 | N15: =+N14 -> 398.8945897 | O15: 0.0402 | Q15: 5 | R15: =+R14 -> 371.5257371 | S15: 0.0375 | U15: 5 | V15: =+V14 -> 344.1168845 | W15: 0.0347 | Y15: 5 | Z15: =+Z14 -> 316.598032 | AA15: 0.0319 | AC15: 5 | AD15: =+AD14 -> 289.0291794 | AE15: 0.0291 | AG15: 5 | AH15: =+AH14 -> 261.3903268 | AI15: 0.0264 | AK15: 5 | AL15: =+AL14 -> 233.6414742 | AM15: 0.0236 | AO15: 5 | AP15: =+AP14 -> 205.8426216 | AQ15: 0.0207 | AS15: 5 | AT15: =+AT14 -> 177.9437691 | AU15: 0.0179
A16: 6 | B16: 480.5411474 | C16: 0.0485 | E16: 6 | F16: 453.4422948 | G16: 0.0458 | I16: 6 | J16: 426.1434423 | K16: 0.043 | M16: 6 | N16: 398.8945897 | O16: 0.0402 | Q16: 6 | R16: 371.5257371 | S16: 0.0375 | U16: 6 | V16: 344.1168845 | W16: 0.0347 | Y16: 6 | Z16: 316.598032 | AA16: 0.0319 | AC16: 6 | AD16: 289.0291794 | AE16: 0.0291 | AG16: 6 | AH16: 261.3903268 | AI16: 0.0264 | AK16: 6 | AL16: 233.6414742 | AM16: 0.0236 | AO16: 6 | AP16: 205.8426216 | AQ16: 0.0207 | AS16: 6 | AT16: 177.9437691 | AU16: 0.0179
A17: 7 | B17: 480.5411474 | C17: 0.0485 | E17: 7 | F17: 453.4422948 | G17: 0.0458 | I17: 7 | J17: 426.1434423 | K17: 0.043 | M17: 7 | N17: 398.8945897 | O17: 0.0402 | Q17: 7 | R17: 371.5257371 | S17: 0.0375 | U17: 7 | V17: 344.1168845 | W17: 0.0347 | Y17: 7 | Z17: 316.598032 | AA17: 0.0319 | AC17: 7 | AD17: 289.0291794 | AE17: 0.0291 | AG17: 7 | AH17: 261.3903268 | AI17: 0.0264 | AK17: 7 | AL17: 233.6414742 | AM17: 0.0236 | AO17: 7 | AP17: 205.8426216 | AQ17: 0.0207 | AS17: 7 | AT17: 177.9437691 | AU17: 0.0179
A18: 8 | B18: 480.5411474 | C18: 0.0485 | E18: 8 | F18: 453.4422948 | G18: 0.0458 | I18: 8 | J18: 426.1434423 | K18: 0.043 | M18: 8 | N18: 398.8945897 | O18: 0.0402 | Q18: 8 | R18: 371.5257371 | S18: 0.0375 | U18: 8 | V18: 344.1168845 | W18: 0.0347 | Y18: 8 | Z18: 316.598032 | AA18: 0.0319 | AC18: 8 | AD18: 289.0291794 | AE18: 0.0291 | AG18: 8 | AH18: 261.3903268 | AI18: 0.0264 | AK18: 8 | AL18: 233.6414742 | AM18: 0.0236 | AO18: 8 | AP18: 205.8426216 | AQ18: 0.0207 | AS18: 8 | AT18: 177.9437691 | AU18: 0.0179
A19: 9 | B19: 480.5411474 | C19: 0.0485 | E19: 9 | F19: 453.4422948 | G19: 0.0458 | I19: 9 | J19: 426.1434423 | K19: 0.043 | M19: 9 | N19: 398.8945897 | O19: 0.0402 | Q19: 9 | R19: 371.5257371 | S19: 0.0375 | U19: 9 | V19: 344.1168845 | W19: 0.0347 | Y19: 9 | Z19: 316.598032 | AA19: 0.0319 | AC19: 9 | AD19: 289.0291794 | AE19: 0.0291 | AG19: 9 | AH19: 261.3903268 | AI19: 0.0264 | AK19: 9 | AL19: 233.6414742 | AM19: 0.0236 | AO19: 9 | AP19: 205.8426216 | AQ19: 0.0207 | AS19: 9 | AT19: 177.9437691 | AU19: 0.0179
A20: 10 | B20: 480.5411474 | C20: 0.0485 | E20: 10 | F20: 453.4422948 | G20: 0.0458 | I20: 10 | J20: 426.1434423 | K20: 0.043 | M20: 10 | N20: 398.8945897 | O20: 0.0402 | Q20: 10 | R20: 371.5257371 | S20: 0.0375 | U20: 10 | V20: 344.1168845 | W20: 0.0347 | Y20: 10 | Z20: 316.598032 | AA20: 0.0319 | AC20: 10 | AD20: 289.0291794 | AE20: 0.0291 | AG20: 10 | AH20: 261.3903268 | AI20: 0.0264 | AK20: 10 | AL20: 233.6414742 | AM20: 0.0236 | AO20: 10 | AP20: 205.8426216 | AQ20: 0.0207 | AS20: 10 | AT20: 177.9437691 | AU20: 0.0179
A21: 11 | B21: 480.5411474 | C21: 0.0485 | E21: 11 | F21: 453.4422948 | G21: 0.0458 | I21: 11 | J21: 426.1434423 | K21: 0.043 | M21: 11 | N21: 398.8945897 | O21: 0.0402 | Q21: 11 | R21: 371.5257371 | S21: 0.0375 | U21: 11 | V21: 344.1168845 | W21: 0.0347 | Y21: 11 | Z21: 316.598032 | AA21: 0.0319 | AC21: 11 | AD21: 289.0291794 | AE21: 0.0291 | AG21: 11 | AH21: 261.3903268 | AI21: 0.0264 | AK21: 11 | AL21: 233.6414742 | AM21: 0.0236 | AO21: 11 | AP21: 205.8426216 | AQ21: 0.0207 | AS21: 11 | AT21: 177.9437691 | AU21: 0.0179
A22: 12 | B22: 480.5411474 | C22: 0.0485 | E22: 12 | F22: 453.4422948 | G22: 0.0458 | I22: 12 | J22: 426.1434423 | K22: 0.043 | M22: 12 | N22: 398.8945897 | O22: 0.0402 | Q22: 12 | R22: 371.5257371 | S22: 0.0375 | U22: 12 | V22: 344.1168845 | W22: 0.0347 | Y22: 12 | Z22: 316.598032 | AA22: 0.0319 | AC22: 12 | AD22: 289.0291794 | AE22: 0.0291 | AG22: 12 | AH22: 261.3903268 | AI22: 0.0264 | AK22: 12 | AL22: 233.6414742 | AM22: 0.0236 | AO22: 12 | AP22: 205.8426216 | AQ22: 0.0207 | AS22: 12 | AT22: 177.9437691 | AU22: 0.0179
A23: 13 | B23: 480.5411474 | C23: 0.0485 | E23: 13 | F23: 453.4422948 | G23: 0.0458 | I23: 13 | J23: 426.1434423 | K23: 0.043 | M23: 13 | N23: 398.8945897 | O23: 0.0402 | Q23: 13 | R23: 371.5257371 | S23: 0.0375 | U23: 13 | V23: 344.1168845 | W23: 0.0347 | Y23: 13 | Z23: 316.598032 | AA23: 0.0319 | AC23: 13 | AD23: 289.0291794 | AE23: 0.0291 | AG23: 13 | AH23: 261.3903268 | AI23: 0.0264 | AK23: 13 | AL23: 233.6414742 | AM23: 0.0236 | AO23: 13 | AP23: 205.8426216 | AQ23: 0.0207 | AS23: 13 | AT23: 177.9437691 | AU23: 0.0179
A24: 14 | B24: 480.5411474 | C24: 0.0485 | E24: 14 | F24: 453.4422948 | G24: 0.0458 | I24: 14 | J24: 426.1434423 | K24: 0.043 | M24: 14 | N24: 398.8945897 | O24: 0.0402 | Q24: 14 | R24: 371.5257371 | S24: 0.0375 | U24: 14 | V24: 344.1168845 | W24: 0.0347 | Y24: 14 | Z24: 316.598032 | AA24: 0.0319 | AC24: 14 | AD24: 289.0291794 | AE24: 0.0291 | AG24: 14 | AH24: 261.3903268 | AI24: 0.0264 | AK24: 14 | AL24: 233.6414742 | AM24: 0.0236 | AO24: 14 | AP24: 205.8426216 | AQ24: 0.0207 | AS24: 14 | AT24: 177.9437691 | AU24: 0.0179
A25: 15 | B25: 480.5411474 | C25: 0.0485 | E25: 15 | F25: 453.4422948 | G25: 0.0458 | I25: 15 | J25: 426.1434423 | K25: 0.043 | M25: 15 | N25: 398.8945897 | O25: 0.0402 | Q25: 15 | R25: 371.5257371 | S25: 0.0375 | U25: 15 | V25: 344.1168845 | W25: 0.0347 | Y25: 15 | Z25: 316.598032 | AA25: 0.0319 | AC25: 15 | AD25: 289.0291794 | AE25: 0.0291 | AG25: 15 | AH25: 261.3903268 | AI25: 0.0264 | AK25: 15 | AL25: 233.6414742 | AM25: 0.0236 | AO25: 15 | AP25: 205.8426216 | AQ25: 0.0207 | AS25: 15 | AT25: 177.9437691 | AU25: 0.0179
A26: 16 | B26: 480.5411474 | C26: 0.0485 | E26: 16 | F26: 453.4422948 | G26: 0.0458 | I26: 16 | J26: 426.1434423 | K26: 0.043 | M26: 16 | N26: 398.8945897 | O26: 0.0402 | Q26: 16 | R26: 371.5257371 | S26: 0.0375 | U26: 16 | V26: 344.1168845 | W26: 0.0347 | Y26: 16 | Z26: 316.598032 | AA26: 0.0319 | AC26: 16 | AD26: 289.0291794 | AE26: 0.0291 | AG26: 16 | AH26: 261.3903268 | AI26: 0.0264 | AK26: 16 | AL26: 233.6414742 | AM26: 0.0236 | AO26: 16 | AP26: 205.8426216 | AQ26: 0.0207 | AS26: 16 | AT26: 177.9437691 | AU26: 0.0179
A27: 17 | B27: 480.5411474 | C27: 0.0485 | E27: 17 | F27: 453.4422948 | G27: 0.0458 | I27: 17 | J27: 426.1434423 | K27: 0.043 | M27: 17 | N27: 398.8945897 | O27: 0.0402 | Q27: 17 | R27: 371.5257371 | S27: 0.0375 | U27: 17 | V27: 344.1168845 | W27: 0.0347 | Y27: 17 | Z27: 316.598032 | AA27: 0.0319 | AC27: 17 | AD27: 289.0291794 | AE27: 0.0291 | AG27: 17 | AH27: 261.3903268 | AI27: 0.0264 | AK27: 17 | AL27: 233.6414742 | AM27: 0.0236 | AO27: 17 | AP27: 205.8426216 | AQ27: 0.0207 | AS27: 17 | AT27: 177.9437691 | AU27: 0.0179
A28: 18 | B28: 480.5411474 | C28: 0.0485 | E28: 18 | F28: 453.4422948 | G28: 0.0458 | I28: 18 | J28: 426.1434423 | K28: 0.043 | M28: 18 | N28: 398.8945897 | O28: 0.0402 | Q28: 18 | R28: 371.5257371 | S28: 0.0375 | U28: 18 | V28: 344.1168845 | W28: 0.0347 | Y28: 18 | Z28: 316.598032 | AA28: 0.0319 | AC28: 18 | AD28: 289.0291794 | AE28: 0.0291 | AG28: 18 | AH28: 261.3903268 | AI28: 0.0264 | AK28: 18 | AL28: 233.6414742 | AM28: 0.0236 | AO28: 18 | AP28: 205.8426216 | AQ28: 0.0207 | AS28: 18 | AT28: 177.9437691 | AU28: 0.0179
A29: 19 | B29: 480.5411474 | C29: 0.0485 | E29: 19 | F29: 453.4422948 | G29: 0.0458 | I29: 19 | J29: 426.1434423 | K29: 0.043 | M29: 19 | N29: 398.8945897 | O29: 0.0402 | Q29: 19 | R29: 371.5257371 | S29: 0.0375 | U29: 19 | V29: 344.1168845 | W29: 0.0347 | Y29: 19 | Z29: 316.598032 | AA29: 0.0319 | AC29: 19 | AD29: 289.0291794 | AE29: 0.0291 | AG29: 19 | AH29: 261.3903268 | AI29: 0.0264 | AK29: 19 | AL29: 233.6414742 | AM29: 0.0236 | AO29: 19 | AP29: 205.8426216 | AQ29: 0.0207 | AS29: 19 | AT29: 177.9437691 | AU29: 0.0179
A30: 20 | B30: 480.5411474 | C30: 0.0485 | E30: 20 | F30: 453.4422948 | G30: 0.0458 | I30: 20 | J30: 426.1434423 | K30: 0.043 | M30: 20 | N30: 398.8945897 | O30: 0.0402 | Q30: 20 | R30: 371.5257371 | S30: 0.0375 | U30: 20 | V30: 344.1168845 | W30: 0.0347 | Y30: 20 | Z30: 316.598032 | AA30: 0.0319 | AC30: 20 | AD30: 289.0291794 | AE30: 0.0291 | AG30: 20 | AH30: 261.3903268 | AI30: 0.0264 | AK30: 20 | AL30: 233.6414742 | AM30: 0.0236 | AO30: 20 | AP30: 205.8426216 | AQ30: 0.0207 | AS30: 20 | AT30: 177.9437691 | AU30: 0.0179
A31: 21 | B31: 480.5411474 | C31: 0.0485 | E31: 21 | F31: 453.4422948 | G31: 0.0458 | I31: 21 | J31: 426.1434423 | K31: 0.043 | M31: 21 | N31: 398.8945897 | O31: 0.0402 | Q31: 21 | R31: 371.5257371 | S31: 0.0375 | U31: 21 | V31: 344.1168845 | W31: 0.0347 | Y31: 21 | Z31: 316.598032 | AA31: 0.0319 | AC31: 21 | AD31: 289.0291794 | AE31: 0.0291 | AG31: 21 | AH31: 261.3903268 | AI31: 0.0264 | AK31: 21 | AL31: 233.6414742 | AM31: 0.0236 | AO31: 21 | AP31: 205.8426216 | AQ31: 0.0207 | AS31: 21 | AT31: 177.9437691 | AU31: 0.0179
A32: 22 | B32: 480.5411474 | C32: 0.0485 | E32: 22 | F32: 453.4422948 | G32: 0.0458 | I32: 22 | J32: 426.1434423 | K32: 0.043 | M32: 22 | N32: 398.8945897 | O32: 0.0402 | Q32: 22 | R32: 371.5257371 | S32: 0.0375 | U32: 22 | V32: 344.1168845 | W32: 0.0347 | Y32: 22 | Z32: 316.598032 | AA32: 0.0319 | AC32: 22 | AD32: 289.0291794 | AE32: 0.0291 | AG32: 22 | AH32: 261.3903268 | AI32: 0.0264 | AK32: 22 | AL32: 233.6414742 | AM32: 0.0236 | AO32: 22 | AP32: 205.8426216 | AQ32: 0.0207 | AS32: 22 | AT32: 177.9437691 | AU32: 0.0179
A33: 23 | B33: 480.5411474 | C33: 0.0485 | E33: 23 | F33: 453.4422948 | G33: 0.0458 | I33: 23 | J33: 426.1434423 | K33: 0.043 | M33: 23 | N33: 398.8945897 | O33: 0.0402 | Q33: 23 | R33: 371.5257371 | S33: 0.0375 | U33: 23 | V33: 344.1168845 | W33: 0.0347 | Y33: 23 | Z33: 316.598032 | AA33: 0.0319 | AC33: 23 | AD33: 289.0291794 | AE33: 0.0291 | AG33: 23 | AH33: 261.3903268 | AI33: 0.0264 | AK33: 23 | AL33: 233.6414742 | AM33: 0.0236 | AO33: 23 | AP33: 205.8426216 | AQ33: 0.0207 | AS33: 23 | AT33: 177.9437691 | AU33: 0.0179
A34: 24 | B34: 480.5411474 | C34: 0.0485 | E34: 24 | F34: 453.4422948 | G34: 0.0458 | I34: 24 | J34: 426.1434423 | K34: 0.043 | M34: 24 | N34: 398.8945897 | O34: 0.0402 | Q34: 24 | R34: 371.5257371 | S34: 0.0375 | U34: 24 | V34: 344.1168845 | W34: 0.0347 | Y34: 24 | Z34: 316.598032 | AA34: 0.0319 | AC34: 24 | AD34: 289.0291794 | AE34: 0.0291 | AG34: 24 | AH34: 261.3903268 | AI34: 0.0264 | AK34: 24 | AL34: 233.6414742 | AM34: 0.0236 | AO34: 24 | AP34: 205.8426216 | AQ34: 0.0207 | AS34: 24 | AT34: 177.9437691 | AU34: 0.0179
A35: 25 | B35: 480.5411474 | C35: 0.0485 | E35: 25 | F35: 453.4422948 | G35: 0.0458 | I35: 25 | J35: 426.1434423 | K35: 0.043 | M35: 25 | N35: 398.8945897 | O35: 0.0402 | Q35: 25 | R35: 371.5257371 | S35: 0.0375 | U35: 25 | V35: 344.1168845 | W35: 0.0347 | Y35: 25 | Z35: 316.598032 | AA35: 0.0319 | AC35: 25 | AD35: 289.0291794 | AE35: 0.0291 | AG35: 25 | AH35: 261.3903268 | AI35: 0.0264 | AK35: 25 | AL35: 233.6414742 | AM35: 0.0236 | AO35: 25 | AP35: 205.8426216 | AQ35: 0.0207 | AS35: 25 | AT35: 177.9437691 | AU35: 0.0179
A36: 26 | B36: 480.5411474 | C36: 0.0485 | E36: 26 | F36: 453.4422948 | G36: 0.0458 | I36: 26 | J36: 426.1434423 | K36: 0.043 | M36: 26 | N36: 398.8945897 | O36: 0.0402 | Q36: 26 | R36: 371.5257371 | S36: 0.0375 | U36: 26 | V36: 344.1168845 | W36: 0.0347 | Y36: 26 | Z36: 316.598032 | AA36: 0.0319 | AC36: 26 | AD36: 289.0291794 | AE36: 0.0291 | AG36: 26 | AH36: 261.3903268 | AI36: 0.0264 | AK36: 26 | AL36: 233.6414742 | AM36: 0.0236 | AO36: 26 | AP36: 205.8426216 | AQ36: 0.0207 | AS36: 26 | AT36: 177.9437691 | AU36: 0.0179
A37: 27 | B37: 480.5411474 | C37: 0.0485 | E37: 27 | F37: 453.4422948 | G37: 0.0458 | I37: 27 | J37: 426.1434423 | K37: 0.043 | M37: 27 | N37: 398.8945897 | O37: 0.0402 | Q37: 27 | R37: 371.5257371 | S37: 0.0375 | U37: 27 | V37: 344.1168845 | W37: 0.0347 | Y37: 27 | Z37: 316.598032 | AA37: 0.0319 | AC37: 27 | AD37: 289.0291794 | AE37: 0.0291 | AG37: 27 | AH37: 261.3903268 | AI37: 0.0264 | AK37: 27 | AL37: 233.6414742 | AM37: 0.0236 | AO37: 27 | AP37: 205.8426216 | AQ37: 0.0207 | AS37: 27 | AT37: 177.9437691 | AU37: 0.0179
A38: 28 | B38: 480.5411474 | C38: 0.0485 | E38: 28 | F38: 453.4422948 | G38: 0.0458 | I38: 28 | J38: 426.1434423 | K38: 0.043 | M38: 28 | N38: 398.8945897 | O38: 0.0402 | Q38: 28 | R38: 371.5257371 | S38: 0.0375 | U38: 28 | V38: 344.1168845 | W38: 0.0347 | Y38: 28 | Z38: 316.598032 | AA38: 0.0319 | AC38: 28 | AD38: 289.0291794 | AE38: 0.0291 | AG38: 28 | AH38: 261.3903268 | AI38: 0.0264 | AK38: 28 | AL38: 233.6414742 | AM38: 0.0236 | AO38: 28 | AP38: 205.8426216 | AQ38: 0.0207 | AS38: 28 | AT38: 177.9437691 | AU38: 0.0179
A39: 29 | B39: 480.5411474 | C39: 0.0485 | I39: 29 | J39: 426.1434423 | K39: 0.043 | M39: 29 | N39: 398.8945897 | O39: 0.0402 | Q39: 29 | R39: 371.5257371 | S39: 0.0375 | U39: 29 | V39: 344.1168845 | W39: 0.0347 | Y39: 29 | Z39: 316.598032 | AA39: 0.0319 | AC39: 29 | AD39: 289.0291794 | AE39: 0.0291 | AG39: 29 | AH39: 261.3903268 | AI39: 0.0264 | AK39: 29 | AL39: 233.6414742 | AM39: 0.0236 | AO39: 29 | AP39: 205.8426216 | AQ39: 0.0207 | AS39: 29 | AT39: 177.9437691 | AU39: 0.0179
A40: 30 | B40: 480.5411474 | C40: 0.0485 | I40: 30 | J40: 426.1434423 | K40: 0.043 | M40: 30 | N40: 398.8945897 | O40: 0.0402 | Q40: 30 | R40: 371.5257371 | S40: 0.0375 | U40: 30 | V40: 344.1168845 | W40: 0.0347 | Y40: 30 | Z40: 316.598032 | AA40: 0.0319 | AC40: 30 | AD40: 289.0291794 | AE40: 0.0291 | AG40: 30 | AH40: 261.3903268 | AI40: 0.0264 | AK40: 30 | AL40: 233.6414742 | AM40: 0.0236 | AO40: 30 | AP40: 205.8426216 | AQ40: 0.0207 | AS40: 30 | AT40: 177.9437691 | AU40: 0.0179
A41: 31 | B41: =+B40 -> 480.5411474 | C41: 0.0485 | I41: 31 | J41: 426.1434423 | K41: 0.043 | Q41: 31 | R41: 371.5257371 | S41: 0.0375 | Y41: 31 | Z41: 316.598032 | AA41: 0.0319 | AC41: 31 | AD41: 289.0291794 | AE41: 0.0291 | AK41: 31 | AL41: 233.6414742 | AM41: 0.0236 | AS41: 31 | AT41: 177.9437691 | AU41: 0.0179
B42: TOTAL........ | C42: =IF((TRUNC((SUM(C11:C41)*1000))/10)-TRUNC(TRUNC((SUM(C11:C41)*1000))/10)>0.5,ROUND(SUM(C11:C41),2),TRUNC((TRUNC((SUM(C11:C41)*1000))/10))/100) -> 1.51 | F42: TOTAL........ | G42: =IF((TRUNC((SUM(G11:G41)*1000))/10)-TRUNC(TRUNC((SUM(G11:G41)*1000))/10)>0.5,ROUND(SUM(G11:G41),2),TRUNC((TRUNC((SUM(G11:G41)*1000))/10))/100) -> 1.29 | J42: TOTAL........ | K42: =IF((TRUNC((SUM(K11:K41)*1000))/10)-TRUNC(TRUNC((SUM(K11:K41)*1000))/10)>0.5,ROUND(SUM(K11:K41),2),TRUNC((TRUNC((SUM(K11:K41)*1000))/10))/100) -> 1.34 | N42: TOTAL........ | O42: =IF((TRUNC((SUM(O11:O41)*1000))/10)-TRUNC(TRUNC((SUM(O11:O41)*1000))/10)>0.5,ROUND(SUM(O11:O41),2),TRUNC((TRUNC((SUM(O11:O41)*1000))/10))/100) -> 1.21 | R42: TOTAL........ | S42: =IF((TRUNC((SUM(S11:S41)*1000))/10)-TRUNC(TRUNC((SUM(S11:S41)*1000))/10)>0.5,ROUND(SUM(S11:S41),2),TRUNC((TRUNC((SUM(S11:S41)*1000))/10))/100) -> 1.17 | V42: TOTAL........ | W42: =IF((TRUNC((SUM(W11:W41)*1000))/10)-TRUNC(TRUNC((SUM(W11:W41)*1000))/10)>0.5,ROUND(SUM(W11:W41),2),TRUNC((TRUNC((SUM(W11:W41)*1000))/10))/100) -> 1.04 | Z42: TOTAL........ | AA42: =IF((TRUNC((SUM(AA11:AA41)*1000))/10)-TRUNC(TRUNC((SUM(AA11:AA41)*1000))/10)>0.5,ROUND(SUM(AA11:AA41),2),TRUNC((TRUNC((SUM(AA11:AA41)*1000))/10))/100) -> 0.99 | AD42: TOTAL........ | AE42: =IF((TRUNC((SUM(AE11:AE41)*1000))/10)-TRUNC(TRUNC((SUM(AE11:AE41)*1000))/10)>0.5,ROUND(SUM(AE11:AE41),2),TRUNC((TRUNC((SUM(AE11:AE41)*1000))/10))/100) -> 0.91 | AH42: TOTAL........ | AI42: =IF((TRUNC((SUM(AI11:AI41)*1000))/10)-TRUNC(TRUNC((SUM(AI11:AI41)*1000))/10)>0.5,ROUND(SUM(AI11:AI41),2),TRUNC((TRUNC((SUM(AI11:AI41)*1000))/10))/100) -> 0.79 | AL42: TOTAL........ | AM42: =IF((TRUNC((SUM(AM11:AM41)*1000))/10)-TRUNC(TRUNC((SUM(AM11:AM41)*1000))/10)>0.5,ROUND(SUM(AM11:AM41),2),TRUNC((TRUNC((SUM(AM11:AM41)*1000))/10))/100) -> 0.73 | AP42: TOTAL........ | AQ42: =IF((TRUNC((SUM(AQ11:AQ41)*1000))/10)-TRUNC(TRUNC((SUM(AQ11:AQ41)*1000))/10)>0.5,ROUND(SUM(AQ11:AQ41),2),TRUNC((TRUNC((SUM(AQ11:AQ41)*1000))/10))/100) -> 0.62 | AT42: TOTAL........ | AU42: =IF((TRUNC((SUM(AU11:AU41)*1000))/10)-TRUNC(TRUNC((SUM(AU11:AU41)*1000))/10)>0.5,ROUND(SUM(AU11:AU41),2),TRUNC((TRUNC((SUM(AU11:AU41)*1000))/10))/100) -> 0.56 | AV42: =SUM(B42:AU42) -> 12.16
B43: I.P.F. | C43: =ROUND(C42*0.1,2) -> 0.15 | F43: I.P.F. | G43: =ROUND(G42*0.1,2) -> 0.13 | J43: I.P.F. | K43: =ROUND(K42*0.1,2) -> 0.13 | N43: I.P.F. | O43: =ROUND(O42*0.1,2) -> 0.12 | R43: I.P.F. | S43: =ROUND(S42*0.1,2) -> 0.12 | V43: I.P.F. | W43: =ROUND(W42*0.1,2) -> 0.1 | Z43: I.P.F. | AA43: =ROUND(AA42*0.1,2) -> 0.1 | AD43: I.P.F. | AE43: =ROUND(AE42*0.1,2) -> 0.09 | AH43: I.P.F. | AI43: =ROUND(AI42*0.1,2) -> 0.08 | AL43: I.P.F. | AM43: =ROUND(AM42*0.1,2) -> 0.07 | AP43: I.P.F. | AQ43: =ROUND(AQ42*0.1,2) -> 0.06 | AT43: I.P.F. | AU43: =ROUND(AU42*0.1,2) -> 0.06 | AV43: =SUM(B43:AU43) -> 1.21
B44: NETOS | C44: =+C42-C43 -> 1.36 | F44: NETOS | G44: =+G42-G43 -> 1.16 | J44: NETOS | K44: =+K42-K43 -> 1.21 | N44: NETOS | O44: =+O42-O43 -> 1.09 | R44: NETOS | S44: =+S42-S43 -> 1.05 | V44: NETOS | W44: =+W42-W43 -> 0.94 | Z44: NETOS | AA44: =+AA42-AA43 -> 0.89 | AD44: NETOS | AE44: =+AE42-AE43 -> 0.82 | AH44: NETOS | AI44: =+AI42-AI43 -> 0.71 | AL44: NETOS | AM44: =+AM42-AM43 -> 0.66 | AP44: NETOS | AQ44: =+AQ42-AQ43 -> 0.56 | AT44: NETOS | AU44: =+AU42-AU43 -> 0.5 | AV44: =SUM(B44:AU44) -> 10.95 | AW44: =+AV44 -> 10.95
AU45: =+AT41+AU44-$B$4 -> 169.4437691
A50: SEGUNDO AÑO | B50: =IF($B$3>0,(B8*$B$3)+B8,B8) -> -19.45885258
A51: 1 | E51: =+A51+1 -> 2 | I51: =+E51+1 -> 3 | M51: =+I51+1 -> 4 | Q51: =+M51+1 -> 5 | U51: =+Q51+1 -> 6 | Y51: =+U51+1 -> 7 | AC51: =+Y51+1 -> 8 | AG51: =+AC51+1 -> 9 | AK51: =+AG51+1 -> 10 | AO51: =+AK51+1 -> 11 | AS51: =+AO51+1 -> 12
A52: NO. | B52: SALDO DIARIO | C52: INTERESES DIARIO | E52: NO. | F52: SALDO DIARIO | G52: INTERESES DIARIO | I52: NO. | J52: SALDO DIARIO | K52: INTERESES DIARIO | M52: NO. | N52: SALDO DIARIO | O52: INTERESES DIARIO | Q52: NO. | R52: SALDO DIARIO | S52: INTERESES DIARIO | U52: NO. | V52: SALDO DIARIO | W52: INTERESES DIARIO | Y52: NO. | Z52: SALDO DIARIO | AA52: INTERESES DIARIO | AC52: NO. | AD52: SALDO DIARIO | AE52: INTERESES DIARIO | AG52: NO. | AH52: SALDO DIARIO | AI52: INTERESES DIARIO | AK52: NO. | AL52: SALDO DIARIO | AM52: INTERESES DIARIO | AO52: NO. | AP52: SALDO DIARIO | AQ52: INTERESES DIARIO | AS52: NO. | AT52: SALDO DIARIO | AU52: INTERESES DIARIO
A53: 1 | B53: =+AT41+AU44-$B$4 -> 169.4437691 | C53: =ROUND(INT(ROUND(B53*$B$5/365,8)*10000)/10000,4) -> 0.0171 | E53: 1 | F53: =+B83+C86-$B$4 -> 141.4049165 | G53: =ROUND(INT(ROUND(F53*$B$5/365,8)*10000)/10000,4) -> 0.0142 | I53: 1 | J53: =+F80+G86-$B$4 -> 113.2560639 | K53: =ROUND(INT(ROUND(J53*$B$5/365,8)*10000)/10000,4) -> 0.0114 | M53: 1 | N53: =+J83+K86-$B$4 -> 85.05721134 | O53: =ROUND(INT(ROUND(N53*$B$5/365,8)*10000)/10000,4) -> 0.0085 | Q53: 1 | R53: =+N82+O86-$B$4 -> 56.77835876 | S53: =ROUND(INT(ROUND(R53*$B$5/365,8)*10000)/10000,4) -> 0.0057 | U53: 1 | V53: =+R83+S86-$B$4 -> 28.42950618 | W53: =ROUND(INT(ROUND(V53*$B$5/365,8)*10000)/10000,4) -> 0.0028 | Y53: 1 | Z53: =+V82+W86-$B$4 -> 0.0006536033012 | AA53: =ROUND(INT(ROUND(Z53*$B$5/365,8)*10000)/10000,4) -> 0 | AC53: 1 | AD53: =+Z83+AA86-$B$4 -> -28.49819897 | AE53: =ROUND(INT(ROUND(AD53*$B$5/365,8)*10000)/10000,4) -> -0.0029 | AG53: 1 | AH53: =+AD83+AE86-$B$4 -> -57.08705155 | AI53: =ROUND(INT(ROUND(AH53*$B$5/365,8)*10000)/10000,4) -> -0.0058 | AK53: 1 | AL53: =+AH82+AI86-$B$4 -> -85.75590413 | AM53: =ROUND(INT(ROUND(AL53*$B$5/365,8)*10000)/10000,4) -> -0.0087 | AO53: 1 | AP53: =+AL83+AM86-$B$4 -> -114.5047567 | AQ53: =ROUND(INT(ROUND(AP53*$B$5/365,8)*10000)/10000,4) -> -0.0116 | AS53: 1 | AT53: =+AP82+AQ86-$B$4 -> -143.3236093 | AU53: =ROUND(INT(ROUND(AT53*$B$5/365,8)*10000)/10000,4) -> -0.0145
A54: =+A53+1 -> 2 | B54: =+B53 -> 169.4437691 | C54: 0.0171 | E54: =+E53+1 -> 2 | F54: =+F53 -> 141.4049165 | G54: 0.0142 | I54: =+I53+1 -> 2 | J54: =+J53 -> 113.2560639 | K54: 0.0114 | M54: =+M53+1 -> 2 | N54: =+N53 -> 85.05721134 | O54: 0.0085 | Q54: =+Q53+1 -> 2 | R54: =+R53 -> 56.77835876 | S54: 0.0057 | U54: =+U53+1 -> 2 | V54: =+V53 -> 28.42950618 | W54: 0.0028 | Y54: =+Y53+1 -> 2 | Z54: =+Z53 -> 0.0006536033012 | AA54: 0 | AC54: =+AC53+1 -> 2 | AD54: =+AD53 -> -28.49819897 | AE54: -0.0029 | AG54: =+AG53+1 -> 2 | AH54: =+AH53 -> -57.08705155 | AI54: -0.0058 | AK54: =+AK53+1 -> 2 | AL54: =+AL53 -> -85.75590413 | AM54: -0.0087 | AO54: =+AO53+1 -> 2 | AP54: =+AP53 -> -114.5047567 | AQ54: -0.0116 | AS54: =+AS53+1 -> 2 | AT54: =+AT53 -> -143.3236093 | AU54: -0.0145
A55: =+A54+1 -> 3 | B55: =+B54+$B$50 -> 149.9849165 | C55: 0.0151 | E55: =+E54+1 -> 3 | F55: =+F54+$B$50 -> 121.9460639 | G55: 0.0123 | I55: =+I54+1 -> 3 | J55: =+J54+$B$50 -> 93.79721134 | K55: 0.0094 | M55: =+M54+1 -> 3 | N55: =+N54+$B$50 -> 65.59835876 | O55: 0.0066 | Q55: =+Q54+1 -> 3 | R55: =+R54+$B$50 -> 37.31950618 | S55: 0.0037 | U55: =+U54+1 -> 3 | V55: =+V54+$B$50 -> 8.970653603 | W55: 0.0009 | Y55: =+Y54+1 -> 3 | Z55: =+Z54+$B$50 -> -19.45819897 | AA55: -0.002 | AC55: =+AC54+1 -> 3 | AD55: =+AD54+$B$50 -> -47.95705155 | AE55: -0.0049 | AG55: =+AG54+1 -> 3 | AH55: =+AH54+$B$50 -> -76.54590413 | AI55: -0.0078 | AK55: =+AK54+1 -> 3 | AL55: =+AL54+$B$50 -> -105.2147567 | AM55: -0.0107 | AO55: =+AO54+1 -> 3 | AP55: =+AP54+$B$50 -> -133.9636093 | AQ55: -0.0136 | AS55: =+AS54+1 -> 3 | AT55: =+AT54+$B$50 -> -162.7824619 | AU55: -0.0165
A56: 4 | B56: =+B55 -> 149.9849165 | C56: 0.0151 | E56: 4 | F56: =+F55 -> 121.9460639 | G56: 0.0123 | I56: 4 | J56: =+J55 -> 93.79721134 | K56: 0.0094 | M56: 4 | N56: =+N55 -> 65.59835876 | O56: 0.0066 | Q56: 4 | R56: =+R55 -> 37.31950618 | S56: 0.0037 | U56: 4 | V56: =+V55 -> 8.970653603 | W56: 0.0009 | Y56: 4 | Z56: =+Z55 -> -19.45819897 | AA56: -0.002 | AC56: 4 | AD56: =+AD55 -> -47.95705155 | AE56: -0.0049 | AG56: 4 | AH56: =+AH55 -> -76.54590413 | AI56: -0.0078 | AK56: 4 | AL56: =+AL55 -> -105.2147567 | AM56: -0.0107 | AO56: 4 | AP56: =+AP55 -> -133.9636093 | AQ56: -0.0136 | AS56: 4 | AT56: =+AT55 -> -162.7824619 | AU56: -0.0165
A57: 5 | B57: =+B56 -> 149.9849165 | C57: 0.0151 | E57: 5 | F57: =+F56 -> 121.9460639 | G57: 0.0123 | I57: 5 | J57: =+J56 -> 93.79721134 | K57: 0.0094 | M57: 5 | N57: =+N56 -> 65.59835876 | O57: 0.0066 | Q57: 5 | R57: =+R56 -> 37.31950618 | S57: 0.0037 | U57: 5 | V57: =+V56 -> 8.970653603 | W57: 0.0009 | Y57: 5 | Z57: =+Z56 -> -19.45819897 | AA57: -0.002 | AC57: 5 | AD57: =+AD56 -> -47.95705155 | AE57: -0.0049 | AG57: 5 | AH57: =+AH56 -> -76.54590413 | AI57: -0.0078 | AK57: 5 | AL57: =+AL56 -> -105.2147567 | AM57: -0.0107 | AO57: 5 | AP57: =+AP56 -> -133.9636093 | AQ57: -0.0136 | AS57: 5 | AT57: =+AT56 -> -162.7824619 | AU57: -0.0165
A58: 6 | B58: 149.9849165 | C58: 0.0151 | E58: 6 | F58: 121.9460639 | G58: 0.0123 | I58: 6 | J58: 93.79721134 | K58: 0.0094 | M58: 6 | N58: 65.59835876 | O58: 0.0066 | Q58: 6 | R58: 37.31950618 | S58: 0.0037 | U58: 6 | V58: 8.970653603 | W58: 0.0009 | Y58: 6 | Z58: -19.45819897 | AA58: -0.002 | AC58: 6 | AD58: -47.95705155 | AE58: -0.0049 | AG58: 6 | AH58: -76.54590413 | AI58: -0.0078 | AK58: 6 | AL58: -105.2147567 | AM58: -0.0107 | AO58: 6 | AP58: -133.9636093 | AQ58: -0.0136 | AS58: 6 | AT58: -162.7824619 | AU58: -0.0165
A59: 7 | B59: 149.9849165 | C59: 0.0151 | E59: 7 | F59: 121.9460639 | G59: 0.0123 | I59: 7 | J59: 93.79721134 | K59: 0.0094 | M59: 7 | N59: 65.59835876 | O59: 0.0066 | Q59: 7 | R59: 37.31950618 | S59: 0.0037 | U59: 7 | V59: 8.970653603 | W59: 0.0009 | Y59: 7 | Z59: -19.45819897 | AA59: -0.002 | AC59: 7 | AD59: -47.95705155 | AE59: -0.0049 | AG59: 7 | AH59: -76.54590413 | AI59: -0.0078 | AK59: 7 | AL59: -105.2147567 | AM59: -0.0107 | AO59: 7 | AP59: -133.9636093 | AQ59: -0.0136 | AS59: 7 | AT59: -162.7824619 | AU59: -0.0165
A60: 8 | B60: 149.9849165 | C60: 0.0151 | E60: 8 | F60: 121.9460639 | G60: 0.0123 | I60: 8 | J60: 93.79721134 | K60: 0.0094 | M60: 8 | N60: 65.59835876 | O60: 0.0066 | Q60: 8 | R60: 37.31950618 | S60: 0.0037 | U60: 8 | V60: 8.970653603 | W60: 0.0009 | Y60: 8 | Z60: -19.45819897 | AA60: -0.002 | AC60: 8 | AD60: -47.95705155 | AE60: -0.0049 | AG60: 8 | AH60: -76.54590413 | AI60: -0.0078 | AK60: 8 | AL60: -105.2147567 | AM60: -0.0107 | AO60: 8 | AP60: -133.9636093 | AQ60: -0.0136 | AS60: 8 | AT60: -162.7824619 | AU60: -0.0165
A61: 9 | B61: 149.9849165 | C61: 0.0151 | E61: 9 | F61: 121.9460639 | G61: 0.0123 | I61: 9 | J61: 93.79721134 | K61: 0.0094 | M61: 9 | N61: 65.59835876 | O61: 0.0066 | Q61: 9 | R61: 37.31950618 | S61: 0.0037 | U61: 9 | V61: 8.970653603 | W61: 0.0009 | Y61: 9 | Z61: -19.45819897 | AA61: -0.002 | AC61: 9 | AD61: -47.95705155 | AE61: -0.0049 | AG61: 9 | AH61: -76.54590413 | AI61: -0.0078 | AK61: 9 | AL61: -105.2147567 | AM61: -0.0107 | AO61: 9 | AP61: -133.9636093 | AQ61: -0.0136 | AS61: 9 | AT61: -162.7824619 | AU61: -0.0165
A62: 10 | B62: 149.9849165 | C62: 0.0151 | E62: 10 | F62: 121.9460639 | G62: 0.0123 | I62: 10 | J62: 93.79721134 | K62: 0.0094 | M62: 10 | N62: 65.59835876 | O62: 0.0066 | Q62: 10 | R62: 37.31950618 | S62: 0.0037 | U62: 10 | V62: 8.970653603 | W62: 0.0009 | Y62: 10 | Z62: -19.45819897 | AA62: -0.002 | AC62: 10 | AD62: -47.95705155 | AE62: -0.0049 | AG62: 10 | AH62: -76.54590413 | AI62: -0.0078 | AK62: 10 | AL62: -105.2147567 | AM62: -0.0107 | AO62: 10 | AP62: -133.9636093 | AQ62: -0.0136 | AS62: 10 | AT62: -162.7824619 | AU62: -0.0165
A63: 11 | B63: 149.9849165 | C63: 0.0151 | E63: 11 | F63: 121.9460639 | G63: 0.0123 | I63: 11 | J63: 93.79721134 | K63: 0.0094 | M63: 11 | N63: 65.59835876 | O63: 0.0066 | Q63: 11 | R63: 37.31950618 | S63: 0.0037 | U63: 11 | V63: 8.970653603 | W63: 0.0009 | Y63: 11 | Z63: -19.45819897 | AA63: -0.002 | AC63: 11 | AD63: -47.95705155 | AE63: -0.0049 | AG63: 11 | AH63: -76.54590413 | AI63: -0.0078 | AK63: 11 | AL63: -105.2147567 | AM63: -0.0107 | AO63: 11 | AP63: -133.9636093 | AQ63: -0.0136 | AS63: 11 | AT63: -162.7824619 | AU63: -0.0165
A64: 12 | B64: 149.9849165 | C64: 0.0151 | E64: 12 | F64: 121.9460639 | G64: 0.0123 | I64: 12 | J64: 93.79721134 | K64: 0.0094 | M64: 12 | N64: 65.59835876 | O64: 0.0066 | Q64: 12 | R64: 37.31950618 | S64: 0.0037 | U64: 12 | V64: 8.970653603 | W64: 0.0009 | Y64: 12 | Z64: -19.45819897 | AA64: -0.002 | AC64: 12 | AD64: -47.95705155 | AE64: -0.0049 | AG64: 12 | AH64: -76.54590413 | AI64: -0.0078 | AK64: 12 | AL64: -105.2147567 | AM64: -0.0107 | AO64: 12 | AP64: -133.9636093 | AQ64: -0.0136 | AS64: 12 | AT64: -162.7824619 | AU64: -0.0165
A65: 13 | B65: 149.9849165 | C65: 0.0151 | E65: 13 | F65: 121.9460639 | G65: 0.0123 | I65: 13 | J65: 93.79721134 | K65: 0.0094 | M65: 13 | N65: 65.59835876 | O65: 0.0066 | Q65: 13 | R65: 37.31950618 | S65: 0.0037 | U65: 13 | V65: 8.970653603 | W65: 0.0009 | Y65: 13 | Z65: -19.45819897 | AA65: -0.002 | AC65: 13 | AD65: -47.95705155 | AE65: -0.0049 | AG65: 13 | AH65: -76.54590413 | AI65: -0.0078 | AK65: 13 | AL65: -105.2147567 | AM65: -0.0107 | AO65: 13 | AP65: -133.9636093 | AQ65: -0.0136 | AS65: 13 | AT65: -162.7824619 | AU65: -0.0165
A66: 14 | B66: 149.9849165 | C66: 0.0151 | E66: 14 | F66: 121.9460639 | G66: 0.0123 | I66: 14 | J66: 93.79721134 | K66: 0.0094 | M66: 14 | N66: 65.59835876 | O66: 0.0066 | Q66: 14 | R66: 37.31950618 | S66: 0.0037 | U66: 14 | V66: 8.970653603 | W66: 0.0009 | Y66: 14 | Z66: -19.45819897 | AA66: -0.002 | AC66: 14 | AD66: -47.95705155 | AE66: -0.0049 | AG66: 14 | AH66: -76.54590413 | AI66: -0.0078 | AK66: 14 | AL66: -105.2147567 | AM66: -0.0107 | AO66: 14 | AP66: -133.9636093 | AQ66: -0.0136 | AS66: 14 | AT66: -162.7824619 | AU66: -0.0165
A67: 15 | B67: 149.9849165 | C67: 0.0151 | E67: 15 | F67: 121.9460639 | G67: 0.0123 | I67: 15 | J67: 93.79721134 | K67: 0.0094 | M67: 15 | N67: 65.59835876 | O67: 0.0066 | Q67: 15 | R67: 37.31950618 | S67: 0.0037 | U67: 15 | V67: 8.970653603 | W67: 0.0009 | Y67: 15 | Z67: -19.45819897 | AA67: -0.002 | AC67: 15 | AD67: -47.95705155 | AE67: -0.0049 | AG67: 15 | AH67: -76.54590413 | AI67: -0.0078 | AK67: 15 | AL67: -105.2147567 | AM67: -0.0107 | AO67: 15 | AP67: -133.9636093 | AQ67: -0.0136 | AS67: 15 | AT67: -162.7824619 | AU67: -0.0165
A68: 16 | B68: 149.9849165 | C68: 0.0151 | E68: 16 | F68: 121.9460639 | G68: 0.0123 | I68: 16 | J68: 93.79721134 | K68: 0.0094 | M68: 16 | N68: 65.59835876 | O68: 0.0066 | Q68: 16 | R68: 37.31950618 | S68: 0.0037 | U68: 16 | V68: 8.970653603 | W68: 0.0009 | Y68: 16 | Z68: -19.45819897 | AA68: -0.002 | AC68: 16 | AD68: -47.95705155 | AE68: -0.0049 | AG68: 16 | AH68: -76.54590413 | AI68: -0.0078 | AK68: 16 | AL68: -105.2147567 | AM68: -0.0107 | AO68: 16 | AP68: -133.9636093 | AQ68: -0.0136 | AS68: 16 | AT68: -162.7824619 | AU68: -0.0165
A69: 17 | B69: 149.9849165 | C69: 0.0151 | E69: 17 | F69: 121.9460639 | G69: 0.0123 | I69: 17 | J69: 93.79721134 | K69: 0.0094 | M69: 17 | N69: 65.59835876 | O69: 0.0066 | Q69: 17 | R69: 37.31950618 | S69: 0.0037 | U69: 17 | V69: 8.970653603 | W69: 0.0009 | Y69: 17 | Z69: -19.45819897 | AA69: -0.002 | AC69: 17 | AD69: -47.95705155 | AE69: -0.0049 | AG69: 17 | AH69: -76.54590413 | AI69: -0.0078 | AK69: 17 | AL69: -105.2147567 | AM69: -0.0107 | AO69: 17 | AP69: -133.9636093 | AQ69: -0.0136 | AS69: 17 | AT69: -162.7824619 | AU69: -0.0165
A70: 18 | B70: 149.9849165 | C70: 0.0151 | E70: 18 | F70: 121.9460639 | G70: 0.0123 | I70: 18 | J70: 93.79721134 | K70: 0.0094 | M70: 18 | N70: 65.59835876 | O70: 0.0066 | Q70: 18 | R70: 37.31950618 | S70: 0.0037 | U70: 18 | V70: 8.970653603 | W70: 0.0009 | Y70: 18 | Z70: -19.45819897 | AA70: -0.002 | AC70: 18 | AD70: -47.95705155 | AE70: -0.0049 | AG70: 18 | AH70: -76.54590413 | AI70: -0.0078 | AK70: 18 | AL70: -105.2147567 | AM70: -0.0107 | AO70: 18 | AP70: -133.9636093 | AQ70: -0.0136 | AS70: 18 | AT70: -162.7824619 | AU70: -0.0165
A71: 19 | B71: 149.9849165 | C71: 0.0151 | E71: 19 | F71: 121.9460639 | G71: 0.0123 | I71: 19 | J71: 93.79721134 | K71: 0.0094 | M71: 19 | N71: 65.59835876 | O71: 0.0066 | Q71: 19 | R71: 37.31950618 | S71: 0.0037 | U71: 19 | V71: 8.970653603 | W71: 0.0009 | Y71: 19 | Z71: -19.45819897 | AA71: -0.002 | AC71: 19 | AD71: -47.95705155 | AE71: -0.0049 | AG71: 19 | AH71: -76.54590413 | AI71: -0.0078 | AK71: 19 | AL71: -105.2147567 | AM71: -0.0107 | AO71: 19 | AP71: -133.9636093 | AQ71: -0.0136 | AS71: 19 | AT71: -162.7824619 | AU71: -0.0165
A72: 20 | B72: 149.9849165 | C72: 0.0151 | E72: 20 | F72: 121.9460639 | G72: 0.0123 | I72: 20 | J72: 93.79721134 | K72: 0.0094 | M72: 20 | N72: 65.59835876 | O72: 0.0066 | Q72: 20 | R72: 37.31950618 | S72: 0.0037 | U72: 20 | V72: 8.970653603 | W72: 0.0009 | Y72: 20 | Z72: -19.45819897 | AA72: -0.002 | AC72: 20 | AD72: -47.95705155 | AE72: -0.0049 | AG72: 20 | AH72: -76.54590413 | AI72: -0.0078 | AK72: 20 | AL72: -105.2147567 | AM72: -0.0107 | AO72: 20 | AP72: -133.9636093 | AQ72: -0.0136 | AS72: 20 | AT72: -162.7824619 | AU72: -0.0165
A73: 21 | B73: 149.9849165 | C73: 0.0151 | E73: 21 | F73: 121.9460639 | G73: 0.0123 | I73: 21 | J73: 93.79721134 | K73: 0.0094 | M73: 21 | N73: 65.59835876 | O73: 0.0066 | Q73: 21 | R73: 37.31950618 | S73: 0.0037 | U73: 21 | V73: 8.970653603 | W73: 0.0009 | Y73: 21 | Z73: -19.45819897 | AA73: -0.002 | AC73: 21 | AD73: -47.95705155 | AE73: -0.0049 | AG73: 21 | AH73: -76.54590413 | AI73: -0.0078 | AK73: 21 | AL73: -105.2147567 | AM73: -0.0107 | AO73: 21 | AP73: -133.9636093 | AQ73: -0.0136 | AS73: 21 | AT73: -162.7824619 | AU73: -0.0165
A74: 22 | B74: 149.9849165 | C74: 0.0151 | E74: 22 | F74: 121.9460639 | G74: 0.0123 | I74: 22 | J74: 93.79721134 | K74: 0.0094 | M74: 22 | N74: 65.59835876 | O74: 0.0066 | Q74: 22 | R74: 37.31950618 | S74: 0.0037 | U74: 22 | V74: 8.970653603 | W74: 0.0009 | Y74: 22 | Z74: -19.45819897 | AA74: -0.002 | AC74: 22 | AD74: -47.95705155 | AE74: -0.0049 | AG74: 22 | AH74: -76.54590413 | AI74: -0.0078 | AK74: 22 | AL74: -105.2147567 | AM74: -0.0107 | AO74: 22 | AP74: -133.9636093 | AQ74: -0.0136 | AS74: 22 | AT74: -162.7824619 | AU74: -0.0165
A75: 23 | B75: 149.9849165 | C75: 0.0151 | E75: 23 | F75: 121.9460639 | G75: 0.0123 | I75: 23 | J75: 93.79721134 | K75: 0.0094 | M75: 23 | N75: 65.59835876 | O75: 0.0066 | Q75: 23 | R75: 37.31950618 | S75: 0.0037 | U75: 23 | V75: 8.970653603 | W75: 0.0009 | Y75: 23 | Z75: -19.45819897 | AA75: -0.002 | AC75: 23 | AD75: -47.95705155 | AE75: -0.0049 | AG75: 23 | AH75: -76.54590413 | AI75: -0.0078 | AK75: 23 | AL75: -105.2147567 | AM75: -0.0107 | AO75: 23 | AP75: -133.9636093 | AQ75: -0.0136 | AS75: 23 | AT75: -162.7824619 | AU75: -0.0165
A76: 24 | B76: 149.9849165 | C76: 0.0151 | E76: 24 | F76: 121.9460639 | G76: 0.0123 | I76: 24 | J76: 93.79721134 | K76: 0.0094 | M76: 24 | N76: 65.59835876 | O76: 0.0066 | Q76: 24 | R76: 37.31950618 | S76: 0.0037 | U76: 24 | V76: 8.970653603 | W76: 0.0009 | Y76: 24 | Z76: -19.45819897 | AA76: -0.002 | AC76: 24 | AD76: -47.95705155 | AE76: -0.0049 | AG76: 24 | AH76: -76.54590413 | AI76: -0.0078 | AK76: 24 | AL76: -105.2147567 | AM76: -0.0107 | AO76: 24 | AP76: -133.9636093 | AQ76: -0.0136 | AS76: 24 | AT76: -162.7824619 | AU76: -0.0165
A77: 25 | B77: 149.9849165 | C77: 0.0151 | E77: 25 | F77: 121.9460639 | G77: 0.0123 | I77: 25 | J77: 93.79721134 | K77: 0.0094 | M77: 25 | N77: 65.59835876 | O77: 0.0066 | Q77: 25 | R77: 37.31950618 | S77: 0.0037 | U77: 25 | V77: 8.970653603 | W77: 0.0009 | Y77: 25 | Z77: -19.45819897 | AA77: -0.002 | AC77: 25 | AD77: -47.95705155 | AE77: -0.0049 | AG77: 25 | AH77: -76.54590413 | AI77: -0.0078 | AK77: 25 | AL77: -105.2147567 | AM77: -0.0107 | AO77: 25 | AP77: -133.9636093 | AQ77: -0.0136 | AS77: 25 | AT77: -162.7824619 | AU77: -0.0165
A78: 26 | B78: 149.9849165 | C78: 0.0151 | E78: 26 | F78: 121.9460639 | G78: 0.0123 | I78: 26 | J78: 93.79721134 | K78: 0.0094 | M78: 26 | N78: 65.59835876 | O78: 0.0066 | Q78: 26 | R78: 37.31950618 | S78: 0.0037 | U78: 26 | V78: 8.970653603 | W78: 0.0009 | Y78: 26 | Z78: -19.45819897 | AA78: -0.002 | AC78: 26 | AD78: -47.95705155 | AE78: -0.0049 | AG78: 26 | AH78: -76.54590413 | AI78: -0.0078 | AK78: 26 | AL78: -105.2147567 | AM78: -0.0107 | AO78: 26 | AP78: -133.9636093 | AQ78: -0.0136 | AS78: 26 | AT78: -162.7824619 | AU78: -0.0165
A79: 27 | B79: 149.9849165 | C79: 0.0151 | E79: 27 | F79: 121.9460639 | G79: 0.0123 | I79: 27 | J79: 93.79721134 | K79: 0.0094 | M79: 27 | N79: 65.59835876 | O79: 0.0066 | Q79: 27 | R79: 37.31950618 | S79: 0.0037 | U79: 27 | V79: 8.970653603 | W79: 0.0009 | Y79: 27 | Z79: -19.45819897 | AA79: -0.002 | AC79: 27 | AD79: -47.95705155 | AE79: -0.0049 | AG79: 27 | AH79: -76.54590413 | AI79: -0.0078 | AK79: 27 | AL79: -105.2147567 | AM79: -0.0107 | AO79: 27 | AP79: -133.9636093 | AQ79: -0.0136 | AS79: 27 | AT79: -162.7824619 | AU79: -0.0165
A80: 28 | B80: 149.9849165 | C80: 0.0151 | E80: 28 | F80: 121.9460639 | G80: 0.0123 | I80: 28 | J80: 93.79721134 | K80: 0.0094 | M80: 28 | N80: 65.59835876 | O80: 0.0066 | Q80: 28 | R80: 37.31950618 | S80: 0.0037 | U80: 28 | V80: 8.970653603 | W80: 0.0009 | Y80: 28 | Z80: -19.45819897 | AA80: -0.002 | AC80: 28 | AD80: -47.95705155 | AE80: -0.0049 | AG80: 28 | AH80: -76.54590413 | AI80: -0.0078 | AK80: 28 | AL80: -105.2147567 | AM80: -0.0107 | AO80: 28 | AP80: -133.9636093 | AQ80: -0.0136 | AS80: 28 | AT80: -162.7824619 | AU80: -0.0165
A81: 29 | B81: 149.9849165 | C81: 0.0151 | I81: 29 | J81: 93.79721134 | K81: 0.0094 | M81: 29 | N81: 65.59835876 | O81: 0.0066 | Q81: 29 | R81: 37.31950618 | S81: 0.0037 | U81: 29 | V81: 8.970653603 | W81: 0.0009 | Y81: 29 | Z81: -19.45819897 | AA81: -0.002 | AC81: 29 | AD81: -47.95705155 | AE81: -0.0049 | AG81: 29 | AH81: -76.54590413 | AI81: -0.0078 | AK81: 29 | AL81: -105.2147567 | AM81: -0.0107 | AO81: 29 | AP81: -133.9636093 | AQ81: -0.0136 | AS81: 29 | AT81: -162.7824619 | AU81: -0.0165
A82: 30 | B82: 149.9849165 | C82: 0.0151 | I82: 30 | J82: 93.79721134 | K82: 0.0094 | M82: 30 | N82: 65.59835876 | O82: 0.0066 | Q82: 30 | R82: 37.31950618 | S82: 0.0037 | U82: 30 | V82: 8.970653603 | W82: 0.0009 | Y82: 30 | Z82: -19.45819897 | AA82: -0.002 | AC82: 30 | AD82: -47.95705155 | AE82: -0.0049 | AG82: 30 | AH82: -76.54590413 | AI82: -0.0078 | AK82: 30 | AL82: -105.2147567 | AM82: -0.0107 | AO82: 30 | AP82: -133.9636093 | AQ82: -0.0136 | AS82: 30 | AT82: -162.7824619 | AU82: -0.0165
A83: 31 | B83: 149.9849165 | C83: 0.0151 | I83: 31 | J83: 93.79721134 | K83: 0.0094 | Q83: 31 | R83: 37.31950618 | S83: 0.0037 | Y83: 31 | Z83: -19.45819897 | AA83: -0.002 | AC83: 31 | AD83: -47.95705155 | AE83: -0.0049 | AK83: 31 | AL83: -105.2147567 | AM83: -0.0107 | AS83: 31 | AT83: -162.7824619 | AU83: -0.0165
B84: TOTAL........ | C84: =IF((TRUNC((SUM(C53:C83)*1000))/10)-TRUNC(TRUNC((SUM(C53:C83)*1000))/10)>0.5,ROUND(SUM(C53:C83),2),TRUNC((TRUNC((SUM(C53:C83)*1000))/10))/100) -> 0.47 | F84: TOTAL........ | G84: =IF((TRUNC((SUM(G53:G83)*1000))/10)-TRUNC(TRUNC((SUM(G53:G83)*1000))/10)>0.5,ROUND(SUM(G53:G83),2),TRUNC((TRUNC((SUM(G53:G83)*1000))/10))/100) -> 0.35 | J84: TOTAL........ | K84: =IF((TRUNC((SUM(K53:K83)*1000))/10)-TRUNC(TRUNC((SUM(K53:K83)*1000))/10)>0.5,ROUND(SUM(K53:K83),2),TRUNC((TRUNC((SUM(K53:K83)*1000))/10))/100) -> 0.29 | N84: TOTAL........ | O84: =IF((TRUNC((SUM(O53:O83)*1000))/10)-TRUNC(TRUNC((SUM(O53:O83)*1000))/10)>0.5,ROUND(SUM(O53:O83),2),TRUNC((TRUNC((SUM(O53:O83)*1000))/10))/100) -> 0.2 | R84: TOTAL........ | S84: =IF((TRUNC((SUM(S53:S83)*1000))/10)-TRUNC(TRUNC((SUM(S53:S83)*1000))/10)>0.5,ROUND(SUM(S53:S83),2),TRUNC((TRUNC((SUM(S53:S83)*1000))/10))/100) -> 0.12 | V84: TOTAL........ | W84: =IF((TRUNC((SUM(W53:W83)*1000))/10)-TRUNC(TRUNC((SUM(W53:W83)*1000))/10)>0.5,ROUND(SUM(W53:W83),2),TRUNC((TRUNC((SUM(W53:W83)*1000))/10))/100) -> 0.03 | X84: =SUM(C84:W84) -> 1.46 | Z84: TOTAL........ | AA84: =IF((TRUNC((SUM(AA53:AA83)*1000))/10)-TRUNC(TRUNC((SUM(AA53:AA83)*1000))/10)>0.5,ROUND(SUM(AA53:AA83),2),TRUNC((TRUNC((SUM(AA53:AA83)*1000))/10))/100) -> -0.05 | AD84: TOTAL........ | AE84: =IF((TRUNC((SUM(AE53:AE83)*1000))/10)-TRUNC(TRUNC((SUM(AE53:AE83)*1000))/10)>0.5,ROUND(SUM(AE53:AE83),2),TRUNC((TRUNC((SUM(AE53:AE83)*1000))/10))/100) -> -0.14 | AH84: TOTAL........ | AI84: =IF((TRUNC((SUM(AI53:AI83)*1000))/10)-TRUNC(TRUNC((SUM(AI53:AI83)*1000))/10)>0.5,ROUND(SUM(AI53:AI83),2),TRUNC((TRUNC((SUM(AI53:AI83)*1000))/10))/100) -> -0.23 | AL84: TOTAL........ | AM84: =IF((TRUNC((SUM(AM53:AM83)*1000))/10)-TRUNC(TRUNC((SUM(AM53:AM83)*1000))/10)>0.5,ROUND(SUM(AM53:AM83),2),TRUNC((TRUNC((SUM(AM53:AM83)*1000))/10))/100) -> -0.32 | AP84: TOTAL........ | AQ84: =IF((TRUNC((SUM(AQ53:AQ83)*1000))/10)-TRUNC(TRUNC((SUM(AQ53:AQ83)*1000))/10)>0.5,ROUND(SUM(AQ53:AQ83),2),TRUNC((TRUNC((SUM(AQ53:AQ83)*1000))/10))/100) -> -0.4 | AT84: TOTAL........ | AU84: =IF((TRUNC((SUM(AU53:AU83)*1000))/10)-TRUNC(TRUNC((SUM(AU53:AU83)*1000))/10)>0.5,ROUND(SUM(AU53:AU83),2),TRUNC((TRUNC((SUM(AU53:AU83)*1000))/10))/100) -> -0.5 | AV84: =SUM(B84:AU84) -> 1.28
B85: I.P.F. | C85: =ROUND(C84*0.1,2) -> 0.05 | F85: I.P.F. | G85: =ROUND(G84*0.1,2) -> 0.04 | J85: I.P.F. | K85: =ROUND(K84*0.1,2) -> 0.03 | N85: I.P.F. | O85: =ROUND(O84*0.1,2) -> 0.02 | R85: I.P.F. | S85: =ROUND(S84*0.1,2) -> 0.01 | V85: I.P.F. | W85: =ROUND(W84*0.1,2) -> 0 | X85: =SUM(C85:W85) -> 0.15 | Z85: I.P.F. | AA85: =ROUND(AA84*0.1,2) -> -0.01 | AD85: I.P.F. | AE85: =ROUND(AE84*0.1,2) -> -0.01 | AH85: I.P.F. | AI85: =ROUND(AI84*0.1,2) -> -0.02 | AL85: I.P.F. | AM85: =ROUND(AM84*0.1,2) -> -0.03 | AP85: I.P.F. | AQ85: =ROUND(AQ84*0.1,2) -> -0.04 | AT85: I.P.F. | AU85: =ROUND(AU84*0.1,2) -> -0.05 | AV85: =SUM(B85:AU85) -> 0.14
B86: NETOS | C86: =+C84-C85 -> 0.42 | F86: NETOS | G86: =+G84-G85 -> 0.31 | J86: NETOS | K86: =+K84-K85 -> 0.26 | N86: NETOS | O86: =+O84-O85 -> 0.18 | R86: NETOS | S86: =+S84-S85 -> 0.11 | V86: NETOS | W86: =+W84-W85 -> 0.03 | X86: =SUM(C86:W86) -> 1.31 | Y86: =+X86 -> 1.31 | Z86: NETOS | AA86: =+AA84-AA85 -> -0.04 | AD86: NETOS | AE86: =+AE84-AE85 -> -0.13 | AH86: NETOS | AI86: =+AI84-AI85 -> -0.21 | AL86: NETOS | AM86: =+AM84-AM85 -> -0.29 | AP86: NETOS | AQ86: =+AQ84-AQ85 -> -0.36 | AT86: NETOS | AU86: =+AU84-AU85 -> -0.45 | AV86: =SUM(B86:AU86) -> 2.45 | AW86: =+AV86 -> 2.45
W87: =+V82+W86-$B$4 -> 0.0006536033012 | AU87: =+AT83+AU86-$B$4 -> -172.2324619
A92: TERCER AÑO | B92: =IF($B$3>0,ROUND((B50*$B$3)+B50,2),B50) -> -19.45885258
A93: 1 | E93: =+A93+1 -> 2 | I93: =+E93+1 -> 3 | M93: =+I93+1 -> 4 | Q93: =+M93+1 -> 5 | U93: =+Q93+1 -> 6 | Y93: =+U93+1 -> 7 | AC93: =+Y93+1 -> 8 | AG93: =+AC93+1 -> 9 | AK93: =+AG93+1 -> 10 | AO93: =+AK93+1 -> 11 | AS93: =+AO93+1 -> 12
A94: NO. | B94: SALDO DIARIO | C94: INTERESES DIARIO | E94: NO. | F94: SALDO DIARIO | G94: INTERESES DIARIO | I94: NO. | J94: SALDO DIARIO | K94: INTERESES DIARIO | M94: NO. | N94: SALDO DIARIO | O94: INTERESES DIARIO | Q94: NO. | R94: SALDO DIARIO | S94: INTERESES DIARIO | U94: NO. | V94: SALDO DIARIO | W94: INTERESES DIARIO | Y94: NO. | Z94: SALDO DIARIO | AA94: INTERESES DIARIO | AC94: NO. | AD94: SALDO DIARIO | AE94: INTERESES DIARIO | AG94: NO. | AH94: SALDO DIARIO | AI94: INTERESES DIARIO | AK94: NO. | AL94: SALDO DIARIO | AM94: INTERESES DIARIO | AO94: NO. | AP94: SALDO DIARIO | AQ94: INTERESES DIARIO | AS94: NO. | AT94: SALDO DIARIO | AU94: INTERESES DIARIO
A95: 1 | B95: =+AT83+AU86-$B$4 -> -172.2324619 | C95: =ROUND(INT(ROUND(B95*$B$5/365,8)*10000)/10000,4) -> -0.0174 | E95: 1 | F95: =+B125+C128-$B$4 -> -201.2213144 | G95: =ROUND(INT(ROUND(F95*$B$5/365,8)*10000)/10000,4) -> -0.0204 | I95: 1 | J95: =+F122+G128-$B$4 -> -230.240167 | K95: =ROUND(INT(ROUND(J95*$B$5/365,8)*10000)/10000,4) -> -0.0233 | M95: 1 | N95: =+J125+K128-$B$4 -> -259.3990196 | O95: =ROUND(INT(ROUND(N95*$B$5/365,8)*10000)/10000,4) -> -0.0263 | Q95: 1 | R95: =+N124+O128-$B$4 -> -288.6178722 | S95: =ROUND(INT(ROUND(R95*$B$5/365,8)*10000)/10000,4) -> -0.0292 | U95: 1 | V95: =+R125+S128-$B$4 -> -317.9367248 | W95: =ROUND(INT(ROUND(V95*$B$5/365,8)*10000)/10000,4) -> -0.0322 | Y95: 1 | Z95: =+V124+W128-$B$4 -> -347.3055773 | AA95: =ROUND(INT(ROUND(Z95*$B$5/365,8)*10000)/10000,4) -> -0.0351 | AC95: 1 | AD95: =+Z125+AA128-$B$4 -> -376.7944299 | AE95: =ROUND(INT(ROUND(AD95*$B$5/365,8)*10000)/10000,4) -> -0.0381 | AG95: 1 | AH95: =+AD125+AE128-$B$4 -> -406.3632825 | AI95: =ROUND(INT(ROUND(AH95*$B$5/365,8)*10000)/10000,4) -> -0.0411 | AK95: 1 | AL95: =+AH124+AI128-$B$4 -> -435.9721351 | AM95: =ROUND(INT(ROUND(AL95*$B$5/365,8)*10000)/10000,4) -> -0.0441 | AO95: 1 | AP95: =+AL125+AM128-$B$4 -> -465.7109876 | AQ95: =ROUND(INT(ROUND(AP95*$B$5/365,8)*10000)/10000,4) -> -0.0471 | AS95: 1 | AT95: =+AP124+AQ128-$B$4 -> -495.4798402 | AU95: =ROUND(INT(ROUND(AT95*$B$5/365,8)*10000)/10000,4) -> -0.0501
A96: =+A95+1 -> 2 | B96: =+B95 -> -172.2324619 | C96: -0.0174 | E96: =+E95+1 -> 2 | F96: =+F95 -> -201.2213144 | G96: -0.0204 | I96: =+I95+1 -> 2 | J96: =+J95 -> -230.240167 | K96: -0.0233 | M96: =+M95+1 -> 2 | N96: =+N95 -> -259.3990196 | O96: -0.0263 | Q96: =+Q95+1 -> 2 | R96: =+R95 -> -288.6178722 | S96: -0.0292 | U96: =+U95+1 -> 2 | V96: =+V95 -> -317.9367248 | W96: -0.0322 | Y96: =+Y95+1 -> 2 | Z96: =+Z95 -> -347.3055773 | AA96: -0.0351 | AC96: =+AC95+1 -> 2 | AD96: =+AD95 -> -376.7944299 | AE96: -0.0381 | AG96: =+AG95+1 -> 2 | AH96: =+AH95 -> -406.3632825 | AI96: -0.0411 | AK96: =+AK95+1 -> 2 | AL96: =+AL95 -> -435.9721351 | AM96: -0.0441 | AO96: =+AO95+1 -> 2 | AP96: =+AP95 -> -465.7109876 | AQ96: -0.0471 | AS96: =+AS95+1 -> 2 | AT96: =+AT95 -> -495.4798402 | AU96: -0.0501
A97: =+A96+1 -> 3 | B97: =+B96+$B$92 -> -191.6913144 | C97: -0.0194 | E97: =+E96+1 -> 3 | F97: =+F96+$B$92 -> -220.680167 | G97: -0.0223 | I97: =+I96+1 -> 3 | J97: =+J96+$B$92 -> -249.6990196 | K97: -0.0253 | M97: =+M96+1 -> 3 | N97: =+N96+$B$92 -> -278.8578722 | O97: -0.0282 | Q97: =+Q96+1 -> 3 | R97: =+R96+$B$92 -> -308.0767248 | S97: -0.0312 | U97: =+U96+1 -> 3 | V97: =+V96+$B$92 -> -337.3955773 | W97: -0.0341 | Y97: =+Y96+1 -> 3 | Z97: =+Z96+$B$92 -> -366.7644299 | AA97: -0.0371 | AC97: =+AC96+1 -> 3 | AD97: =+AD96+$B$92 -> -396.2532825 | AE97: -0.0401 | AG97: =+AG96+1 -> 3 | AH97: =+AH96+$B$92 -> -425.8221351 | AI97: -0.0431 | AK97: =+AK96+1 -> 3 | AL97: =+AL96+$B$92 -> -455.4309876 | AM97: -0.0461 | AO97: =+AO96+1 -> 3 | AP97: =+AP96+$B$92 -> -485.1698402 | AQ97: -0.0491 | AS97: =+AS96+1 -> 3 | AT97: =+AT96+$B$92 -> -514.9386928 | AU97: -0.0521
A98: 4 | B98: =+B97 -> -191.6913144 | C98: -0.0194 | E98: 4 | F98: =+F97 -> -220.680167 | G98: -0.0223 | I98: 4 | J98: =+J97 -> -249.6990196 | K98: -0.0253 | M98: 4 | N98: =+N97 -> -278.8578722 | O98: -0.0282 | Q98: 4 | R98: =+R97 -> -308.0767248 | S98: -0.0312 | U98: 4 | V98: =+V97 -> -337.3955773 | W98: -0.0341 | Y98: 4 | Z98: =+Z97 -> -366.7644299 | AA98: -0.0371 | AC98: 4 | AD98: =+AD97 -> -396.2532825 | AE98: -0.0401 | AG98: 4 | AH98: =+AH97 -> -425.8221351 | AI98: -0.0431 | AK98: 4 | AL98: =+AL97 -> -455.4309876 | AM98: -0.0461 | AO98: 4 | AP98: =+AP97 -> -485.1698402 | AQ98: -0.0491 | AS98: 4 | AT98: =+AT97 -> -514.9386928 | AU98: -0.0521
A99: 5 | B99: =+B98 -> -191.6913144 | C99: -0.0194 | E99: 5 | F99: =+F98 -> -220.680167 | G99: -0.0223 | I99: 5 | J99: =+J98 -> -249.6990196 | K99: -0.0253 | M99: 5 | N99: =+N98 -> -278.8578722 | O99: -0.0282 | Q99: 5 | R99: =+R98 -> -308.0767248 | S99: -0.0312 | U99: 5 | V99: =+V98 -> -337.3955773 | W99: -0.0341 | Y99: 5 | Z99: =+Z98 -> -366.7644299 | AA99: -0.0371 | AC99: 5 | AD99: =+AD98 -> -396.2532825 | AE99: -0.0401 | AG99: 5 | AH99: =+AH98 -> -425.8221351 | AI99: -0.0431 | AK99: 5 | AL99: =+AL98 -> -455.4309876 | AM99: -0.0461 | AO99: 5 | AP99: =+AP98 -> -485.1698402 | AQ99: -0.0491 | AS99: 5 | AT99: =+AT98 -> -514.9386928 | AU99: -0.0521
A100: 6 | B100: -191.6913144 | C100: -0.0194 | E100: 6 | F100: -220.680167 | G100: -0.0223 | I100: 6 | J100: -249.6990196 | K100: -0.0253 | M100: 6 | N100: -278.8578722 | O100: -0.0282 | Q100: 6 | R100: -308.0767248 | S100: -0.0312 | U100: 6 | V100: -337.3955773 | W100: -0.0341 | Y100: 6 | Z100: -366.7644299 | AA100: -0.0371 | AC100: 6 | AD100: -396.2532825 | AE100: -0.0401 | AG100: 6 | AH100: -425.8221351 | AI100: -0.0431 | AK100: 6 | AL100: -455.4309876 | AM100: -0.0461 | AO100: 6 | AP100: -485.1698402 | AQ100: -0.0491 | AS100: 6 | AT100: -514.9386928 | AU100: -0.0521
A101: 7 | B101: -191.6913144 | C101: -0.0194 | E101: 7 | F101: -220.680167 | G101: -0.0223 | I101: 7 | J101: -249.6990196 | K101: -0.0253 | M101: 7 | N101: -278.8578722 | O101: -0.0282 | Q101: 7 | R101: -308.0767248 | S101: -0.0312 | U101: 7 | V101: -337.3955773 | W101: -0.0341 | Y101: 7 | Z101: -366.7644299 | AA101: -0.0371 | AC101: 7 | AD101: -396.2532825 | AE101: -0.0401 | AG101: 7 | AH101: -425.8221351 | AI101: -0.0431 | AK101: 7 | AL101: -455.4309876 | AM101: -0.0461 | AO101: 7 | AP101: -485.1698402 | AQ101: -0.0491 | AS101: 7 | AT101: -514.9386928 | AU101: -0.0521
A102: 8 | B102: -191.6913144 | C102: -0.0194 | E102: 8 | F102: -220.680167 | G102: -0.0223 | I102: 8 | J102: -249.6990196 | K102: -0.0253 | M102: 8 | N102: -278.8578722 | O102: -0.0282 | Q102: 8 | R102: -308.0767248 | S102: -0.0312 | U102: 8 | V102: -337.3955773 | W102: -0.0341 | Y102: 8 | Z102: -366.7644299 | AA102: -0.0371 | AC102: 8 | AD102: -396.2532825 | AE102: -0.0401 | AG102: 8 | AH102: -425.8221351 | AI102: -0.0431 | AK102: 8 | AL102: -455.4309876 | AM102: -0.0461 | AO102: 8 | AP102: -485.1698402 | AQ102: -0.0491 | AS102: 8 | AT102: -514.9386928 | AU102: -0.0521
A103: 9 | B103: -191.6913144 | C103: -0.0194 | E103: 9 | F103: -220.680167 | G103: -0.0223 | I103: 9 | J103: -249.6990196 | K103: -0.0253 | M103: 9 | N103: -278.8578722 | O103: -0.0282 | Q103: 9 | R103: -308.0767248 | S103: -0.0312 | U103: 9 | V103: -337.3955773 | W103: -0.0341 | Y103: 9 | Z103: -366.7644299 | AA103: -0.0371 | AC103: 9 | AD103: -396.2532825 | AE103: -0.0401 | AG103: 9 | AH103: -425.8221351 | AI103: -0.0431 | AK103: 9 | AL103: -455.4309876 | AM103: -0.0461 | AO103: 9 | AP103: -485.1698402 | AQ103: -0.0491 | AS103: 9 | AT103: -514.9386928 | AU103: -0.0521
A104: 10 | B104: -191.6913144 | C104: -0.0194 | E104: 10 | F104: -220.680167 | G104: -0.0223 | I104: 10 | J104: -249.6990196 | K104: -0.0253 | M104: 10 | N104: -278.8578722 | O104: -0.0282 | Q104: 10 | R104: -308.0767248 | S104: -0.0312 | U104: 10 | V104: -337.3955773 | W104: -0.0341 | Y104: 10 | Z104: -366.7644299 | AA104: -0.0371 | AC104: 10 | AD104: -396.2532825 | AE104: -0.0401 | AG104: 10 | AH104: -425.8221351 | AI104: -0.0431 | AK104: 10 | AL104: -455.4309876 | AM104: -0.0461 | AO104: 10 | AP104: -485.1698402 | AQ104: -0.0491 | AS104: 10 | AT104: -514.9386928 | AU104: -0.0521
A105: 11 | B105: -191.6913144 | C105: -0.0194 | E105: 11 | F105: -220.680167 | G105: -0.0223 | I105: 11 | J105: -249.6990196 | K105: -0.0253 | M105: 11 | N105: -278.8578722 | O105: -0.0282 | Q105: 11 | R105: -308.0767248 | S105: -0.0312 | U105: 11 | V105: -337.3955773 | W105: -0.0341 | Y105: 11 | Z105: -366.7644299 | AA105: -0.0371 | AC105: 11 | AD105: -396.2532825 | AE105: -0.0401 | AG105: 11 | AH105: -425.8221351 | AI105: -0.0431 | AK105: 11 | AL105: -455.4309876 | AM105: -0.0461 | AO105: 11 | AP105: -485.1698402 | AQ105: -0.0491 | AS105: 11 | AT105: -514.9386928 | AU105: -0.0521
A106: 12 | B106: -191.6913144 | C106: -0.0194 | E106: 12 | F106: -220.680167 | G106: -0.0223 | I106: 12 | J106: -249.6990196 | K106: -0.0253 | M106: 12 | N106: -278.8578722 | O106: -0.0282 | Q106: 12 | R106: -308.0767248 | S106: -0.0312 | U106: 12 | V106: -337.3955773 | W106: -0.0341 | Y106: 12 | Z106: -366.7644299 | AA106: -0.0371 | AC106: 12 | AD106: -396.2532825 | AE106: -0.0401 | AG106: 12 | AH106: -425.8221351 | AI106: -0.0431 | AK106: 12 | AL106: -455.4309876 | AM106: -0.0461 | AO106: 12 | AP106: -485.1698402 | AQ106: -0.0491 | AS106: 12 | AT106: -514.9386928 | AU106: -0.0521
A107: 13 | B107: -191.6913144 | C107: -0.0194 | E107: 13 | F107: -220.680167 | G107: -0.0223 | I107: 13 | J107: -249.6990196 | K107: -0.0253 | M107: 13 | N107: -278.8578722 | O107: -0.0282 | Q107: 13 | R107: -308.0767248 | S107: -0.0312 | U107: 13 | V107: -337.3955773 | W107: -0.0341 | Y107: 13 | Z107: -366.7644299 | AA107: -0.0371 | AC107: 13 | AD107: -396.2532825 | AE107: -0.0401 | AG107: 13 | AH107: -425.8221351 | AI107: -0.0431 | AK107: 13 | AL107: -455.4309876 | AM107: -0.0461 | AO107: 13 | AP107: -485.1698402 | AQ107: -0.0491 | AS107: 13 | AT107: -514.9386928 | AU107: -0.0521
A108: 14 | B108: -191.6913144 | C108: -0.0194 | E108: 14 | F108: -220.680167 | G108: -0.0223 | I108: 14 | J108: -249.6990196 | K108: -0.0253 | M108: 14 | N108: -278.8578722 | O108: -0.0282 | Q108: 14 | R108: -308.0767248 | S108: -0.0312 | U108: 14 | V108: -337.3955773 | W108: -0.0341 | Y108: 14 | Z108: -366.7644299 | AA108: -0.0371 | AC108: 14 | AD108: -396.2532825 | AE108: -0.0401 | AG108: 14 | AH108: -425.8221351 | AI108: -0.0431 | AK108: 14 | AL108: -455.4309876 | AM108: -0.0461 | AO108: 14 | AP108: -485.1698402 | AQ108: -0.0491 | AS108: 14 | AT108: -514.9386928 | AU108: -0.0521
A109: 15 | B109: -191.6913144 | C109: -0.0194 | E109: 15 | F109: -220.680167 | G109: -0.0223 | I109: 15 | J109: -249.6990196 | K109: -0.0253 | M109: 15 | N109: -278.8578722 | O109: -0.0282 | Q109: 15 | R109: -308.0767248 | S109: -0.0312 | U109: 15 | V109: -337.3955773 | W109: -0.0341 | Y109: 15 | Z109: -366.7644299 | AA109: -0.0371 | AC109: 15 | AD109: -396.2532825 | AE109: -0.0401 | AG109: 15 | AH109: -425.8221351 | AI109: -0.0431 | AK109: 15 | AL109: -455.4309876 | AM109: -0.0461 | AO109: 15 | AP109: -485.1698402 | AQ109: -0.0491 | AS109: 15 | AT109: -514.9386928 | AU109: -0.0521
A110: 16 | B110: -191.6913144 | C110: -0.0194 | E110: 16 | F110: -220.680167 | G110: -0.0223 | I110: 16 | J110: -249.6990196 | K110: -0.0253 | M110: 16 | N110: -278.8578722 | O110: -0.0282 | Q110: 16 | R110: -308.0767248 | S110: -0.0312 | U110: 16 | V110: -337.3955773 | W110: -0.0341 | Y110: 16 | Z110: -366.7644299 | AA110: -0.0371 | AC110: 16 | AD110: -396.2532825 | AE110: -0.0401 | AG110: 16 | AH110: -425.8221351 | AI110: -0.0431 | AK110: 16 | AL110: -455.4309876 | AM110: -0.0461 | AO110: 16 | AP110: -485.1698402 | AQ110: -0.0491 | AS110: 16 | AT110: -514.9386928 | AU110: -0.0521
A111: 17 | B111: -191.6913144 | C111: -0.0194 | E111: 17 | F111: -220.680167 | G111: -0.0223 | I111: 17 | J111: -249.6990196 | K111: -0.0253 | M111: 17 | N111: -278.8578722 | O111: -0.0282 | Q111: 17 | R111: -308.0767248 | S111: -0.0312 | U111: 17 | V111: -337.3955773 | W111: -0.0341 | Y111: 17 | Z111: -366.7644299 | AA111: -0.0371 | AC111: 17 | AD111: -396.2532825 | AE111: -0.0401 | AG111: 17 | AH111: -425.8221351 | AI111: -0.0431 | AK111: 17 | AL111: -455.4309876 | AM111: -0.0461 | AO111: 17 | AP111: -485.1698402 | AQ111: -0.0491 | AS111: 17 | AT111: -514.9386928 | AU111: -0.0521
A112: 18 | B112: -191.6913144 | C112: -0.0194 | E112: 18 | F112: -220.680167 | G112: -0.0223 | I112: 18 | J112: -249.6990196 | K112: -0.0253 | M112: 18 | N112: -278.8578722 | O112: -0.0282 | Q112: 18 | R112: -308.0767248 | S112: -0.0312 | U112: 18 | V112: -337.3955773 | W112: -0.0341 | Y112: 18 | Z112: -366.7644299 | AA112: -0.0371 | AC112: 18 | AD112: -396.2532825 | AE112: -0.0401 | AG112: 18 | AH112: -425.8221351 | AI112: -0.0431 | AK112: 18 | AL112: -455.4309876 | AM112: -0.0461 | AO112: 18 | AP112: -485.1698402 | AQ112: -0.0491 | AS112: 18 | AT112: -514.9386928 | AU112: -0.0521
A113: 19 | B113: -191.6913144 | C113: -0.0194 | E113: 19 | F113: -220.680167 | G113: -0.0223 | I113: 19 | J113: -249.6990196 | K113: -0.0253 | M113: 19 | N113: -278.8578722 | O113: -0.0282 | Q113: 19 | R113: -308.0767248 | S113: -0.0312 | U113: 19 | V113: -337.3955773 | W113: -0.0341 | Y113: 19 | Z113: -366.7644299 | AA113: -0.0371 | AC113: 19 | AD113: -396.2532825 | AE113: -0.0401 | AG113: 19 | AH113: -425.8221351 | AI113: -0.0431 | AK113: 19 | AL113: -455.4309876 | AM113: -0.0461 | AO113: 19 | AP113: -485.1698402 | AQ113: -0.0491 | AS113: 19 | AT113: -514.9386928 | AU113: -0.0521
A114: 20 | B114: -191.6913144 | C114: -0.0194 | E114: 20 | F114: -220.680167 | G114: -0.0223 | I114: 20 | J114: -249.6990196 | K114: -0.0253 | M114: 20 | N114: -278.8578722 | O114: -0.0282 | Q114: 20 | R114: -308.0767248 | S114: -0.0312 | U114: 20 | V114: -337.3955773 | W114: -0.0341 | Y114: 20 | Z114: -366.7644299 | AA114: -0.0371 | AC114: 20 | AD114: -396.2532825 | AE114: -0.0401 | AG114: 20 | AH114: -425.8221351 | AI114: -0.0431 | AK114: 20 | AL114: -455.4309876 | AM114: -0.0461 | AO114: 20 | AP114: -485.1698402 | AQ114: -0.0491 | AS114: 20 | AT114: -514.9386928 | AU114: -0.0521
A115: 21 | B115: -191.6913144 | C115: -0.0194 | E115: 21 | F115: -220.680167 | G115: -0.0223 | I115: 21 | J115: -249.6990196 | K115: -0.0253 | M115: 21 | N115: -278.8578722 | O115: -0.0282 | Q115: 21 | R115: -308.0767248 | S115: -0.0312 | U115: 21 | V115: -337.3955773 | W115: -0.0341 | Y115: 21 | Z115: -366.7644299 | AA115: -0.0371 | AC115: 21 | AD115: -396.2532825 | AE115: -0.0401 | AG115: 21 | AH115: -425.8221351 | AI115: -0.0431 | AK115: 21 | AL115: -455.4309876 | AM115: -0.0461 | AO115: 21 | AP115: -485.1698402 | AQ115: -0.0491 | AS115: 21 | AT115: -514.9386928 | AU115: -0.0521
A116: 22 | B116: -191.6913144 | C116: -0.0194 | E116: 22 | F116: -220.680167 | G116: -0.0223 | I116: 22 | J116: -249.6990196 | K116: -0.0253 | M116: 22 | N116: -278.8578722 | O116: -0.0282 | Q116: 22 | R116: -308.0767248 | S116: -0.0312 | U116: 22 | V116: -337.3955773 | W116: -0.0341 | Y116: 22 | Z116: -366.7644299 | AA116: -0.0371 | AC116: 22 | AD116: -396.2532825 | AE116: -0.0401 | AG116: 22 | AH116: -425.8221351 | AI116: -0.0431 | AK116: 22 | AL116: -455.4309876 | AM116: -0.0461 | AO116: 22 | AP116: -485.1698402 | AQ116: -0.0491 | AS116: 22 | AT116: -514.9386928 | AU116: -0.0521
A117: 23 | B117: -191.6913144 | C117: -0.0194 | E117: 23 | F117: -220.680167 | G117: -0.0223 | I117: 23 | J117: -249.6990196 | K117: -0.0253 | M117: 23 | N117: -278.8578722 | O117: -0.0282 | Q117: 23 | R117: -308.0767248 | S117: -0.0312 | U117: 23 | V117: -337.3955773 | W117: -0.0341 | Y117: 23 | Z117: -366.7644299 | AA117: -0.0371 | AC117: 23 | AD117: -396.2532825 | AE117: -0.0401 | AG117: 23 | AH117: -425.8221351 | AI117: -0.0431 | AK117: 23 | AL117: -455.4309876 | AM117: -0.0461 | AO117: 23 | AP117: -485.1698402 | AQ117: -0.0491 | AS117: 23 | AT117: -514.9386928 | AU117: -0.0521
A118: 24 | B118: -191.6913144 | C118: -0.0194 | E118: 24 | F118: -220.680167 | G118: -0.0223 | I118: 24 | J118: -249.6990196 | K118: -0.0253 | M118: 24 | N118: -278.8578722 | O118: -0.0282 | Q118: 24 | R118: -308.0767248 | S118: -0.0312 | U118: 24 | V118: -337.3955773 | W118: -0.0341 | Y118: 24 | Z118: -366.7644299 | AA118: -0.0371 | AC118: 24 | AD118: -396.2532825 | AE118: -0.0401 | AG118: 24 | AH118: -425.8221351 | AI118: -0.0431 | AK118: 24 | AL118: -455.4309876 | AM118: -0.0461 | AO118: 24 | AP118: -485.1698402 | AQ118: -0.0491 | AS118: 24 | AT118: -514.9386928 | AU118: -0.0521
A119: 25 | B119: -191.6913144 | C119: -0.0194 | E119: 25 | F119: -220.680167 | G119: -0.0223 | I119: 25 | J119: -249.6990196 | K119: -0.0253 | M119: 25 | N119: -278.8578722 | O119: -0.0282 | Q119: 25 | R119: -308.0767248 | S119: -0.0312 | U119: 25 | V119: -337.3955773 | W119: -0.0341 | Y119: 25 | Z119: -366.7644299 | AA119: -0.0371 | AC119: 25 | AD119: -396.2532825 | AE119: -0.0401 | AG119: 25 | AH119: -425.8221351 | AI119: -0.0431 | AK119: 25 | AL119: -455.4309876 | AM119: -0.0461 | AO119: 25 | AP119: -485.1698402 | AQ119: -0.0491 | AS119: 25 | AT119: -514.9386928 | AU119: -0.0521
A120: 26 | B120: -191.6913144 | C120: -0.0194 | E120: 26 | F120: -220.680167 | G120: -0.0223 | I120: 26 | J120: -249.6990196 | K120: -0.0253 | M120: 26 | N120: -278.8578722 | O120: -0.0282 | Q120: 26 | R120: -308.0767248 | S120: -0.0312 | U120: 26 | V120: -337.3955773 | W120: -0.0341 | Y120: 26 | Z120: -366.7644299 | AA120: -0.0371 | AC120: 26 | AD120: -396.2532825 | AE120: -0.0401 | AG120: 26 | AH120: -425.8221351 | AI120: -0.0431 | AK120: 26 | AL120: -455.4309876 | AM120: -0.0461 | AO120: 26 | AP120: -485.1698402 | AQ120: -0.0491 | AS120: 26 | AT120: -514.9386928 | AU120: -0.0521
A121: 27 | B121: -191.6913144 | C121: -0.0194 | E121: 27 | F121: -220.680167 | G121: -0.0223 | I121: 27 | J121: -249.6990196 | K121: -0.0253 | M121: 27 | N121: -278.8578722 | O121: -0.0282 | Q121: 27 | R121: -308.0767248 | S121: -0.0312 | U121: 27 | V121: -337.3955773 | W121: -0.0341 | Y121: 27 | Z121: -366.7644299 | AA121: -0.0371 | AC121: 27 | AD121: -396.2532825 | AE121: -0.0401 | AG121: 27 | AH121: -425.8221351 | AI121: -0.0431 | AK121: 27 | AL121: -455.4309876 | AM121: -0.0461 | AO121: 27 | AP121: -485.1698402 | AQ121: -0.0491 | AS121: 27 | AT121: -514.9386928 | AU121: -0.0521
A122: 28 | B122: -191.6913144 | C122: -0.0194 | E122: 28 | F122: -220.680167 | G122: -0.0223 | I122: 28 | J122: -249.6990196 | K122: -0.0253 | M122: 28 | N122: -278.8578722 | O122: -0.0282 | Q122: 28 | R122: -308.0767248 | S122: -0.0312 | U122: 28 | V122: -337.3955773 | W122: -0.0341 | Y122: 28 | Z122: -366.7644299 | AA122: -0.0371 | AC122: 28 | AD122: -396.2532825 | AE122: -0.0401 | AG122: 28 | AH122: -425.8221351 | AI122: -0.0431 | AK122: 28 | AL122: -455.4309876 | AM122: -0.0461 | AO122: 28 | AP122: -485.1698402 | AQ122: -0.0491 | AS122: 28 | AT122: -514.9386928 | AU122: -0.0521
A123: 29 | B123: -191.6913144 | C123: -0.0194 | I123: 29 | J123: -249.6990196 | K123: -0.0253 | M123: 29 | N123: -278.8578722 | O123: -0.0282 | Q123: 29 | R123: -308.0767248 | S123: -0.0312 | U123: 29 | V123: -337.3955773 | W123: -0.0341 | Y123: 29 | Z123: -366.7644299 | AA123: -0.0371 | AC123: 29 | AD123: -396.2532825 | AE123: -0.0401 | AG123: 29 | AH123: -425.8221351 | AI123: -0.0431 | AK123: 29 | AL123: -455.4309876 | AM123: -0.0461 | AO123: 29 | AP123: -485.1698402 | AQ123: -0.0491 | AS123: 29 | AT123: -514.9386928 | AU123: -0.0521
A124: 30 | B124: -191.6913144 | C124: -0.0194 | I124: 30 | J124: -249.6990196 | K124: -0.0253 | M124: 30 | N124: -278.8578722 | O124: -0.0282 | Q124: 30 | R124: -308.0767248 | S124: -0.0312 | U124: 30 | V124: -337.3955773 | W124: -0.0341 | Y124: 30 | Z124: -366.7644299 | AA124: -0.0371 | AC124: 30 | AD124: -396.2532825 | AE124: -0.0401 | AG124: 30 | AH124: -425.8221351 | AI124: -0.0431 | AK124: 30 | AL124: -455.4309876 | AM124: -0.0461 | AO124: 30 | AP124: -485.1698402 | AQ124: -0.0491 | AS124: 30 | AT124: -514.9386928 | AU124: -0.0521
A125: 31 | B125: -191.6913144 | C125: -0.0194 | I125: 31 | J125: -249.6990196 | K125: -0.0253 | Q125: 31 | R125: -308.0767248 | S125: -0.0312 | Y125: 31 | Z125: -366.7644299 | AA125: -0.0371 | AC125: 31 | AD125: -396.2532825 | AE125: -0.0401 | AK125: 31 | AL125: -455.4309876 | AM125: -0.0461 | AS125: 31 | AT125: -514.9386928 | AU125: -0.0521
B126: TOTAL........ | C126: =IF((TRUNC((SUM(C95:C125)*1000))/10)-TRUNC(TRUNC((SUM(C95:C125)*1000))/10)>0.5,ROUND(SUM(C95:C125),2),TRUNC((TRUNC((SUM(C95:C125)*1000))/10))/100) -> -0.59 | F126: TOTAL........ | G126: =IF((TRUNC((SUM(G95:G125)*1000))/10)-TRUNC(TRUNC((SUM(G95:G125)*1000))/10)>0.5,ROUND(SUM(G95:G125),2),TRUNC((TRUNC((SUM(G95:G125)*1000))/10))/100) -> -0.62 | J126: TOTAL........ | K126: =IF((TRUNC((SUM(K95:K125)*1000))/10)-TRUNC(TRUNC((SUM(K95:K125)*1000))/10)>0.5,ROUND(SUM(K95:K125),2),TRUNC((TRUNC((SUM(K95:K125)*1000))/10))/100) -> -0.78 | N126: TOTAL........ | O126: =IF((TRUNC((SUM(O95:O125)*1000))/10)-TRUNC(TRUNC((SUM(O95:O125)*1000))/10)>0.5,ROUND(SUM(O95:O125),2),TRUNC((TRUNC((SUM(O95:O125)*1000))/10))/100) -> -0.84 | R126: TOTAL........ | S126: =IF((TRUNC((SUM(S95:S125)*1000))/10)-TRUNC(TRUNC((SUM(S95:S125)*1000))/10)>0.5,ROUND(SUM(S95:S125),2),TRUNC((TRUNC((SUM(S95:S125)*1000))/10))/100) -> -0.96 | V126: TOTAL........ | W126: =IF((TRUNC((SUM(W95:W125)*1000))/10)-TRUNC(TRUNC((SUM(W95:W125)*1000))/10)>0.5,ROUND(SUM(W95:W125),2),TRUNC((TRUNC((SUM(W95:W125)*1000))/10))/100) -> -1.01 | Z126: TOTAL........ | AA126: =IF((TRUNC((SUM(AA95:AA125)*1000))/10)-TRUNC(TRUNC((SUM(AA95:AA125)*1000))/10)>0.5,ROUND(SUM(AA95:AA125),2),TRUNC((TRUNC((SUM(AA95:AA125)*1000))/10))/100) -> -1.14 | AD126: TOTAL........ | AE126: =IF((TRUNC((SUM(AE95:AE125)*1000))/10)-TRUNC(TRUNC((SUM(AE95:AE125)*1000))/10)>0.5,ROUND(SUM(AE95:AE125),2),TRUNC((TRUNC((SUM(AE95:AE125)*1000))/10))/100) -> -1.23 | AH126: TOTAL........ | AI126: =IF((TRUNC((SUM(AI95:AI125)*1000))/10)-TRUNC(TRUNC((SUM(AI95:AI125)*1000))/10)>0.5,ROUND(SUM(AI95:AI125),2),TRUNC((TRUNC((SUM(AI95:AI125)*1000))/10))/100) -> -1.28 | AL126: TOTAL........ | AM126: =IF((TRUNC((SUM(AM95:AM125)*1000))/10)-TRUNC(TRUNC((SUM(AM95:AM125)*1000))/10)>0.5,ROUND(SUM(AM95:AM125),2),TRUNC((TRUNC((SUM(AM95:AM125)*1000))/10))/100) -> -1.42 | AP126: TOTAL........ | AQ126: =IF((TRUNC((SUM(AQ95:AQ125)*1000))/10)-TRUNC(TRUNC((SUM(AQ95:AQ125)*1000))/10)>0.5,ROUND(SUM(AQ95:AQ125),2),TRUNC((TRUNC((SUM(AQ95:AQ125)*1000))/10))/100) -> -1.46 | AT126: TOTAL........ | AU126: =IF((TRUNC((SUM(AU95:AU125)*1000))/10)-TRUNC(TRUNC((SUM(AU95:AU125)*1000))/10)>0.5,ROUND(SUM(AU95:AU125),2),TRUNC((TRUNC((SUM(AU95:AU125)*1000))/10))/100) -> -1.61 | AV126: =SUM(B126:AU126) -> -12.94
B127: I.P.F. | C127: =ROUND(C126*0.1,2) -> -0.06 | F127: I.P.F. | G127: =ROUND(G126*0.1,2) -> -0.06 | J127: I.P.F. | K127: =ROUND(K126*0.1,2) -> -0.08 | N127: I.P.F. | O127: =ROUND(O126*0.1,2) -> -0.08 | R127: I.P.F. | S127: =ROUND(S126*0.1,2) -> -0.1 | V127: I.P.F. | W127: =ROUND(W126*0.1,2) -> -0.1 | Z127: I.P.F. | AA127: =ROUND(AA126*0.1,2) -> -0.11 | AD127: I.P.F. | AE127: =ROUND(AE126*0.1,2) -> -0.12 | AH127: I.P.F. | AI127: =ROUND(AI126*0.1,2) -> -0.13 | AL127: I.P.F. | AM127: =ROUND(AM126*0.1,2) -> -0.14 | AP127: I.P.F. | AQ127: =ROUND(AQ126*0.1,2) -> -0.15 | AT127: I.P.F. | AU127: =ROUND(AU126*0.1,2) -> -0.16 | AV127: =SUM(B127:AU127) -> -1.29
B128: NETOS | C128: =+C126-C127 -> -0.53 | F128: NETOS | G128: =+G126-G127 -> -0.56 | J128: NETOS | K128: =+K126-K127 -> -0.7 | N128: NETOS | O128: =+O126-O127 -> -0.76 | R128: NETOS | S128: =+S126-S127 -> -0.86 | V128: NETOS | W128: =+W126-W127 -> -0.91 | Z128: NETOS | AA128: =+AA126-AA127 -> -1.03 | AD128: NETOS | AE128: =+AE126-AE127 -> -1.11 | AH128: NETOS | AI128: =+AI126-AI127 -> -1.15 | AL128: NETOS | AM128: =+AM126-AM127 -> -1.28 | AP128: NETOS | AQ128: =+AQ126-AQ127 -> -1.31 | AT128: NETOS | AU128: =+AU126-AU127 -> -1.45 | AV128: =SUM(B128:AU128) -> -11.65 | AW128: =+AV128 -> -11.65
AU129: =+AT125+AU128-$B$4 -> -525.3886928

Sheet Calculo aporte dia 3_3 (hidden)
A1: APORTE INICIAL | B1: =+'Tres Años'!G17 -> 500
A2: APORTE PACTADO | B2: =+'Tres Años'!G19 -> -5.826100141
A3: REVALORIZACIÓN | B3: =+'Tres Años'!G23 -> 0
A4: SEGURO | B4: 9
A5: TASA NOMINAL | B5: =+'Tres Años'!G15 -> 0.0489
A6: BASE DE CALCULO | B6: 365
A8: PRIMER AÑO | B8: =+B2 -> -5.826100141
A9: 1 | E9: =+A9+1 -> 2 | I9: =+E9+1 -> 3 | M9: =+I9+1 -> 4 | Q9: =+M9+1 -> 5 | U9: =+Q9+1 -> 6 | Y9: =+U9+1 -> 7 | AC9: =+Y9+1 -> 8 | AG9: =+AC9+1 -> 9 | AK9: =+AG9+1 -> 10 | AO9: =+AK9+1 -> 11 | AS9: =+AO9+1 -> 12
A10: NO. | B10: SALDO DIARIO | C10: INTERESES DIARIO | E10: NO. | F10: SALDO DIARIO | G10: INTERESES DIARIO | I10: NO. | J10: SALDO DIARIO | K10: INTERESES DIARIO | M10: NO. | N10: SALDO DIARIO | O10: INTERESES DIARIO | Q10: NO. | R10: SALDO DIARIO | S10: INTERESES DIARIO | U10: NO. | V10: SALDO DIARIO | W10: INTERESES DIARIO | Y10: NO. | Z10: SALDO DIARIO | AA10: INTERESES DIARIO | AC10: NO. | AD10: SALDO DIARIO | AE10: INTERESES DIARIO | AG10: NO. | AH10: SALDO DIARIO | AI10: INTERESES DIARIO | AK10: NO. | AL10: SALDO DIARIO | AM10: INTERESES DIARIO | AO10: NO. | AP10: SALDO DIARIO | AQ10: INTERESES DIARIO | AS10: NO. | AT10: SALDO DIARIO | AU10: INTERESES DIARIO
A11: 1 | B11: =+B1 -> 500 | C11: =ROUND(INT(ROUND(B11*$B$5/365,8)*10000)/10000,4) -> 0.0669 | E11: 1 | F11: =+B41+C44-$B$4 -> 487.0138999 | G11: =ROUND(INT(ROUND(F11*$B$5/365,8)*10000)/10000,4) -> 0.0652 | I11: 1 | J11: =+F38+G44-$B$4 -> 473.8077997 | K11: =ROUND(INT(ROUND(J11*$B$5/365,8)*10000)/10000,4) -> 0.0634 | M11: 1 | N11: =+J41+K44-$B$4 -> 460.7316996 | O11: =ROUND(INT(ROUND(N11*$B$5/365,8)*10000)/10000,4) -> 0.0617 | Q11: 1 | R11: =+N40+O44-$B$4 -> 447.5555994 | S11: =ROUND(INT(ROUND(R11*$B$5/365,8)*10000)/10000,4) -> 0.0599 | U11: 1 | V11: =+R41+S44-$B$4 -> 434.3794993 | W11: =ROUND(INT(ROUND(V11*$B$5/365,8)*10000)/10000,4) -> 0.0581 | Y11: 1 | Z11: =+V40+W44-$B$4 -> 421.1033992 | AA11: =ROUND(INT(ROUND(Z11*$B$5/365,8)*10000)/10000,4) -> 0.0564 | AC11: 1 | AD11: =+Z41+AA44-$B$4 -> 407.827299 | AE11: =ROUND(INT(ROUND(AD11*$B$5/365,8)*10000)/10000,4) -> 0.0546 | AG11: 1 | AH11: =+AD41+AE44-$B$4 -> 394.5011989 | AI11: =ROUND(INT(ROUND(AH11*$B$5/365,8)*10000)/10000,4) -> 0.0528 | AK11: 1 | AL11: =+AH40+AI44-$B$4 -> 381.0750987 | AM11: =ROUND(INT(ROUND(AL11*$B$5/365,8)*10000)/10000,4) -> 0.051 | AO11: 1 | AP11: =+AL41+AM44-$B$4 -> 367.6489986 | AQ11: =ROUND(INT(ROUND(AP11*$B$5/365,8)*10000)/10000,4) -> 0.0492 | AS11: 1 | AT11: =+AP40+AQ44-$B$4 -> 354.1228984 | AU11: =ROUND(INT(ROUND(AT11*$B$5/365,8)*10000)/10000,4) -> 0.0474
A12: =+A11+1 -> 2 | B12: =+B11 -> 500 | C12: =ROUND(INT(ROUND(B12*$B$5/365,8)*10000)/10000,4) -> 0.0669 | E12: =+E11+1 -> 2 | F12: =+F11 -> 487.0138999 | G12: 0.0652 | I12: =+I11+1 -> 2 | J12: =+J11 -> 473.8077997 | K12: 0.0634 | M12: =+M11+1 -> 2 | N12: =+N11 -> 460.7316996 | O12: 0.0617 | Q12: =+Q11+1 -> 2 | R12: =+R11 -> 447.5555994 | S12: 0.0599 | U12: =+U11+1 -> 2 | V12: =+V11 -> 434.3794993 | W12: 0.0581 | Y12: =+Y11+1 -> 2 | Z12: =+Z11 -> 421.1033992 | AA12: 0.0564 | AC12: =+AC11+1 -> 2 | AD12: =+AD11 -> 407.827299 | AE12: 0.0546 | AG12: =+AG11+1 -> 2 | AH12: =+AH11 -> 394.5011989 | AI12: 0.0528 | AK12: =+AK11+1 -> 2 | AL12: =+AL11 -> 381.0750987 | AM12: 0.051 | AO12: =+AO11+1 -> 2 | AP12: =+AP11 -> 367.6489986 | AQ12: 0.0492 | AS12: =+AS11+1 -> 2 | AT12: =+AT11 -> 354.1228984 | AU12: 0.0474
A13: =+A12+1 -> 3 | B13: =+B12+$B$8 -> 494.1738999 | C13: 0.0662 | E13: =+E12+1 -> 3 | F13: =+F12+$B$8 -> 481.1877997 | G13: 0.0644 | I13: =+I12+1 -> 3 | J13: =+J12+$B$8 -> 467.9816996 | K13: 0.0626 | M13: =+M12+1 -> 3 | N13: =+N12+$B$8 -> 454.9055994 | O13: 0.0609 | Q13: =+Q12+1 -> 3 | R13: =+R12+$B$8 -> 441.7294993 | S13: 0.0591 | U13: =+U12+1 -> 3 | V13: =+V12+$B$8 -> 428.5533992 | W13: 0.0574 | Y13: =+Y12+1 -> 3 | Z13: =+Z12+$B$8 -> 415.277299 | AA13: 0.0556 | AC13: =+AC12+1 -> 3 | AD13: =+AD12+$B$8 -> 402.0011989 | AE13: 0.0538 | AG13: =+AG12+1 -> 3 | AH13: =+AH12+$B$8 -> 388.6750987 | AI13: 0.052 | AK13: =+AK12+1 -> 3 | AL13: =+AL12+$B$8 -> 375.2489986 | AM13: 0.0502 | AO13: =+AO12+1 -> 3 | AP13: =+AP12+$B$8 -> 361.8228984 | AQ13: 0.0484 | AS13: =+AS12+1 -> 3 | AT13: =+AT12+$B$8 -> 348.2967983 | AU13: 0.0466
A14: 4 | B14: =+B13 -> 494.1738999 | C14: 0.0662 | E14: 4 | F14: =+F13 -> 481.1877997 | G14: 0.0644 | I14: 4 | J14: =+J13 -> 467.9816996 | K14: 0.0626 | M14: 4 | N14: =+N13 -> 454.9055994 | O14: 0.0609 | Q14: 4 | R14: =+R13 -> 441.7294993 | S14: 0.0591 | U14: 4 | V14: =+V13 -> 428.5533992 | W14: 0.0574 | Y14: 4 | Z14: =+Z13 -> 415.277299 | AA14: 0.0556 | AC14: 4 | AD14: =+AD13 -> 402.0011989 | AE14: 0.0538 | AG14: 4 | AH14: =+AH13 -> 388.6750987 | AI14: 0.052 | AK14: 4 | AL14: =+AL13 -> 375.2489986 | AM14: 0.0502 | AO14: 4 | AP14: =+AP13 -> 361.8228984 | AQ14: 0.0484 | AS14: 4 | AT14: =+AT13 -> 348.2967983 | AU14: 0.0466
A15: 5 | B15: =+B14 -> 494.1738999 | C15: 0.0662 | E15: 5 | F15: =+F14 -> 481.1877997 | G15: 0.0644 | I15: 5 | J15: =+J14 -> 467.9816996 | K15: 0.0626 | M15: 5 | N15: =+N14 -> 454.9055994 | O15: 0.0609 | Q15: 5 | R15: =+R14 -> 441.7294993 | S15: 0.0591 | U15: 5 | V15: =+V14 -> 428.5533992 | W15: 0.0574 | Y15: 5 | Z15: =+Z14 -> 415.277299 | AA15: 0.0556 | AC15: 5 | AD15: =+AD14 -> 402.0011989 | AE15: 0.0538 | AG15: 5 | AH15: =+AH14 -> 388.6750987 | AI15: 0.052 | AK15: 5 | AL15: =+AL14 -> 375.2489986 | AM15: 0.0502 | AO15: 5 | AP15: =+AP14 -> 361.8228984 | AQ15: 0.0484 | AS15: 5 | AT15: =+AT14 -> 348.2967983 | AU15: 0.0466
A16: 6 | B16: 494.1738999 | C16: 0.0662 | E16: 6 | F16: 481.1877997 | G16: 0.0644 | I16: 6 | J16: 467.9816996 | K16: 0.0626 | M16: 6 | N16: 454.9055994 | O16: 0.0609 | Q16: 6 | R16: 441.7294993 | S16: 0.0591 | U16: 6 | V16: 428.5533992 | W16: 0.0574 | Y16: 6 | Z16: 415.277299 | AA16: 0.0556 | AC16: 6 | AD16: 402.0011989 | AE16: 0.0538 | AG16: 6 | AH16: 388.6750987 | AI16: 0.052 | AK16: 6 | AL16: 375.2489986 | AM16: 0.0502 | AO16: 6 | AP16: 361.8228984 | AQ16: 0.0484 | AS16: 6 | AT16: 348.2967983 | AU16: 0.0466
A17: 7 | B17: 494.1738999 | C17: 0.0662 | E17: 7 | F17: 481.1877997 | G17: 0.0644 | I17: 7 | J17: 467.9816996 | K17: 0.0626 | M17: 7 | N17: 454.9055994 | O17: 0.0609 | Q17: 7 | R17: 441.7294993 | S17: 0.0591 | U17: 7 | V17: 428.5533992 | W17: 0.0574 | Y17: 7 | Z17: 415.277299 | AA17: 0.0556 | AC17: 7 | AD17: 402.0011989 | AE17: 0.0538 | AG17: 7 | AH17: 388.6750987 | AI17: 0.052 | AK17: 7 | AL17: 375.2489986 | AM17: 0.0502 | AO17: 7 | AP17: 361.8228984 | AQ17: 0.0484 | AS17: 7 | AT17: 348.2967983 | AU17: 0.0466
A18: 8 | B18: 494.1738999 | C18: 0.0662 | E18: 8 | F18: 481.1877997 | G18: 0.0644 | I18: 8 | J18: 467.9816996 | K18: 0.0626 | M18: 8 | N18: 454.9055994 | O18: 0.0609 | Q18: 8 | R18: 441.7294993 | S18: 0.0591 | U18: 8 | V18: 428.5533992 | W18: 0.0574 | Y18: 8 | Z18: 415.277299 | AA18: 0.0556 | AC18: 8 | AD18: 402.0011989 | AE18: 0.0538 | AG18: 8 | AH18: 388.6750987 | AI18: 0.052 | AK18: 8 | AL18: 375.2489986 | AM18: 0.0502 | AO18: 8 | AP18: 361.8228984 | AQ18: 0.0484 | AS18: 8 | AT18: 348.2967983 | AU18: 0.0466
A19: 9 | B19: 494.1738999 | C19: 0.0662 | E19: 9 | F19: 481.1877997 | G19: 0.0644 | I19: 9 | J19: 467.9816996 | K19: 0.0626 | M19: 9 | N19: 454.9055994 | O19: 0.0609 | Q19: 9 | R19: 441.7294993 | S19: 0.0591 | U19: 9 | V19: 428.5533992 | W19: 0.0574 | Y19: 9 | Z19: 415.277299 | AA19: 0.0556 | AC19: 9 | AD19: 402.0011989 | AE19: 0.0538 | AG19: 9 | AH19: 388.6750987 | AI19: 0.052 | AK19: 9 | AL19: 375.2489986 | AM19: 0.0502 | AO19: 9 | AP19: 361.8228984 | AQ19: 0.0484 | AS19: 9 | AT19: 348.2967983 | AU19: 0.0466
A20: 10 | B20: 494.1738999 | C20: 0.0662 | E20: 10 | F20: 481.1877997 | G20: 0.0644 | I20: 10 | J20: 467.9816996 | K20: 0.0626 | M20: 10 | N20: 454.9055994 | O20: 0.0609 | Q20: 10 | R20: 441.7294993 | S20: 0.0591 | U20: 10 | V20: 428.5533992 | W20: 0.0574 | Y20: 10 | Z20: 415.277299 | AA20: 0.0556 | AC20: 10 | AD20: 402.0011989 | AE20: 0.0538 | AG20: 10 | AH20: 388.6750987 | AI20: 0.052 | AK20: 10 | AL20: 375.2489986 | AM20: 0.0502 | AO20: 10 | AP20: 361.8228984 | AQ20: 0.0484 | AS20: 10 | AT20: 348.2967983 | AU20: 0.0466
A21: 11 | B21: 494.1738999 | C21: 0.0662 | E21: 11 | F21: 481.1877997 | G21: 0.0644 | I21: 11 | J21: 467.9816996 | K21: 0.0626 | M21: 11 | N21: 454.9055994 | O21: 0.0609 | Q21: 11 | R21: 441.7294993 | S21: 0.0591 | U21: 11 | V21: 428.5533992 | W21: 0.0574 | Y21: 11 | Z21: 415.277299 | AA21: 0.0556 | AC21: 11 | AD21: 402.0011989 | AE21: 0.0538 | AG21: 11 | AH21: 388.6750987 | AI21: 0.052 | AK21: 11 | AL21: 375.2489986 | AM21: 0.0502 | AO21: 11 | AP21: 361.8228984 | AQ21: 0.0484 | AS21: 11 | AT21: 348.2967983 | AU21: 0.0466
A22: 12 | B22: 494.1738999 | C22: 0.0662 | E22: 12 | F22: 481.1877997 | G22: 0.0644 | I22: 12 | J22: 467.9816996 | K22: 0.0626 | M22: 12 | N22: 454.9055994 | O22: 0.0609 | Q22: 12 | R22: 441.7294993 | S22: 0.0591 | U22: 12 | V22: 428.5533992 | W22: 0.0574 | Y22: 12 | Z22: 415.277299 | AA22: 0.0556 | AC22: 12 | AD22: 402.0011989 | AE22: 0.0538 | AG22: 12 | AH22: 388.6750987 | AI22: 0.052 | AK22: 12 | AL22: 375.2489986 | AM22: 0.0502 | AO22: 12 | AP22: 361.8228984 | AQ22: 0.0484 | AS22: 12 | AT22: 348.2967983 | AU22: 0.0466
A23: 13 | B23: 494.1738999 | C23: 0.0662 | E23: 13 | F23: 481.1877997 | G23: 0.0644 | I23: 13 | J23: 467.9816996 | K23: 0.0626 | M23: 13 | N23: 454.9055994 | O23: 0.0609 | Q23: 13 | R23: 441.7294993 | S23: 0.0591 | U23: 13 | V23: 428.5533992 | W23: 0.0574 | Y23: 13 | Z23: 415.277299 | AA23: 0.0556 | AC23: 13 | AD23: 402.0011989 | AE23: 0.0538 | AG23: 13 | AH23: 388.6750987 | AI23: 0.052 | AK23: 13 | AL23: 375.2489986 | AM23: 0.0502 | AO23: 13 | AP23: 361.8228984 | AQ23: 0.0484 | AS23: 13 | AT23: 348.2967983 | AU23: 0.0466
A24: 14 | B24: 494.1738999 | C24: 0.0662 | E24: 14 | F24: 481.1877997 | G24: 0.0644 | I24: 14 | J24: 467.9816996 | K24: 0.0626 | M24: 14 | N24: 454.9055994 | O24: 0.0609 | Q24: 14 | R24: 441.7294993 | S24: 0.0591 | U24: 14 | V24: 428.5533992 | W24: 0.0574 | Y24: 14 | Z24: 415.277299 | AA24: 0.0556 | AC24: 14 | AD24: 402.0011989 | AE24: 0.0538 | AG24: 14 | AH24: 388.6750987 | AI24: 0.052 | AK24: 14 | AL24: 375.2489986 | AM24: 0.0502 | AO24: 14 | AP24: 361.8228984 | AQ24: 0.0484 | AS24: 14 | AT24: 348.2967983 | AU24: 0.0466
A25: 15 | B25: 494.1738999 | C25: 0.0662 | E25: 15 | F25: 481.1877997 | G25: 0.0644 | I25: 15 | J25: 467.9816996 | K25: 0.0626 | M25: 15 | N25: 454.9055994 | O25: 0.0609 | Q25: 15 | R25: 441.7294993 | S25: 0.0591 | U25: 15 | V25: 428.5533992 | W25: 0.0574 | Y25: 15 | Z25: 415.277299 | AA25: 0.0556 | AC25: 15 | AD25: 402.0011989 | AE25: 0.0538 | AG25: 15 | AH25: 388.6750987 | AI25: 0.052 | AK25: 15 | AL25: 375.2489986 | AM25: 0.0502 | AO25: 15 | AP25: 361.8228984 | AQ25: 0.0484 | AS25: 15 | AT25: 348.2967983 | AU25: 0.0466
A26: 16 | B26: 494.1738999 | C26: 0.0662 | E26: 16 | F26: 481.1877997 | G26: 0.0644 | I26: 16 | J26: 467.9816996 | K26: 0.0626 | M26: 16 | N26: 454.9055994 | O26: 0.0609 | Q26: 16 | R26: 441.7294993 | S26: 0.0591 | U26: 16 | V26: 428.5533992 | W26: 0.0574 | Y26: 16 | Z26: 415.277299 | AA26: 0.0556 | AC26: 16 | AD26: 402.0011989 | AE26: 0.0538 | AG26: 16 | AH26: 388.6750987 | AI26: 0.052 | AK26: 16 | AL26: 375.2489986 | AM26: 0.0502 | AO26: 16 | AP26: 361.8228984 | AQ26: 0.0484 | AS26: 16 | AT26: 348.2967983 | AU26: 0.0466
A27: 17 | B27: 494.1738999 | C27: 0.0662 | E27: 17 | F27: 481.1877997 | G27: 0.0644 | I27: 17 | J27: 467.9816996 | K27: 0.0626 | M27: 17 | N27: 454.9055994 | O27: 0.0609 | Q27: 17 | R27: 441.7294993 | S27: 0.0591 | U27: 17 | V27: 428.5533992 | W27: 0.0574 | Y27: 17 | Z27: 415.277299 | AA27: 0.0556 | AC27: 17 | AD27: 402.0011989 | AE27: 0.0538 | AG27: 17 | AH27: 388.6750987 | AI27: 0.052 | AK27: 17 | AL27: 375.2489986 | AM27: 0.0502 | AO27: 17 | AP27: 361.8228984 | AQ27: 0.0484 | AS27: 17 | AT27: 348.2967983 | AU27: 0.0466
A28: 18 | B28: 494.1738999 | C28: 0.0662 | E28: 18 | F28: 481.1877997 | G28: 0.0644 | I28: 18 | J28: 467.9816996 | K28: 0.0626 | M28: 18 | N28: 454.9055994 | O28: 0.0609 | Q28: 18 | R28: 441.7294993 | S28: 0.0591 | U28: 18 | V28: 428.5533992 | W28: 0.0574 | Y28: 18 | Z28: 415.277299 | AA28: 0.0556 | AC28: 18 | AD28: 402.0011989 | AE28: 0.0538 | AG28: 18 | AH28: 388.6750987 | AI28: 0.052 | AK28: 18 | AL28: 375.2489986 | AM28: 0.0502 | AO28: 18 | AP28: 361.8228984 | AQ28: 0.0484 | AS28: 18 | AT28: 348.2967983 | AU28: 0.0466
A29: 19 | B29: 494.1738999 | C29: 0.0662 | E29: 19 | F29: 481.1877997 | G29: 0.0644 | I29: 19 | J29: 467.9816996 | K29: 0.0626 | M29: 19 | N29: 454.9055994 | O29: 0.0609 | Q29: 19 | R29: 441.7294993 | S29: 0.0591 | U29: 19 | V29: 428.5533992 | W29: 0.0574 | Y29: 19 | Z29: 415.277299 | AA29: 0.0556 | AC29: 19 | AD29: 402.0011989 | AE29: 0.0538 | AG29: 19 | AH29: 388.6750987 | AI29: 0.052 | AK29: 19 | AL29: 375.2489986 | AM29: 0.0502 | AO29: 19 | AP29: 361.8228984 | AQ29: 0.0484 | AS29: 19 | AT29: 348.2967983 | AU29: 0.0466
A30: 20 | B30: 494.1738999 | C30: 0.0662 | E30: 20 | F30: 481.1877997 | G30: 0.0644 | I30: 20 | J30: 467.9816996 | K30: 0.0626 | M30: 20 | N30: 454.9055994 | O30: 0.0609 | Q30: 20 | R30: 441.7294993 | S30: 0.0591 | U30: 20 | V30: 428.5533992 | W30: 0.0574 | Y30: 20 | Z30: 415.277299 | AA30: 0.0556 | AC30: 20 | AD30: 402.0011989 | AE30: 0.0538 | AG30: 20 | AH30: 388.6750987 | AI30: 0.052 | AK30: 20 | AL30: 375.2489986 | AM30: 0.0502 | AO30: 20 | AP30: 361.8228984 | AQ30: 0.0484 | AS30: 20 | AT30: 348.2967983 | AU30: 0.0466
A31: 21 | B31: 494.1738999 | C31: 0.0662 | E31: 21 | F31: 481.1877997 | G31: 0.0644 | I31: 21 | J31: 467.9816996 | K31: 0.0626 | M31: 21 | N31: 454.9055994 | O31: 0.0609 | Q31: 21 | R31: 441.7294993 | S31: 0.0591 | U31: 21 | V31: 428.5533992 | W31: 0.0574 | Y31: 21 | Z31: 415.277299 | AA31: 0.0556 | AC31: 21 | AD31: 402.0011989 | AE31: 0.0538 | AG31: 21 | AH31: 388.6750987 | AI31: 0.052 | AK31: 21 | AL31: 375.2489986 | AM31: 0.0502 | AO31: 21 | AP31: 361.8228984 | AQ31: 0.0484 | AS31: 21 | AT31: 348.2967983 | AU31: 0.0466
A32: 22 | B32: 494.1738999 | C32: 0.0662 | E32: 22 | F32: 481.1877997 | G32: 0.0644 | I32: 22 | J32: 467.9816996 | K32: 0.0626 | M32: 22 | N32: 454.9055994 | O32: 0.0609 | Q32: 22 | R32: 441.7294993 | S32: 0.0591 | U32: 22 | V32: 428.5533992 | W32: 0.0574 | Y32: 22 | Z32: 415.277299 | AA32: 0.0556 | AC32: 22 | AD32: 402.0011989 | AE32: 0.0538 | AG32: 22 | AH32: 388.6750987 | AI32: 0.052 | AK32: 22 | AL32: 375.2489986 | AM32: 0.0502 | AO32: 22 | AP32: 361.8228984 | AQ32: 0.0484 | AS32: 22 | AT32: 348.2967983 | AU32: 0.0466
A33: 23 | B33: 494.1738999 | C33: 0.0662 | E33: 23 | F33: 481.1877997 | G33: 0.0644 | I33: 23 | J33: 467.9816996 | K33: 0.0626 | M33: 23 | N33: 454.9055994 | O33: 0.0609 | Q33: 23 | R33: 441.7294993 | S33: 0.0591 | U33: 23 | V33: 428.5533992 | W33: 0.0574 | Y33: 23 | Z33: 415.277299 | AA33: 0.0556 | AC33: 23 | AD33: 402.0011989 | AE33: 0.0538 | AG33: 23 | AH33: 388.6750987 | AI33: 0.052 | AK33: 23 | AL33: 375.2489986 | AM33: 0.0502 | AO33: 23 | AP33: 361.8228984 | AQ33: 0.0484 | AS33: 23 | AT33: 348.2967983 | AU33: 0.0466
A34: 24 | B34: 494.1738999 | C34: 0.0662 | E34: 24 | F34: 481.1877997 | G34: 0.0644 | I34: 24 | J34: 467.9816996 | K34: 0.0626 | M34: 24 | N34: 454.9055994 | O34: 0.0609 | Q34: 24 | R34: 441.7294993 | S34: 0.0591 | U34: 24 | V34: 428.5533992 | W34: 0.0574 | Y34: 24 | Z34: 415.277299 | AA34: 0.0556 | AC34: 24 | AD34: 402.0011989 | AE34: 0.0538 | AG34: 24 | AH34: 388.6750987 | AI34: 0.052 | AK34: 24 | AL34: 375.2489986 | AM34: 0.0502 | AO34: 24 | AP34: 361.8228984 | AQ34: 0.0484 | AS34: 24 | AT34: 348.2967983 | AU34: 0.0466
A35: 25 | B35: 494.1738999 | C35: 0.0662 | E35: 25 | F35: 481.1877997 | G35: 0.0644 | I35: 25 | J35: 467.9816996 | K35: 0.0626 | M35: 25 | N35: 454.9055994 | O35: 0.0609 | Q35: 25 | R35: 441.7294993 | S35: 0.0591 | U35: 25 | V35: 428.5533992 | W35: 0.0574 | Y35: 25 | Z35: 415.277299 | AA35: 0.0556 | AC35: 25 | AD35: 402.0011989 | AE35: 0.0538 | AG35: 25 | AH35: 388.6750987 | AI35: 0.052 | AK35: 25 | AL35: 375.2489986 | AM35: 0.0502 | AO35: 25 | AP35: 361.8228984 | AQ35: 0.0484 | AS35: 25 | AT35: 348.2967983 | AU35: 0.0466
A36: 26 | B36: 494.1738999 | C36: 0.0662 | E36: 26 | F36: 481.1877997 | G36: 0.0644 | I36: 26 | J36: 467.9816996 | K36: 0.0626 | M36: 26 | N36: 454.9055994 | O36: 0.0609 | Q36: 26 | R36: 441.7294993 | S36: 0.0591 | U36: 26 | V36: 428.5533992 | W36: 0.0574 | Y36: 26 | Z36: 415.277299 | AA36: 0.0556 | AC36: 26 | AD36: 402.0011989 | AE36: 0.0538 | AG36: 26 | AH36: 388.6750987 | AI36: 0.052 | AK36: 26 | AL36: 375.2489986 | AM36: 0.0502 | AO36: 26 | AP36: 361.8228984 | AQ36: 0.0484 | AS36: 26 | AT36: 348.2967983 | AU36: 0.0466
A37: 27 | B37: 494.1738999 | C37: 0.0662 | E37: 27 | F37: 481.1877997 | G37: 0.0644 | I37: 27 | J37: 467.9816996 | K37: 0.0626 | M37: 27 | N37: 454.9055994 | O37: 0.0609 | Q37: 27 | R37: 441.7294993 | S37: 0.0591 | U37: 27 | V37: 428.5533992 | W37: 0.0574 | Y37: 27 | Z37: 415.277299 | AA37: 0.0556 | AC37: 27 | AD37: 402.0011989 | AE37: 0.0538 | AG37: 27 | AH37: 388.6750987 | AI37: 0.052 | AK37: 27 | AL37: 375.2489986 | AM37: 0.0502 | AO37: 27 | AP37: 361.8228984 | AQ37: 0.0484 | AS37: 27 | AT37: 348.2967983 | AU37: 0.0466
A38: 28 | B38: 494.1738999 | C38: 0.0662 | E38: 28 | F38: 481.1877997 | G38: 0.0644 | I38: 28 | J38: 467.9816996 | K38: 0.0626 | M38: 28 | N38: 454.9055994 | O38: 0.0609 | Q38: 28 | R38: 441.7294993 | S38: 0.0591 | U38: 28 | V38: 428.5533992 | W38: 0.0574 | Y38: 28 | Z38: 415.277299 | AA38: 0.0556 | AC38: 28 | AD38: 402.0011989 | AE38: 0.0538 | AG38: 28 | AH38: 388.6750987 | AI38: 0.052 | AK38: 28 | AL38: 375.2489986 | AM38: 0.0502 | AO38: 28 | AP38: 361.8228984 | AQ38: 0.0484 | AS38: 28 | AT38: 348.2967983 | AU38: 0.0466
A39: 29 | B39: 494.1738999 | C39: 0.0662 | I39: 29 | J39: 467.9816996 | K39: 0.0626 | M39: 29 | N39: 454.9055994 | O39: 0.0609 | Q39: 29 | R39: 441.7294993 | S39: 0.0591 | U39: 29 | V39: 428.5533992 | W39: 0.0574 | Y39: 29 | Z39: 415.277299 | AA39: 0.0556 | AC39: 29 | AD39: 402.0011989 | AE39: 0.0538 | AG39: 29 | AH39: 388.6750987 | AI39: 0.052 | AK39: 29 | AL39: 375.2489986 | AM39: 0.0502 | AO39: 29 | AP39: 361.8228984 | AQ39: 0.0484 | AS39: 29 | AT39: 348.2967983 | AU39: 0.0466
A40: 30 | B40: 494.1738999 | C40: 0.0662 | I40: 30 | J40: 467.9816996 | K40: 0.0626 | M40: 30 | N40: 454.9055994 | O40: 0.0609 | Q40: 30 | R40: 441.7294993 | S40: 0.0591 | U40: 30 | V40: 428.5533992 | W40: 0.0574 | Y40: 30 | Z40: 415.277299 | AA40: 0.0556 | AC40: 30 | AD40: 402.0011989 | AE40: 0.0538 | AG40: 30 | AH40: 388.6750987 | AI40: 0.052 | AK40: 30 | AL40: 375.2489986 | AM40: 0.0502 | AO40: 30 | AP40: 361.8228984 | AQ40: 0.0484 | AS40: 30 | AT40: 348.2967983 | AU40: 0.0466
A41: 31 | B41: =+B40 -> 494.1738999 | C41: 0.0662 | I41: 31 | J41: 467.9816996 | K41: 0.0626 | Q41: 31 | R41: 441.7294993 | S41: 0.0591 | Y41: 31 | Z41: 415.277299 | AA41: 0.0556 | AC41: 31 | AD41: 402.0011989 | AE41: 0.0538 | AK41: 31 | AL41: 375.2489986 | AM41: 0.0502 | AS41: 31 | AT41: 348.2967983 | AU41: 0.0466
B42: TOTAL........ | C42: =IF((TRUNC((SUM(C11:C41)*1000))/10)-TRUNC(TRUNC((SUM(C11:C41)*1000))/10)>0.5,ROUND(SUM(C11:C41),2),TRUNC((TRUNC((SUM(C11:C41)*1000))/10))/100) -> 2.05 | F42: TOTAL........ | G42: =IF((TRUNC((SUM(G11:G41)*1000))/10)-TRUNC(TRUNC((SUM(G11:G41)*1000))/10)>0.5,ROUND(SUM(G11:G41),2),TRUNC((TRUNC((SUM(G11:G41)*1000))/10))/100) -> 1.8 | J42: TOTAL........ | K42: =IF((TRUNC((SUM(K11:K41)*1000))/10)-TRUNC(TRUNC((SUM(K11:K41)*1000))/10)>0.5,ROUND(SUM(K11:K41),2),TRUNC((TRUNC((SUM(K11:K41)*1000))/10))/100) -> 1.94 | N42: TOTAL........ | O42: =IF((TRUNC((SUM(O11:O41)*1000))/10)-TRUNC(TRUNC((SUM(O11:O41)*1000))/10)>0.5,ROUND(SUM(O11:O41),2),TRUNC((TRUNC((SUM(O11:O41)*1000))/10))/100) -> 1.83 | R42: TOTAL........ | S42: =IF((TRUNC((SUM(S11:S41)*1000))/10)-TRUNC(TRUNC((SUM(S11:S41)*1000))/10)>0.5,ROUND(SUM(S11:S41),2),TRUNC((TRUNC((SUM(S11:S41)*1000))/10))/100) -> 1.83 | V42: TOTAL........ | W42: =IF((TRUNC((SUM(W11:W41)*1000))/10)-TRUNC(TRUNC((SUM(W11:W41)*1000))/10)>0.5,ROUND(SUM(W11:W41),2),TRUNC((TRUNC((SUM(W11:W41)*1000))/10))/100) -> 1.72 | Z42: TOTAL........ | AA42: =IF((TRUNC((SUM(AA11:AA41)*1000))/10)-TRUNC(TRUNC((SUM(AA11:AA41)*1000))/10)>0.5,ROUND(SUM(AA11:AA41),2),TRUNC((TRUNC((SUM(AA11:AA41)*1000))/10))/100) -> 1.72 | AD42: TOTAL........ | AE42: =IF((TRUNC((SUM(AE11:AE41)*1000))/10)-TRUNC(TRUNC((SUM(AE11:AE41)*1000))/10)>0.5,ROUND(SUM(AE11:AE41),2),TRUNC((TRUNC((SUM(AE11:AE41)*1000))/10))/100) -> 1.67 | AH42: TOTAL........ | AI42: =IF((TRUNC((SUM(AI11:AI41)*1000))/10)-TRUNC(TRUNC((SUM(AI11:AI41)*1000))/10)>0.5,ROUND(SUM(AI11:AI41),2),TRUNC((TRUNC((SUM(AI11:AI41)*1000))/10))/100) -> 1.56 | AL42: TOTAL........ | AM42: =IF((TRUNC((SUM(AM11:AM41)*1000))/10)-TRUNC(TRUNC((SUM(AM11:AM41)*1000))/10)>0.5,ROUND(SUM(AM11:AM41),2),TRUNC((TRUNC((SUM(AM11:AM41)*1000))/10))/100) -> 1.56 | AP42: TOTAL........ | AQ42: =IF((TRUNC((SUM(AQ11:AQ41)*1000))/10)-TRUNC(TRUNC((SUM(AQ11:AQ41)*1000))/10)>0.5,ROUND(SUM(AQ11:AQ41),2),TRUNC((TRUNC((SUM(AQ11:AQ41)*1000))/10))/100) -> 1.45 | AT42: TOTAL........ | AU42: =IF((TRUNC((SUM(AU11:AU41)*1000))/10)-TRUNC(TRUNC((SUM(AU11:AU41)*1000))/10)>0.5,ROUND(SUM(AU11:AU41),2),TRUNC((TRUNC((SUM(AU11:AU41)*1000))/10))/100) -> 1.45 | AV42: =SUM(B42:AU42) -> 20.58
B43: I.P.F. | C43: =ROUND(C42*0.1,2) -> 0.21 | F43: I.P.F. | G43: =ROUND(G42*0.1,2) -> 0.18 | J43: I.P.F. | K43: =ROUND(K42*0.1,2) -> 0.19 | N43: I.P.F. | O43: =ROUND(O42*0.1,2) -> 0.18 | R43: I.P.F. | S43: =ROUND(S42*0.1,2) -> 0.18 | V43: I.P.F. | W43: =ROUND(W42*0.1,2) -> 0.17 | Z43: I.P.F. | AA43: =ROUND(AA42*0.1,2) -> 0.17 | AD43: I.P.F. | AE43: =ROUND(AE42*0.1,2) -> 0.17 | AH43: I.P.F. | AI43: =ROUND(AI42*0.1,2) -> 0.16 | AL43: I.P.F. | AM43: =ROUND(AM42*0.1,2) -> 0.16 | AP43: I.P.F. | AQ43: =ROUND(AQ42*0.1,2) -> 0.15 | AT43: I.P.F. | AU43: =ROUND(AU42*0.1,2) -> 0.15 | AV43: =SUM(B43:AU43) -> 2.07
B44: NETOS | C44: =+C42-C43 -> 1.84 | F44: NETOS | G44: =+G42-G43 -> 1.62 | J44: NETOS | K44: =+K42-K43 -> 1.75 | N44: NETOS | O44: =+O42-O43 -> 1.65 | R44: NETOS | S44: =+S42-S43 -> 1.65 | V44: NETOS | W44: =+W42-W43 -> 1.55 | Z44: NETOS | AA44: =+AA42-AA43 -> 1.55 | AD44: NETOS | AE44: =+AE42-AE43 -> 1.5 | AH44: NETOS | AI44: =+AI42-AI43 -> 1.4 | AL44: NETOS | AM44: =+AM42-AM43 -> 1.4 | AP44: NETOS | AQ44: =+AQ42-AQ43 -> 1.3 | AT44: NETOS | AU44: =+AU42-AU43 -> 1.3 | AV44: =SUM(B44:AU44) -> 18.51 | AW44: =+AV44 -> 18.51
AU45: =+AT41+AU44-$B$4 -> 340.5967983
A50: SEGUNDO AÑO | B50: =IF($B$3>0,(B8*$B$3)+B8,B8) -> -5.826100141
A51: 1 | E51: =+A51+1 -> 2 | I51: =+E51+1 -> 3 | M51: =+I51+1 -> 4 | Q51: =+M51+1 -> 5 | U51: =+Q51+1 -> 6 | Y51: =+U51+1 -> 7 | AC51: =+Y51+1 -> 8 | AG51: =+AC51+1 -> 9 | AK51: =+AG51+1 -> 10 | AO51: =+AK51+1 -> 11 | AS51: =+AO51+1 -> 12
A52: NO. | B52: SALDO DIARIO | C52: INTERESES DIARIO | E52: NO. | F52: SALDO DIARIO | G52: INTERESES DIARIO | I52: NO. | J52: SALDO DIARIO | K52: INTERESES DIARIO | M52: NO. | N52: SALDO DIARIO | O52: INTERESES DIARIO | Q52: NO. | R52: SALDO DIARIO | S52: INTERESES DIARIO | U52: NO. | V52: SALDO DIARIO | W52: INTERESES DIARIO | Y52: NO. | Z52: SALDO DIARIO | AA52: INTERESES DIARIO | AC52: NO. | AD52: SALDO DIARIO | AE52: INTERESES DIARIO | AG52: NO. | AH52: SALDO DIARIO | AI52: INTERESES DIARIO | AK52: NO. | AL52: SALDO DIARIO | AM52: INTERESES DIARIO | AO52: NO. | AP52: SALDO DIARIO | AQ52: INTERESES DIARIO | AS52: NO. | AT52: SALDO DIARIO | AU52: INTERESES DIARIO
A53: 1 | B53: =+AT41+AU44-$B$4 -> 340.5967983 | C53: =ROUND(INT(ROUND(B53*$B$5/365,8)*10000)/10000,4) -> 0.0456 | E53: 1 | F53: =+B83+C86-$B$4 -> 327.0206982 | G53: =ROUND(INT(ROUND(F53*$B$5/365,8)*10000)/10000,4) -> 0.0438 | I53: 1 | J53: =+F80+G86-$B$4 -> 313.274598 | K53: =ROUND(INT(ROUND(J53*$B$5/365,8)*10000)/10000,4) -> 0.0419 | M53: 1 | N53: =+J83+K86-$B$4 -> 299.5884979 | O53: =ROUND(INT(ROUND(N53*$B$5/365,8)*10000)/10000,4) -> 0.0401 | Q53: 1 | R53: =+N82+O86-$B$4 -> 285.8223977 | S53: =ROUND(INT(ROUND(R53*$B$5/365,8)*10000)/10000,4) -> 0.0382 | U53: 1 | V53: =+R83+S86-$B$4 -> 272.0362976 | W53: =ROUND(INT(ROUND(V53*$B$5/365,8)*10000)/10000,4) -> 0.0364 | Y53: 1 | Z53: =+V82+W86-$B$4 -> 258.1701975 | AA53: =ROUND(INT(ROUND(Z53*$B$5/365,8)*10000)/10000,4) -> 0.0345 | AC53: 1 | AD53: =+Z83+AA86-$B$4 -> 244.2840973 | AE53: =ROUND(INT(ROUND(AD53*$B$5/365,8)*10000)/10000,4) -> 0.0327 | AG53: 1 | AH53: =+AD83+AE86-$B$4 -> 230.3479972 | AI53: =ROUND(INT(ROUND(AH53*$B$5/365,8)*10000)/10000,4) -> 0.0308 | AK53: 1 | AL53: =+AH82+AI86-$B$4 -> 216.331897 | AM53: =ROUND(INT(ROUND(AL53*$B$5/365,8)*10000)/10000,4) -> 0.0289 | AO53: 1 | AP53: =+AL83+AM86-$B$4 -> 202.2857969 | AQ53: =ROUND(INT(ROUND(AP53*$B$5/365,8)*10000)/10000,4) -> 0.0271 | AS53: 1 | AT53: =+AP82+AQ86-$B$4 -> 188.1696968 | AU53: =ROUND(INT(ROUND(AT53*$B$5/365,8)*10000)/10000,4) -> 0.0252
A54: =+A53+1 -> 2 | B54: =+B53 -> 340.5967983 | C54: 0.0456 | E54: =+E53+1 -> 2 | F54: =+F53 -> 327.0206982 | G54: 0.0438 | I54: =+I53+1 -> 2 | J54: =+J53 -> 313.274598 | K54: 0.0419 | M54: =+M53+1 -> 2 | N54: =+N53 -> 299.5884979 | O54: 0.0401 | Q54: =+Q53+1 -> 2 | R54: =+R53 -> 285.8223977 | S54: 0.0382 | U54: =+U53+1 -> 2 | V54: =+V53 -> 272.0362976 | W54: 0.0364 | Y54: =+Y53+1 -> 2 | Z54: =+Z53 -> 258.1701975 | AA54: 0.0345 | AC54: =+AC53+1 -> 2 | AD54: =+AD53 -> 244.2840973 | AE54: 0.0327 | AG54: =+AG53+1 -> 2 | AH54: =+AH53 -> 230.3479972 | AI54: 0.0308 | AK54: =+AK53+1 -> 2 | AL54: =+AL53 -> 216.331897 | AM54: 0.0289 | AO54: =+AO53+1 -> 2 | AP54: =+AP53 -> 202.2857969 | AQ54: 0.0271 | AS54: =+AS53+1 -> 2 | AT54: =+AT53 -> 188.1696968 | AU54: 0.0252
A55: =+A54+1 -> 3 | B55: =+B54+$B$50 -> 334.7706982 | C55: 0.0448 | E55: =+E54+1 -> 3 | F55: =+F54+$B$50 -> 321.194598 | G55: 0.043 | I55: =+I54+1 -> 3 | J55: =+J54+$B$50 -> 307.4484979 | K55: 0.0411 | M55: =+M54+1 -> 3 | N55: =+N54+$B$50 -> 293.7623977 | O55: 0.0393 | Q55: =+Q54+1 -> 3 | R55: =+R54+$B$50 -> 279.9962976 | S55: 0.0375 | U55: =+U54+1 -> 3 | V55: =+V54+$B$50 -> 266.2101975 | W55: 0.0356 | Y55: =+Y54+1 -> 3 | Z55: =+Z54+$B$50 -> 252.3440973 | AA55: 0.0338 | AC55: =+AC54+1 -> 3 | AD55: =+AD54+$B$50 -> 238.4579972 | AE55: 0.0319 | AG55: =+AG54+1 -> 3 | AH55: =+AH54+$B$50 -> 224.521897 | AI55: 0.03 | AK55: =+AK54+1 -> 3 | AL55: =+AL54+$B$50 -> 210.5057969 | AM55: 0.0282 | AO55: =+AO54+1 -> 3 | AP55: =+AP54+$B$50 -> 196.4596968 | AQ55: 0.0263 | AS55: =+AS54+1 -> 3 | AT55: =+AT54+$B$50 -> 182.3435966 | AU55: 0.0244
A56: 4 | B56: =+B55 -> 334.7706982 | C56: 0.0448 | E56: 4 | F56: =+F55 -> 321.194598 | G56: 0.043 | I56: 4 | J56: =+J55 -> 307.4484979 | K56: 0.0411 | M56: 4 | N56: =+N55 -> 293.7623977 | O56: 0.0393 | Q56: 4 | R56: =+R55 -> 279.9962976 | S56: 0.0375 | U56: 4 | V56: =+V55 -> 266.2101975 | W56: 0.0356 | Y56: 4 | Z56: =+Z55 -> 252.3440973 | AA56: 0.0338 | AC56: 4 | AD56: =+AD55 -> 238.4579972 | AE56: 0.0319 | AG56: 4 | AH56: =+AH55 -> 224.521897 | AI56: 0.03 | AK56: 4 | AL56: =+AL55 -> 210.5057969 | AM56: 0.0282 | AO56: 4 | AP56: =+AP55 -> 196.4596968 | AQ56: 0.0263 | AS56: 4 | AT56: =+AT55 -> 182.3435966 | AU56: 0.0244
A57: 5 | B57: =+B56 -> 334.7706982 | C57: 0.0448 | E57: 5 | F57: =+F56 -> 321.194598 | G57: 0.043 | I57: 5 | J57: =+J56 -> 307.4484979 | K57: 0.0411 | M57: 5 | N57: =+N56 -> 293.7623977 | O57: 0.0393 | Q57: 5 | R57: =+R56 -> 279.9962976 | S57: 0.0375 | U57: 5 | V57: =+V56 -> 266.2101975 | W57: 0.0356 | Y57: 5 | Z57: =+Z56 -> 252.3440973 | AA57: 0.0338 | AC57: 5 | AD57: =+AD56 -> 238.4579972 | AE57: 0.0319 | AG57: 5 | AH57: =+AH56 -> 224.521897 | AI57: 0.03 | AK57: 5 | AL57: =+AL56 -> 210.5057969 | AM57: 0.0282 | AO57: 5 | AP57: =+AP56 -> 196.4596968 | AQ57: 0.0263 | AS57: 5 | AT57: =+AT56 -> 182.3435966 | AU57: 0.0244
A58: 6 | B58: 334.7706982 | C58: 0.0448 | E58: 6 | F58: 321.194598 | G58: 0.043 | I58: 6 | J58: 307.4484979 | K58: 0.0411 | M58: 6 | N58: 293.7623977 | O58: 0.0393 | Q58: 6 | R58: 279.9962976 | S58: 0.0375 | U58: 6 | V58: 266.2101975 | W58: 0.0356 | Y58: 6 | Z58: 252.3440973 | AA58: 0.0338 | AC58: 6 | AD58: 238.4579972 | AE58: 0.0319 | AG58: 6 | AH58: 224.521897 | AI58: 0.03 | AK58: 6 | AL58: 210.5057969 | AM58: 0.0282 | AO58: 6 | AP58: 196.4596968 | AQ58: 0.0263 | AS58: 6 | AT58: 182.3435966 | AU58: 0.0244
A59: 7 | B59: 334.7706982 | C59: 0.0448 | E59: 7 | F59: 321.194598 | G59: 0.043 | I59: 7 | J59: 307.4484979 | K59: 0.0411 | M59: 7 | N59: 293.7623977 | O59: 0.0393 | Q59: 7 | R59: 279.9962976 | S59: 0.0375 | U59: 7 | V59: 266.2101975 | W59: 0.0356 | Y59: 7 | Z59: 252.3440973 | AA59: 0.0338 | AC59: 7 | AD59: 238.4579972 | AE59: 0.0319 | AG59: 7 | AH59: 224.521897 | AI59: 0.03 | AK59: 7 | AL59: 210.5057969 | AM59: 0.0282 | AO59: 7 | AP59: 196.4596968 | AQ59: 0.0263 | AS59: 7 | AT59: 182.3435966 | AU59: 0.0244
A60: 8 | B60: 334.7706982 | C60: 0.0448 | E60: 8 | F60: 321.194598 | G60: 0.043 | I60: 8 | J60: 307.4484979 | K60: 0.0411 | M60: 8 | N60: 293.7623977 | O60: 0.0393 | Q60: 8 | R60: 279.9962976 | S60: 0.0375 | U60: 8 | V60: 266.2101975 | W60: 0.0356 | Y60: 8 | Z60: 252.3440973 | AA60: 0.0338 | AC60: 8 | AD60: 238.4579972 | AE60: 0.0319 | AG60: 8 | AH60: 224.521897 | AI60: 0.03 | AK60: 8 | AL60: 210.5057969 | AM60: 0.0282 | AO60: 8 | AP60: 196.4596968 | AQ60: 0.0263 | AS60: 8 | AT60: 182.3435966 | AU60: 0.0244
A61: 9 | B61: 334.7706982 | C61: 0.0448 | E61: 9 | F61: 321.194598 | G61: 0.043 | I61: 9 | J61: 307.4484979 | K61: 0.0411 | M61: 9 | N61: 293.7623977 | O61: 0.0393 | Q61: 9 | R61: 279.9962976 | S61: 0.0375 | U61: 9 | V61: 266.2101975 | W61: 0.0356 | Y61: 9 | Z61: 252.3440973 | AA61: 0.0338 | AC61: 9 | AD61: 238.4579972 | AE61: 0.0319 | AG61: 9 | AH61: 224.521897 | AI61: 0.03 | AK61: 9 | AL61: 210.5057969 | AM61: 0.0282 | AO61: 9 | AP61: 196.4596968 | AQ61: 0.0263 | AS61: 9 | AT61: 182.3435966 | AU61: 0.0244
A62: 10 | B62: 334.7706982 | C62: 0.0448 | E62: 10 | F62: 321.194598 | G62: 0.043 | I62: 10 | J62: 307.4484979 | K62: 0.0411 | M62: 10 | N62: 293.7623977 | O62: 0.0393 | Q62: 10 | R62: 279.9962976 | S62: 0.0375 | U62: 10 | V62: 266.2101975 | W62: 0.0356 | Y62: 10 | Z62: 252.3440973 | AA62: 0.0338 | AC62: 10 | AD62: 238.4579972 | AE62: 0.0319 | AG62: 10 | AH62: 224.521897 | AI62: 0.03 | AK62: 10 | AL62: 210.5057969 | AM62: 0.0282 | AO62: 10 | AP62: 196.4596968 | AQ62: 0.0263 | AS62: 10 | AT62: 182.3435966 | AU62: 0.0244
A63: 11 | B63: 334.7706982 | C63: 0.0448 | E63: 11 | F63: 321.194598 | G63: 0.043 | I63: 11 | J63: 307.4484979 | K63: 0.0411 | M63: 11 | N63: 293.7623977 | O63: 0.0393 | Q63: 11 | R63: 279.9962976 | S63: 0.0375 | U63: 11 | V63: 266.2101975 | W63: 0.0356 | Y63: 11 | Z63: 252.3440973 | AA63: 0.0338 | AC63: 11 | AD63: 238.4579972 | AE63: 0.0319 | AG63: 11 | AH63: 224.521897 | AI63: 0.03 | AK63: 11 | AL63: 210.5057969 | AM63: 0.0282 | AO63: 11 | AP63: 196.4596968 | AQ63: 0.0263 | AS63: 11 | AT63: 182.3435966 | AU63: 0.0244
A64: 12 | B64: 334.7706982 | C64: 0.0448 | E64: 12 | F64: 321.194598 | G64: 0.043 | I64: 12 | J64: 307.4484979 | K64: 0.0411 | M64: 12 | N64: 293.7623977 | O64: 0.0393 | Q64: 12 | R64: 279.9962976 | S64: 0.0375 | U64: 12 | V64: 266.2101975 | W64: 0.0356 | Y64: 12 | Z64: 252.3440973 | AA64: 0.0338 | AC64: 12 | AD64: 238.4579972 | AE64: 0.0319 | AG64: 12 | AH64: 224.521897 | AI64: 0.03 | AK64: 12 | AL64: 210.5057969 | AM64: 0.0282 | AO64: 12 | AP64: 196.4596968 | AQ64: 0.0263 | AS64: 12 | AT64: 182.3435966 | AU64: 0.0244
A65: 13 | B65: 334.7706982 | C65: 0.0448 | E65: 13 | F65: 321.194598 | G65: 0.043 | I65: 13 | J65: 307.4484979 | K65: 0.0411 | M65: 13 | N65: 293.7623977 | O65: 0.0393 | Q65: 13 | R65: 279.9962976 | S65: 0.0375 | U65: 13 | V65: 266.2101975 | W65: 0.0356 | Y65: 13 | Z65: 252.3440973 | AA65: 0.0338 | AC65: 13 | AD65: 238.4579972 | AE65: 0.0319 | AG65: 13 | AH65: 224.521897 | AI65: 0.03 | AK65: 13 | AL65: 210.5057969 | AM65: 0.0282 | AO65: 13 | AP65: 196.4596968 | AQ65: 0.0263 | AS65: 13 | AT65: 182.3435966 | AU65: 0.0244
A66: 14 | B66: 334.7706982 | C66: 0.0448 | E66: 14 | F66: 321.194598 | G66: 0.043 | I66: 14 | J66: 307.4484979 | K66: 0.0411 | M66: 14 | N66: 293.7623977 | O66: 0.0393 | Q66: 14 | R66: 279.9962976 | S66: 0.0375 | U66: 14 | V66: 266.2101975 | W66: 0.0356 | Y66: 14 | Z66: 252.3440973 | AA66: 0.0338 | AC66: 14 | AD66: 238.4579972 | AE66: 0.0319 | AG66: 14 | AH66: 224.521897 | AI66: 0.03 | AK66: 14 | AL66: 210.5057969 | AM66: 0.0282 | AO66: 14 | AP66: 196.4596968 | AQ66: 0.0263 | AS66: 14 | AT66: 182.3435966 | AU66: 0.0244
A67: 15 | B67: 334.7706982 | C67: 0.0448 | E67: 15 | F67: 321.194598 | G67: 0.043 | I67: 15 | J67: 307.4484979 | K67: 0.0411 | M67: 15 | N67: 293.7623977 | O67: 0.0393 | Q67: 15 | R67: 279.9962976 | S67: 0.0375 | U67: 15 | V67: 266.2101975 | W67: 0.0356 | Y67: 15 | Z67: 252.3440973 | AA67: 0.0338 | AC67: 15 | AD67: 238.4579972 | AE67: 0.0319 | AG67: 15 | AH67: 224.521897 | AI67: 0.03 | AK67: 15 | AL67: 210.5057969 | AM67: 0.0282 | AO67: 15 | AP67: 196.4596968 | AQ67: 0.0263 | AS67: 15 | AT67: 182.3435966 | AU67: 0.0244
A68: 16 | B68: 334.7706982 | C68: 0.0448 | E68: 16 | F68: 321.194598 | G68: 0.043 | I68: 16 | J68: 307.4484979 | K68: 0.0411 | M68: 16 | N68: 293.7623977 | O68: 0.0393 | Q68: 16 | R68: 279.9962976 | S68: 0.0375 | U68: 16 | V68: 266.2101975 | W68: 0.0356 | Y68: 16 | Z68: 252.3440973 | AA68: 0.0338 | AC68: 16 | AD68: 238.4579972 | AE68: 0.0319 | AG68: 16 | AH68: 224.521897 | AI68: 0.03 | AK68: 16 | AL68: 210.5057969 | AM68: 0.0282 | AO68: 16 | AP68: 196.4596968 | AQ68: 0.0263 | AS68: 16 | AT68: 182.3435966 | AU68: 0.0244
A69: 17 | B69: 334.7706982 | C69: 0.0448 | E69: 17 | F69: 321.194598 | G69: 0.043 | I69: 17 | J69: 307.4484979 | K69: 0.0411 | M69: 17 | N69: 293.7623977 | O69: 0.0393 | Q69: 17 | R69: 279.9962976 | S69: 0.0375 | U69: 17 | V69: 266.2101975 | W69: 0.0356 | Y69: 17 | Z69: 252.3440973 | AA69: 0.0338 | AC69: 17 | AD69: 238.4579972 | AE69: 0.0319 | AG69: 17 | AH69: 224.521897 | AI69: 0.03 | AK69: 17 | AL69: 210.5057969 | AM69: 0.0282 | AO69: 17 | AP69: 196.4596968 | AQ69: 0.0263 | AS69: 17 | AT69: 182.3435966 | AU69: 0.0244
A70: 18 | B70: 334.7706982 | C70: 0.0448 | E70: 18 | F70: 321.194598 | G70: 0.043 | I70: 18 | J70: 307.4484979 | K70: 0.0411 | M70: 18 | N70: 293.7623977 | O70: 0.0393 | Q70: 18 | R70: 279.9962976 | S70: 0.0375 | U70: 18 | V70: 266.2101975 | W70: 0.0356 | Y70: 18 | Z70: 252.3440973 | AA70: 0.0338 | AC70: 18 | AD70: 238.4579972 | AE70: 0.0319 | AG70: 18 | AH70: 224.521897 | AI70: 0.03 | AK70: 18 | AL70: 210.5057969 | AM70: 0.0282 | AO70: 18 | AP70: 196.4596968 | AQ70: 0.0263 | AS70: 18 | AT70: 182.3435966 | AU70: 0.0244
A71: 19 | B71: 334.7706982 | C71: 0.0448 | E71: 19 | F71: 321.194598 | G71: 0.043 | I71: 19 | J71: 307.4484979 | K71: 0.0411 | M71: 19 | N71: 293.7623977 | O71: 0.0393 | Q71: 19 | R71: 279.9962976 | S71: 0.0375 | U71: 19 | V71: 266.2101975 | W71: 0.0356 | Y71: 19 | Z71: 252.3440973 | AA71: 0.0338 | AC71: 19 | AD71: 238.4579972 | AE71: 0.0319 | AG71: 19 | AH71: 224.521897 | AI71: 0.03 | AK71: 19 | AL71: 210.5057969 | AM71: 0.0282 | AO71: 19 | AP71: 196.4596968 | AQ71: 0.0263 | AS71: 19 | AT71: 182.3435966 | AU71: 0.0244
A72: 20 | B72: 334.7706982 | C72: 0.0448 | E72: 20 | F72: 321.194598 | G72: 0.043 | I72: 20 | J72: 307.4484979 | K72: 0.0411 | M72: 20 | N72: 293.7623977 | O72: 0.0393 | Q72: 20 | R72: 279.9962976 | S72: 0.0375 | U72: 20 | V72: 266.2101975 | W72: 0.0356 | Y72: 20 | Z72: 252.3440973 | AA72: 0.0338 | AC72: 20 | AD72: 238.4579972 | AE72: 0.0319 | AG72: 20 | AH72: 224.521897 | AI72: 0.03 | AK72: 20 | AL72: 210.5057969 | AM72: 0.0282 | AO72: 20 | AP72: 196.4596968 | AQ72: 0.0263 | AS72: 20 | AT72: 182.3435966 | AU72: 0.0244
A73: 21 | B73: 334.7706982 | C73: 0.0448 | E73: 21 | F73: 321.194598 | G73: 0.043 | I73: 21 | J73: 307.4484979 | K73: 0.0411 | M73: 21 | N73: 293.7623977 | O73: 0.0393 | Q73: 21 | R73: 279.9962976 | S73: 0.0375 | U73: 21 | V73: 266.2101975 | W73: 0.0356 | Y73: 21 | Z73: 252.3440973 | AA73: 0.0338 | AC73: 21 | AD73: 238.4579972 | AE73: 0.0319 | AG73: 21 | AH73: 224.521897 | AI73: 0.03 | AK73: 21 | AL73: 210.5057969 | AM73: 0.0282 | AO73: 21 | AP73: 196.4596968 | AQ73: 0.0263 | AS73: 21 | AT73: 182.3435966 | AU73: 0.0244
A74: 22 | B74: 334.7706982 | C74: 0.0448 | E74: 22 | F74: 321.194598 | G74: 0.043 | I74: 22 | J74: 307.4484979 | K74: 0.0411 | M74: 22 | N74: 293.7623977 | O74: 0.0393 | Q74: 22 | R74: 279.9962976 | S74: 0.0375 | U74: 22 | V74: 266.2101975 | W74: 0.0356 | Y74: 22 | Z74: 252.3440973 | AA74: 0.0338 | AC74: 22 | AD74: 238.4579972 | AE74: 0.0319 | AG74: 22 | AH74: 224.521897 | AI74: 0.03 | AK74: 22 | AL74: 210.5057969 | AM74: 0.0282 | AO74: 22 | AP74: 196.4596968 | AQ74: 0.0263 | AS74: 22 | AT74: 182.3435966 | AU74: 0.0244
A75: 23 | B75: 334.7706982 | C75: 0.0448 | E75: 23 | F75: 321.194598 | G75: 0.043 | I75: 23 | J75: 307.4484979 | K75: 0.0411 | M75: 23 | N75: 293.7623977 | O75: 0.0393 | Q75: 23 | R75: 279.9962976 | S75: 0.0375 | U75: 23 | V75: 266.2101975 | W75: 0.0356 | Y75: 23 | Z75: 252.3440973 | AA75: 0.0338 | AC75: 23 | AD75: 238.4579972 | AE75: 0.0319 | AG75: 23 | AH75: 224.521897 | AI75: 0.03 | AK75: 23 | AL75: 210.5057969 | AM75: 0.0282 | AO75: 23 | AP75: 196.4596968 | AQ75: 0.0263 | AS75: 23 | AT75: 182.3435966 | AU75: 0.0244
A76: 24 | B76: 334.7706982 | C76: 0.0448 | E76: 24 | F76: 321.194598 | G76: 0.043 | I76: 24 | J76: 307.4484979 | K76: 0.0411 | M76: 24 | N76: 293.7623977 | O76: 0.0393 | Q76: 24 | R76: 279.9962976 | S76: 0.0375 | U76: 24 | V76: 266.2101975 | W76: 0.0356 | Y76: 24 | Z76: 252.3440973 | AA76: 0.0338 | AC76: 24 | AD76: 238.4579972 | AE76: 0.0319 | AG76: 24 | AH76: 224.521897 | AI76: 0.03 | AK76: 24 | AL76: 210.5057969 | AM76: 0.0282 | AO76: 24 | AP76: 196.4596968 | AQ76: 0.0263 | AS76: 24 | AT76: 182.3435966 | AU76: 0.0244
A77: 25 | B77: 334.7706982 | C77: 0.0448 | E77: 25 | F77: 321.194598 | G77: 0.043 | I77: 25 | J77: 307.4484979 | K77: 0.0411 | M77: 25 | N77: 293.7623977 | O77: 0.0393 | Q77: 25 | R77: 279.9962976 | S77: 0.0375 | U77: 25 | V77: 266.2101975 | W77: 0.0356 | Y77: 25 | Z77: 252.3440973 | AA77: 0.0338 | AC77: 25 | AD77: 238.4579972 | AE77: 0.0319 | AG77: 25 | AH77: 224.521897 | AI77: 0.03 | AK77: 25 | AL77: 210.5057969 | AM77: 0.0282 | AO77: 25 | AP77: 196.4596968 | AQ77: 0.0263 | AS77: 25 | AT77: 182.3435966 | AU77: 0.0244
A78: 26 | B78: 334.7706982 | C78: 0.0448 | E78: 26 | F78: 321.194598 | G78: 0.043 | I78: 26 | J78: 307.4484979 | K78: 0.0411 | M78: 26 | N78: 293.7623977 | O78: 0.0393 | Q78: 26 | R78: 279.9962976 | S78: 0.0375 | U78: 26 | V78: 266.2101975 | W78: 0.0356 | Y78: 26 | Z78: 252.3440973 | AA78: 0.0338 | AC78: 26 | AD78: 238.4579972 | AE78: 0.0319 | AG78: 26 | AH78: 224.521897 | AI78: 0.03 | AK78: 26 | AL78: 210.5057969 | AM78: 0.0282 | AO78: 26 | AP78: 196.4596968 | AQ78: 0.0263 | AS78: 26 | AT78: 182.3435966 | AU78: 0.0244
A79: 27 | B79: 334.7706982 | C79: 0.0448 | E79: 27 | F79: 321.194598 | G79: 0.043 | I79: 27 | J79: 307.4484979 | K79: 0.0411 | M79: 27 | N79: 293.7623977 | O79: 0.0393 | Q79: 27 | R79: 279.9962976 | S79: 0.0375 | U79: 27 | V79: 266.2101975 | W79: 0.0356 | Y79: 27 | Z79: 252.3440973 | AA79: 0.0338 | AC79: 27 | AD79: 238.4579972 | AE79: 0.0319 | AG79: 27 | AH79: 224.521897 | AI79: 0.03 | AK79: 27 | AL79: 210.5057969 | AM79: 0.0282 | AO79: 27 | AP79: 196.4596968 | AQ79: 0.0263 | AS79: 27 | AT79: 182.3435966 | AU79: 0.0244
A80: 28 | B80: 334.7706982 | C80: 0.0448 | E80: 28 | F80: 321.194598 | G80: 0.043 | I80: 28 | J80: 307.4484979 | K80: 0.0411 | M80: 28 | N80: 293.7623977 | O80: 0.0393 | Q80: 28 | R80: 279.9962976 | S80: 0.0375 | U80: 28 | V80: 266.2101975 | W80: 0.0356 | Y80: 28 | Z80: 252.3440973 | AA80: 0.0338 | AC80: 28 | AD80: 238.4579972 | AE80: 0.0319 | AG80: 28 | AH80: 224.521897 | AI80: 0.03 | AK80: 28 | AL80: 210.5057969 | AM80: 0.0282 | AO80: 28 | AP80: 196.4596968 | AQ80: 0.0263 | AS80: 28 | AT80: 182.3435966 | AU80: 0.0244
A81: 29 | B81: 334.7706982 | C81: 0.0448 | I81: 29 | J81: 307.4484979 | K81: 0.0411 | M81: 29 | N81: 293.7623977 | O81: 0.0393 | Q81: 29 | R81: 279.9962976 | S81: 0.0375 | U81: 29 | V81: 266.2101975 | W81: 0.0356 | Y81: 29 | Z81: 252.3440973 | AA81: 0.0338 | AC81: 29 | AD81: 238.4579972 | AE81: 0.0319 | AG81: 29 | AH81: 224.521897 | AI81: 0.03 | AK81: 29 | AL81: 210.5057969 | AM81: 0.0282 | AO81: 29 | AP81: 196.4596968 | AQ81: 0.0263 | AS81: 29 | AT81: 182.3435966 | AU81: 0.0244
A82: 30 | B82: 334.7706982 | C82: 0.0448 | I82: 30 | J82: 307.4484979 | K82: 0.0411 | M82: 30 | N82: 293.7623977 | O82: 0.0393 | Q82: 30 | R82: 279.9962976 | S82: 0.0375 | U82: 30 | V82: 266.2101975 | W82: 0.0356 | Y82: 30 | Z82: 252.3440973 | AA82: 0.0338 | AC82: 30 | AD82: 238.4579972 | AE82: 0.0319 | AG82: 30 | AH82: 224.521897 | AI82: 0.03 | AK82: 30 | AL82: 210.5057969 | AM82: 0.0282 | AO82: 30 | AP82: 196.4596968 | AQ82: 0.0263 | AS82: 30 | AT82: 182.3435966 | AU82: 0.0244
A83: 31 | B83: 334.7706982 | C83: 0.0448 | I83: 31 | J83: 307.4484979 | K83: 0.0411 | Q83: 31 | R83: 279.9962976 | S83: 0.0375 | Y83: 31 | Z83: 252.3440973 | AA83: 0.0338 | AC83: 31 | AD83: 238.4579972 | AE83: 0.0319 | AK83: 31 | AL83: 210.5057969 | AM83: 0.0282 | AS83: 31 | AT83: 182.3435966 | AU83: 0.0244
B84: TOTAL........ | C84: =IF((TRUNC((SUM(C53:C83)*1000))/10)-TRUNC(TRUNC((SUM(C53:C83)*1000))/10)>0.5,ROUND(SUM(C53:C83),2),TRUNC((TRUNC((SUM(C53:C83)*1000))/10))/100) -> 1.39 | F84: TOTAL........ | G84: =IF((TRUNC((SUM(G53:G83)*1000))/10)-TRUNC(TRUNC((SUM(G53:G83)*1000))/10)>0.5,ROUND(SUM(G53:G83),2),TRUNC((TRUNC((SUM(G53:G83)*1000))/10))/100) -> 1.2 | J84: TOTAL........ | K84: =IF((TRUNC((SUM(K53:K83)*1000))/10)-TRUNC(TRUNC((SUM(K53:K83)*1000))/10)>0.5,ROUND(SUM(K53:K83),2),TRUNC((TRUNC((SUM(K53:K83)*1000))/10))/100) -> 1.27 | N84: TOTAL........ | O84: =IF((TRUNC((SUM(O53:O83)*1000))/10)-TRUNC(TRUNC((SUM(O53:O83)*1000))/10)>0.5,ROUND(SUM(O53:O83),2),TRUNC((TRUNC((SUM(O53:O83)*1000))/10))/100) -> 1.18 | R84: TOTAL........ | S84: =IF((TRUNC((SUM(S53:S83)*1000))/10)-TRUNC(TRUNC((SUM(S53:S83)*1000))/10)>0.5,ROUND(SUM(S53:S83),2),TRUNC((TRUNC((SUM(S53:S83)*1000))/10))/100) -> 1.16 | V84: TOTAL........ | W84: =IF((TRUNC((SUM(W53:W83)*1000))/10)-TRUNC(TRUNC((SUM(W53:W83)*1000))/10)>0.5,ROUND(SUM(W53:W83),2),TRUNC((TRUNC((SUM(W53:W83)*1000))/10))/100) -> 1.07 | Z84: TOTAL........ | AA84: =IF((TRUNC((SUM(AA53:AA83)*1000))/10)-TRUNC(TRUNC((SUM(AA53:AA83)*1000))/10)>0.5,ROUND(SUM(AA53:AA83),2),TRUNC((TRUNC((SUM(AA53:AA83)*1000))/10))/100) -> 1.05 | AD84: TOTAL........ | AE84: =IF((TRUNC((SUM(AE53:AE83)*1000))/10)-TRUNC(TRUNC((SUM(AE53:AE83)*1000))/10)>0.5,ROUND(SUM(AE53:AE83),2),TRUNC((TRUNC((SUM(AE53:AE83)*1000))/10))/100) -> 0.99 | AH84: TOTAL........ | AI84: =IF((TRUNC((SUM(AI53:AI83)*1000))/10)-TRUNC(TRUNC((SUM(AI53:AI83)*1000))/10)>0.5,ROUND(SUM(AI53:AI83),2),TRUNC((TRUNC((SUM(AI53:AI83)*1000))/10))/100) -> 0.9 | AL84: TOTAL........ | AM84: =IF((TRUNC((SUM(AM53:AM83)*1000))/10)-TRUNC(TRUNC((SUM(AM53:AM83)*1000))/10)>0.5,ROUND(SUM(AM53:AM83),2),TRUNC((TRUNC((SUM(AM53:AM83)*1000))/10))/100) -> 0.87 | AP84: TOTAL........ | AQ84: =IF((TRUNC((SUM(AQ53:AQ83)*1000))/10)-TRUNC(TRUNC((SUM(AQ53:AQ83)*1000))/10)>0.5,ROUND(SUM(AQ53:AQ83),2),TRUNC((TRUNC((SUM(AQ53:AQ83)*1000))/10))/100) -> 0.79 | AT84: TOTAL........ | AU84: =IF((TRUNC((SUM(AU53:AU83)*1000))/10)-TRUNC(TRUNC((SUM(AU53:AU83)*1000))/10)>0.5,ROUND(SUM(AU53:AU83),2),TRUNC((TRUNC((SUM(AU53:AU83)*1000))/10))/100) -> 0.76 | AV84: =SUM(B84:AU84) -> 12.63
B85: I.P.F. | C85: =ROUND(C84*0.1,2) -> 0.14 | F85: I.P.F. | G85: =ROUND(G84*0.1,2) -> 0.12 | J85: I.P.F. | K85: =ROUND(K84*0.1,2) -> 0.13 | N85: I.P.F. | O85: =ROUND(O84*0.1,2) -> 0.12 | R85: I.P.F. | S85: =ROUND(S84*0.1,2) -> 0.12 | V85: I.P.F. | W85: =ROUND(W84*0.1,2) -> 0.11 | Z85: I.P.F. | AA85: =ROUND(AA84*0.1,2) -> 0.11 | AD85: I.P.F. | AE85: =ROUND(AE84*0.1,2) -> 0.1 | AH85: I.P.F. | AI85: =ROUND(AI84*0.1,2) -> 0.09 | AL85: I.P.F. | AM85: =ROUND(AM84*0.1,2) -> 0.09 | AP85: I.P.F. | AQ85: =ROUND(AQ84*0.1,2) -> 0.08 | AT85: I.P.F. | AU85: =ROUND(AU84*0.1,2) -> 0.08 | AV85: =SUM(B85:AU85) -> 1.29
B86: NETOS | C86: =+C84-C85 -> 1.25 | F86: NETOS | G86: =+G84-G85 -> 1.08 | J86: NETOS | K86: =+K84-K85 -> 1.14 | N86: NETOS | O86: =+O84-O85 -> 1.06 | R86: NETOS | S86: =+S84-S85 -> 1.04 | V86: NETOS | W86: =+W84-W85 -> 0.96 | Z86: NETOS | AA86: =+AA84-AA85 -> 0.94 | AD86: NETOS | AE86: =+AE84-AE85 -> 0.89 | AH86: NETOS | AI86: =+AI84-AI85 -> 0.81 | AL86: NETOS | AM86: =+AM84-AM85 -> 0.78 | AP86: NETOS | AQ86: =+AQ84-AQ85 -> 0.71 | AT86: NETOS | AU86: =+AU84-AU85 -> 0.68 | AV86: =SUM(B86:AU86) -> 11.34 | AW86: =+AV86 -> 11.34
AU87: =+AT83+AU86-$B$4 -> 174.0235966
A92: TERCER AÑO | B92: =IF($B$3>0,ROUND((B50*$B$3)+B50,2),B50) -> -5.826100141
A93: 1 | E93: =+A93+1 -> 2 | I93: =+E93+1 -> 3 | M93: =+I93+1 -> 4 | Q93: =+M93+1 -> 5 | U93: =+Q93+1 -> 6 | Y93: =+U93+1 -> 7 | AC93: =+Y93+1 -> 8 | AG93: =+AC93+1 -> 9 | AK93: =+AG93+1 -> 10 | AO93: =+AK93+1 -> 11 | AS93: =+AO93+1 -> 12
A94: NO. | B94: SALDO DIARIO | C94: INTERESES DIARIO | E94: NO. | F94: SALDO DIARIO | G94: INTERESES DIARIO | I94: NO. | J94: SALDO DIARIO | K94: INTERESES DIARIO | M94: NO. | N94: SALDO DIARIO | O94: INTERESES DIARIO | Q94: NO. | R94: SALDO DIARIO | S94: INTERESES DIARIO | U94: NO. | V94: SALDO DIARIO | W94: INTERESES DIARIO | Y94: NO. | Z94: SALDO DIARIO | AA94: INTERESES DIARIO | AC94: NO. | AD94: SALDO DIARIO | AE94: INTERESES DIARIO | AG94: NO. | AH94: SALDO DIARIO | AI94: INTERESES DIARIO | AK94: NO. | AL94: SALDO DIARIO | AM94: INTERESES DIARIO | AO94: NO. | AP94: SALDO DIARIO | AQ94: INTERESES DIARIO | AS94: NO. | AT94: SALDO DIARIO | AU94: INTERESES DIARIO
A95: 1 | B95: =+AT83+AU86-$B$4 -> 174.0235966 | C95: =ROUND(INT(ROUND(B95*$B$5/365,8)*10000)/10000,4) -> 0.0233 | E95: 1 | F95: =+B125+C128-$B$4 -> 159.8274965 | G95: =ROUND(INT(ROUND(F95*$B$5/365,8)*10000)/10000,4) -> 0.0214 | I95: 1 | J95: =+F122+G128-$B$4 -> 145.5213963 | K95: =ROUND(INT(ROUND(J95*$B$5/365,8)*10000)/10000,4) -> 0.0194 | M95: 1 | N95: =+J125+K128-$B$4 -> 131.2152962 | O95: =ROUND(INT(ROUND(N95*$B$5/365,8)*10000)/10000,4) -> 0.0175 | Q95: 1 | R95: =+N124+O128-$B$4 -> 116.8391961 | S95: =ROUND(INT(ROUND(R95*$B$5/365,8)*10000)/10000,4) -> 0.0156 | U95: 1 | V95: =+R125+S128-$B$4 -> 102.4230959 | W95: =ROUND(INT(ROUND(V95*$B$5/365,8)*10000)/10000,4) -> 0.0137 | Y95: 1 | Z95: =+V124+W128-$B$4 -> 87.94699577 | AA95: =ROUND(INT(ROUND(Z95*$B$5/365,8)*10000)/10000,4) -> 0.0117 | AC95: 1 | AD95: =+Z125+AA128-$B$4 -> 73.43089563 | AE95: =ROUND(INT(ROUND(AD95*$B$5/365,8)*10000)/10000,4) -> 0.0098 | AG95: 1 | AH95: =+AD125+AE128-$B$4 -> 58.85479549 | AI95: =ROUND(INT(ROUND(AH95*$B$5/365,8)*10000)/10000,4) -> 0.0078 | AK95: 1 | AL95: =+AH124+AI128-$B$4 -> 44.21869535 | AM95: =ROUND(INT(ROUND(AL95*$B$5/365,8)*10000)/10000,4) -> 0.0059 | AO95: 1 | AP95: =+AL125+AM128-$B$4 -> 29.53259521 | AQ95: =ROUND(INT(ROUND(AP95*$B$5/365,8)*10000)/10000,4) -> 0.0039 | AS95: 1 | AT95: =+AP124+AQ128-$B$4 -> 14.78649507 | AU95: =ROUND(INT(ROUND(AT95*$B$5/365,8)*10000)/10000,4) -> 0.0019
A96: =+A95+1 -> 2 | B96: =+B95 -> 174.0235966 | C96: 0.0233 | E96: =+E95+1 -> 2 | F96: =+F95 -> 159.8274965 | G96: 0.0214 | I96: =+I95+1 -> 2 | J96: =+J95 -> 145.5213963 | K96: 0.0194 | M96: =+M95+1 -> 2 | N96: =+N95 -> 131.2152962 | O96: 0.0175 | Q96: =+Q95+1 -> 2 | R96: =+R95 -> 116.8391961 | S96: 0.0156 | U96: =+U95+1 -> 2 | V96: =+V95 -> 102.4230959 | W96: 0.0137 | Y96: =+Y95+1 -> 2 | Z96: =+Z95 -> 87.94699577 | AA96: 0.0117 | AC96: =+AC95+1 -> 2 | AD96: =+AD95 -> 73.43089563 | AE96: 0.0098 | AG96: =+AG95+1 -> 2 | AH96: =+AH95 -> 58.85479549 | AI96: 0.0078 | AK96: =+AK95+1 -> 2 | AL96: =+AL95 -> 44.21869535 | AM96: 0.0059 | AO96: =+AO95+1 -> 2 | AP96: =+AP95 -> 29.53259521 | AQ96: 0.0039 | AS96: =+AS95+1 -> 2 | AT96: =+AT95 -> 14.78649507 | AU96: 0.0019
A97: =+A96+1 -> 3 | B97: =+B96+$B$92 -> 168.1974965 | C97: 0.0225 | E97: =+E96+1 -> 3 | F97: =+F96+$B$92 -> 154.0013963 | G97: 0.0206 | I97: =+I96+1 -> 3 | J97: =+J96+$B$92 -> 139.6952962 | K97: 0.0187 | M97: =+M96+1 -> 3 | N97: =+N96+$B$92 -> 125.3891961 | O97: 0.0167 | Q97: =+Q96+1 -> 3 | R97: =+R96+$B$92 -> 111.0130959 | S97: 0.0148 | U97: =+U96+1 -> 3 | V97: =+V96+$B$92 -> 96.59699577 | W97: 0.0129 | Y97: =+Y96+1 -> 3 | Z97: =+Z96+$B$92 -> 82.12089563 | AA97: 0.011 | AC97: =+AC96+1 -> 3 | AD97: =+AD96+$B$92 -> 67.60479549 | AE97: 0.009 | AG97: =+AG96+1 -> 3 | AH97: =+AH96+$B$92 -> 53.02869535 | AI97: 0.0071 | AK97: =+AK96+1 -> 3 | AL97: =+AL96+$B$92 -> 38.39259521 | AM97: 0.0051 | AO97: =+AO96+1 -> 3 | AP97: =+AP96+$B$92 -> 23.70649507 | AQ97: 0.0031 | AS97: =+AS96+1 -> 3 | AT97: =+AT96+$B$92 -> 8.960394927 | AU97: 0.0012
A98: 4 | B98: =+B97 -> 168.1974965 | C98: 0.0225 | E98: 4 | F98: =+F97 -> 154.0013963 | G98: 0.0206 | I98: 4 | J98: =+J97 -> 139.6952962 | K98: 0.0187 | M98: 4 | N98: =+N97 -> 125.3891961 | O98: 0.0167 | Q98: 4 | R98: =+R97 -> 111.0130959 | S98: 0.0148 | U98: 4 | V98: =+V97 -> 96.59699577 | W98: 0.0129 | Y98: 4 | Z98: =+Z97 -> 82.12089563 | AA98: 0.011 | AC98: 4 | AD98: =+AD97 -> 67.60479549 | AE98: 0.009 | AG98: 4 | AH98: =+AH97 -> 53.02869535 | AI98: 0.0071 | AK98: 4 | AL98: =+AL97 -> 38.39259521 | AM98: 0.0051 | AO98: 4 | AP98: =+AP97 -> 23.70649507 | AQ98: 0.0031 | AS98: 4 | AT98: =+AT97 -> 8.960394927 | AU98: 0.0012
A99: 5 | B99: =+B98 -> 168.1974965 | C99: 0.0225 | E99: 5 | F99: =+F98 -> 154.0013963 | G99: 0.0206 | I99: 5 | J99: =+J98 -> 139.6952962 | K99: 0.0187 | M99: 5 | N99: =+N98 -> 125.3891961 | O99: 0.0167 | Q99: 5 | R99: =+R98 -> 111.0130959 | S99: 0.0148 | U99: 5 | V99: =+V98 -> 96.59699577 | W99: 0.0129 | Y99: 5 | Z99: =+Z98 -> 82.12089563 | AA99: 0.011 | AC99: 5 | AD99: =+AD98 -> 67.60479549 | AE99: 0.009 | AG99: 5 | AH99: =+AH98 -> 53.02869535 | AI99: 0.0071 | AK99: 5 | AL99: =+AL98 -> 38.39259521 | AM99: 0.0051 | AO99: 5 | AP99: =+AP98 -> 23.70649507 | AQ99: 0.0031 | AS99: 5 | AT99: =+AT98 -> 8.960394927 | AU99: 0.0012
A100: 6 | B100: 168.1974965 | C100: 0.0225 | E100: 6 | F100: 154.0013963 | G100: 0.0206 | I100: 6 | J100: 139.6952962 | K100: 0.0187 | M100: 6 | N100: 125.3891961 | O100: 0.0167 | Q100: 6 | R100: 111.0130959 | S100: 0.0148 | U100: 6 | V100: 96.59699577 | W100: 0.0129 | Y100: 6 | Z100: 82.12089563 | AA100: 0.011 | AC100: 6 | AD100: 67.60479549 | AE100: 0.009 | AG100: 6 | AH100: 53.02869535 | AI100: 0.0071 | AK100: 6 | AL100: 38.39259521 | AM100: 0.0051 | AO100: 6 | AP100: 23.70649507 | AQ100: 0.0031 | AS100: 6 | AT100: 8.960394927 | AU100: 0.0012
A101: 7 | B101: 168.1974965 | C101: 0.0225 | E101: 7 | F101: 154.0013963 | G101: 0.0206 | I101: 7 | J101: 139.6952962 | K101: 0.0187 | M101: 7 | N101: 125.3891961 | O101: 0.0167 | Q101: 7 | R101: 111.0130959 | S101: 0.0148 | U101: 7 | V101: 96.59699577 | W101: 0.0129 | Y101: 7 | Z101: 82.12089563 | AA101: 0.011 | AC101: 7 | AD101: 67.60479549 | AE101: 0.009 | AG101: 7 | AH101: 53.02869535 | AI101: 0.0071 | AK101: 7 | AL101: 38.39259521 | AM101: 0.0051 | AO101: 7 | AP101: 23.70649507 | AQ101: 0.0031 | AS101: 7 | AT101: 8.960394927 | AU101: 0.0012
A102: 8 | B102: 168.1974965 | C102: 0.0225 | E102: 8 | F102: 154.0013963 | G102: 0.0206 | I102: 8 | J102: 139.6952962 | K102: 0.0187 | M102: 8 | N102: 125.3891961 | O102: 0.0167 | Q102: 8 | R102: 111.0130959 | S102: 0.0148 | U102: 8 | V102: 96.59699577 | W102: 0.0129 | Y102: 8 | Z102: 82.12089563 | AA102: 0.011 | AC102: 8 | AD102: 67.60479549 | AE102: 0.009 | AG102: 8 | AH102: 53.02869535 | AI102: 0.0071 | AK102: 8 | AL102: 38.39259521 | AM102: 0.0051 | AO102: 8 | AP102: 23.70649507 | AQ102: 0.0031 | AS102: 8 | AT102: 8.960394927 | AU102: 0.0012
A103: 9 | B103: 168.1974965 | C103: 0.0225 | E103: 9 | F103: 154.0013963 | G103: 0.0206 | I103: 9 | J103: 139.6952962 | K103: 0.0187 | M103: 9 | N103: 125.3891961 | O103: 0.0167 | Q103: 9 | R103: 111.0130959 | S103: 0.0148 | U103: 9 | V103: 96.59699577 | W103: 0.0129 | Y103: 9 | Z103: 82.12089563 | AA103: 0.011 | AC103: 9 | AD103: 67.60479549 | AE103: 0.009 | AG103: 9 | AH103: 53.02869535 | AI103: 0.0071 | AK103: 9 | AL103: 38.39259521 | AM103: 0.0051 | AO103: 9 | AP103: 23.70649507 | AQ103: 0.0031 | AS103: 9 | AT103: 8.960394927 | AU103: 0.0012
A104: 10 | B104: 168.1974965 | C104: 0.0225 | E104: 10 | F104: 154.0013963 | G104: 0.0206 | I104: 10 | J104: 139.6952962 | K104: 0.0187 | M104: 10 | N104: 125.3891961 | O104: 0.0167 | Q104: 10 | R104: 111.0130959 | S104: 0.0148 | U104: 10 | V104: 96.59699577 | W104: 0.0129 | Y104: 10 | Z104: 82.12089563 | AA104: 0.011 | AC104: 10 | AD104: 67.60479549 | AE104: 0.009 | AG104: 10 | AH104: 53.02869535 | AI104: 0.0071 | AK104: 10 | AL104: 38.39259521 | AM104: 0.0051 | AO104: 10 | AP104: 23.70649507 | AQ104: 0.0031 | AS104: 10 | AT104: 8.960394927 | AU104: 0.0012
A105: 11 | B105: 168.1974965 | C105: 0.0225 | E105: 11 | F105: 154.0013963 | G105: 0.0206 | I105: 11 | J105: 139.6952962 | K105: 0.0187 | M105: 11 | N105: 125.3891961 | O105: 0.0167 | Q105: 11 | R105: 111.0130959 | S105: 0.0148 | U105: 11 | V105: 96.59699577 | W105: 0.0129 | Y105: 11 | Z105: 82.12089563 | AA105: 0.011 | AC105: 11 | AD105: 67.60479549 | AE105: 0.009 | AG105: 11 | AH105: 53.02869535 | AI105: 0.0071 | AK105: 11 | AL105: 38.39259521 | AM105: 0.0051 | AO105: 11 | AP105: 23.70649507 | AQ105: 0.0031 | AS105: 11 | AT105: 8.960394927 | AU105: 0.0012
A106: 12 | B106: 168.1974965 | C106: 0.0225 | E106: 12 | F106: 154.0013963 | G106: 0.0206 | I106: 12 | J106: 139.6952962 | K106: 0.0187 | M106: 12 | N106: 125.3891961 | O106: 0.0167 | Q106: 12 | R106: 111.0130959 | S106: 0.0148 | U106: 12 | V106: 96.59699577 | W106: 0.0129 | Y106: 12 | Z106: 82.12089563 | AA106: 0.011 | AC106: 12 | AD106: 67.60479549 | AE106: 0.009 | AG106: 12 | AH106: 53.02869535 | AI106: 0.0071 | AK106: 12 | AL106: 38.39259521 | AM106: 0.0051 | AO106: 12 | AP106: 23.70649507 | AQ106: 0.0031 | AS106: 12 | AT106: 8.960394927 | AU106: 0.0012
A107: 13 | B107: 168.1974965 | C107: 0.0225 | E107: 13 | F107: 154.0013963 | G107: 0.0206 | I107: 13 | J107: 139.6952962 | K107: 0.0187 | M107: 13 | N107: 125.3891961 | O107: 0.0167 | Q107: 13 | R107: 111.0130959 | S107: 0.0148 | U107: 13 | V107: 96.59699577 | W107: 0.0129 | Y107: 13 | Z107: 82.12089563 | AA107: 0.011 | AC107: 13 | AD107: 67.60479549 | AE107: 0.009 | AG107: 13 | AH107: 53.02869535 | AI107: 0.0071 | AK107: 13 | AL107: 38.39259521 | AM107: 0.0051 | AO107: 13 | AP107: 23.70649507 | AQ107: 0.0031 | AS107: 13 | AT107: 8.960394927 | AU107: 0.0012
A108: 14 | B108: 168.1974965 | C108: 0.0225 | E108: 14 | F108: 154.0013963 | G108: 0.0206 | I108: 14 | J108: 139.6952962 | K108: 0.0187 | M108: 14 | N108: 125.3891961 | O108: 0.0167 | Q108: 14 | R108: 111.0130959 | S108: 0.0148 | U108: 14 | V108: 96.59699577 | W108: 0.0129 | Y108: 14 | Z108: 82.12089563 | AA108: 0.011 | AC108: 14 | AD108: 67.60479549 | AE108: 0.009 | AG108: 14 | AH108: 53.02869535 | AI108: 0.0071 | AK108: 14 | AL108: 38.39259521 | AM108: 0.0051 | AO108: 14 | AP108: 23.70649507 | AQ108: 0.0031 | AS108: 14 | AT108: 8.960394927 | AU108: 0.0012
A109: 15 | B109: 168.1974965 | C109: 0.0225 | E109: 15 | F109: 154.0013963 | G109: 0.0206 | I109: 15 | J109: 139.6952962 | K109: 0.0187 | M109: 15 | N109: 125.3891961 | O109: 0.0167 | Q109: 15 | R109: 111.0130959 | S109: 0.0148 | U109: 15 | V109: 96.59699577 | W109: 0.0129 | Y109: 15 | Z109: 82.12089563 | AA109: 0.011 | AC109: 15 | AD109: 67.60479549 | AE109: 0.009 | AG109: 15 | AH109: 53.02869535 | AI109: 0.0071 | AK109: 15 | AL109: 38.39259521 | AM109: 0.0051 | AO109: 15 | AP109: 23.70649507 | AQ109: 0.0031 | AS109: 15 | AT109: 8.960394927 | AU109: 0.0012
A110: 16 | B110: 168.1974965 | C110: 0.0225 | E110: 16 | F110: 154.0013963 | G110: 0.0206 | I110: 16 | J110: 139.6952962 | K110: 0.0187 | M110: 16 | N110: 125.3891961 | O110: 0.0167 | Q110: 16 | R110: 111.0130959 | S110: 0.0148 | U110: 16 | V110: 96.59699577 | W110: 0.0129 | Y110: 16 | Z110: 82.12089563 | AA110: 0.011 | AC110: 16 | AD110: 67.60479549 | AE110: 0.009 | AG110: 16 | AH110: 53.02869535 | AI110: 0.0071 | AK110: 16 | AL110: 38.39259521 | AM110: 0.0051 | AO110: 16 | AP110: 23.70649507 | AQ110: 0.0031 | AS110: 16 | AT110: 8.960394927 | AU110: 0.0012
A111: 17 | B111: 168.1974965 | C111: 0.0225 | E111: 17 | F111: 154.0013963 | G111: 0.0206 | I111: 17 | J111: 139.6952962 | K111: 0.0187 | M111: 17 | N111: 125.3891961 | O111: 0.0167 | Q111: 17 | R111: 111.0130959 | S111: 0.0148 | U111: 17 | V111: 96.59699577 | W111: 0.0129 | Y111: 17 | Z111: 82.12089563 | AA111: 0.011 | AC111: 17 | AD111: 67.60479549 | AE111: 0.009 | AG111: 17 | AH111: 53.02869535 | AI111: 0.0071 | AK111: 17 | AL111: 38.39259521 | AM111: 0.0051 | AO111: 17 | AP111: 23.70649507 | AQ111: 0.0031 | AS111: 17 | AT111: 8.960394927 | AU111: 0.0012
A112: 18 | B112: 168.1974965 | C112: 0.0225 | E112: 18 | F112: 154.0013963 | G112: 0.0206 | I112: 18 | J112: 139.6952962 | K112: 0.0187 | M112: 18 | N112: 125.3891961 | O112: 0.0167 | Q112: 18 | R112: 111.0130959 | S112: 0.0148 | U112: 18 | V112: 96.59699577 | W112: 0.0129 | Y112: 18 | Z112: 82.12089563 | AA112: 0.011 | AC112: 18 | AD112: 67.60479549 | AE112: 0.009 | AG112: 18 | AH112: 53.02869535 | AI112: 0.0071 | AK112: 18 | AL112: 38.39259521 | AM112: 0.0051 | AO112: 18 | AP112: 23.70649507 | AQ112: 0.0031 | AS112: 18 | AT112: 8.960394927 | AU112: 0.0012
A113: 19 | B113: 168.1974965 | C113: 0.0225 | E113: 19 | F113: 154.0013963 | G113: 0.0206 | I113: 19 | J113: 139.6952962 | K113: 0.0187 | M113: 19 | N113: 125.3891961 | O113: 0.0167 | Q113: 19 | R113: 111.0130959 | S113: 0.0148 | U113: 19 | V113: 96.59699577 | W113: 0.0129 | Y113: 19 | Z113: 82.12089563 | AA113: 0.011 | AC113: 19 | AD113: 67.60479549 | AE113: 0.009 | AG113: 19 | AH113: 53.02869535 | AI113: 0.0071 | AK113: 19 | AL113: 38.39259521 | AM113: 0.0051 | AO113: 19 | AP113: 23.70649507 | AQ113: 0.0031 | AS113: 19 | AT113: 8.960394927 | AU113: 0.0012
A114: 20 | B114: 168.1974965 | C114: 0.0225 | E114: 20 | F114: 154.0013963 | G114: 0.0206 | I114: 20 | J114: 139.6952962 | K114: 0.0187 | M114: 20 | N114: 125.3891961 | O114: 0.0167 | Q114: 20 | R114: 111.0130959 | S114: 0.0148 | U114: 20 | V114: 96.59699577 | W114: 0.0129 | Y114: 20 | Z114: 82.12089563 | AA114: 0.011 | AC114: 20 | AD114: 67.60479549 | AE114: 0.009 | AG114: 20 | AH114: 53.02869535 | AI114: 0.0071 | AK114: 20 | AL114: 38.39259521 | AM114: 0.0051 | AO114: 20 | AP114: 23.70649507 | AQ114: 0.0031 | AS114: 20 | AT114: 8.960394927 | AU114: 0.0012
A115: 21 | B115: 168.1974965 | C115: 0.0225 | E115: 21 | F115: 154.0013963 | G115: 0.0206 | I115: 21 | J115: 139.6952962 | K115: 0.0187 | M115: 21 | N115: 125.3891961 | O115: 0.0167 | Q115: 21 | R115: 111.0130959 | S115: 0.0148 | U115: 21 | V115: 96.59699577 | W115: 0.0129 | Y115: 21 | Z115: 82.12089563 | AA115: 0.011 | AC115: 21 | AD115: 67.60479549 | AE115: 0.009 | AG115: 21 | AH115: 53.02869535 | AI115: 0.0071 | AK115: 21 | AL115: 38.39259521 | AM115: 0.0051 | AO115: 21 | AP115: 23.70649507 | AQ115: 0.0031 | AS115: 21 | AT115: 8.960394927 | AU115: 0.0012
A116: 22 | B116: 168.1974965 | C116: 0.0225 | E116: 22 | F116: 154.0013963 | G116: 0.0206 | I116: 22 | J116: 139.6952962 | K116: 0.0187 | M116: 22 | N116: 125.3891961 | O116: 0.0167 | Q116: 22 | R116: 111.0130959 | S116: 0.0148 | U116: 22 | V116: 96.59699577 | W116: 0.0129 | Y116: 22 | Z116: 82.12089563 | AA116: 0.011 | AC116: 22 | AD116: 67.60479549 | AE116: 0.009 | AG116: 22 | AH116: 53.02869535 | AI116: 0.0071 | AK116: 22 | AL116: 38.39259521 | AM116: 0.0051 | AO116: 22 | AP116: 23.70649507 | AQ116: 0.0031 | AS116: 22 | AT116: 8.960394927 | AU116: 0.0012
A117: 23 | B117: 168.1974965 | C117: 0.0225 | E117: 23 | F117: 154.0013963 | G117: 0.0206 | I117: 23 | J117: 139.6952962 | K117: 0.0187 | M117: 23 | N117: 125.3891961 | O117: 0.0167 | Q117: 23 | R117: 111.0130959 | S117: 0.0148 | U117: 23 | V117: 96.59699577 | W117: 0.0129 | Y117: 23 | Z117: 82.12089563 | AA117: 0.011 | AC117: 23 | AD117: 67.60479549 | AE117: 0.009 | AG117: 23 | AH117: 53.02869535 | AI117: 0.0071 | AK117: 23 | AL117: 38.39259521 | AM117: 0.0051 | AO117: 23 | AP117: 23.70649507 | AQ117: 0.0031 | AS117: 23 | AT117: 8.960394927 | AU117: 0.0012
A118: 24 | B118: 168.1974965 | C118: 0.0225 | E118: 24 | F118: 154.0013963 | G118: 0.0206 | I118: 24 | J118: 139.6952962 | K118: 0.0187 | M118: 24 | N118: 125.3891961 | O118: 0.0167 | Q118: 24 | R118: 111.0130959 | S118: 0.0148 | U118: 24 | V118: 96.59699577 | W118: 0.0129 | Y118: 24 | Z118: 82.12089563 | AA118: 0.011 | AC118: 24 | AD118: 67.60479549 | AE118: 0.009 | AG118: 24 | AH118: 53.02869535 | AI118: 0.0071 | AK118: 24 | AL118: 38.39259521 | AM118: 0.0051 | AO118: 24 | AP118: 23.70649507 | AQ118: 0.0031 | AS118: 24 | AT118: 8.960394927 | AU118: 0.0012
A119: 25 | B119: 168.1974965 | C119: 0.0225 | E119: 25 | F119: 154.0013963 | G119: 0.0206 | I119: 25 | J119: 139.6952962 | K119: 0.0187 | M119: 25 | N119: 125.3891961 | O119: 0.0167 | Q119: 25 | R119: 111.0130959 | S119: 0.0148 | U119: 25 | V119: 96.59699577 | W119: 0.0129 | Y119: 25 | Z119: 82.12089563 | AA119: 0.011 | AC119: 25 | AD119: 67.60479549 | AE119: 0.009 | AG119: 25 | AH119: 53.02869535 | AI119: 0.0071 | AK119: 25 | AL119: 38.39259521 | AM119: 0.0051 | AO119: 25 | AP119: 23.70649507 | AQ119: 0.0031 | AS119: 25 | AT119: 8.960394927 | AU119: 0.0012
A120: 26 | B120: 168.1974965 | C120: 0.0225 | E120: 26 | F120: 154.0013963 | G120: 0.0206 | I120: 26 | J120: 139.6952962 | K120: 0.0187 | M120: 26 | N120: 125.3891961 | O120: 0.0167 | Q120: 26 | R120: 111.0130959 | S120: 0.0148 | U120: 26 | V120: 96.59699577 | W120: 0.0129 | Y120: 26 | Z120: 82.12089563 | AA120: 0.011 | AC120: 26 | AD120: 67.60479549 | AE120: 0.009 | AG120: 26 | AH120: 53.02869535 | AI120: 0.0071 | AK120: 26 | AL120: 38.39259521 | AM120: 0.0051 | AO120: 26 | AP120: 23.70649507 | AQ120: 0.0031 | AS120: 26 | AT120: 8.960394927 | AU120: 0.0012
A121: 27 | B121: 168.1974965 | C121: 0.0225 | E121: 27 | F121: 154.0013963 | G121: 0.0206 | I121: 27 | J121: 139.6952962 | K121: 0.0187 | M121: 27 | N121: 125.3891961 | O121: 0.0167 | Q121: 27 | R121: 111.0130959 | S121: 0.0148 | U121: 27 | V121: 96.59699577 | W121: 0.0129 | Y121: 27 | Z121: 82.12089563 | AA121: 0.011 | AC121: 27 | AD121: 67.60479549 | AE121: 0.009 | AG121: 27 | AH121: 53.02869535 | AI121: 0.0071 | AK121: 27 | AL121: 38.39259521 | AM121: 0.0051 | AO121: 27 | AP121: 23.70649507 | AQ121: 0.0031 | AS121: 27 | AT121: 8.960394927 | AU121: 0.0012
A122: 28 | B122: 168.1974965 | C122: 0.0225 | E122: 28 | F122: 154.0013963 | G122: 0.0206 | I122: 28 | J122: 139.6952962 | K122: 0.0187 | M122: 28 | N122: 125.3891961 | O122: 0.0167 | Q122: 28 | R122: 111.0130959 | S122: 0.0148 | U122: 28 | V122: 96.59699577 | W122: 0.0129 | Y122: 28 | Z122: 82.12089563 | AA122: 0.011 | AC122: 28 | AD122: 67.60479549 | AE122: 0.009 | AG122: 28 | AH122: 53.02869535 | AI122: 0.0071 | AK122: 28 | AL122: 38.39259521 | AM122: 0.0051 | AO122: 28 | AP122: 23.70649507 | AQ122: 0.0031 | AS122: 28 | AT122: 8.960394927 | AU122: 0.0012
A123: 29 | B123: 168.1974965 | C123: 0.0225 | I123: 29 | J123: 139.6952962 | K123: 0.0187 | M123: 29 | N123: 125.3891961 | O123: 0.0167 | Q123: 29 | R123: 111.0130959 | S123: 0.0148 | U123: 29 | V123: 96.59699577 | W123: 0.0129 | Y123: 29 | Z123: 82.12089563 | AA123: 0.011 | AC123: 29 | AD123: 67.60479549 | AE123: 0.009 | AG123: 29 | AH123: 53.02869535 | AI123: 0.0071 | AK123: 29 | AL123: 38.39259521 | AM123: 0.0051 | AO123: 29 | AP123: 23.70649507 | AQ123: 0.0031 | AS123: 29 | AT123: 8.960394927 | AU123: 0.0012
A124: 30 | B124: 168.1974965 | C124: 0.0225 | I124: 30 | J124: 139.6952962 | K124: 0.0187 | M124: 30 | N124: 125.3891961 | O124: 0.0167 | Q124: 30 | R124: 111.0130959 | S124: 0.0148 | U124: 30 | V124: 96.59699577 | W124: 0.0129 | Y124: 30 | Z124: 82.12089563 | AA124: 0.011 | AC124: 30 | AD124: 67.60479549 | AE124: 0.009 | AG124: 30 | AH124: 53.02869535 | AI124: 0.0071 | AK124: 30 | AL124: 38.39259521 | AM124: 0.0051 | AO124: 30 | AP124: 23.70649507 | AQ124: 0.0031 | AS124: 30 | AT124: 8.960394927 | AU124: 0.0012
A125: 31 | B125: 168.1974965 | C125: 0.0225 | I125: 31 | J125: 139.6952962 | K125: 0.0187 | Q125: 31 | R125: 111.0130959 | S125: 0.0148 | Y125: 31 | Z125: 82.12089563 | AA125: 0.011 | AC125: 31 | AD125: 67.60479549 | AE125: 0.009 | AK125: 31 | AL125: 38.39259521 | AM125: 0.0051 | AS125: 31 | AT125: 8.960394927 | AU125: 0.0012
B126: TOTAL........ | C126: =IF((TRUNC((SUM(C95:C125)*1000))/10)-TRUNC(TRUNC((SUM(C95:C125)*1000))/10)>0.5,ROUND(SUM(C95:C125),2),TRUNC((TRUNC((SUM(C95:C125)*1000))/10))/100) -> 0.7 | F126: TOTAL........ | G126: =IF((TRUNC((SUM(G95:G125)*1000))/10)-TRUNC(TRUNC((SUM(G95:G125)*1000))/10)>0.5,ROUND(SUM(G95:G125),2),TRUNC((TRUNC((SUM(G95:G125)*1000))/10))/100) -> 0.58 | J126: TOTAL........ | K126: =IF((TRUNC((SUM(K95:K125)*1000))/10)-TRUNC(TRUNC((SUM(K95:K125)*1000))/10)>0.5,ROUND(SUM(K95:K125),2),TRUNC((TRUNC((SUM(K95:K125)*1000))/10))/100) -> 0.58 | N126: TOTAL........ | O126: =IF((TRUNC((SUM(O95:O125)*1000))/10)-TRUNC(TRUNC((SUM(O95:O125)*1000))/10)>0.5,ROUND(SUM(O95:O125),2),TRUNC((TRUNC((SUM(O95:O125)*1000))/10))/100) -> 0.5 | R126: TOTAL........ | S126: =IF((TRUNC((SUM(S95:S125)*1000))/10)-TRUNC(TRUNC((SUM(S95:S125)*1000))/10)>0.5,ROUND(SUM(S95:S125),2),TRUNC((TRUNC((SUM(S95:S125)*1000))/10))/100) -> 0.46 | V126: TOTAL........ | W126: =IF((TRUNC((SUM(W95:W125)*1000))/10)-TRUNC(TRUNC((SUM(W95:W125)*1000))/10)>0.5,ROUND(SUM(W95:W125),2),TRUNC((TRUNC((SUM(W95:W125)*1000))/10))/100) -> 0.39 | Z126: TOTAL........ | AA126: =IF((TRUNC((SUM(AA95:AA125)*1000))/10)-TRUNC(TRUNC((SUM(AA95:AA125)*1000))/10)>0.5,ROUND(SUM(AA95:AA125),2),TRUNC((TRUNC((SUM(AA95:AA125)*1000))/10))/100) -> 0.34 | AD126: TOTAL........ | AE126: =IF((TRUNC((SUM(AE95:AE125)*1000))/10)-TRUNC(TRUNC((SUM(AE95:AE125)*1000))/10)>0.5,ROUND(SUM(AE95:AE125),2),TRUNC((TRUNC((SUM(AE95:AE125)*1000))/10))/100) -> 0.28 | AH126: TOTAL........ | AI126: =IF((TRUNC((SUM(AI95:AI125)*1000))/10)-TRUNC(TRUNC((SUM(AI95:AI125)*1000))/10)>0.5,ROUND(SUM(AI95:AI125),2),TRUNC((TRUNC((SUM(AI95:AI125)*1000))/10))/100) -> 0.21 | AL126: TOTAL........ | AM126: =IF((TRUNC((SUM(AM95:AM125)*1000))/10)-TRUNC(TRUNC((SUM(AM95:AM125)*1000))/10)>0.5,ROUND(SUM(AM95:AM125),2),TRUNC((TRUNC((SUM(AM95:AM125)*1000))/10))/100) -> 0.16 | AP126: TOTAL........ | AQ126: =IF((TRUNC((SUM(AQ95:AQ125)*1000))/10)-TRUNC(TRUNC((SUM(AQ95:AQ125)*1000))/10)>0.5,ROUND(SUM(AQ95:AQ125),2),TRUNC((TRUNC((SUM(AQ95:AQ125)*1000))/10))/100) -> 0.09 | AT126: TOTAL........ | AU126: =IF((TRUNC((SUM(AU95:AU125)*1000))/10)-TRUNC(TRUNC((SUM(AU95:AU125)*1000))/10)>0.5,ROUND(SUM(AU95:AU125),2),TRUNC((TRUNC((SUM(AU95:AU125)*1000))/10))/100) -> 0.04 | AV126: =SUM(B126:AU126) -> 4.33
B127: I.P.F. | C127: =ROUND(C126*0.1,2) -> 0.07 | F127: I.P.F. | G127: =ROUND(G126*0.1,2) -> 0.06 | J127: I.P.F. | K127: =ROUND(K126*0.1,2) -> 0.06 | N127: I.P.F. | O127: =ROUND(O126*0.1,2) -> 0.05 | R127: I.P.F. | S127: =ROUND(S126*0.1,2) -> 0.05 | V127: I.P.F. | W127: =ROUND(W126*0.1,2) -> 0.04 | Z127: I.P.F. | AA127: =ROUND(AA126*0.1,2) -> 0.03 | AD127: I.P.F. | AE127: =ROUND(AE126*0.1,2) -> 0.03 | AH127: I.P.F. | AI127: =ROUND(AI126*0.1,2) -> 0.02 | AL127: I.P.F. | AM127: =ROUND(AM126*0.1,2) -> 0.02 | AP127: I.P.F. | AQ127: =ROUND(AQ126*0.1,2) -> 0.01 | AT127: I.P.F. | AU127: =ROUND(AU126*0.1,2) -> 0 | AV127: =SUM(B127:AU127) -> 0.44
B128: NETOS | C128: =+C126-C127 -> 0.63 | F128: NETOS | G128: =+G126-G127 -> 0.52 | J128: NETOS | K128: =+K126-K127 -> 0.52 | N128: NETOS | O128: =+O126-O127 -> 0.45 | R128: NETOS | S128: =+S126-S127 -> 0.41 | V128: NETOS | W128: =+W126-W127 -> 0.35 | Z128: NETOS | AA128: =+AA126-AA127 -> 0.31 | AD128: NETOS | AE128: =+AE126-AE127 -> 0.25 | AH128: NETOS | AI128: =+AI126-AI127 -> 0.19 | AL128: NETOS | AM128: =+AM126-AM127 -> 0.14 | AP128: NETOS | AQ128: =+AQ126-AQ127 -> 0.08 | AT128: NETOS | AU128: =+AU126-AU127 -> 0.04 | AV128: =SUM(B128:AU128) -> 3.89 | AW128: =+AV128 -> 3.89
AU129: =+AT125+AU128-$B$4 -> 0.0003949270358
